Workbook

Sheet 耐候性数据（不全） (hidden)
B1: 耐候性测试数据
B2: 序号 | C2: 牌号 | D2: 批次 | E2: 名称 | F2: 光源/角度 | G2: 测试标准 | H2: Haze (初始) | I2: Total Tran | J2: L* | K2: a* | L2: b* | M2: Haze (初始-平均) | N2: Haze (腐蚀) | O2: Haze (腐蚀-平均) | P2: △H(%) | Q2: 级别
C3: 空气 | D3: / | E3: Target | F3: D65/10° | G3: ASTM | H3: 0.00 | I3: 100.00 | J3: 100 | K3: -0.05 | L3: -0.06 | M3: 0.00 | N3: 0.00 | O3: 0.00 | P3: 0.00
C4: 1 | D4: 2 | E4: 3 | F4: 4 | G4: 5 | H4: 6 | I4: 7 | J4: 8 | K4: 9 | L4: 10 | M4: 11 | N4: 12 | O4: 13 | P4: 14 | Q4: 15
B5: 1 | C5: H-LaK7 | D5: aT24-16#-003/06 | E5: H-LaK7-1 | F5: D65/10° | G5: ASTM | H5: 0.10 | I5: 87.67 | J5: 95.01 | K5: -0.07 | L5: 0.27 | M5: =AVERAGE(H5:H13) -> 0.09 | N5: 0.14 | O5: =AVERAGE(N5:N13) -> 0.12 | P5: =O5-M5 -> 0.026667 | Q5: 1
E6: H-LaK7-1 | F6: D65/10° | G6: ASTM | H6: 0.09 | I6: 87.66 | J6: 95.01 | K6: -0.07 | L6: 0.25 | N6: 0.15
E7: H-LaK7-1 | F7: D65/10° | G7: ASTM | H7: 0.09 | I7: 87.66 | J7: 95.01 | K7: -0.05 | L7: 0.23 | N7: 0.15
E8: H-LaK7-2 | F8: D65/10° | G8: ASTM | H8: 0.10 | I8: 87.55 | J8: 94.96 | K8: -0.06 | L8: 0.31 | N8: 0.12
E9: H-LaK7-2 | F9: D65/10° | G9: ASTM | H9: 0.09 | I9: 87.56 | J9: 94.97 | K9: -0.04 | L9: 0.28 | N9: 0.09
E10: H-LaK7-2 | F10: D65/10° | G10: ASTM | H10: 0.08 | I10: 87.57 | J10: 94.97 | K10: -0.05 | L10: 0.26 | N10: 0.10
E11: H-LaK7-3 | F11: D65/10° | G11: ASTM | H11: 0.10 | I11: 87.57 | J11: 94.97 | K11: -0.07 | L11: 0.32 | N11: 0.11
E12: H-LaK7-3 | F12: D65/10° | G12: ASTM | H12: 0.10 | I12: 87.56 | J12: 94.97 | K12: -0.03 | L12: 0.27 | N12: 0.11
E13: H-LaK7-3 | F13: D65/10° | G13: ASTM | H13: 0.10 | I13: 87.58 | J13: 94.98 | K13: -0.04 | L13: 0.25 | N13: 0.12
B14: 2 | C14: H-LaK2H | D14: T24-34#-015/01 | E14: H-LaK2H-1 | F14: D65/10° | G14: ASTM | H14: 0.08 | I14: 88.01 | J14: 95.16 | K14: -0.05 | L14: 0.31 | M14: =AVERAGE(H14:H22) -> 0.08 | N14: 0.11 | O14: =AVERAGE(N14:N22) -> 0.09 | P14: =O14-M14 -> 0.01 | Q14: 1
E15: H-LaK2H-1 | F15: D65/10° | G15: ASTM | H15: 0.08 | I15: 88.02 | J15: 95.16 | K15: -0.05 | L15: 0.29 | N15: 0.10
E16: H-LaK2H-1 | F16: D65/10° | G16: ASTM | H16: 0.08 | I16: 88.00 | J16: 95.15 | K16: -0.03 | L16: 0.27 | N16: 0.09
E17: H-LaK2H-2 | F17: D65/10° | G17: ASTM | H17: 0.08 | I17: 87.97 | J17: 95.14 | K17: -0.04 | L17: 0.34 | N17: 0.08
E18: H-LaK2H-2 | F18: D65/10° | G18: ASTM | H18: 0.08 | I18: 87.97 | J18: 95.14 | K18: -0.03 | L18: 0.29 | N18: 0.07
E19: H-LaK2H-2 | F19: D65/10° | G19: ASTM | H19: 0.08 | I19: 87.97 | J19: 95.14 | K19: -0.03 | L19: 0.27 | N19: 0.08
E20: H-LaK2H-3 | F20: D65/10° | G20: ASTM | H20: 0.09 | I20: 87.97 | J20: 95.14 | K20: 0 | L20: 0.25 | N20: 0.09
E21: H-LaK2H-3 | F21: D65/10° | G21: ASTM | H21: 0.09 | I21: 87.98 | J21: 95.14 | K21: -0.03 | L21: 0.28 | N21: 0.09
E22: H-LaK2H-3 | F22: D65/10° | G22: ASTM | H22: 0.09 | I22: 87.99 | J22: 95.15 | K22: -0.03 | L22: 0.27 | N22: 0.09
B23: 3 | C23: H-LaK52 | D23: 2031241209/02/-120TK | E23: H-LaK52-1 | F23: D65/10° | G23: ASTM | H23: 0.11 | I23: 87.16 | J23: 94.79 | K23: -0.08 | L23: 0.37 | M23: =AVERAGE(H23:H31) -> 0.10 | N23: 0.15 | O23: =AVERAGE(N23:N31) -> 0.17 | P23: =O23-M23 -> 0.06 | Q23: 1
E24: H-LaK52-1 | F24: D65/10° | G24: ASTM | H24: 0.12 | I24: 87.15 | J24: 94.79 | K24: -0.08 | L24: 0.33 | N24: 0.16
E25: H-LaK52-1 | F25: D65/10° | G25: ASTM | H25: 0.12 | I25: 87.17 | J25: 94.8 | K25: -0.08 | L25: 0.34 | N25: 0.15
E26: H-LaK52-2 | F26: D65/10° | G26: ASTM | H26: 0.11 | I26: 87.13 | J26: 94.78 | K26: -0.1 | L26: 0.42 | N26: 0.19
E27: H-LaK52-2 | F27: D65/10° | G27: ASTM | H27: 0.11 | I27: 87.11 | J27: 94.77 | K27: -0.08 | L27: 0.38 | N27: 0.20
E28: H-LaK52-2 | F28: D65/10° | G28: ASTM | H28: 0.11 | I28: 87.11 | J28: 94.77 | K28: -0.09 | L28: 0.38 | N28: 0.19
E29: H-LaK52-3 | F29: D65/10° | G29: ASTM | H29: 0.08 | I29: 87.14 | J29: 94.79 | K29: -0.07 | L29: 0.35 | N29: 0.14
E30: H-LaK52-3 | F30: D65/10° | G30: ASTM | H30: 0.08 | I30: 87.13 | J30: 94.78 | K30: -0.07 | L30: 0.34 | N30: 0.15
E31: H-LaK52-3 | F31: D65/10° | G31: ASTM | H31: 0.09 | I31: 87.12 | J31: 94.78 | K31: -0.04 | L31: 0.33 | N31: 0.16
B32: 4 | C32: H-QF50 | D32: 70311808/41/-160TK | E32: H-QF50-1 | F32: D65/10° | G32: ASTM | H32: 0.10 | I32: 90.30 | J32: 96.11 | K32: -0.03 | L32: 0.38 | M32: =AVERAGE(H32:H40) -> 0.10 | N32: 0.17 | O32: =AVERAGE(N32:N40) -> 0.15 | P32: =O32-M32 -> 0.05 | Q32: 1
E33: H-QF50-1 | F33: D65/10° | G33: ASTM | H33: 0.10 | I33: 90.31 | J33: 96.11 | K33: -0.02 | L33: 0.37 | N33: 0.16
E34: H-QF50-1 | F34: D65/10° | G34: ASTM | H34: 0.09 | I34: 90.30 | J34: 96.11 | K34: -0.01 | L34: 0.35 | N34: 0.16
E35: H-QF50-2 | F35: D65/10° | G35: ASTM | H35: 0.11 | I35: 90.29 | J35: 96.1 | K35: -0.03 | L35: 0.4 | N35: 0.17
E36: H-QF50-2 | F36: D65/10° | G36: ASTM | H36: 0.11 | I36: 90.31 | J36: 96.11 | K36: -0.04 | L36: 0.4 | N36: 0.18
E37: H-QF50-2 | F37: D65/10° | G37: ASTM | H37: 0.12 | I37: 90.31 | J37: 96.11 | K37: -0.02 | L37: 0.35 | N37: 0.17
E38: H-QF50-3 | F38: D65/10° | G38: ASTM | H38: 0.09 | I38: 90.31 | J38: 96.11 | K38: -0.04 | L38: 0.43 | N38: 0.11
E39: H-QF50-3 | F39: D65/10° | G39: ASTM | H39: 0.10 | I39: 90.29 | J39: 96.1 | K39: -0.01 | L39: 0.37 | N39: 0.11
E40: H-QF50-3 | F40: D65/10° | G40: ASTM | H40: 0.10 | I40: 90.29 | J40: 96.1 | K40: -0.01 | L40: 0.39 | N40: 0.11
B41: 5 | C41: H-F13 | D41: 30712112/21/-190 | E41: H-F13-1 | F41: D65/10° | G41: ASTM | H41: 0.10 | I41: 89.50 | J41: 95.77 | K41: -0.11 | L41: 0.64 | M41: =AVERAGE(H41:H49) -> 0.10 | N41: 0.12 | O41: =AVERAGE(N41:N49) -> 0.12 | P41: =O41-M41 -> 0.02 | Q41: 1
E42: H-F13-1 | F42: D65/10° | G42: ASTM | H42: 0.10 | I42: 89.49 | J42: 95.77 | K42: -0.11 | L42: 0.64 | N42: 0.12
E43: H-F13-1 | F43: D65/10° | G43: ASTM | H43: 0.09 | I43: 89.51 | J43: 95.77 | K43: -0.11 | L43: 0.62 | N43: 0.12
E44: H-F13-2 | F44: D65/10° | G44: ASTM | H44: 0.10 | I44: 89.53 | J44: 95.78 | K44: -0.12 | L44: 0.64 | N44: 0.13
E45: H-F13-2 | F45: D65/10° | G45: ASTM | H45: 0.11 | I45: 89.52 | J45: 95.78 | K45: -0.12 | L45: 0.6 | N45: 0.12
E46: H-F13-2 | F46: D65/10° | G46: ASTM | H46: 0.10 | I46: 89.51 | J46: 95.78 | K46: -0.1 | L46: 0.6 | N46: 0.13
E47: H-F13-3 | F47: D65/10° | G47: ASTM | H47: 0.11 | I47: 89.46 | J47: 95.76 | K47: -0.11 | L47: 0.63 | N47: 0.11
E48: H-F13-3 | F48: D65/10° | G48: ASTM | H48: 0.10 | I48: 89.48 | J48: 95.76 | K48: -0.11 | L48: 0.61 | N48: 0.11
E49: H-F13-3 | F49: D65/10° | G49: ASTM | H49: 0.11 | I49: 89.48 | J49: 95.76 | K49: -0.1 | L49: 0.61 | N49: 0.12
B50: 6 | C50: H-QF14 | D50: 30412501/07/-210TK | E50: H-QF14-3 | F50: D65/10° | G50: ASTM | H50: 0.04 | I50: 90.22 | J50: 96.07 | K50: -0.12 | L50: 0.5 | M50: =AVERAGE(H50:H58) -> 0.08 | N50: 0.06 | O50: =AVERAGE(N50:N58) -> 0.09 | P50: =O50-M50 -> 0.02 | Q50: 1
E51: H-QF14-3 | F51: D65/10° | G51: ASTM | H51: 0.05 | I51: 90.21 | J51: 96.07 | K51: -0.09 | L51: 0.46 | N51: 0.06
E52: H-QF14-3 | F52: D65/10° | G52: ASTM | H52: 0.05 | I52: 90.21 | J52: 96.07 | K52: -0.09 | L52: 0.45 | N52: 0.06
E53: H-QF14-2 | F53: D65/10° | G53: ASTM | H53: 0.08 | I53: 90.23 | J53: 96.08 | K53: -0.11 | L53: 0.49 | N53: 0.11
E54: H-QF14-2 | F54: D65/10° | G54: ASTM | H54: 0.09 | I54: 90.22 | J54: 96.07 | K54: -0.09 | L54: 0.47 | N54: 0.10
E55: H-QF14-2 | F55: D65/10° | G55: ASTM | H55: 0.09 | I55: 90.23 | J55: 96.08 | K55: -0.1 | L55: 0.48 | N55: 0.10
E56: H-QF14-1 | F56: D65/10° | G56: ASTM | H56: 0.10 | I56: 90.16 | J56: 96.05 | K56: -0.12 | L56: 0.52 | N56: 0.12
E57: H-QF14-1 | F57: D65/10° | G57: ASTM | H57: 0.10 | I57: 90.16 | J57: 96.05 | K57: -0.09 | L57: 0.48 | N57: 0.12
E58: H-QF14-1 | F58: D65/10° | G58: ASTM | H58: 0.10 | I58: 90.16 | J58: 96.05 | K58: -0.09 | L58: 0.47 | N58: 0.11
B59: 7 | C59: H-LaK12 | D59: 2061240817/-130 | E59: H-LaK12-1 | F59: D65/10° | G59: ASTM | H59: 0.08 | I59: 88.01 | J59: 95.15 | K59: -0.1 | L59: 0.34 | M59: =AVERAGE(H59:H67) -> 0.10 | N59: 0.12 | O59: =AVERAGE(N59:N67) -> 0.15 | P59: =O59-M59 -> 0.05 | Q59: 1
E60: H-LaK12-1 | F60: D65/10° | G60: ASTM | H60: 0.09 | I60: 87.99 | J60: 95.15 | K60: -0.09 | L60: 0.32 | N60: 0.12
E61: H-LaK12-1 | F61: D65/10° | G61: ASTM | H61: 0.09 | I61: 88.02 | J61: 95.16 | K61: -0.09 | L61: 0.33 | N61: 0.12
E62: H-LaK12-2 | F62: D65/10° | G62: ASTM | H62: 0.10 | I62: 88.02 | J62: 95.16 | K62: -0.11 | L62: 0.34 | N62: 0.16
E63: H-LaK12-2 | F63: D65/10° | G63: ASTM | H63: 0.11 | I63: 88.00 | J63: 95.15 | K63: -0.09 | L63: 0.32 | N63: 0.17
E64: H-LaK12-2 | F64: D65/10° | G64: ASTM | H64: 0.11 | I64: 87.99 | J64: 95.15 | K64: -0.06 | L64: 0.29 | N64: 0.18
E65: H-LaK12-3 | F65: D65/10° | G65: ASTM | H65: 0.10 | I65: 87.97 | J65: 95.14 | K65: -0.1 | L65: 0.36 | N65: 0.14
E66: H-LaK12-3 | F66: D65/10° | G66: ASTM | H66: 0.10 | I66: 87.97 | J66: 95.14 | K66: -0.11 | L66: 0.31 | N66: 0.15
E67: H-LaK12-3 | F67: D65/10° | G67: ASTM | H67: 0.10 | I67: 87.95 | J67: 95.13 | K67: -0.08 | L67: 0.32 | N67: 0.15
C68: 空气 | D68: / | E68: Target | F68: D65/10° | G68: ASTM | H68: 0.00 | I68: 100.00 | J68: 99.99 | K68: -0.04 | L68: -0.04 | N68: 0.00
B69: 8 | C69: H-KF6 | D69: T21-8#-018/03 | E69: H-KF6-3 | F69: D65/10° | G69: ASTM | H69: 0.19 | I69: 92.07 | J69: 96.84 | K69: -0.07 | L69: 0.27 | M69: =AVERAGE(H69:H77) -> 0.16 | N69: 0.20 | O69: =AVERAGE(N69:N77) -> 0.17 | P69: =O69-M69 -> 0.01 | Q69: 1
E70: H-KF6-3 | F70: D65/10° | G70: ASTM | H70: 0.19 | I70: 92.06 | J70: 96.84 | K70: -0.06 | L70: 0.26 | N70: 0.20
E71: H-KF6-3 | F71: D65/10° | G71: ASTM | H71: 0.19 | I71: 92.06 | J71: 96.83 | K71: -0.04 | L71: 0.24 | N71: 0.20
E72: H-KF6-2 | F72: D65/10° | G72: ASTM | H72: 0.11 | I72: 92.07 | J72: 96.84 | K72: -0.07 | L72: 0.29 | N72: 0.15
E73: H-KF6-2 | F73: D65/10° | G73: ASTM | H73: 0.12 | I73: 92.10 | J73: 96.85 | K73: -0.05 | L73: 0.27 | N73: 0.15
E74: H-KF6-2 | F74: D65/10° | G74: ASTM | H74: 0.13 | I74: 92.08 | J74: 96.85 | K74: -0.04 | L74: 0.22 | N74: 0.14
E75: H-KF6-1 | F75: D65/10° | G75: ASTM | H75: 0.17 | I75: 92.07 | J75: 96.84 | K75: -0.05 | L75: 0.28 | N75: 0.17
E76: H-KF6-1 | F76: D65/10° | G76: ASTM | H76: 0.16 | I76: 92.05 | J76: 96.83 | K76: -0.07 | L76: 0.26 | N76: 0.17
E77: H-KF6-1 | F77: D65/10° | G77: ASTM | H77: 0.16 | I77: 92.05 | J77: 96.83 | K77: -0.04 | L77: 0.22 | N77: 0.17
B78: 9 | C78: H-LaK51A | D78: 2061230916/03/-150TK | E78: H-LaK51A-1 | F78: D65/10° | G78: ASTM | H78: 0.10 | I78: 87.93 | J78: 95.12 | K78: -0.06 | L78: 0.31 | M78: =AVERAGE(H78:H86) -> 0.15 | N78: 0.13 | O78: =AVERAGE(N78:N86) -> 0.16 | P78: =O78-M78 -> 0.01 | Q78: 1
E79: H-LaK51A-1 | F79: D65/10° | G79: ASTM | H79: 0.10 | I79: 87.93 | J79: 95.12 | K79: -0.05 | L79: 0.28 | N79: 0.12
E80: H-LaK51A-1 | F80: D65/10° | G80: ASTM | H80: 0.10 | I80: 87.91 | J80: 95.11 | K80: -0.03 | L80: 0.24 | N80: 0.14
E81: H-LaK51A-2 | F81: D65/10° | G81: ASTM | H81: 0.11 | I81: 87.92 | J81: 95.12 | K81: -0.04 | L81: 0.29 | N81: 0.14
E82: H-LaK51A-2 | F82: D65/10° | G82: ASTM | H82: 0.12 | I82: 87.91 | J82: 95.11 | K82: -0.06 | L82: 0.3 | N82: 0.17
E83: H-LaK51A-2 | F83: D65/10° | G83: ASTM | H83: 0.12 | I83: 87.92 | J83: 95.12 | K83: -0.04 | L83: 0.27 | N83: 0.16
E84: H-LaK51A-3 | F84: D65/10° | G84: ASTM | H84: 0.24 | I84: 87.88 | J84: 95.1 | K84: -0.05 | L84: 0.31 | N84: 0.19
E85: H-LaK51A-3 | F85: D65/10° | G85: ASTM | H85: 0.24 | I85: 87.87 | J85: 95.1 | K85: -0.05 | L85: 0.32 | N85: 0.20
E86: H-LaK51A-3 | F86: D65/10° | G86: ASTM | H86: 0.24 | I86: 87.88 | J86: 95.1 | K86: -0.03 | L86: 0.26 | N86: 0.19
B87: 10 | C87: H-LaK5A | D87: 2061240806/02/-130TK | E87: H-LaK5A-1 | F87: D65/10° | G87: ASTM | H87: 0.09 | I87: 88.32 | J87: 95.28 | K87: -0.06 | L87: 0.31 | M87: =AVERAGE(H87:H95) -> 0.09 | N87: 0.10 | O87: =AVERAGE(N87:N95) -> 0.11 | P87: =O87-M87 -> 0.02 | Q87: 1
E88: H-LaK5A-1 | F88: D65/10° | G88: ASTM | H88: 0.09 | I88: 88.31 | J88: 95.28 | K88: -0.05 | L88: 0.3 | N88: 0.11
E89: H-LaK5A-1 | F89: D65/10° | G89: ASTM | H89: 0.08 | I89: 88.31 | J89: 95.28 | K89: -0.06 | L89: 0.29 | N89: 0.11
E90: H-LaK5A-2 | F90: D65/10° | G90: ASTM | H90: 0.10 | I90: 88.32 | J90: 95.28 | K90: -0.06 | L90: 0.32 | N90: 0.12
E91: H-LaK5A-2 | F91: D65/10° | G91: ASTM | H91: 0.11 | I91: 88.31 | J91: 95.28 | K91: -0.06 | L91: 0.29 | N91: 0.11
E92: H-LaK5A-2 | F92: D65/10° | G92: ASTM | H92: 0.11 | I92: 88.32 | J92: 95.29 | K92: -0.05 | L92: 0.29 | N92: 0.11
E93: H-LaK5A-3 | F93: D65/10° | G93: ASTM | H93: 0.07 | I93: 88.30 | J93: 95.28 | K93: -0.07 | L93: 0.33 | N93: 0.09
E94: H-LaK5A-3 | F94: D65/10° | G94: ASTM | H94: 0.06 | I94: 88.29 | J94: 95.27 | K94: -0.06 | L94: 0.3 | N94: 0.10
E95: H-LaK5A-3 | F95: D65/10° | G95: ASTM | H95: 0.06 | I95: 88.29 | J95: 95.27 | K95: -0.06 | L95: 0.31 | N95: 0.10
B96: 11 | C96: H-PK63 | D96: 2041240806/01TK | E96: H-PK63-1 | F96: D65/10° | G96: ASTM | H96: 0.21 | I96: 89.94 | J96: 95.95 | K96: -0.03 | L96: 0.45 | M96: =AVERAGE(H96:H104) -> 0.25 | N96: 0.43 | O96: =AVERAGE(N96:N104) -> 0.37 | P96: =O96-M96 -> 0.12 | Q96: 1
E97: H-PK63-1 | F97: D65/10° | G97: ASTM | H97: 0.20 | I97: 89.94 | J97: 95.96 | K97: -0.04 | L97: 0.47 | N97: 0.44
E98: H-PK63-1 | F98: D65/10° | G98: ASTM | H98: 0.21 | I98: 89.93 | J98: 95.95 | K98: -0.03 | L98: 0.42 | N98: 0.44
E99: H-PK63-2 | F99: D65/10° | G99: ASTM | H99: 0.28 | I99: 89.88 | J99: 95.93 | K99: -0.03 | L99: 0.47 | N99: 0.36
E100: H-PK63-2 | F100: D65/10° | G100: ASTM | H100: 0.28 | I100: 89.87 | J100: 95.93 | K100: -0.05 | L100: 0.45 | N100: 0.35
E101: H-PK63-2 | F101: D65/10° | G101: ASTM | H101: 0.29 | I101: 89.87 | J101: 95.93 | K101: -0.03 | L101: 0.46 | N101: 0.36
E102: H-PK63-3 | F102: D65/10° | G102: ASTM | H102: 0.25 | I102: 89.92 | J102: 95.95 | K102: -0.05 | L102: 0.5 | N102: 0.33
E103: H-PK63-3 | F103: D65/10° | G103: ASTM | H103: 0.26 | I103: 89.92 | J103: 95.95 | K103: -0.03 | L103: 0.44 | N103: 0.33
E104: H-PK63-3 | F104: D65/10° | G104: ASTM | H104: 0.26 | I104: 89.92 | J104: 95.95 | K104: -0.02 | L104: 0.44 | N104: 0.31
B105: 12 | C105: H-LaK53B | D105: 2061241126/-90 | E105: H-LaK53B-2 | F105: D65/10° | G105: ASTM | H105: 0.09 | I105: 86.44 | J105: 94.49 | K105: -0.07 | L105: 0.43 | M105: =AVERAGE(H105:H113) -> 0.10 | N105: 0.12 | O105: =AVERAGE(N105:N113) -> 0.14 | P105: =O105-M105 -> 0.04 | Q105: 1
E106: H-LaK53B-2 | F106: D65/10° | G106: ASTM | H106: 0.09 | I106: 86.42 | J106: 94.48 | K106: -0.03 | L106: 0.4 | N106: 0.13
E107: H-LaK53B-2 | F107: D65/10° | G107: ASTM | H107: 0.09 | I107: 86.43 | J107: 94.48 | K107: -0.04 | L107: 0.39 | N107: 0.13
E108: H-LaK53B-3 | F108: D65/10° | G108: ASTM | H108: 0.10 | I108: 86.41 | J108: 94.47 | K108: -0.07 | L108: 0.46 | N108: 0.15
E109: H-LaK53B-3 | F109: D65/10° | G109: ASTM | H109: 0.10 | I109: 86.41 | J109: 94.47 | K109: -0.04 | L109: 0.4 | N109: 0.16
E110: H-LaK53B-3 | F110: D65/10° | G110: ASTM | H110: 0.10 | I110: 86.41 | J110: 94.48 | K110: -0.04 | L110: 0.4 | N110: 0.16
E111: H-LaK53B-1 | F111: D65/10° | G111: ASTM | H111: 0.10 | I111: 86.42 | J111: 94.48 | K111: -0.08 | L111: 0.47 | N111: 0.13
E112: H-LaK53B-1 | F112: D65/10° | G112: ASTM | H112: 0.10 | I112: 86.42 | J112: 94.48 | K112: -0.04 | L112: 0.41 | N112: 0.14
E113: H-LaK53B-1 | F113: D65/10° | G113: ASTM | H113: 0.11 | I113: 86.42 | J113: 94.48 | K113: -0.03 | L113: 0.38 | N113: 0.14
B114: 13 | C114: H-LaK4L | D114: SL2041250127/02 | E114: H-LaK4L-1 | H114: 0.09 | M114: =AVERAGE(H114:H122) -> 0.06 | N114: 2.08 | O114: =AVERAGE(N114:N122) -> 1.96 | P114: =O114-M114 -> 1.89 | Q114: 3
E115: H-LaK4L-1 | H115: 0.09 | N115: 2.15
E116: H-LaK4L-1 | H116: 0.09 | N116: 2.14
E117: H-LaK4L-2 | H117: 0.06 | N117: 2.20
E118: H-LaK4L-2 | H118: 0.06 | N118: 2.20
E119: H-LaK4L-2 | H119: 0.06 | N119: 2.20
E120: H-LaK4L-3 | H120: 0.04 | N120: 1.54
E121: H-LaK4L-3 | H121: 0.04 | N121: 1.54
E122: H-LaK4L-3 | H122: 0.05 | N122: 1.55
B123: 14 | C123: H-F1 | D123: 3081240809/-210F1 | E123: H-F1-1 | H123: 0.05 | M123: =AVERAGE(H123:H131) -> 0.05 | N123: 1.73 | O123: =AVERAGE(N123:N131) -> 1.53 | P123: =O123-M123 -> 1.48 | Q123: 3
E124: H-F1-1 | H124: 0.05 | N124: 1.76
E125: H-F1-1 | H125: 0.04 | N125: 1.77
E126: H-F1-2 | H126: 0.06 | N126: 1.02
E127: H-F1-2 | H127: 0.07 | N127: 1.02
E128: H-F1-2 | H128: 0.07 | N128: 1.03
E129: H-F1-3 | H129: 0.04 | N129: 1.81
E130: H-F1-3 | H130: 0.03 | N130: 1.83
E131: H-F1-3 | H131: 0.04 | N131: 1.83
B132: 15 | C132: H-LaK9 | D132: 2101220903-112/-40TK | E132: H-LaK9-1 | H132: 0.06 | M132: =AVERAGE(H132:H140) -> 0.07 | N132: 0.07 | O132: =AVERAGE(N132:N140) -> 0.08 | P132: =O132-M132 -> 0.01 | Q132: 1
E133: H-LaK9-1 | H133: 0.06 | N133: 0.08
E134: H-LaK9-1 | H134: 0.07 | N134: 0.08
E135: H-LaK9-2 | H135: 0.08 | N135: 0.08
E136: H-LaK9-2 | H136: 0.08 | N136: 0.08
E137: H-LaK9-2 | H137: 0.08 | N137: 0.08
E138: H-LaK9-3 | H138: 0.08 | N138: 0.08
E139: H-LaK9-3 | H139: 0.08 | N139: 0.09
E140: H-LaK9-3 | H140: 0.07 | N140: 0.09
B141: 16 | C141: H-PK65 | D141: 2021190822/04TK | E141: H-PK65-1 | H141: 0.04 | M141: =AVERAGE(H141:H149) -> 0.06 | N141: 0.09 | O141: =AVERAGE(N141:N149) -> 0.09 | P141: =O141-M141 -> 0.04 | Q141: 1
E142: H-PK65-1 | H142: 0.05 | N142: 0.09
E143: H-PK65-1 | H143: 0.04 | N143: 0.10
E144: H-PK65-2 | H144: 0.07 | N144: 0.09
E145: H-PK65-2 | H145: 0.07 | N145: 0.09
E146: H-PK65-2 | H146: 0.08 | N146: 0.09
E147: H-PK65-3 | H147: 0.05 | N147: 0.09
E148: H-PK65-3 | H148: 0.06 | N148: 0.09
E149: H-PK65-3 | H149: 0.05 | N149: 0.10
B150: 17 | C150: H-PK71 | D150: 3011230924/-120F3TK | E150: H-PK71-1 | H150: 0.08 | M150: =AVERAGE(H150:H158) -> 0.08 | N150: 0.17 | O150: =AVERAGE(N150:N158) -> 0.15 | P150: =O150-M150 -> 0.06 | Q150: 1
E151: H-PK71-1 | H151: 0.08 | N151: 0.17
E152: H-PK71-1 | H152: 0.07 | N152: 0.16
E153: H-PK71-2 | H153: 0.08 | N153: 0.17
E154: H-PK71-2 | H154: 0.08 | N154: 0.17
E155: H-PK71-2 | H155: 0.07 | N155: 0.16
E156: H-PK71-3 | H156: 0.09 | N156: 0.11
E157: H-PK71-3 | H157: 0.09 | N157: 0.10
E158: H-PK71-3 | H158: 0.10 | N158: 0.10
B159: 18 | C159: H-ZLaF79A | D159: R2025-209Z-021 | E159: H-ZLaF79A-1 | H159: 0.08 | M159: =AVERAGE(H159:H167) -> 0.08 | N159: 0.14 | O159: =AVERAGE(N159:N167) -> 0.15 | P159: =O159-M159 -> 0.07 | Q159: 1
E160: H-ZLaF79A-1 | H160: 0.07 | N160: 0.14
E161: H-ZLaF79A-1 | H161: 0.07 | N161: 0.13
E162: H-ZLaF79A-2 | H162: 0.10 | N162: 0.13
E163: H-ZLaF79A-2 | H163: 0.10 | N163: 0.13
E164: H-ZLaF79A-2 | H164: 0.11 | N164: 0.13
E165: H-ZLaF79A-3 | H165: 0.06 | N165: 0.17
E166: H-ZLaF79A-3 | H166: 0.06 | N166: 0.18
E167: H-ZLaF79A-3 | H167: 0.07 | N167: 0.17
B168: 19 | C168: H-LaF10A | D168: 30612407/25/-80F | E168: H-LaF10A-1 | H168: 0.05 | M168: =AVERAGE(H168:H176) -> 0.06 | N168: 0.17 | O168: =AVERAGE(N168:N176) -> 0.14 | P168: =O168-M168 -> 0.07 | Q168: 1
E169: H-LaF10A-1 | H169: 0.05 | N169: 0.17
E170: H-LaF10A-1 | H170: 0.05 | N170: 0.16
E171: H-LaF10A-2 | H171: 0.09 | N171: 0.12
E172: H-LaF10A-2 | H172: 0.10 | N172: 0.11
E173: H-LaF10A-2 | H173: 0.09 | N173: 0.13
E174: H-LaF10A-3 | H174: 0.05 | N174: 0.12
E175: H-LaF10A-3 | H175: 0.05 | N175: 0.13
E176: H-LaF10A-3 | H176: 0.05 | N176: 0.13
B177: 20 | C177: H-LaF62 | D177: 6041150827/-120TK | E177: H-LaF62A-1 | H177: 0.08 | M177: =AVERAGE(H177:H185) -> 0.08 | N177: 0.20 | O177: =AVERAGE(N177:N185) -> 0.15 | P177: =O177-M177 -> 0.07 | Q177: 1
E178: H-LaF62A-1 | H178: 0.07 | N178: 0.19
E179: H-LaF62A-1 | H179: 0.07 | N179: 0.18
E180: H-LaF62A-2 | H180: 0.10 | N180: 0.07
E181: H-LaF62A-2 | H181: 0.09 | N181: 0.07
E182: H-LaF62A-2 | H182: 0.10 | N182: 0.09
E183: H-LaF62A-3 | H183: 0.07 | N183: 0.18
E184: H-LaF62A-3 | H184: 0.06 | N184: 0.19
E185: H-LaF62A-3 | H185: 0.05 | N185: 0.18
B186: 21 | C186: H-ZLaF76A | D186: 2101240320-024/-170TK | E186: H-zLaF76A-1 | H186: 0.09 | M186: =AVERAGE(H186:H194) -> 0.11 | N186: 0.13 | O186: =AVERAGE(N186:N194) -> 0.12 | P186: =O186-M186 -> 0.02 | Q186: 1
E187: H-zLaF76A-1 | H187: 0.10 | N187: 0.14
E188: H-zLaF76A-1 | H188: 0.09 | N188: 0.13
E189: H-zLaF76A-2 | H189: 0.13 | N189: 0.16
E190: H-zLaF76A-2 | H190: 0.13 | N190: 0.15
E191: H-zLaF76A-2 | H191: 0.14 | N191: 0.16
E192: H-zLaF76A-3 | H192: 0.10 | N192: 0.08
E193: H-zLaF76A-3 | H193: 0.09 | N193: 0.07
E194: H-zLaF76A-3 | H194: 0.09 | N194: 0.08
B195: 22 | C195: H-ZLaF60A | D195: 2041250105/02TK | E195: H-ZLaF60A-1 | H195: 0.10 | M195: =AVERAGE(H195:H203) -> 0.09 | N195: 0.10 | O195: =AVERAGE(N195:N203) -> 0.09 | P195: =O195-M195 -> 0.01 | Q195: 1
E196: H-ZLaF60A-1 | H196: 0.10 | N196: 0.10
E197: H-ZLaF60A-1 | H197: 0.10 | N197: 0.09
E198: H-ZLaF60A-2 | H198: 0.06 | N198: 0.09
E199: H-ZLaF60A-2 | H199: 0.07 | N199: 0.10
E200: H-ZLaF60A-2 | H200: 0.07 | N200: 0.09
... 853 more rows

Sheet Data sheet
A2: H-ZF8 | E2: =IF(VLOOKUP($A$2,'Colorless glass'!$C$5:$KJ$282,2,FALSE)="","",VLOOKUP($A$2,'Colorless glass'!$C$5:$KJ$282,2,FALSE)) -> 622307 | H2: nd = | I2: =IF(VLOOKUP($A$2,'Colorless glass'!$C$5:$KJ$282,20,FALSE)="","",VLOOKUP($A$2,'Colorless glass'!$C$5:$KJ$282,20,FALSE)) -> 1.62201 | K2: υd = | M2: =IF(VLOOKUP($A$2,'Colorless glass'!$C$5:$KJ$282,3,FALSE)="","",VLOOKUP($A$2,'Colorless glass'!$C$5:$KJ$282,3,FALSE)) -> 30.66 | P2: nF – nC = | R2: =IF(VLOOKUP($A$2,'Colorless glass'!$C$5:$KJ$282,5,FALSE)="","",VLOOKUP($A$2,'Colorless glass'!$C$5:$KJ$282,5,FALSE)) -> 0.020287
H3: ne = | I3: =IF(VLOOKUP($A$2,'Colorless glass'!$C$5:$KJ$282,21,FALSE)="","",VLOOKUP($A$2,'Colorless glass'!$C$5:$KJ$282,21,FALSE)) -> 1.62678 | K3: υe = | M3: =IF(VLOOKUP($A$2,'Colorless glass'!$C$5:$KJ$282,4,FALSE)="","",VLOOKUP($A$2,'Colorless glass'!$C$5:$KJ$282,4,FALSE)) -> 30.36 | P3: nF´– nC´ = | R3: =IF(VLOOKUP($A$2,'Colorless glass'!$C$5:$KJ$282,6,FALSE)="","",VLOOKUP($A$2,'Colorless glass'!$C$5:$KJ$282,6,FALSE)) -> 0.020646
A5: Refractive Indices | H5: Relative Partial Dispersion | L5: Chemical Properties (grade) | P5: Internal Transmittance
B6: λ (nm) | E6: nλ | P6: λ (nm) | Q6: τ5mm | S6: τ10mm
A7: n2325 | B7: 2325.42 | E7: =IF(VLOOKUP($A$2,'Colorless glass'!$C$5:$KJ$282,7,FALSE)="","",VLOOKUP($A$2,'Colorless glass'!$C$5:$KJ$282,7,FALSE)) ->  | H7: Pd,C | I7: =IF(VLOOKUP($A$2,'Colorless glass'!$C$5:$KE$282,33,FALSE)="","",VLOOKUP($A$2,'Colorless glass'!$C$5:$KE$282,33,FALSE)) -> 0.2858 | L7: RC (S) | N7: =IF(VLOOKUP($A$2,'Colorless glass'!$C$5:$KJ$282,170,FALSE)="","",VLOOKUP($A$2,'Colorless glass'!$C$5:$KJ$282,170,FALSE)) -> 1 | P7: 2400 | Q7: =IF(VLOOKUP($A$2,'Colorless glass'!$C$5:$KJ$282,223,FALSE)="","",VLOOKUP($A$2,'Colorless glass'!$C$5:$KJ$282,223,FALSE)) -> 0.923 | S7: =IF(VLOOKUP($A$2,'Colorless glass'!$C$5:$KJ$282,259,FALSE)="","",VLOOKUP($A$2,'Colorless glass'!$C$5:$KJ$282,259,FALSE)) -> 0.853
A8: n1970 | B8: 1970.09 | E8: =IF(VLOOKUP($A$2,'Colorless glass'!$C$5:$KJ$282,8,FALSE)="","",VLOOKUP($A$2,'Colorless glass'!$C$5:$KJ$282,8,FALSE)) ->  | H8: Pe,d | I8: =IF(VLOOKUP($A$2,'Colorless glass'!$C$5:$KE$282,34,FALSE)="","",VLOOKUP($A$2,'Colorless glass'!$C$5:$KE$282,34,FALSE)) -> 0.2352 | L8: RA (S) | N8: =IF(VLOOKUP($A$2,'Colorless glass'!$C$5:$KJ$282,171,FALSE)="","",VLOOKUP($A$2,'Colorless glass'!$C$5:$KJ$282,171,FALSE)) -> 2 | P8: 2200 | Q8: =IF(VLOOKUP($A$2,'Colorless glass'!$C$5:$KJ$282,224,FALSE)="","",VLOOKUP($A$2,'Colorless glass'!$C$5:$KJ$282,224,FALSE)) -> 0.944 | S8: =IF(VLOOKUP($A$2,'Colorless glass'!$C$5:$KJ$282,260,FALSE)="","",VLOOKUP($A$2,'Colorless glass'!$C$5:$KJ$282,260,FALSE)) -> 0.891
A9: n1530 | B9: 1529.58 | E9: =IF(VLOOKUP($A$2,'Colorless glass'!$C$5:$KJ$282,9,FALSE)="","",VLOOKUP($A$2,'Colorless glass'!$C$5:$KJ$282,9,FALSE)) ->  | H9: Pg,F | I9: =IF(VLOOKUP($A$2,'Colorless glass'!$C$5:$KE$282,35,FALSE)="","",VLOOKUP($A$2,'Colorless glass'!$C$5:$KE$282,35,FALSE)) -> 0.6220 | L9: DW | N9: =IF(VLOOKUP($A$2,'Colorless glass'!$C$5:$KJ$282,172,FALSE)="","",VLOOKUP($A$2,'Colorless glass'!$C$5:$KJ$282,172,FALSE)) -> 2 | P9: 2000 | Q9: =IF(VLOOKUP($A$2,'Colorless glass'!$C$5:$KJ$282,225,FALSE)="","",VLOOKUP($A$2,'Colorless glass'!$C$5:$KJ$282,225,FALSE)) -> 0.966 | S9: =IF(VLOOKUP($A$2,'Colorless glass'!$C$5:$KJ$282,261,FALSE)="","",VLOOKUP($A$2,'Colorless glass'!$C$5:$KJ$282,261,FALSE)) -> 0.933
A10: n1129 | B10: 1128.64 | E10: =IF(VLOOKUP($A$2,'Colorless glass'!$C$5:$KJ$282,10,FALSE)="","",VLOOKUP($A$2,'Colorless glass'!$C$5:$KJ$282,10,FALSE)) -> 1.60013 | H10: P'd,c´ | I10: =IF(VLOOKUP($A$2,'Colorless glass'!$C$5:$KE$282,36,FALSE)="","",VLOOKUP($A$2,'Colorless glass'!$C$5:$KE$282,36,FALSE)) -> 0.2373 | L10: DA | N10: =IF(VLOOKUP($A$2,'Colorless glass'!$C$5:$KJ$282,173,FALSE)="","",VLOOKUP($A$2,'Colorless glass'!$C$5:$KJ$282,173,FALSE)) -> 4 | P10: 1800 | Q10: =IF(VLOOKUP($A$2,'Colorless glass'!$C$5:$KJ$282,226,FALSE)="","",VLOOKUP($A$2,'Colorless glass'!$C$5:$KJ$282,226,FALSE)) -> 0.985 | S10: =IF(VLOOKUP($A$2,'Colorless glass'!$C$5:$KJ$282,262,FALSE)="","",VLOOKUP($A$2,'Colorless glass'!$C$5:$KJ$282,262,FALSE)) -> 0.970
A11: n1064 | B11: 1064.00 | E11: =IF(VLOOKUP($A$2,'Colorless glass'!$C$5:$KJ$282,11,FALSE)="","",VLOOKUP($A$2,'Colorless glass'!$C$5:$KJ$282,11,FALSE)) -> 1.60137 | H11: P'e,d | I11: =IF(VLOOKUP($A$2,'Colorless glass'!$C$5:$KE$282,37,FALSE)="","",VLOOKUP($A$2,'Colorless glass'!$C$5:$KE$282,37,FALSE)) -> 0.2310 | L11: ROH (S) | N11: =IF(VLOOKUP($A$2,'Colorless glass'!$C$5:$KJ$282,174,FALSE)="","",VLOOKUP($A$2,'Colorless glass'!$C$5:$KJ$282,174,FALSE)) -> 1 | P11: 1600 | Q11: =IF(VLOOKUP($A$2,'Colorless glass'!$C$5:$KJ$282,227,FALSE)="","",VLOOKUP($A$2,'Colorless glass'!$C$5:$KJ$282,227,FALSE)) -> 0.998 | S11: =IF(VLOOKUP($A$2,'Colorless glass'!$C$5:$KJ$282,263,FALSE)="","",VLOOKUP($A$2,'Colorless glass'!$C$5:$KJ$282,263,FALSE)) -> 0.995
A12: nt | B12: 1013.98 | E12: =IF(VLOOKUP($A$2,'Colorless glass'!$C$5:$KJ$282,12,FALSE)="","",VLOOKUP($A$2,'Colorless glass'!$C$5:$KJ$282,12,FALSE)) -> 1.60243 | H12: P'g,F´ | I12: =IF(VLOOKUP($A$2,'Colorless glass'!$C$5:$KE$282,38,FALSE)="","",VLOOKUP($A$2,'Colorless glass'!$C$5:$KE$282,38,FALSE)) -> 0.5495 | L12: RP (S) | N12: =IF(VLOOKUP($A$2,'Colorless glass'!$C$5:$KJ$282,175,FALSE)="","",VLOOKUP($A$2,'Colorless glass'!$C$5:$KJ$282,175,FALSE)) -> 1 | P12: 1400 | Q12: =IF(VLOOKUP($A$2,'Colorless glass'!$C$5:$KJ$282,228,FALSE)="","",VLOOKUP($A$2,'Colorless glass'!$C$5:$KJ$282,228,FALSE)) -> 0.999 | S12: =IF(VLOOKUP($A$2,'Colorless glass'!$C$5:$KJ$282,264,FALSE)="","",VLOOKUP($A$2,'Colorless glass'!$C$5:$KJ$282,264,FALSE)) -> 0.998
A13: ns | B13: 852.11 | E13: =IF(VLOOKUP($A$2,'Colorless glass'!$C$5:$KJ$282,13,FALSE)="","",VLOOKUP($A$2,'Colorless glass'!$C$5:$KJ$282,13,FALSE)) -> 1.60678 | L13: CR | N13: =IF(VLOOKUP($A$2,'Colorless glass'!$C$5:$KJ$282,176,FALSE)="","",VLOOKUP($A$2,'Colorless glass'!$C$5:$KJ$282,176,FALSE)) ->  | P13: 1200 | Q13: =IF(VLOOKUP($A$2,'Colorless glass'!$C$5:$KJ$282,229,FALSE)="","",VLOOKUP($A$2,'Colorless glass'!$C$5:$KJ$282,229,FALSE)) -> 0.999 | S13: =IF(VLOOKUP($A$2,'Colorless glass'!$C$5:$KJ$282,265,FALSE)="","",VLOOKUP($A$2,'Colorless glass'!$C$5:$KJ$282,265,FALSE)) -> 0.998
A14: nA´ | B14: 768.19 | E14: =IF(VLOOKUP($A$2,'Colorless glass'!$C$5:$KJ$282,14,FALSE)="","",VLOOKUP($A$2,'Colorless glass'!$C$5:$KJ$282,14,FALSE)) -> 1.60997 | P14: 1060 | Q14: =IF(VLOOKUP($A$2,'Colorless glass'!$C$5:$KJ$282,230,FALSE)="","",VLOOKUP($A$2,'Colorless glass'!$C$5:$KJ$282,230,FALSE)) -> 0.999 | S14: =IF(VLOOKUP($A$2,'Colorless glass'!$C$5:$KJ$282,266,FALSE)="","",VLOOKUP($A$2,'Colorless glass'!$C$5:$KJ$282,266,FALSE)) -> 0.998
A15: nr | B15: 706.52 | E15: =IF(VLOOKUP($A$2,'Colorless glass'!$C$5:$KJ$282,15,FALSE)="","",VLOOKUP($A$2,'Colorless glass'!$C$5:$KJ$282,15,FALSE)) -> 1.61303 | H15: Deviation of Relative Partial Dispersions | L15: Expansion Coefficient α (×10-7/K) | P15: 1000 | Q15: =IF(VLOOKUP($A$2,'Colorless glass'!$C$5:$KJ$282,231,FALSE)="","",VLOOKUP($A$2,'Colorless glass'!$C$5:$KJ$282,231,FALSE)) -> 0.999 | S15: =IF(VLOOKUP($A$2,'Colorless glass'!$C$5:$KJ$282,267,FALSE)="","",VLOOKUP($A$2,'Colorless glass'!$C$5:$KJ$282,267,FALSE)) -> 0.998
A16: nC | B16: 656.27 | E16: =IF(VLOOKUP($A$2,'Colorless glass'!$C$5:$KJ$282,16,FALSE)="","",VLOOKUP($A$2,'Colorless glass'!$C$5:$KJ$282,16,FALSE)) -> 1.61620 | P16: 950 | Q16: =IF(VLOOKUP($A$2,'Colorless glass'!$C$5:$KJ$282,232,FALSE)="","",VLOOKUP($A$2,'Colorless glass'!$C$5:$KJ$282,232,FALSE)) -> 0.999 | S16: =IF(VLOOKUP($A$2,'Colorless glass'!$C$5:$KJ$282,268,FALSE)="","",VLOOKUP($A$2,'Colorless glass'!$C$5:$KJ$282,268,FALSE)) -> 0.998
A17: nC´ | B17: 643.85 | E17: =IF(VLOOKUP($A$2,'Colorless glass'!$C$5:$KJ$282,17,FALSE)="","",VLOOKUP($A$2,'Colorless glass'!$C$5:$KJ$282,17,FALSE)) -> 1.61710 | H17: △PF,e | I17: =IF(VLOOKUP($A$2,'Colorless glass'!$C$5:$KJ$282,39,FALSE)="","",VLOOKUP($A$2,'Colorless glass'!$C$5:$KJ$282,39,FALSE)) -> 0.0058 | P17: 900 | Q17: =IF(VLOOKUP($A$2,'Colorless glass'!$C$5:$KJ$282,233,FALSE)="","",VLOOKUP($A$2,'Colorless glass'!$C$5:$KJ$282,233,FALSE)) -> 0.999 | S17: =IF(VLOOKUP($A$2,'Colorless glass'!$C$5:$KJ$282,269,FALSE)="","",VLOOKUP($A$2,'Colorless glass'!$C$5:$KJ$282,269,FALSE)) -> 0.998
A18: nHe-Ne | B18: 632.80 | E18: =IF(VLOOKUP($A$2,'Colorless glass'!$C$5:$KJ$282,18,FALSE)="","",VLOOKUP($A$2,'Colorless glass'!$C$5:$KJ$282,18,FALSE)) -> 1.61795 | H18: △Pg,F | I18: =IF(VLOOKUP($A$2,'Colorless glass'!$C$5:$KJ$282,40,FALSE)="","",VLOOKUP($A$2,'Colorless glass'!$C$5:$KJ$282,40,FALSE)) -> 0.0294 | L18: ℃ | N18: α | P18: 850 | Q18: =IF(VLOOKUP($A$2,'Colorless glass'!$C$5:$KJ$282,234,FALSE)="","",VLOOKUP($A$2,'Colorless glass'!$C$5:$KJ$282,234,FALSE)) -> 0.999 | S18: =IF(VLOOKUP($A$2,'Colorless glass'!$C$5:$KJ$282,270,FALSE)="","",VLOOKUP($A$2,'Colorless glass'!$C$5:$KJ$282,270,FALSE)) -> 0.998
A19: nD | B19: 589.29 | E19: =IF(VLOOKUP($A$2,'Colorless glass'!$C$5:$KJ$282,19,FALSE)="","",VLOOKUP($A$2,'Colorless glass'!$C$5:$KJ$282,19,FALSE)) -> 1.62183 | H19: △PC,t | I19: =IF(VLOOKUP($A$2,'Colorless glass'!$C$5:$KJ$282,41,FALSE)="","",VLOOKUP($A$2,'Colorless glass'!$C$5:$KJ$282,41,FALSE)) -> -0.0093 | L19: -50/-40 | N19: =IF(VLOOKUP($A$2,'Colorless glass'!$C$5:$KJ$282,188,FALSE)="","",VLOOKUP($A$2,'Colorless glass'!$C$5:$KJ$282,188,FALSE)) -> 131 | P19: 800 | Q19: =IF(VLOOKUP($A$2,'Colorless glass'!$C$5:$KJ$282,235,FALSE)="","",VLOOKUP($A$2,'Colorless glass'!$C$5:$KJ$282,235,FALSE)) -> 0.999 | S19: =IF(VLOOKUP($A$2,'Colorless glass'!$C$5:$KJ$282,271,FALSE)="","",VLOOKUP($A$2,'Colorless glass'!$C$5:$KJ$282,271,FALSE)) -> 0.998
A20: nd | B20: 587.56 | E20: =IF(VLOOKUP($A$2,'Colorless glass'!$C$5:$KJ$282,20,FALSE)="","",VLOOKUP($A$2,'Colorless glass'!$C$5:$KJ$282,20,FALSE)) -> 1.62201 | H20: △PC,s | I20: =IF(VLOOKUP($A$2,'Colorless glass'!$C$5:$KJ$282,42,FALSE)="","",VLOOKUP($A$2,'Colorless glass'!$C$5:$KJ$282,42,FALSE)) -> -0.0095 | L20: -40/-30 | N20: =IF(VLOOKUP($A$2,'Colorless glass'!$C$5:$KJ$282,189,FALSE)="","",VLOOKUP($A$2,'Colorless glass'!$C$5:$KJ$282,189,FALSE)) -> 132 | P20: 750 | Q20: =IF(VLOOKUP($A$2,'Colorless glass'!$C$5:$KJ$282,236,FALSE)="","",VLOOKUP($A$2,'Colorless glass'!$C$5:$KJ$282,236,FALSE)) -> 0.999 | S20: =IF(VLOOKUP($A$2,'Colorless glass'!$C$5:$KJ$282,272,FALSE)="","",VLOOKUP($A$2,'Colorless glass'!$C$5:$KJ$282,272,FALSE)) -> 0.998
A21: ne | B21: 546.07 | E21: =IF(VLOOKUP($A$2,'Colorless glass'!$C$5:$KJ$282,21,FALSE)="","",VLOOKUP($A$2,'Colorless glass'!$C$5:$KJ$282,21,FALSE)) -> 1.62678 | L21: -30/-20 | N21: =IF(VLOOKUP($A$2,'Colorless glass'!$C$5:$KJ$282,190,FALSE)="","",VLOOKUP($A$2,'Colorless glass'!$C$5:$KJ$282,190,FALSE)) -> 132 | P21: 700 | Q21: =IF(VLOOKUP($A$2,'Colorless glass'!$C$5:$KJ$282,237,FALSE)="","",VLOOKUP($A$2,'Colorless glass'!$C$5:$KJ$282,237,FALSE)) -> 0.999 | S21: =IF(VLOOKUP($A$2,'Colorless glass'!$C$5:$KJ$282,273,FALSE)="","",VLOOKUP($A$2,'Colorless glass'!$C$5:$KJ$282,273,FALSE)) -> 0.998
A22: nF | B22: 486.13 | E22: =IF(VLOOKUP($A$2,'Colorless glass'!$C$5:$KJ$282,22,FALSE)="","",VLOOKUP($A$2,'Colorless glass'!$C$5:$KJ$282,22,FALSE)) -> 1.63648 | H22: Thermal Properties | L22: -20/-10 | N22: =IF(VLOOKUP($A$2,'Colorless glass'!$C$5:$KJ$282,191,FALSE)="","",VLOOKUP($A$2,'Colorless glass'!$C$5:$KJ$282,191,FALSE)) -> 134 | P22: 650 | Q22: =IF(VLOOKUP($A$2,'Colorless glass'!$C$5:$KJ$282,238,FALSE)="","",VLOOKUP($A$2,'Colorless glass'!$C$5:$KJ$282,238,FALSE)) -> 0.999 | S22: =IF(VLOOKUP($A$2,'Colorless glass'!$C$5:$KJ$282,274,FALSE)="","",VLOOKUP($A$2,'Colorless glass'!$C$5:$KJ$282,274,FALSE)) -> 0.998
A23: nF´ | B23: 479.99 | E23: =IF(VLOOKUP($A$2,'Colorless glass'!$C$5:$KJ$282,23,FALSE)="","",VLOOKUP($A$2,'Colorless glass'!$C$5:$KJ$282,23,FALSE)) -> 1.63775 | H23: Tg (℃) | J23: =IF(VLOOKUP($A$2,'Colorless glass'!$C$5:$KJ$282,180,FALSE)="","",VLOOKUP($A$2,'Colorless glass'!$C$5:$KJ$282,180,FALSE)) -> 428 | L23: -10/0 | N23: =IF(VLOOKUP($A$2,'Colorless glass'!$C$5:$KJ$282,192,FALSE)="","",VLOOKUP($A$2,'Colorless glass'!$C$5:$KJ$282,192,FALSE)) -> 138 | P23: 600 | Q23: =IF(VLOOKUP($A$2,'Colorless glass'!$C$5:$KJ$282,239,FALSE)="","",VLOOKUP($A$2,'Colorless glass'!$C$5:$KJ$282,239,FALSE)) -> 0.998 | S23: =IF(VLOOKUP($A$2,'Colorless glass'!$C$5:$KJ$282,275,FALSE)="","",VLOOKUP($A$2,'Colorless glass'!$C$5:$KJ$282,275,FALSE)) -> 0.997
A24: ng | B24: 435.84 | E24: =IF(VLOOKUP($A$2,'Colorless glass'!$C$5:$KJ$282,24,FALSE)="","",VLOOKUP($A$2,'Colorless glass'!$C$5:$KJ$282,24,FALSE)) -> 1.64911 | H24: Ts (℃) | J24: =IF(VLOOKUP($A$2,'Colorless glass'!$C$5:$KJ$282,181,FALSE)="","",VLOOKUP($A$2,'Colorless glass'!$C$5:$KJ$282,181,FALSE)) -> 470 | L24: 0/10 | N24: =IF(VLOOKUP($A$2,'Colorless glass'!$C$5:$KJ$282,193,FALSE)="","",VLOOKUP($A$2,'Colorless glass'!$C$5:$KJ$282,193,FALSE)) -> 138 | P24: 550 | Q24: =IF(VLOOKUP($A$2,'Colorless glass'!$C$5:$KJ$282,240,FALSE)="","",VLOOKUP($A$2,'Colorless glass'!$C$5:$KJ$282,240,FALSE)) -> 0.997 | S24: =IF(VLOOKUP($A$2,'Colorless glass'!$C$5:$KJ$282,276,FALSE)="","",VLOOKUP($A$2,'Colorless glass'!$C$5:$KJ$282,276,FALSE)) -> 0.994
A25: nh | B25: 404.66 | E25: =IF(VLOOKUP($A$2,'Colorless glass'!$C$5:$KJ$282,25,FALSE)="","",VLOOKUP($A$2,'Colorless glass'!$C$5:$KJ$282,25,FALSE)) -> 1.66072 | H25: T1014.5 (℃) | J25: =IF(VLOOKUP($A$2,'Colorless glass'!$C$5:$KJ$282,182,FALSE)="","",VLOOKUP($A$2,'Colorless glass'!$C$5:$KJ$282,182,FALSE)) -> 393 | L25: 10/20 | N25: =IF(VLOOKUP($A$2,'Colorless glass'!$C$5:$KJ$282,194,FALSE)="","",VLOOKUP($A$2,'Colorless glass'!$C$5:$KJ$282,194,FALSE)) -> 139 | P25: 500 | Q25: =IF(VLOOKUP($A$2,'Colorless glass'!$C$5:$KJ$282,241,FALSE)="","",VLOOKUP($A$2,'Colorless glass'!$C$5:$KJ$282,241,FALSE)) -> 0.994 | S25: =IF(VLOOKUP($A$2,'Colorless glass'!$C$5:$KJ$282,277,FALSE)="","",VLOOKUP($A$2,'Colorless glass'!$C$5:$KJ$282,277,FALSE)) -> 0.988
A26: ni | B26: 365.01 | E26: =IF(VLOOKUP($A$2,'Colorless glass'!$C$5:$KJ$282,26,FALSE)="","",VLOOKUP($A$2,'Colorless glass'!$C$5:$KJ$282,26,FALSE)) ->  | H26: T1013 (℃) | J26: =IF(VLOOKUP($A$2,'Colorless glass'!$C$5:$KJ$282,183,FALSE)="","",VLOOKUP($A$2,'Colorless glass'!$C$5:$KJ$282,183,FALSE)) -> 426 | L26: 20/30 | N26: =IF(VLOOKUP($A$2,'Colorless glass'!$C$5:$KJ$282,195,FALSE)="","",VLOOKUP($A$2,'Colorless glass'!$C$5:$KJ$282,195,FALSE)) -> 143 | P26: 480 | Q26: =IF(VLOOKUP($A$2,'Colorless glass'!$C$5:$KJ$282,242,FALSE)="","",VLOOKUP($A$2,'Colorless glass'!$C$5:$KJ$282,242,FALSE)) -> 0.992 | S26: =IF(VLOOKUP($A$2,'Colorless glass'!$C$5:$KJ$282,278,FALSE)="","",VLOOKUP($A$2,'Colorless glass'!$C$5:$KJ$282,278,FALSE)) -> 0.984
H27: α-50/80℃ (10-7/K) | J27: =IF(VLOOKUP($A$2,'Colorless glass'!$C$5:$KJ$282,186,FALSE)="","",VLOOKUP($A$2,'Colorless glass'!$C$5:$KJ$282,186,FALSE)) -> 141 | L27: 30/40 | N27: =IF(VLOOKUP($A$2,'Colorless glass'!$C$5:$KJ$282,196,FALSE)="","",VLOOKUP($A$2,'Colorless glass'!$C$5:$KJ$282,196,FALSE)) -> 144 | P27: 460 | Q27: =IF(VLOOKUP($A$2,'Colorless glass'!$C$5:$KJ$282,243,FALSE)="","",VLOOKUP($A$2,'Colorless glass'!$C$5:$KJ$282,243,FALSE)) -> 0.988 | S27: =IF(VLOOKUP($A$2,'Colorless glass'!$C$5:$KJ$282,279,FALSE)="","",VLOOKUP($A$2,'Colorless glass'!$C$5:$KJ$282,279,FALSE)) -> 0.977
H28: α100/300℃ (10-7/K) | J28: =IF(VLOOKUP($A$2,'Colorless glass'!$C$5:$KJ$282,187,FALSE)="","",VLOOKUP($A$2,'Colorless glass'!$C$5:$KJ$282,187,FALSE)) -> 184 | L28: 40/50 | N28: =IF(VLOOKUP($A$2,'Colorless glass'!$C$5:$KJ$282,197,FALSE)="","",VLOOKUP($A$2,'Colorless glass'!$C$5:$KJ$282,197,FALSE)) -> 146 | P28: 440 | Q28: =IF(VLOOKUP($A$2,'Colorless glass'!$C$5:$KJ$282,244,FALSE)="","",VLOOKUP($A$2,'Colorless glass'!$C$5:$KJ$282,244,FALSE)) -> 0.984 | S28: =IF(VLOOKUP($A$2,'Colorless glass'!$C$5:$KJ$282,280,FALSE)="","",VLOOKUP($A$2,'Colorless glass'!$C$5:$KJ$282,280,FALSE)) -> 0.969
H29: λ (W/(m·K)) | J29: =IF(VLOOKUP($A$2,'Colorless glass'!$C$5:$KJ$282,184,FALSE)="","",VLOOKUP($A$2,'Colorless glass'!$C$5:$KJ$282,184,FALSE)) -> 0.84 | L29: 50/60 | N29: =IF(VLOOKUP($A$2,'Colorless glass'!$C$5:$KJ$282,198,FALSE)="","",VLOOKUP($A$2,'Colorless glass'!$C$5:$KJ$282,198,FALSE)) -> 150 | P29: 420 | Q29: =IF(VLOOKUP($A$2,'Colorless glass'!$C$5:$KJ$282,245,FALSE)="","",VLOOKUP($A$2,'Colorless glass'!$C$5:$KJ$282,245,FALSE)) -> 0.973 | S29: =IF(VLOOKUP($A$2,'Colorless glass'!$C$5:$KJ$282,281,FALSE)="","",VLOOKUP($A$2,'Colorless glass'!$C$5:$KJ$282,281,FALSE)) -> 0.948
A30: Constants of Dispersion Formula | H30: βd | J30: =IF(VLOOKUP($A$2,'Colorless glass'!$C$5:$KJ$282,210,FALSE)="","",VLOOKUP($A$2,'Colorless glass'!$C$5:$KJ$282,210,FALSE)) -> 180 | L30: 60/70 | N30: =IF(VLOOKUP($A$2,'Colorless glass'!$C$5:$KJ$282,199,FALSE)="","",VLOOKUP($A$2,'Colorless glass'!$C$5:$KJ$282,199,FALSE)) -> 151 | P30: 400 | Q30: =IF(VLOOKUP($A$2,'Colorless glass'!$C$5:$KJ$282,246,FALSE)="","",VLOOKUP($A$2,'Colorless glass'!$C$5:$KJ$282,246,FALSE)) -> 0.932 | S30: =IF(VLOOKUP($A$2,'Colorless glass'!$C$5:$KJ$282,282,FALSE)="","",VLOOKUP($A$2,'Colorless glass'!$C$5:$KJ$282,282,FALSE)) -> 0.869
A31: A0 | B31: =IF(VLOOKUP($A$2,'Colorless glass'!$C$5:$KJ$282,27,FALSE)="","",VLOOKUP($A$2,'Colorless glass'!$C$5:$KJ$282,27,FALSE)) -> 2.55421627E+00 | L31: 70/80 | N31: =IF(VLOOKUP($A$2,'Colorless glass'!$C$5:$KJ$282,200,FALSE)="","",VLOOKUP($A$2,'Colorless glass'!$C$5:$KJ$282,200,FALSE)) -> 155 | P31: 390 | Q31: =IF(VLOOKUP($A$2,'Colorless glass'!$C$5:$KJ$282,247,FALSE)="","",VLOOKUP($A$2,'Colorless glass'!$C$5:$KJ$282,247,FALSE)) -> 0.861 | S31: =IF(VLOOKUP($A$2,'Colorless glass'!$C$5:$KJ$282,283,FALSE)="","",VLOOKUP($A$2,'Colorless glass'!$C$5:$KJ$282,283,FALSE)) -> 0.741
A32: A1 | B32: =IF(VLOOKUP($A$2,'Colorless glass'!$C$5:$KJ$282,28,FALSE)="","",VLOOKUP($A$2,'Colorless glass'!$C$5:$KJ$282,28,FALSE)) -> -1.01378222E-02 | H32: Mechanical Properties | L32: 80/90 | N32: =IF(VLOOKUP($A$2,'Colorless glass'!$C$5:$KJ$282,201,FALSE)="","",VLOOKUP($A$2,'Colorless glass'!$C$5:$KJ$282,201,FALSE)) -> 156 | P32: 380 | Q32: =IF(VLOOKUP($A$2,'Colorless glass'!$C$5:$KJ$282,248,FALSE)="","",VLOOKUP($A$2,'Colorless glass'!$C$5:$KJ$282,248,FALSE)) -> 0.651 | S32: =IF(VLOOKUP($A$2,'Colorless glass'!$C$5:$KJ$282,284,FALSE)="","",VLOOKUP($A$2,'Colorless glass'!$C$5:$KJ$282,284,FALSE)) -> 0.424
A33: A2 | B33: =IF(VLOOKUP($A$2,'Colorless glass'!$C$5:$KJ$282,29,FALSE)="","",VLOOKUP($A$2,'Colorless glass'!$C$5:$KJ$282,29,FALSE)) -> 2.29003271E-02 | H33: HK (107Pa) | J33: =IF(VLOOKUP($A$2,'Colorless glass'!$C$5:$KJ$282,212,FALSE)="","",VLOOKUP($A$2,'Colorless glass'!$C$5:$KJ$282,212,FALSE)) -> 333 | L33: 90/100 | N33: =IF(VLOOKUP($A$2,'Colorless glass'!$C$5:$KJ$282,202,FALSE)="","",VLOOKUP($A$2,'Colorless glass'!$C$5:$KJ$282,202,FALSE)) -> 159 | P33: 370 | Q33: =IF(VLOOKUP($A$2,'Colorless glass'!$C$5:$KJ$282,249,FALSE)="","",VLOOKUP($A$2,'Colorless glass'!$C$5:$KJ$282,249,FALSE)) -> 0.235 | S33: =IF(VLOOKUP($A$2,'Colorless glass'!$C$5:$KJ$282,285,FALSE)="","",VLOOKUP($A$2,'Colorless glass'!$C$5:$KJ$282,285,FALSE)) -> 0.055
A34: A3 | B34: =IF(VLOOKUP($A$2,'Colorless glass'!$C$5:$KJ$282,30,FALSE)="","",VLOOKUP($A$2,'Colorless glass'!$C$5:$KJ$282,30,FALSE)) -> 1.95813392E-03 | H34: FA | J34: =IF(VLOOKUP($A$2,'Colorless glass'!$C$5:$KJ$282,213,FALSE)="","",VLOOKUP($A$2,'Colorless glass'!$C$5:$KJ$282,213,FALSE)) -> 166 | L34: 100/110 | N34: =IF(VLOOKUP($A$2,'Colorless glass'!$C$5:$KJ$282,203,FALSE)="","",VLOOKUP($A$2,'Colorless glass'!$C$5:$KJ$282,203,FALSE)) -> 162 | P34: 360 | Q34: =IF(VLOOKUP($A$2,'Colorless glass'!$C$5:$KJ$282,250,FALSE)="","",VLOOKUP($A$2,'Colorless glass'!$C$5:$KJ$282,250,FALSE)) ->  | S34: =IF(VLOOKUP($A$2,'Colorless glass'!$C$5:$KJ$282,286,FALSE)="","",VLOOKUP($A$2,'Colorless glass'!$C$5:$KJ$282,286,FALSE)) -> 
A35: A4 | B35: =IF(VLOOKUP($A$2,'Colorless glass'!$C$5:$KJ$282,31,FALSE)="","",VLOOKUP($A$2,'Colorless glass'!$C$5:$KJ$282,31,FALSE)) -> -1.71553545E-04 | H35: E (GPa) | J35: =IF(VLOOKUP($A$2,'Colorless glass'!$C$5:$KJ$282,214,FALSE)="","",VLOOKUP($A$2,'Colorless glass'!$C$5:$KJ$282,214,FALSE)) -> 64.8 | L35: 110/120 | N35: =IF(VLOOKUP($A$2,'Colorless glass'!$C$5:$KJ$282,204,FALSE)="","",VLOOKUP($A$2,'Colorless glass'!$C$5:$KJ$282,204,FALSE)) -> 163 | P35: 350 | Q35: =IF(VLOOKUP($A$2,'Colorless glass'!$C$5:$KJ$282,251,FALSE)="","",VLOOKUP($A$2,'Colorless glass'!$C$5:$KJ$282,251,FALSE)) ->  | S35: =IF(VLOOKUP($A$2,'Colorless glass'!$C$5:$KJ$282,287,FALSE)="","",VLOOKUP($A$2,'Colorless glass'!$C$5:$KJ$282,287,FALSE)) -> 
A36: A5 | B36: =IF(VLOOKUP($A$2,'Colorless glass'!$C$5:$KJ$282,32,FALSE)="","",VLOOKUP($A$2,'Colorless glass'!$C$5:$KJ$282,32,FALSE)) -> 2.27385738E-05 | H36: G (GPa) | J36: =IF(VLOOKUP($A$2,'Colorless glass'!$C$5:$KJ$282,215,FALSE)="","",VLOOKUP($A$2,'Colorless glass'!$C$5:$KJ$282,215,FALSE)) -> 24.4 | L36: 120/130 | N36: =IF(VLOOKUP($A$2,'Colorless glass'!$C$5:$KJ$282,205,FALSE)="","",VLOOKUP($A$2,'Colorless glass'!$C$5:$KJ$282,205,FALSE)) -> 166 | P36: 340 | Q36: =IF(VLOOKUP($A$2,'Colorless glass'!$C$5:$KJ$282,252,FALSE)="","",VLOOKUP($A$2,'Colorless glass'!$C$5:$KJ$282,252,FALSE)) ->  | S36: =IF(VLOOKUP($A$2,'Colorless glass'!$C$5:$KJ$282,288,FALSE)="","",VLOOKUP($A$2,'Colorless glass'!$C$5:$KJ$282,288,FALSE)) -> 
H37: μ | J37: =IF(VLOOKUP($A$2,'Colorless glass'!$C$5:$KJ$282,216,FALSE)="","",VLOOKUP($A$2,'Colorless glass'!$C$5:$KJ$282,216,FALSE)) -> 0.266 | L37: 130/140 | N37: =IF(VLOOKUP($A$2,'Colorless glass'!$C$5:$KJ$282,206,FALSE)="","",VLOOKUP($A$2,'Colorless glass'!$C$5:$KJ$282,206,FALSE)) -> 169 | P37: 330 | Q37: =IF(VLOOKUP($A$2,'Colorless glass'!$C$5:$KJ$282,253,FALSE)="","",VLOOKUP($A$2,'Colorless glass'!$C$5:$KJ$282,253,FALSE)) ->  | S37: =IF(VLOOKUP($A$2,'Colorless glass'!$C$5:$KJ$282,289,FALSE)="","",VLOOKUP($A$2,'Colorless glass'!$C$5:$KJ$282,289,FALSE)) -> 
A38: Density | D38: Solarization | H38: σb (MPa) | J38: =IF(VLOOKUP($A$2,'Colorless glass'!$C$5:$KJ$282,217,FALSE)="","",VLOOKUP($A$2,'Colorless glass'!$C$5:$KJ$282,217,FALSE)) ->  | L38: 140/150 | N38: =IF(VLOOKUP($A$2,'Colorless glass'!$C$5:$KJ$282,207,FALSE)="","",VLOOKUP($A$2,'Colorless glass'!$C$5:$KJ$282,207,FALSE)) -> 172 | P38: 320 | Q38: =IF(VLOOKUP($A$2,'Colorless glass'!$C$5:$KJ$282,254,FALSE)="","",VLOOKUP($A$2,'Colorless glass'!$C$5:$KJ$282,254,FALSE)) ->  | S38: =IF(VLOOKUP($A$2,'Colorless glass'!$C$5:$KJ$282,290,FALSE)="","",VLOOKUP($A$2,'Colorless glass'!$C$5:$KJ$282,290,FALSE)) -> 
A39: ρ (g/cm3) | B39: =IF(VLOOKUP($A$2,'Colorless glass'!$C$5:$KJ$282,219,FALSE)="","",VLOOKUP($A$2,'Colorless glass'!$C$5:$KJ$282,219,FALSE)) -> 2.81 | D39: △λ (%) | F39: =IF(VLOOKUP($A$2,'Colorless glass'!$C$5:$KJ$282,222,FALSE)="","",VLOOKUP($A$2,'Colorless glass'!$C$5:$KJ$282,222,FALSE)) -> -0.4 | H39: B (10-12/Pa) | J39: =IF(VLOOKUP($A$2,'Colorless glass'!$C$5:$KJ$282,218,FALSE)="","",VLOOKUP($A$2,'Colorless glass'!$C$5:$KJ$282,218,FALSE)) -> 1.95 | L39: 150/160 | N39: =IF(VLOOKUP($A$2,'Colorless glass'!$C$5:$KJ$282,208,FALSE)="","",VLOOKUP($A$2,'Colorless glass'!$C$5:$KJ$282,208,FALSE)) -> 176 | P39: 310 | Q39: =IF(VLOOKUP($A$2,'Colorless glass'!$C$5:$KJ$282,255,FALSE)="","",VLOOKUP($A$2,'Colorless glass'!$C$5:$KJ$282,255,FALSE)) ->  | S39: =IF(VLOOKUP($A$2,'Colorless glass'!$C$5:$KJ$282,291,FALSE)="","",VLOOKUP($A$2,'Colorless glass'!$C$5:$KJ$282,291,FALSE)) -> 
P40: 300 | Q40: =IF(VLOOKUP($A$2,'Colorless glass'!$C$5:$KJ$282,256,FALSE)="","",VLOOKUP($A$2,'Colorless glass'!$C$5:$KJ$282,256,FALSE)) ->  | S40: =IF(VLOOKUP($A$2,'Colorless glass'!$C$5:$KJ$282,292,FALSE)="","",VLOOKUP($A$2,'Colorless glass'!$C$5:$KJ$282,292,FALSE)) -> 
A41: Range of Temperature (℃) | B41: Temperature Coefficients of Refractive Index | P41: 290 | Q41: =IF(VLOOKUP($A$2,'Colorless glass'!$C$5:$KJ$282,257,FALSE)="","",VLOOKUP($A$2,'Colorless glass'!$C$5:$KJ$282,257,FALSE)) ->  | S41: =IF(VLOOKUP($A$2,'Colorless glass'!$C$5:$KJ$282,293,FALSE)="","",VLOOKUP($A$2,'Colorless glass'!$C$5:$KJ$282,293,FALSE)) -> 
B42: dn/dt relative (×10-6 / ℃) | P42: 280 | Q42: =IF(VLOOKUP($A$2,'Colorless glass'!$C$5:$KJ$282,258,FALSE)="","",VLOOKUP($A$2,'Colorless glass'!$C$5:$KJ$282,258,FALSE)) ->  | S42: =IF(VLOOKUP($A$2,'Colorless glass'!$C$5:$KJ$282,294,FALSE)="","",VLOOKUP($A$2,'Colorless glass'!$C$5:$KJ$282,294,FALSE)) -> 
B43: t | C43: s | E43: C | F43: C' | G43: He-Ne | I43: d | J43: e | K43: F | M43: F' | N43: g
A44: -60～-40 | B44: =IF(VLOOKUP($A$2,'Colorless glass'!$C$5:$KJ$282,43,FALSE)="","",VLOOKUP($A$2,'Colorless glass'!$C$5:$KJ$282,43,FALSE)) -> -7.7 | C44: =IF(VLOOKUP($A$2,'Colorless glass'!$C$5:$KJ$282,54,FALSE)="","",VLOOKUP($A$2,'Colorless glass'!$C$5:$KJ$282,54,FALSE)) -> -7.6 | E44: =IF(VLOOKUP($A$2,'Colorless glass'!$C$5:$KJ$282,65,FALSE)="","",VLOOKUP($A$2,'Colorless glass'!$C$5:$KJ$282,65,FALSE)) -> -7.1 | F44: =IF(VLOOKUP($A$2,'Colorless glass'!$C$5:$KJ$282,76,FALSE)="","",VLOOKUP($A$2,'Colorless glass'!$C$5:$KJ$282,76,FALSE)) -> -7.1 | G44: =IF(VLOOKUP($A$2,'Colorless glass'!$C$5:$KJ$282,87,FALSE)="","",VLOOKUP($A$2,'Colorless glass'!$C$5:$KJ$282,87,FALSE)) -> -7.0 | I44: =IF(VLOOKUP($A$2,'Colorless glass'!$C$5:$KJ$282,98,FALSE)="","",VLOOKUP($A$2,'Colorless glass'!$C$5:$KJ$282,98,FALSE)) -> -6.8 | J44: =IF(VLOOKUP($A$2,'Colorless glass'!$C$5:$KJ$282,109,FALSE)="","",VLOOKUP($A$2,'Colorless glass'!$C$5:$KJ$282,109,FALSE)) -> -6.5 | K44: =IF(VLOOKUP($A$2,'Colorless glass'!$C$5:$KJ$282,120,FALSE)="","",VLOOKUP($A$2,'Colorless glass'!$C$5:$KJ$282,120,FALSE)) -> -5.8 | M44: =IF(VLOOKUP($A$2,'Colorless glass'!$C$5:$KJ$282,131,FALSE)="","",VLOOKUP($A$2,'Colorless glass'!$C$5:$KJ$282,131,FALSE)) -> -5.7 | N44: =IF(VLOOKUP($A$2,'Colorless glass'!$C$5:$KJ$282,142,FALSE)="","",VLOOKUP($A$2,'Colorless glass'!$C$5:$KJ$282,142,FALSE)) -> -4.6 | P44: Coloration Code
A45: -40～-20 | B45: =IF(VLOOKUP($A$2,'Colorless glass'!$C$5:$KJ$282,44,FALSE)="","",VLOOKUP($A$2,'Colorless glass'!$C$5:$KJ$282,44,FALSE)) -> -7.7 | C45: =IF(VLOOKUP($A$2,'Colorless glass'!$C$5:$KJ$282,55,FALSE)="","",VLOOKUP($A$2,'Colorless glass'!$C$5:$KJ$282,55,FALSE)) -> -7.5 | E45: =IF(VLOOKUP($A$2,'Colorless glass'!$C$5:$KJ$282,66,FALSE)="","",VLOOKUP($A$2,'Colorless glass'!$C$5:$KJ$282,66,FALSE)) -> -7.1 | F45: =IF(VLOOKUP($A$2,'Colorless glass'!$C$5:$KJ$282,77,FALSE)="","",VLOOKUP($A$2,'Colorless glass'!$C$5:$KJ$282,77,FALSE)) -> -7.0 | G45: =IF(VLOOKUP($A$2,'Colorless glass'!$C$5:$KJ$282,88,FALSE)="","",VLOOKUP($A$2,'Colorless glass'!$C$5:$KJ$282,88,FALSE)) -> -7.0 | I45: =IF(VLOOKUP($A$2,'Colorless glass'!$C$5:$KJ$282,99,FALSE)="","",VLOOKUP($A$2,'Colorless glass'!$C$5:$KJ$282,99,FALSE)) -> -6.7 | J45: =IF(VLOOKUP($A$2,'Colorless glass'!$C$5:$KJ$282,110,FALSE)="","",VLOOKUP($A$2,'Colorless glass'!$C$5:$KJ$282,110,FALSE)) -> -6.4 | K45: =IF(VLOOKUP($A$2,'Colorless glass'!$C$5:$KJ$282,121,FALSE)="","",VLOOKUP($A$2,'Colorless glass'!$C$5:$KJ$282,121,FALSE)) -> -5.6 | M45: =IF(VLOOKUP($A$2,'Colorless glass'!$C$5:$KJ$282,132,FALSE)="","",VLOOKUP($A$2,'Colorless glass'!$C$5:$KJ$282,132,FALSE)) -> -5.5 | N45: =IF(VLOOKUP($A$2,'Colorless glass'!$C$5:$KJ$282,143,FALSE)="","",VLOOKUP($A$2,'Colorless glass'!$C$5:$KJ$282,143,FALSE)) -> -4.3 | P45: λ80(λ70)/λ5 | R45: =IF(VLOOKUP($A$2,'Colorless glass'!$C$5:$KJ$282,220,FALSE)="","",VLOOKUP($A$2,'Colorless glass'!$C$5:$KJ$282,220,FALSE)) -> 405/370
A46: -20～0 | B46: =IF(VLOOKUP($A$2,'Colorless glass'!$C$5:$KJ$282,45,FALSE)="","",VLOOKUP($A$2,'Colorless glass'!$C$5:$KJ$282,45,FALSE)) -> -7.6 | C46: =IF(VLOOKUP($A$2,'Colorless glass'!$C$5:$KJ$282,56,FALSE)="","",VLOOKUP($A$2,'Colorless glass'!$C$5:$KJ$282,56,FALSE)) -> -7.5 | E46: =IF(VLOOKUP($A$2,'Colorless glass'!$C$5:$KJ$282,67,FALSE)="","",VLOOKUP($A$2,'Colorless glass'!$C$5:$KJ$282,67,FALSE)) -> -6.9 | F46: =IF(VLOOKUP($A$2,'Colorless glass'!$C$5:$KJ$282,78,FALSE)="","",VLOOKUP($A$2,'Colorless glass'!$C$5:$KJ$282,78,FALSE)) -> -6.9 | G46: =IF(VLOOKUP($A$2,'Colorless glass'!$C$5:$KJ$282,89,FALSE)="","",VLOOKUP($A$2,'Colorless glass'!$C$5:$KJ$282,89,FALSE)) -> -6.8 | I46: =IF(VLOOKUP($A$2,'Colorless glass'!$C$5:$KJ$282,100,FALSE)="","",VLOOKUP($A$2,'Colorless glass'!$C$5:$KJ$282,100,FALSE)) -> -6.5 | J46: =IF(VLOOKUP($A$2,'Colorless glass'!$C$5:$KJ$282,111,FALSE)="","",VLOOKUP($A$2,'Colorless glass'!$C$5:$KJ$282,111,FALSE)) -> -6.2 | K46: =IF(VLOOKUP($A$2,'Colorless glass'!$C$5:$KJ$282,122,FALSE)="","",VLOOKUP($A$2,'Colorless glass'!$C$5:$KJ$282,122,FALSE)) -> -5.3 | M46: =IF(VLOOKUP($A$2,'Colorless glass'!$C$5:$KJ$282,133,FALSE)="","",VLOOKUP($A$2,'Colorless glass'!$C$5:$KJ$282,133,FALSE)) -> -5.2 | N46: =IF(VLOOKUP($A$2,'Colorless glass'!$C$5:$KJ$282,144,FALSE)="","",VLOOKUP($A$2,'Colorless glass'!$C$5:$KJ$282,144,FALSE)) -> -4.0 | P46: Coloration of Internal Transmittance
A47: 0～20 | B47: =IF(VLOOKUP($A$2,'Colorless glass'!$C$5:$KJ$282,46,FALSE)="","",VLOOKUP($A$2,'Colorless glass'!$C$5:$KJ$282,46,FALSE)) -> -7.5 | C47: =IF(VLOOKUP($A$2,'Colorless glass'!$C$5:$KJ$282,57,FALSE)="","",VLOOKUP($A$2,'Colorless glass'!$C$5:$KJ$282,57,FALSE)) -> -7.4 | E47: =IF(VLOOKUP($A$2,'Colorless glass'!$C$5:$KJ$282,68,FALSE)="","",VLOOKUP($A$2,'Colorless glass'!$C$5:$KJ$282,68,FALSE)) -> -6.8 | F47: =IF(VLOOKUP($A$2,'Colorless glass'!$C$5:$KJ$282,79,FALSE)="","",VLOOKUP($A$2,'Colorless glass'!$C$5:$KJ$282,79,FALSE)) -> -6.7 | G47: =IF(VLOOKUP($A$2,'Colorless glass'!$C$5:$KJ$282,90,FALSE)="","",VLOOKUP($A$2,'Colorless glass'!$C$5:$KJ$282,90,FALSE)) -> -6.7 | I47: =IF(VLOOKUP($A$2,'Colorless glass'!$C$5:$KJ$282,101,FALSE)="","",VLOOKUP($A$2,'Colorless glass'!$C$5:$KJ$282,101,FALSE)) -> -6.4 | J47: =IF(VLOOKUP($A$2,'Colorless glass'!$C$5:$KJ$282,112,FALSE)="","",VLOOKUP($A$2,'Colorless glass'!$C$5:$KJ$282,112,FALSE)) -> -6.0 | K47: =IF(VLOOKUP($A$2,'Colorless glass'!$C$5:$KJ$282,123,FALSE)="","",VLOOKUP($A$2,'Colorless glass'!$C$5:$KJ$282,123,FALSE)) -> -5.1 | M47: =IF(VLOOKUP($A$2,'Colorless glass'!$C$5:$KJ$282,134,FALSE)="","",VLOOKUP($A$2,'Colorless glass'!$C$5:$KJ$282,134,FALSE)) -> -4.9 | N47: =IF(VLOOKUP($A$2,'Colorless glass'!$C$5:$KJ$282,145,FALSE)="","",VLOOKUP($A$2,'Colorless glass'!$C$5:$KJ$282,145,FALSE)) -> -3.6
A48: 20～40 | B48: =IF(VLOOKUP($A$2,'Colorless glass'!$C$5:$KJ$282,47,FALSE)="","",VLOOKUP($A$2,'Colorless glass'!$C$5:$KJ$282,47,FALSE)) -> -7.5 | C48: =IF(VLOOKUP($A$2,'Colorless glass'!$C$5:$KJ$282,58,FALSE)="","",VLOOKUP($A$2,'Colorless glass'!$C$5:$KJ$282,58,FALSE)) -> -7.3 | E48: =IF(VLOOKUP($A$2,'Colorless glass'!$C$5:$KJ$282,69,FALSE)="","",VLOOKUP($A$2,'Colorless glass'!$C$5:$KJ$282,69,FALSE)) -> -6.6 | F48: =IF(VLOOKUP($A$2,'Colorless glass'!$C$5:$KJ$282,80,FALSE)="","",VLOOKUP($A$2,'Colorless glass'!$C$5:$KJ$282,80,FALSE)) -> -6.6 | G48: =IF(VLOOKUP($A$2,'Colorless glass'!$C$5:$KJ$282,91,FALSE)="","",VLOOKUP($A$2,'Colorless glass'!$C$5:$KJ$282,91,FALSE)) -> -6.5 | I48: =IF(VLOOKUP($A$2,'Colorless glass'!$C$5:$KJ$282,102,FALSE)="","",VLOOKUP($A$2,'Colorless glass'!$C$5:$KJ$282,102,FALSE)) -> -6.2 | J48: =IF(VLOOKUP($A$2,'Colorless glass'!$C$5:$KJ$282,113,FALSE)="","",VLOOKUP($A$2,'Colorless glass'!$C$5:$KJ$282,113,FALSE)) -> -5.8 | K48: =IF(VLOOKUP($A$2,'Colorless glass'!$C$5:$KJ$282,124,FALSE)="","",VLOOKUP($A$2,'Colorless glass'!$C$5:$KJ$282,124,FALSE)) -> -4.8 | M48: =IF(VLOOKUP($A$2,'Colorless glass'!$C$5:$KJ$282,135,FALSE)="","",VLOOKUP($A$2,'Colorless glass'!$C$5:$KJ$282,135,FALSE)) -> -4.7 | N48: =IF(VLOOKUP($A$2,'Colorless glass'!$C$5:$KJ$282,146,FALSE)="","",VLOOKUP($A$2,'Colorless glass'!$C$5:$KJ$282,146,FALSE)) -> -3.2 | P48: λτ80/λτ5 | R48: =IF(VLOOKUP($A$2,'Colorless glass'!$C$5:$KJ$282,221,FALSE)="","",VLOOKUP($A$2,'Colorless glass'!$C$5:$KJ$282,221,FALSE)) -> 393/369
A49: 40～60 | B49: =IF(VLOOKUP($A$2,'Colorless glass'!$C$5:$KJ$282,48,FALSE)="","",VLOOKUP($A$2,'Colorless glass'!$C$5:$KJ$282,48,FALSE)) -> -7.4 | C49: =IF(VLOOKUP($A$2,'Colorless glass'!$C$5:$KJ$282,59,FALSE)="","",VLOOKUP($A$2,'Colorless glass'!$C$5:$KJ$282,59,FALSE)) -> -7.1 | E49: =IF(VLOOKUP($A$2,'Colorless glass'!$C$5:$KJ$282,70,FALSE)="","",VLOOKUP($A$2,'Colorless glass'!$C$5:$KJ$282,70,FALSE)) -> -6.5 | F49: =IF(VLOOKUP($A$2,'Colorless glass'!$C$5:$KJ$282,81,FALSE)="","",VLOOKUP($A$2,'Colorless glass'!$C$5:$KJ$282,81,FALSE)) -> -6.4 | G49: =IF(VLOOKUP($A$2,'Colorless glass'!$C$5:$KJ$282,92,FALSE)="","",VLOOKUP($A$2,'Colorless glass'!$C$5:$KJ$282,92,FALSE)) -> -6.3 | I49: =IF(VLOOKUP($A$2,'Colorless glass'!$C$5:$KJ$282,103,FALSE)="","",VLOOKUP($A$2,'Colorless glass'!$C$5:$KJ$282,103,FALSE)) -> -6.0 | J49: =IF(VLOOKUP($A$2,'Colorless glass'!$C$5:$KJ$282,114,FALSE)="","",VLOOKUP($A$2,'Colorless glass'!$C$5:$KJ$282,114,FALSE)) -> -5.6 | K49: =IF(VLOOKUP($A$2,'Colorless glass'!$C$5:$KJ$282,125,FALSE)="","",VLOOKUP($A$2,'Colorless glass'!$C$5:$KJ$282,125,FALSE)) -> -4.5 | M49: =IF(VLOOKUP($A$2,'Colorless glass'!$C$5:$KJ$282,136,FALSE)="","",VLOOKUP($A$2,'Colorless glass'!$C$5:$KJ$282,136,FALSE)) -> -4.4 | N49: =IF(VLOOKUP($A$2,'Colorless glass'!$C$5:$KJ$282,147,FALSE)="","",VLOOKUP($A$2,'Colorless glass'!$C$5:$KJ$282,147,FALSE)) -> -2.8
A50: 60～80 | B50: =IF(VLOOKUP($A$2,'Colorless glass'!$C$5:$KJ$282,49,FALSE)="","",VLOOKUP($A$2,'Colorless glass'!$C$5:$KJ$282,49,FALSE)) -> -7.3 | C50: =IF(VLOOKUP($A$2,'Colorless glass'!$C$5:$KJ$282,60,FALSE)="","",VLOOKUP($A$2,'Colorless glass'!$C$5:$KJ$282,60,FALSE)) -> -7.0 | E50: =IF(VLOOKUP($A$2,'Colorless glass'!$C$5:$KJ$282,71,FALSE)="","",VLOOKUP($A$2,'Colorless glass'!$C$5:$KJ$282,71,FALSE)) -> -6.3 | F50: =IF(VLOOKUP($A$2,'Colorless glass'!$C$5:$KJ$282,82,FALSE)="","",VLOOKUP($A$2,'Colorless glass'!$C$5:$KJ$282,82,FALSE)) -> -6.3 | G50: =IF(VLOOKUP($A$2,'Colorless glass'!$C$5:$KJ$282,93,FALSE)="","",VLOOKUP($A$2,'Colorless glass'!$C$5:$KJ$282,93,FALSE)) -> -6.2 | I50: =IF(VLOOKUP($A$2,'Colorless glass'!$C$5:$KJ$282,104,FALSE)="","",VLOOKUP($A$2,'Colorless glass'!$C$5:$KJ$282,104,FALSE)) -> -5.8 | J50: =IF(VLOOKUP($A$2,'Colorless glass'!$C$5:$KJ$282,115,FALSE)="","",VLOOKUP($A$2,'Colorless glass'!$C$5:$KJ$282,115,FALSE)) -> -5.4 | K50: =IF(VLOOKUP($A$2,'Colorless glass'!$C$5:$KJ$282,126,FALSE)="","",VLOOKUP($A$2,'Colorless glass'!$C$5:$KJ$282,126,FALSE)) -> -4.3 | M50: =IF(VLOOKUP($A$2,'Colorless glass'!$C$5:$KJ$282,137,FALSE)="","",VLOOKUP($A$2,'Colorless glass'!$C$5:$KJ$282,137,FALSE)) -> -4.1 | N50: =IF(VLOOKUP($A$2,'Colorless glass'!$C$5:$KJ$282,148,FALSE)="","",VLOOKUP($A$2,'Colorless glass'!$C$5:$KJ$282,148,FALSE)) -> -2.5 | P50: Constants of dn/dt
A51: 80～100 | B51: =IF(VLOOKUP($A$2,'Colorless glass'!$C$5:$KJ$282,50,FALSE)="","",VLOOKUP($A$2,'Colorless glass'!$C$5:$KJ$282,50,FALSE)) -> -7.2 | C51: =IF(VLOOKUP($A$2,'Colorless glass'!$C$5:$KJ$282,61,FALSE)="","",VLOOKUP($A$2,'Colorless glass'!$C$5:$KJ$282,61,FALSE)) -> -7.0 | E51: =IF(VLOOKUP($A$2,'Colorless glass'!$C$5:$KJ$282,72,FALSE)="","",VLOOKUP($A$2,'Colorless glass'!$C$5:$KJ$282,72,FALSE)) -> -6.2 | F51: =IF(VLOOKUP($A$2,'Colorless glass'!$C$5:$KJ$282,83,FALSE)="","",VLOOKUP($A$2,'Colorless glass'!$C$5:$KJ$282,83,FALSE)) -> -6.1 | G51: =IF(VLOOKUP($A$2,'Colorless glass'!$C$5:$KJ$282,94,FALSE)="","",VLOOKUP($A$2,'Colorless glass'!$C$5:$KJ$282,94,FALSE)) -> -6.1 | I51: =IF(VLOOKUP($A$2,'Colorless glass'!$C$5:$KJ$282,105,FALSE)="","",VLOOKUP($A$2,'Colorless glass'!$C$5:$KJ$282,105,FALSE)) -> -5.7 | J51: =IF(VLOOKUP($A$2,'Colorless glass'!$C$5:$KJ$282,116,FALSE)="","",VLOOKUP($A$2,'Colorless glass'!$C$5:$KJ$282,116,FALSE)) -> -5.2 | K51: =IF(VLOOKUP($A$2,'Colorless glass'!$C$5:$KJ$282,127,FALSE)="","",VLOOKUP($A$2,'Colorless glass'!$C$5:$KJ$282,127,FALSE)) -> -4.0 | M51: =IF(VLOOKUP($A$2,'Colorless glass'!$C$5:$KJ$282,138,FALSE)="","",VLOOKUP($A$2,'Colorless glass'!$C$5:$KJ$282,138,FALSE)) -> -3.9 | N51: =IF(VLOOKUP($A$2,'Colorless glass'!$C$5:$KJ$282,149,FALSE)="","",VLOOKUP($A$2,'Colorless glass'!$C$5:$KJ$282,149,FALSE)) -> -2.1 | P51: D0 | Q51: D1 | S51: D2
A52: 100～120 | B52: =IF(VLOOKUP($A$2,'Colorless glass'!$C$5:$KJ$282,51,FALSE)="","",VLOOKUP($A$2,'Colorless glass'!$C$5:$KJ$282,51,FALSE)) -> -7.2 | C52: =IF(VLOOKUP($A$2,'Colorless glass'!$C$5:$KJ$282,62,FALSE)="","",VLOOKUP($A$2,'Colorless glass'!$C$5:$KJ$282,62,FALSE)) -> -6.9 | E52: =IF(VLOOKUP($A$2,'Colorless glass'!$C$5:$KJ$282,73,FALSE)="","",VLOOKUP($A$2,'Colorless glass'!$C$5:$KJ$282,73,FALSE)) -> -6.1 | F52: =IF(VLOOKUP($A$2,'Colorless glass'!$C$5:$KJ$282,84,FALSE)="","",VLOOKUP($A$2,'Colorless glass'!$C$5:$KJ$282,84,FALSE)) -> -6.1 | G52: =IF(VLOOKUP($A$2,'Colorless glass'!$C$5:$KJ$282,95,FALSE)="","",VLOOKUP($A$2,'Colorless glass'!$C$5:$KJ$282,95,FALSE)) -> -6.0 | I52: =IF(VLOOKUP($A$2,'Colorless glass'!$C$5:$KJ$282,106,FALSE)="","",VLOOKUP($A$2,'Colorless glass'!$C$5:$KJ$282,106,FALSE)) -> -5.6 | J52: =IF(VLOOKUP($A$2,'Colorless glass'!$C$5:$KJ$282,117,FALSE)="","",VLOOKUP($A$2,'Colorless glass'!$C$5:$KJ$282,117,FALSE)) -> -5.0 | K52: =IF(VLOOKUP($A$2,'Colorless glass'!$C$5:$KJ$282,128,FALSE)="","",VLOOKUP($A$2,'Colorless glass'!$C$5:$KJ$282,128,FALSE)) -> -3.8 | M52: =IF(VLOOKUP($A$2,'Colorless glass'!$C$5:$KJ$282,139,FALSE)="","",VLOOKUP($A$2,'Colorless glass'!$C$5:$KJ$282,139,FALSE)) -> -3.6 | N52: =IF(VLOOKUP($A$2,'Colorless glass'!$C$5:$KJ$282,150,FALSE)="","",VLOOKUP($A$2,'Colorless glass'!$C$5:$KJ$282,150,FALSE)) -> -1.8 | P52: =IF(VLOOKUP($A$2,'Colorless glass'!$C$5:$KJ$282,164,FALSE)="","",VLOOKUP($A$2,'Colorless glass'!$C$5:$KJ$282,164,FALSE)) -> -1.94E-05 | Q52: =IF(VLOOKUP($A$2,'Colorless glass'!$C$5:$KJ$282,165,FALSE)="","",VLOOKUP($A$2,'Colorless glass'!$C$5:$KJ$282,165,FALSE)) -> 1.35E-08 | S52: =IF(VLOOKUP($A$2,'Colorless glass'!$C$5:$KJ$282,166,FALSE)="","",VLOOKUP($A$2,'Colorless glass'!$C$5:$KJ$282,166,FALSE)) -> -3.34E-11
A53: 120～140 | B53: =IF(VLOOKUP($A$2,'Colorless glass'!$C$5:$KJ$282,52,FALSE)="","",VLOOKUP($A$2,'Colorless glass'!$C$5:$KJ$282,52,FALSE)) -> -7.2 | C53: =IF(VLOOKUP($A$2,'Colorless glass'!$C$5:$KJ$282,63,FALSE)="","",VLOOKUP($A$2,'Colorless glass'!$C$5:$KJ$282,63,FALSE)) -> -6.9 | E53: =IF(VLOOKUP($A$2,'Colorless glass'!$C$5:$KJ$282,74,FALSE)="","",VLOOKUP($A$2,'Colorless glass'!$C$5:$KJ$282,74,FALSE)) -> -6.1 | F53: =IF(VLOOKUP($A$2,'Colorless glass'!$C$5:$KJ$282,85,FALSE)="","",VLOOKUP($A$2,'Colorless glass'!$C$5:$KJ$282,85,FALSE)) -> -6.0 | G53: =IF(VLOOKUP($A$2,'Colorless glass'!$C$5:$KJ$282,96,FALSE)="","",VLOOKUP($A$2,'Colorless glass'!$C$5:$KJ$282,96,FALSE)) -> -5.9 | I53: =IF(VLOOKUP($A$2,'Colorless glass'!$C$5:$KJ$282,107,FALSE)="","",VLOOKUP($A$2,'Colorless glass'!$C$5:$KJ$282,107,FALSE)) -> -5.5 | J53: =IF(VLOOKUP($A$2,'Colorless glass'!$C$5:$KJ$282,118,FALSE)="","",VLOOKUP($A$2,'Colorless glass'!$C$5:$KJ$282,118,FALSE)) -> -4.9 | K53: =IF(VLOOKUP($A$2,'Colorless glass'!$C$5:$KJ$282,129,FALSE)="","",VLOOKUP($A$2,'Colorless glass'!$C$5:$KJ$282,129,FALSE)) -> -3.6 | M53: =IF(VLOOKUP($A$2,'Colorless glass'!$C$5:$KJ$282,140,FALSE)="","",VLOOKUP($A$2,'Colorless glass'!$C$5:$KJ$282,140,FALSE)) -> -3.4 | N53: =IF(VLOOKUP($A$2,'Colorless glass'!$C$5:$KJ$282,151,FALSE)="","",VLOOKUP($A$2,'Colorless glass'!$C$5:$KJ$282,151,FALSE)) -> -1.5 | P53: E0 | Q53: E1 | S53: λTK
A54: 140～160 | B54: =IF(VLOOKUP($A$2,'Colorless glass'!$C$5:$KJ$282,53,FALSE)="","",VLOOKUP($A$2,'Colorless glass'!$C$5:$KJ$282,53,FALSE)) -> -7.2 | C54: =IF(VLOOKUP($A$2,'Colorless glass'!$C$5:$KJ$282,64,FALSE)="","",VLOOKUP($A$2,'Colorless glass'!$C$5:$KJ$282,64,FALSE)) -> -6.9 | E54: =IF(VLOOKUP($A$2,'Colorless glass'!$C$5:$KJ$282,75,FALSE)="","",VLOOKUP($A$2,'Colorless glass'!$C$5:$KJ$282,75,FALSE)) -> -6.0 | F54: =IF(VLOOKUP($A$2,'Colorless glass'!$C$5:$KJ$282,86,FALSE)="","",VLOOKUP($A$2,'Colorless glass'!$C$5:$KJ$282,86,FALSE)) -> -5.9 | G54: =IF(VLOOKUP($A$2,'Colorless glass'!$C$5:$KJ$282,97,FALSE)="","",VLOOKUP($A$2,'Colorless glass'!$C$5:$KJ$282,97,FALSE)) -> -5.8 | I54: =IF(VLOOKUP($A$2,'Colorless glass'!$C$5:$KJ$282,108,FALSE)="","",VLOOKUP($A$2,'Colorless glass'!$C$5:$KJ$282,108,FALSE)) -> -5.4 | J54: =IF(VLOOKUP($A$2,'Colorless glass'!$C$5:$KJ$282,119,FALSE)="","",VLOOKUP($A$2,'Colorless glass'!$C$5:$KJ$282,119,FALSE)) -> -4.8 | K54: =IF(VLOOKUP($A$2,'Colorless glass'!$C$5:$KJ$282,130,FALSE)="","",VLOOKUP($A$2,'Colorless glass'!$C$5:$KJ$282,130,FALSE)) -> -3.4 | M54: =IF(VLOOKUP($A$2,'Colorless glass'!$C$5:$KJ$282,141,FALSE)="","",VLOOKUP($A$2,'Colorless glass'!$C$5:$KJ$282,141,FALSE)) -> -3.2 | N54: =IF(VLOOKUP($A$2,'Colorless glass'!$C$5:$KJ$282,152,FALSE)="","",VLOOKUP($A$2,'Colorless glass'!$C$5:$KJ$282,152,FALSE)) -> -1.3 | P54: =IF(VLOOKUP($A$2,'Colorless glass'!$C$5:$KJ$282,167,FALSE)="","",VLOOKUP($A$2,'Colorless glass'!$C$5:$KJ$282,167,FALSE)) -> 1.01E-06 | Q54: =IF(VLOOKUP($A$2,'Colorless glass'!$C$5:$KJ$282,168,FALSE)="","",VLOOKUP($A$2,'Colorless glass'!$C$5:$KJ$282,168,FALSE)) -> 1.52E-09 | S54: =IF(VLOOKUP($A$2,'Colorless glass'!$C$5:$KJ$282,169,FALSE)="","",VLOOKUP($A$2,'Colorless glass'!$C$5:$KJ$282,169,FALSE)) -> 2.96E-01
S55: NHG

Sheet Colorless glass
H1: λ | I1: 2.32542 | J1: 1.97009 | K1: 1.52958 | L1: 1.12864 | M1: 1.06400 | N1: 1.01398 | O1: 0.85211 | P1: 0.76819 | Q1: 0.70652 | R1: 0.65627 | S1: 0.64385 | T1: 0.63280 | U1: 0.58929 | V1: 0.58756 | W1: 0.54607 | X1: 0.48613 | Y1: 0.47999 | Z1: 0.43584 | AA1: 0.40466 | AB1: 0.36501 | KT1: Glass Cross Reference Index
A2: Recommended products | B2: No. | C2: Glass | D2: Code | E2: Abbe-number | G2: Mean Dispersion | I2: Refractive Indices | AC2: Constants of Dispersion Formula | AI2: Relative Partial Dispersion | AO2: Deviation of Relative Partial Dispersions | AS2: Relative value dn/dT (10-6/℃) | EY2: Absolute dn/dT (10-6/℃) | FJ2: Constants of dn/dt | FP2: Chemical Properties | FZ2: Thermal Properties | HF2: Mechanical Properties | HL2: Stress-Optical Coefficient | HM2: Density | HN2: Coloration Code | HO2: Coloration of Internal Transmittance | HP2: Solarization | HQ2: Internal Transmittance τ5mm | JA2: Internal Transmittance τ10mm | KK2: Production Method | KL2: Relative Price | KM2: Melting Frequency | KN2: Glass | KO2: Code | KP2: OHARA | KR2: CDGM | KT2: HOYA | KV2: SUMITA | KX2: SCHOTT
E3: υd | F3: υe | G3: nF–nC | H3: nF´-nC´ | I3: n2325 | J3: n1970 | K3: n1530 | L3: n1129 | M3: n1064 | N3: nt | O3: ns | P3: nA´ | Q3: nr | R3: nC | S3: nC´ | T3: nHe-Ne | U3: nD | V3: nd | W3: ne | X3: nF | Y3: nF´ | Z3: ng | AA3: nh | AB3: ni | AC3: A0 | AD3: A1 | AE3: A2 | AF3: A3 | AG3: A4 | AH3: A5 | AI3: Pd,C | AJ3: Pe,d | AK3: Pg,F | AL3: P′d,C´ | AM3: P′e,d | AN3: P′g,F´ | AO3: △PF,e | AP3: △Pg,F | AQ3: △PC,t | AR3: △PC,s | AS3: t -60～-40 | AT3: t -40～-20 | AU3: t -20～0 | AV3: t 0～20 | AW3: t 20～40 | AX3: t 40～60 | AY3: t 60～80 | AZ3: t 80～100 | BA3: t 100～120 | BB3: t 120～140 | BC3: t 140～160 | BD3: s -60～-40 | BE3: s -40～-20 | BF3: s -20～0 | BG3: s 0～20 | BH3: s 20～40 | BI3: s 40～60 | BJ3: s 60～80 | BK3: s 80～100 | BL3: s 100～120 | BM3: s 120～140 | BN3: s 140～160 | BO3: C -60～-40 | BP3: C -40～-20 | BQ3: C -20～0 | BR3: C 0～20 | BS3: C 20～40 | BT3: C 40～60 | BU3: C 60～80 | BV3: C 80～100 | BW3: C 100～120 | BX3: C 120～140 | BY3: C 140～160 | BZ3: C' -60～-40 | CA3: C' -40～-20 | CB3: C' -20～0 | CC3: C' 0～20 | CD3: C' 20～40 | CE3: C' 40～60 | CF3: C' 60～80 | CG3: C' 80～100 | CH3: C' 100～120 | CI3: C' 120～140 | CJ3: C' 140～160 | CK3: He-Ne -60～-40 | CL3: He-Ne -40～-20 | CM3: He-Ne -20～0 | CN3: He-Ne 0～20 | CO3: He-Ne 20～40 | CP3: He-Ne 40～60 | CQ3: He-Ne 60～80 | CR3: He-Ne 80～100 | CS3: He-Ne 100～120 | CT3: He-Ne 120～140 | CU3: He-Ne 140～160 | CV3: d -60～-40 | CW3: d -40～-20 | CX3: d -20～0 | CY3: d 0～20 | CZ3: d 20～40 | DA3: d 40～60 | DB3: d 60～80 | DC3: d 80～100 | DD3: d 100～120 | DE3: d 120～140 | DF3: d 140～160 | DG3: e -60～-40 | DH3: e -40～-20 | DI3: e -20～0 | DJ3: e 0～20 | DK3: e 20～40 | DL3: e 40～60 | DM3: e 60～80 | DN3: e 80～100 | DO3: e 100～120 | DP3: e 120～140 | DQ3: e 140～160 | DR3: F -60～-40 | DS3: F -40～-20 | DT3: F -20～0 | DU3: F 0～20 | DV3: F 20～40 | DW3: F 40～60 | DX3: F 60～80 | DY3: F 80～100 | DZ3: F 100～120 | EA3: F 120～140 | EB3: F 140～160 | EC3: F' -60～-40 | ED3: F' -40～-20 | EE3: F' -20～0 | EF3: F' 0～20 | EG3: F' 20～40 | EH3: F' 40～60 | EI3: F' 60～80 | EJ3: F' 80～100 | EK3: F' 100～120 | EL3: F' 120～140 | EM3: F' 140～160 | EN3: g -60～-40 | EO3: g -40～-20 | EP3: g -20～0 | EQ3: g 0～20 | ER3: g 20～40 | ES3: g 40～60 | ET3: g 60～80 | EU3: g 80～100 | EV3: g 100～120 | EW3: g 120～140 | EX3: g 140～160 | EY3: He-Ne -60～-40 | EZ3: He-Ne -40～-20 | FA3: He-Ne -20～0 | FB3: He-Ne 0～20 | FC3: He-Ne 20～40 | FD3: He-Ne 40～60 | FE3: He-Ne 60～80 | FF3: He-Ne 80～100 | FG3: He-Ne 100～120 | FH3: He-Ne 120～140 | FI3: He-Ne 140～160 | FJ3: D0 | FK3: D1 | FL3: D2 | FM3: E0 | FN3: E1 | FO3: λTK | FP3: RC(S) | FQ3: RA(S) | FR3: DW | FS3: DA | FT3: ROH(S) | FU3: RP(S) | FV3: CR | FW3: D0 | FX3: TBlue | FZ3: Tg (℃) | GA3: Ts (℃) | GB3: T1014.5 (℃) | GC3: T1013 (℃) | GD3: λ | GE3: Cp | GF3: α-50/80℃ (10-7/℃) | GG3: α100/300℃ (10-7/℃) | GH3: α-50/-40℃ (10-7/℃) | GI3: α-40/-30℃ (10-7/℃) | GJ3: α-30/-20℃ (10-7/℃) | GK3: α-20/-10℃ (10-7/℃) | GL3: α-10/0℃ (10-7/℃) | GM3: α0/10℃ (10-7/℃) | GN3: α10/20℃ (10-7/℃) | GO3: α20/30℃ (10-7/℃) | GP3: α30/40℃ (10-7/℃) | GQ3: α40/50℃ (10-7/℃) | GR3: α50/60℃ (10-7/℃) | GS3: α60/70℃ (10-7/℃) | GT3: α70/80℃ (10-7/℃) | GU3: α80/90℃ (10-7/℃) | GV3: α90/100℃ (10-7/℃) | GW3: α100/110℃ (10-7/℃) | GX3: α110/120℃ (10-7/℃) | GY3: α120/130℃ (10-7/℃) | GZ3: α130/140℃ (10-7/℃) | HA3: α140/150℃ (10-7/℃) | HB3: α150/160℃ (10-7/℃) | HC3: βC | HD3: βd | HE3: βF | HF3: HK (107Pa) | HG3: FA | HH3: E (GPa) | HI3: G (GPa) | HJ3: μ | HK3: σb (MPa) | HL3: B (10-12/Pa) | HM3: ρ (g/cm3) | HN3: λ80(λ70)/λ5 | HO3: λτ80/λτ5 | HP3: △λ(%) | HQ3: 2400nm | HR3: 2200nm | HS3: 2000nm | HT3: 1800nm | HU3: 1600nm | HV3: 1400nm | HW3: 1200nm | HX3: 1060nm | HY3: 1000nm | HZ3: 950nm | IA3: 900nm | IB3: 850nm | IC3: 800nm | ID3: 750nm | IE3: 700nm | IF3: 650nm | IG3: 600nm | IH3: 550nm | II3: 500nm | IJ3: 480nm | IK3: 460nm | IL3: 440nm | IM3: 420nm | IN3: 400nm | IO3: 390nm | IP3: 380nm | IQ3: 370nm | IR3: 360nm | IS3: 350nm | IT3: 340nm | IU3: 330nm | IV3: 320nm | IW3: 310nm | IX3: 300nm | IY3: 290nm | IZ3: 280nm | JA3: 2400nm | JB3: 2200nm | JC3: 2000nm | JD3: 1800nm | JE3: 1600nm | JF3: 1400nm | JG3: 1200nm | JH3: 1060nm | JI3: 1000nm | JJ3: 950nm | JK3: 900nm | JL3: 850nm | JM3: 800nm | JN3: 750nm | JO3: 700nm | JP3: 650nm | JQ3: 600nm | JR3: 550nm | JS3: 500nm | JT3: 480nm | JU3: 460nm | JV3: 440nm | JW3: 420nm | JX3: 400nm | JY3: 390nm | JZ3: 380nm | KA3: 370nm | KB3: 360nm | KC3: 350nm | KD3: 340nm | KE3: 330nm | KF3: 320nm | KG3: 310nm | KH3: 300nm | KI3: 290nm | KJ3: 280nm | KP3: Glass Type | KQ3: Code | KR3: Glass Type | KS3: Code | KT3: Glass Type | KU3: Code | KV3: Glass Type | KW3: Code | KX3: Glass Type | KY3: Code
B4: 0 | C4: 1 | D4: 2 | E4: 3 | F4: 4 | G4: 5 | H4: 6 | I4: 7 | J4: 8 | K4: 9 | L4: 10 | M4: 11 | N4: 12 | O4: 13 | P4: 14 | Q4: 15 | R4: 16 | S4: 17 | T4: 18 | U4: 19 | V4: 20 | W4: 21 | X4: 22 | Y4: 23 | Z4: 24 | AA4: 25 | AB4: 26 | AC4: 27 | AD4: 28 | AE4: 29 | AF4: 30 | AG4: 31 | AH4: 32 | AI4: 33 | AJ4: 34 | AK4: 35 | AL4: 36 | AM4: 37 | AN4: 38 | AO4: 39 | AP4: 40 | AQ4: 41 | AR4: 42 | AS4: 43 | AT4: 44 | AU4: 45 | AV4: 46 | AW4: 47 | AX4: 48 | AY4: 49 | AZ4: 50 | BA4: 51 | BB4: 52 | BC4: 53 | BD4: 54 | BE4: 55 | BF4: 56 | BG4: 57 | BH4: 58 | BI4: 59 | BJ4: 60 | BK4: 61 | BL4: 62 | BM4: 63 | BN4: 64 | BO4: 65 | BP4: 66 | BQ4: 67 | BR4: 68 | BS4: 69 | BT4: 70 | BU4: 71 | BV4: 72 | BW4: 73 | BX4: 74 | BY4: 75 | BZ4: 76 | CA4: 77 | CB4: 78 | CC4: 79 | CD4: 80 | CE4: 81 | CF4: 82 | CG4: 83 | CH4: 84 | CI4: 85 | CJ4: 86 | CK4: 87 | CL4: 88 | CM4: 89 | CN4: 90 | CO4: 91 | CP4: 92 | CQ4: 93 | CR4: 94 | CS4: 95 | CT4: 96 | CU4: 97 | CV4: 98 | CW4: 99 | CX4: 100 | CY4: 101 | CZ4: 102 | DA4: 103 | DB4: 104 | DC4: 105 | DD4: 106 | DE4: 107 | DF4: 108 | DG4: 109 | DH4: 110 | DI4: 111 | DJ4: 112 | DK4: 113 | DL4: 114 | DM4: 115 | DN4: 116 | DO4: 117 | DP4: 118 | DQ4: 119 | DR4: 120 | DS4: 121 | DT4: 122 | DU4: 123 | DV4: 124 | DW4: 125 | DX4: 126 | DY4: 127 | DZ4: 128 | EA4: 129 | EB4: 130 | EC4: 131 | ED4: 132 | EE4: 133 | EF4: 134 | EG4: 135 | EH4: 136 | EI4: 137 | EJ4: 138 | EK4: 139 | EL4: 140 | EM4: 141 | EN4: 142 | EO4: 143 | EP4: 144 | EQ4: 145 | ER4: 146 | ES4: 147 | ET4: 148 | EU4: 149 | EV4: 150 | EW4: 151 | EX4: 152 | EY4: 153 | EZ4: 154 | FA4: 155 | FB4: 156 | FC4: 157 | FD4: 158 | FE4: 159 | FF4: 160 | FG4: 161 | FH4: 162 | FI4: 163 | FJ4: 164 | FK4: 165 | FL4: 166 | FM4: 167 | FN4: 168 | FO4: 169 | FP4: 170 | FQ4: 171 | FR4: 172 | FS4: 173 | FT4: 174 | FU4: 175 | FV4: 176 | FW4: 177 | FX4: 178 | FY4: 179 | FZ4: 180 | GA4: 181 | GB4: 182 | GC4: 183 | GD4: 184 | GE4: 185 | GF4: 186 | GG4: 187 | GH4: 188 | GI4: 189 | GJ4: 190 | GK4: 191 | GL4: 192 | GM4: 193 | GN4: 194 | GO4: 195 | GP4: 196 | GQ4: 197 | GR4: 198 | GS4: 199 | GT4: 200 | GU4: 201 | GV4: 202 | GW4: 203 | GX4: 204 | GY4: 205 | GZ4: 206 | HA4: 207 | HB4: 208 | HC4: 209 | HD4: 210 | HE4: 211 | HF4: 212 | HG4: 213 | HH4: 214 | HI4: 215 | HJ4: 216 | HK4: 217 | HL4: 218 | HM4: 219 | HN4: 220 | HO4: 221 | HP4: 222 | HQ4: 223 | HR4: 224 | HS4: 225 | HT4: 226 | HU4: 227 | HV4: 228 | HW4: 229 | HX4: 230 | HY4: 231 | HZ4: 232 | IA4: 233 | IB4: 234 | IC4: 235 | ID4: 236 | IE4: 237 | IF4: 238 | IG4: 239 | IH4: 240 | II4: 241 | IJ4: 242 | IK4: 243 | IL4: 244 | IM4: 245 | IN4: 246 | IO4: 247 | IP4: 248 | IQ4: 249 | IR4: 250 | IS4: 251 | IT4: 252 | IU4: 253 | IV4: 254 | IW4: 255 | IX4: 256 | IY4: 257 | IZ4: 258 | JA4: 259 | JB4: 260 | JC4: 261 | JD4: 262 | JE4: 263 | JF4: 264 | JG4: 265 | JH4: 266 | JI4: 267 | JJ4: 268 | JK4: 269 | JL4: 270 | JM4: 271 | JN4: 272 | JO4: 273 | JP4: 274 | JQ4: 275 | JR4: 276 | JS4: 277 | JT4: 278 | JU4: 279 | JV4: 280 | JW4: 281 | JX4: 282 | JY4: 283 | JZ4: 284 | KA4: 285 | KB4: 286 | KC4: 287 | KD4: 288 | KE4: 289 | KF4: 290 | KG4: 291 | KH4: 292 | KI4: 293 | KJ4: 294 | KK4: 301 | KL4: 302 | KM4: 303 | KN4: 298 | KO4: 299 | KP4: 300 | KQ4: 301 | KR4: 302 | KS4: 303 | KT4: 304 | KU4: 305 | KX4: 306 | KY4: 307
A5: ★★★ | B5: 1 | C5: H-FK61 | D5: 497816 | E5: 81.61 | F5: 81.20 | G5: 0.006090 | H5: 0.006139 | I5: 1.47950 | J5: 1.48263 | K5: 1.48606 | L5: 1.48910 | M5: 1.48965 | N5: 1.49010 | O5: 1.49183 | P5: 1.49301 | Q5: 1.49407 | R5: 1.49514 | S5: 1.49543 | T5: 1.49571 | U5: 1.49694 | V5: 1.49700 | W5: 1.49845 | X5: 1.50123 | Y5: 1.50157 | Z5: 1.50451 | AA5: 1.50721 | AB5: 1.51173 | AC5: 2.21807952E+00 | AD5: -5.67922113E-03 | AE5: 8.28756139E-03 | AF5: 9.66891434E-05 | AG5: 3.56668643E-06 | AH5: -3.63065113E-07 | AI5: 0.3054 | AJ5: 0.2381 | AK5: 0.5386 | AL5: 0.2557 | AM5: 0.2362 | AN5: 0.4789 | AO5: 0.0113 | AP5: 0.0305 | AQ5: -0.1080 | AR5: -0.0528 | AS5: -5.4 | AT5: -5.6 | AU5: -5.8 | AV5: -6.1 | AW5: -6.4 | AX5: -6.6 | AY5: -6.8 | AZ5: -7.0 | BA5: -7.2 | BB5: -7.5 | BC5: -7.9 | BD5: -5.3 | BE5: -5.4 | BF5: -5.8 | BG5: -6.0 | BH5: -6.3 | BI5: -6.5 | BJ5: -6.8 | BK5: -6.9 | BL5: -7.2 | BM5: -7.5 | BN5: -7.8 | BO5: -5.3 | BP5: -5.3 | BQ5: -5.7 | BR5: -5.9 | BS5: -6.2 | BT5: -6.4 | BU5: -6.7 | BV5: -6.9 | BW5: -7.1 | BX5: -7.4 | BY5: -7.7 | BZ5: -5.2 | CA5: -5.3 | CB5: -5.7 | CC5: -5.9 | CD5: -6.2 | CE5: -6.4 | CF5: -6.6 | CG5: -6.9 | CH5: -7.1 | CI5: -7.4 | CJ5: -7.6 | CK5: -5.1 | CL5: -5.3 | CM5: -5.7 | CN5: -5.9 | CO5: -6.2 | CP5: -6.5 | CQ5: -6.6 | CR5: -6.9 | CS5: -7.1 | CT5: -7.4 | CU5: -7.6 | CV5: -5.0 | CW5: -5.3 | CX5: -5.6 | CY5: -5.9 | CZ5: -6.0 | DA5: -6.4 | DB5: -6.6 | DC5: -6.9 | DD5: -7.1 | DE5: -7.3 | DF5: -7.5 | DG5: -4.9 | DH5: -5.2 | DI5: -5.5 | DJ5: -5.8 | DK5: -6.0 | DL5: -6.3 | DM5: -6.5 | DN5: -6.8 | DO5: -6.9 | DP5: -7.1 | DQ5: -7.4 | DR5: -4.6 | DS5: -5.1 | DT5: -5.2 | DU5: -5.7 | DV5: -5.9 | DW5: -6.0 | DX5: -6.3 | DY5: -6.5 | DZ5: -6.8 | EA5: -7.1 | EB5: -7.3 | EC5: -4.6 | ED5: -5.0 | EE5: -5.2 | EF5: -5.6 | EG5: -5.8 | EH5: -6.0 | EI5: -6.2 | EJ5: -6.4 | EK5: -6.7 | EL5: -7.0 | EM5: -7.2 | EN5: -4.5 | EO5: -4.8 | EP5: -5.1 | EQ5: -5.5 | ER5: -5.7 | ES5: -5.9 | ET5: -6.0 | EU5: -6.1 | EV5: -6.4 | EW5: -6.8 | EX5: -7.1 | EY5: -7.5 | EZ5: -7.3 | FA5: -7.4 | FB5: -7.4 | FC5: -7.5 | FD5: -7.6 | FE5: -7.6 | FF5: -7.8 | FG5: -7.9 | FH5: -8.1 | FI5: -8.3 | FJ5: -1.90E-05 | FK5: -2.71E-09 | FL5: -2.90E-11 | FM5: 3.52E-07 | FN5: 9.31E-11 | FO5: 2.28E-01 | FP5: 1 | FQ5: 2 | FR5: 1 | FS5: 3 | FT5: 2 | FU5: 2 | FV5: 1 | FZ5: 464 | GA5: 489 | GB5: 421 | GC5: 442 | GD5: 0.74 | GF5: 124 | GG5: 152 | GH5: 115 | GI5: 118 | GJ5: 121 | GK5: 123 | GL5: 125 | GM5: 127 | GN5: 128 | GO5: 130 | GP5: 133 | GQ5: 136 | GR5: 138 | GS5: 140 | GT5: 142 | GU5: 144 | GV5: 145 | GW5: 146 | GX5: 147 | GY5: 148 | GZ5: 149 | HA5: 150 | HB5: 151 | HD5: 58 | HF5: 350 | HG5: 385 | HH5: 71.6 | HI5: 27.4 | HJ5: 0.307 | HK5: 33 | HL5: 0.69 | HM5: 3.67 | HN5: 340/285 | HO5: 332/284 | HP5: -2.4 | HQ5: 0.999 | HR5: 0.999 | HS5: 0.999 | HT5: 0.999 | HU5: 0.999 | HV5: 0.999 | HW5: 0.999 | HX5: 0.999 | HY5: 0.999 | HZ5: 0.999 | IA5: 0.999 | IB5: 0.999 | IC5: 0.999 | ID5: 0.999 | IE5: 0.999 | IF5: 0.999 | IG5: 0.999 | IH5: 0.999 | II5: 0.999 | IJ5: 0.999 | IK5: 0.999 | IL5: 0.999 | IM5: 0.999 | IN5: 0.999 | IO5: 0.999 | IP5: 0.999 | IQ5: 0.995 | IR5: 0.984 | IS5: 0.970 | IT5: 0.942 | IU5: 0.886 | IV5: 0.788 | IW5: 0.643 | IX5: 0.466 | IY5: 0.298 | IZ5: 0.176 | JA5: 0.998 | JB5: 0.998 | JC5: 0.998 | JD5: 0.998 | JE5: 0.998 | JF5: 0.998 | JG5: 0.998 | JH5: 0.998 | JI5: 0.998 | JJ5: 0.998 | JK5: 0.998 | JL5: 0.998 | JM5: 0.998 | JN5: 0.998 | JO5: 0.998 | JP5: 0.998 | JQ5: 0.998 | JR5: 0.998 | JS5: 0.998 | JT5: 0.998 | JU5: 0.998 | JV5: 0.998 | JW5: 0.998 | JX5: 0.998 | JY5: 0.998 | JZ5: 0.998 | KA5: 0.993 | KB5: 0.975 | KC5: 0.948 | KD5: 0.893 | KE5: 0.788 | KF5: 0.621 | KG5: 0.410 | KH5: 0.212 | KI5: 0.086 | KJ5: 0.031 | KK5: PG RP | KL5: 65 | KM5: MA | KN5: H-FK61 | KO5: 497816 | KP5: S-FPL51 | KQ5: 497816 | KR5: H-FK61B | KS5: 497816 | KT5: FCD1 | KU5: 497816 | KV5: K-PFK80 | KW5: 497815 | KX5: N-PK52A | KY5: 497816
A6: ★★★ | B6: 2 | C6: H-FK69 | D6: 593686 | E6: 68.63 | F6: 68.25 | G6: 0.008638 | H6: 0.008716 | I6: 1.57002 | J6: 1.57383 | K6: 1.57808 | L6: 1.58198 | M6: 1.58269 | N6: 1.58328 | O6: 1.58561 | P6: 1.58723 | Q6: 1.58873 | R6: 1.59021 | S6: 1.59062 | T6: 1.59101 | U6: 1.59275 | V6: 1.59282 | W6: 1.59489 | X6: 1.59884 | Y6: 1.59934 | Z6: 1.60354 | AA6: 1.60740 | AB6: 1.61397 | AC6: 2.50210584E+00 | AD6: -7.29437368E-03 | AE6: 1.22873858E-02 | AF6: 2.57463363E-04 | AG6: -1.16391265E-05 | AH6: 6.15553004E-07 | AI6: 0.3022 | AJ6: 0.2396 | AK6: 0.5441 | AL6: 0.2524 | AM6: 0.2375 | AN6: 0.4819 | AO6: 0.0050 | AP6: 0.0145 | AQ6: -0.0704 | AR6: -0.0326 | AS6: -5.0 | AT6: -5.4 | AU6: -5.6 | AV6: -5.7 | AW6: -5.8 | AX6: -6.0 | AY6: -6.1 | AZ6: -6.2 | BA6: -6.3 | BB6: -6.4 | BC6: -6.6 | BD6: -4.9 | BE6: -5.3 | BF6: -5.5 | BG6: -5.6 | BH6: -5.7 | BI6: -5.9 | BJ6: -6.0 | BK6: -6.1 | BL6: -6.2 | BM6: -6.3 | BN6: -6.5 | BO6: -4.8 | BP6: -5.2 | BQ6: -5.5 | BR6: -5.6 | BS6: -5.7 | BT6: -5.9 | BU6: -5.9 | BV6: -6.0 | BW6: -6.1 | BX6: -6.2 | BY6: -6.4 | BZ6: -4.8 | CA6: -5.2 | CB6: -5.5 | CC6: -5.6 | CD6: -5.7 | CE6: -5.9 | CF6: -5.9 | CG6: -6.0 | CH6: -6.1 | CI6: -6.2 | CJ6: -6.3 | CK6: -4.8 | CL6: -5.2 | CM6: -5.5 | CN6: -5.6 | CO6: -5.7 | CP6: -5.8 | CQ6: -5.9 | CR6: -6.0 | CS6: -6.1 | CT6: -6.2 | CU6: -6.3 | CV6: -4.7 | CW6: -5.1 | CX6: -5.4 | CY6: -5.5 | CZ6: -5.6 | DA6: -5.7 | DB6: -5.7 | DC6: -5.8 | DD6: -6.0 | DE6: -6.1 | DF6: -6.2 | DG6: -4.6 | DH6: -5.0 | DI6: -5.2 | DJ6: -5.4 | DK6: -5.5 | DL6: -5.6 | DM6: -5.6 | DN6: -5.7 | DO6: -5.8 | DP6: -5.9 | DQ6: -6.1 | DR6: -4.5 | DS6: -4.9 | DT6: -5.1 | DU6: -5.3 | DV6: -5.4 | DW6: -5.5 | DX6: -5.6 | DY6: -5.6 | DZ6: -5.7 | EA6: -5.8 | EB6: -6.0 | EC6: -4.5 | ED6: -4.8 | EE6: -5.1 | EF6: -5.3 | EG6: -5.4 | EH6: -5.5 | EI6: -5.5 | EJ6: -5.6 | EK6: -5.6 | EL6: -5.7 | EM6: -5.9 | EN6: -4.3 | EO6: -4.6 | EP6: -4.9 | EQ6: -5.1 | ER6: -5.2 | ES6: -5.3 | ET6: -5.3 | EU6: -5.3 | EV6: -5.4 | EW6: -5.5 | EX6: -5.7 | EY6: -7.4 | EZ6: -7.4 | FA6: -7.3 | FB6: -7.2 | FC6: -7.1 | FD6: -7.0 | FE6: -7.0 | FF6: -7.0 | FG6: -7.0 | FH6: -7.0 | FI6: -7.0 | FJ6: -1.56E-05 | FK6: 2.44E-09 | FL6: -1.24E-11 | FM6: 2.89E-07 | FN6: 2.96E-10 | FO6: 2.33E-01 | FP6: 1 | FQ6: 1 | FR6: 1 | FS6: 3 | FT6: 2 | FU6: 2 | FV6: 1 | FZ6: 584 | GA6: 608 | GB6: 564 | GC6: 575 | GD6: 0.64 | GF6: 113 | GG6: 136 | GH6: 103 | GI6: 105 | GJ6: 107 | GK6: 108 | GL6: 109 | GM6: 110 | GN6: 111 | GO6: 112 | GP6: 113 | GQ6: 114 | GR6: 115 | GS6: 116 | GT6: 117 | GU6: 118 | GV6: 119 | GW6: 120 | GX6: 122 | GY6: 123 | GZ6: 124 | HA6: 125 | HB6: 127 | HD6: 95 | HF6: 390 | HG6: 365 | HH6: 73.3 | HI6: 28.2 | HJ6: 0.298 | HK6: 42 | HL6: 0.44 | HM6: 4.07 | HN6: 360/290 | HO6: 345/281 | HP6: -1.3 | HQ6: 0.999 | HR6: 0.999 | HS6: 0.999 | HT6: 0.999 | HU6: 0.999 | HV6: 0.999 | HW6: 0.999 | HX6: 0.999 | HY6: 0.999 | HZ6: 0.999 | IA6: 0.999 | IB6: 0.999 | IC6: 0.999 | ID6: 0.999 | IE6: 0.999 | IF6: 0.999 | IG6: 0.999 | IH6: 0.999 | II6: 0.999 | IJ6: 0.999 | IK6: 0.999 | IL6: 0.999 | IM6: 0.998 | IN6: 0.997 | IO6: 0.995 | IP6: 0.990 | IQ6: 0.978 | IR6: 0.955 | IS6: 0.912 | IT6: 0.839 | IU6: 0.728 | IV6: 0.591 | IW6: 0.448 | IX6: 0.325 | IY6: 0.235 | IZ6: 0.175 | JA6: 0.998 | JB6: 0.998 | JC6: 0.998 | JD6: 0.998 | JE6: 0.998 | JF6: 0.998 | JG6: 0.998 | JH6: 0.998 | JI6: 0.998 | JJ6: 0.998 | JK6: 0.998 | JL6: 0.998 | JM6: 0.998 | JN6: 0.998 | JO6: 0.998 | JP6: 0.998 | JQ6: 0.998 | JR6: 0.998 | JS6: 0.998 | JT6: 0.998 | JU6: 0.998 | JV6: 0.998 | JW6: 0.996 | JX6: 0.994 | JY6: 0.990 | JZ6: 0.978 | KA6: 0.956 | KB6: 0.909 | KC6: 0.829 | KD6: 0.702 | KE6: 0.530 | KF6: 0.350 | KG6: 0.201 | KH6: 0.107 | KI6: 0.056 | KJ6: 0.032 | KK6: PG RP | KL6: 68 | KM6: MA | KN6: H-FK69 | KO6: 593686 | KP6: (S-FPM2) | KQ6: 595677 | KR6: H-ZPK5 | KS6: 593683 | KT6: FCD515 | KU6: 593686 | KV6: K-GFK68 | KW6: 592683
A7: ★★ | B7: 3 | C7: H-FK76 | D7: 550755 | E7: 75.50 | F7: 75.12 | G7: 0.007289 | H7: 0.007349 | I7: 1.53051 | J7: 1.53391 | K7: 1.53766 | L7: 1.54106 | M7: 1.54168 | N7: 1.54220 | O7: 1.54420 | P7: 1.54558 | Q7: 1.54684 | R7: 1.54810 | S7: 1.54845 | T7: 1.54878 | U7: 1.55025 | V7: 1.55032 | W7: 1.55206 | X7: 1.55539 | Y7: 1.55580 | Z7: 1.55932 | AA7: 1.56256 | AB7: 1.56803 | AC7: 2.37490887E+00 | AD7: -6.34594354E-03 | AE7: 1.00559237E-02 | AF7: 2.32696930E-04 | AG7: -1.51093626E-05 | AH7: 7.74351892E-07 | AI7: 0.3046 | AJ7: 0.2387 | AK7: 0.5392 | AL7: 0.2545 | AM7: 0.2368 | AN7: 0.4790 | AO7: 0.0083 | AP7: 0.0210 | AQ7: -0.0965 | AR7: -0.0465 | AS7: -7.1 | AT7: -6.8 | AU7: -6.4 | AV7: -6.4 | AW7: -6.4 | AX7: -6.2 | AY7: -6.0 | AZ7: -6.0 | BA7: -5.9 | BB7: -5.8 | BC7: -5.5 | BD7: -6.8 | BE7: -6.5 | BF7: -6.2 | BG7: -6.3 | BH7: -6.3 | BI7: -6.1 | BJ7: -6.0 | BK7: -5.8 | BL7: -5.7 | BM7: -5.5 | BN7: -5.3 | BO7: -6.6 | BP7: -6.4 | BQ7: -6.3 | BR7: -6.1 | BS7: -6.0 | BT7: -5.8 | BU7: -5.8 | BV7: -5.6 | BW7: -5.6 | BX7: -5.4 | BY7: -5.2 | BZ7: -6.5 | CA7: -6.3 | CB7: -6.2 | CC7: -6.1 | CD7: -6.0 | CE7: -5.8 | CF7: -5.7 | CG7: -5.6 | CH7: -5.5 | CI7: -5.4 | CJ7: -5.2 | CK7: -6.5 | CL7: -6.3 | CM7: -6.2 | CN7: -6.1 | CO7: -6.0 | CP7: -5.8 | CQ7: -5.6 | CR7: -5.5 | CS7: -5.5 | CT7: -5.4 | CU7: -5.2 | CV7: -6.4 | CW7: -6.2 | CX7: -6.2 | CY7: -5.9 | CZ7: -5.8 | DA7: -5.6 | DB7: -5.5 | DC7: -5.4 | DD7: -5.4 | DE7: -5.2 | DF7: -5.1 | DG7: -6.3 | DH7: -6.2 | DI7: -6.1 | DJ7: -5.8 | DK7: -5.6 | DL7: -5.5 | DM7: -5.3 | DN7: -5.2 | DO7: -5.1 | DP7: -5.0 | DQ7: -4.9 | DR7: -6.2 | DS7: -6.1 | DT7: -5.9 | DU7: -5.6 | DV7: -5.5 | DW7: -5.4 | DX7: -5.2 | DY7: -4.9 | DZ7: -4.9 | EA7: -4.9 | EB7: -4.8 | EC7: -6.1 | ED7: -6.0 | EE7: -5.8 | EF7: -5.6 | EG7: -5.4 | EH7: -5.3 | EI7: -5.1 | EJ7: -4.9 | EK7: -4.8 | EL7: -4.8 | EM7: -4.7 | EN7: -5.8 | EO7: -5.6 | EP7: -5.5 | EQ7: -5.3 | ER7: -5.0 | ES7: -4.9 | ET7: -4.8 | EU7: -4.7 | EV7: -4.5 | EW7: -4.2 | EX7: -4.0 | EY7: -9.0 | EZ7: -8.4 | FA7: -8.0 | FB7: -7.6 | FC7: -7.3 | FD7: -7.0 | FE7: -6.7 | FF7: -6.4 | FG7: -6.3 | FH7: -6.2 | FI7: -5.9 | FJ7: -1.79E-05 | FK7: 1.92E-08 | FL7: -3.61E-11 | FM7: 4.81E-07 | FN7: 3.20E-10 | FO7: 2.11E-01 | FP7: 1 | FQ7: 1 | FR7: 1 | FS7: 2 | FT7: 2 | FU7: 2 | FV7: 1 | FZ7: 553 | GA7: 576 | GB7: 509 | GC7: 531 | GD7: 0.56 | GF7: 122 | GG7: 145 | GH7: 112 | GI7: 114 | GJ7: 115 | GK7: 118 | GL7: 120 | GM7: 120 | GN7: 122 | GO7: 124 | GP7: 124 | GQ7: 126 | GR7: 126 | GS7: 129 | GT7: 129 | GU7: 130 | GV7: 131 | GW7: 132 | GX7: 135 | GY7: 136 | GZ7: 138 | HA7: 138 | HB7: 142 | HD7: 75 | HF7: 385 | HG7: 420 | HH7: 75.8 | HI7: 29.1 | HJ7: 0.306 | HK7: 66 | HL7: 0.43 | HM7: 4.13 | HN7: 340/285 | HO7: 327/280 | HP7: -0.4 | HQ7: 0.979 | HR7: 0.984 | HS7: 0.991 | HT7: 0.995 | HU7: 0.998 | HV7: 0.999 | HW7: 0.999 | HX7: 0.999 | HY7: 0.999 | HZ7: 0.999 | IA7: 0.999 | IB7: 0.999 | IC7: 0.999 | ID7: 0.999 | IE7: 0.999 | IF7: 0.999 | IG7: 0.999 | IH7: 0.999 | II7: 0.999 | IJ7: 0.999 | IK7: 0.999 | IL7: 0.999 | IM7: 0.999 | IN7: 0.999 | IO7: 0.998 | IP7: 0.997 | IQ7: 0.995 | IR7: 0.989 | IS7: 0.976 | IT7: 0.953 | IU7: 0.912 | IV7: 0.850 | IW7: 0.766 | IX7: 0.671 | IY7: 0.580 | IZ7: 0.503 | JA7: 0.958 | JB7: 0.968 | JC7: 0.982 | JD7: 0.989 | JE7: 0.996 | JF7: 0.998 | JG7: 0.998 | JH7: 0.998 | JI7: 0.998 | JJ7: 0.998 | JK7: 0.998 | JL7: 0.998 | JM7: 0.998 | JN7: 0.998 | JO7: 0.998 | JP7: 0.998 | JQ7: 0.998 | JR7: 0.998 | JS7: 0.998 | JT7: 0.998 | JU7: 0.998 | JV7: 0.998 | JW7: 0.998 | JX7: 0.998 | JY7: 0.996 | JZ7: 0.994 | KA7: 0.990 | KB7: 0.978 | KC7: 0.952 | KD7: 0.908 | KE7: 0.832 | KF7: 0.723 | KG7: 0.587 | KH7: 0.450 | KI7: 0.336 | KJ7: 0.253 | KK7: PG RP | KL7: 164 | KM7: C | KN7: H-FK76 | KO7: 550755 | KR7: H-FK55 | KS7: 550752 | KT7: FCD705 | KU7: 550755
A8: ★★★ | B8: 4 | C8: H-FK90 | D8: 459902 | E8: 90.19 | F8: 89.77 | G8: 0.005085 | H8: 0.005122 | I8: 1.44358 | J8: 1.44630 | K8: 1.44928 | L8: 1.45191 | M8: 1.45238 | N8: 1.45277 | O8: 1.45425 | P8: 1.45524 | Q8: 1.45615 | R8: 1.45704 | S8: 1.45729 | T8: 1.45752 | U8: 1.45855 | V8: 1.45860 | W8: 1.45981 | X8: 1.46212 | Y8: 1.46241 | Z8: 1.46486 | AA8: 1.46710 | AB8: 1.47085 | AC8: 2.10866977E+00 | AD8: -4.81589397E-03 | AE8: 7.02478609E-03 | AF8: -2.48667024E-05 | AG8: 1.78185408E-05 | AH8: -1.09874507E-06 | AI8: 0.3068 | AJ8: 0.2380 | AK8: 0.5388 | AL8: 0.2558 | AM8: 0.2362 | AN8: 0.4783 | AO8: 0.0139 | AP8: 0.0450 | AQ8: -0.1374 | AR8: -0.0682 | AS8: -7.0 | AT8: -7.2 | AU8: -7.3 | AV8: -7.3 | AW8: -7.5 | AX8: -7.6 | AY8: -7.9 | AZ8: -8.0 | BA8: -8.1 | BB8: -8.2 | BC8: -8.4 | BD8: -6.7 | BE8: -6.8 | BF8: -6.9 | BG8: -7.0 | BH8: -7.1 | BI8: -7.3 | BJ8: -7.6 | BK8: -7.8 | BL8: -8.1 | BM8: -8.0 | BN8: -8.3 | BO8: -6.5 | BP8: -6.5 | BQ8: -6.7 | BR8: -6.8 | BS8: -7.0 | BT8: -7.2 | BU8: -7.5 | BV8: -7.7 | BW8: -8.0 | BX8: -8.0 | BY8: -8.3 | BZ8: -6.4 | CA8: -6.5 | CB8: -6.7 | CC8: -6.8 | CD8: -6.9 | CE8: -7.2 | CF8: -7.5 | CG8: -7.6 | CH8: -7.9 | CI8: -8.0 | CJ8: -8.2 | CK8: -6.2 | CL8: -6.4 | CM8: -6.6 | CN8: -6.7 | CO8: -6.8 | CP8: -7.1 | CQ8: -7.4 | CR8: -7.4 | CS8: -7.8 | CT8: -7.9 | CU8: -8.2 | CV8: -6.0 | CW8: -6.2 | CX8: -6.4 | CY8: -6.5 | CZ8: -6.5 | DA8: -6.7 | DB8: -7.0 | DC8: -7.2 | DD8: -7.6 | DE8: -7.8 | DF8: -8.0 | DG8: -5.9 | DH8: -6.0 | DI8: -6.3 | DJ8: -6.5 | DK8: -6.5 | DL8: -6.6 | DM8: -7.0 | DN8: -7.1 | DO8: -7.4 | DP8: -7.7 | DQ8: -8.0 | DR8: -5.6 | DS8: -5.8 | DT8: -6.0 | DU8: -6.1 | DV8: -6.2 | DW8: -6.5 | DX8: -6.8 | DY8: -6.9 | DZ8: -7.2 | EA8: -7.5 | EB8: -7.9 | EC8: -5.6 | ED8: -5.8 | EE8: -5.9 | EF8: -6.1 | EG8: -6.2 | EH8: -6.5 | EI8: -6.7 | EJ8: -6.8 | EK8: -7.2 | EL8: -7.5 | EM8: -7.8 | EN8: -5.3 | EO8: -5.5 | EP8: -5.7 | EQ8: -6.0 | ER8: -6.2 | ES8: -6.3 | ET8: -6.6 | EU8: -6.7 | EV8: -7.0 | EW8: -7.3 | EX8: -7.6 | EY8: -8.5 | EZ8: -8.4 | FA8: -8.3 | FB8: -8.2 | FC8: -8.1 | FD8: -8.2 | FE8: -8.4 | FF8: -8.3 | FG8: -8.6 | FH8: -8.6 | FI8: -8.8 | FJ8: -2.37E-05 | FK8: 5.32E-09 | FL8: -4.63E-11 | FM8: 9.51E-07 | FN8: -1.08E-09 | FO8: 2.02E-08 | FP8: 1 | FQ8: 2 | FR8: 2 | FS8: 3 | FT8: 4 | FU8: 2 | FV8: 1 | FZ8: 442 | GA8: 467 | GB8: 423 | GC8: 436 | GD8: 0.71 | GF8: 134 | GG8: 164 | GH8: 123 | GI8: 126 | GJ8: 128 | GK8: 130 | GL8: 132 | GM8: 133 | GN8: 135 | GO8: 138 | GP8: 140 | GQ8: 143 | GR8: 144 | GS8: 145 | GT8: 146 | GU8: 147 | GV8: 149 | GW8: 150 | GX8: 151 | GY8: 153 | GZ8: 155 | HA8: 157 | HB8: 160 | HD8: 48 | HF8: 354 | HG8: 459 | HH8: 68.9 | HI8: 26.2 | HJ8: 0.313 | HK8: 48 | HL8: 0.60 | HM8: 3.64 | HN8: 310/260 | HO8: 300/260 | HP8: -0.5 | HQ8: 0.999 | HR8: 0.999 | HS8: 0.999 | HT8: 0.999 | HU8: 0.999 | HV8: 0.999 | HW8: 0.999 | HX8: 0.999 | HY8: 0.999 | HZ8: 0.999 | IA8: 0.999 | IB8: 0.999 | IC8: 0.999 | ID8: 0.999 | IE8: 0.999 | IF8: 0.999 | IG8: 0.999 | IH8: 0.999 | II8: 0.999 | IJ8: 0.999 | IK8: 0.999 | IL8: 0.999 | IM8: 0.999 | IN8: 0.999 | IO8: 0.999 | IP8: 0.999 | IQ8: 0.999 | IR8: 0.998 | IS8: 0.997 | IT8: 0.993 | IU8: 0.984 | IV8: 0.967 | IW8: 0.935 | IX8: 0.883 | IY8: 0.809 | IZ8: 0.721 | JA8: 0.998 | JB8: 0.998 | JC8: 0.998 | JD8: 0.998 | JE8: 0.998 | JF8: 0.998 | JG8: 0.998 | JH8: 0.998 | JI8: 0.998 | JJ8: 0.998 | JK8: 0.998 | JL8: 0.998 | JM8: 0.998 | JN8: 0.998 | JO8: 0.998 | JP8: 0.998 | JQ8: 0.998 | JR8: 0.998 | JS8: 0.998 | JT8: 0.998 | JU8: 0.998 | JV8: 0.998 | JW8: 0.998 | JX8: 0.998 | JY8: 0.998 | JZ8: 0.998 | KA8: 0.998 | KB8: 0.996 | KC8: 0.994 | KD8: 0.986 | KE8: 0.968 | KF8: 0.935 | KG8: 0.874 | KH8: 0.779 | KI8: 0.654 | KJ8: 0.520 | KK8: PG RP | KL8: 110 | KM8: MA | KN8: H-FK90 | KO8: 459902 | KR8: (H-FK71) | KS8: 457903 | KT8: FCD10A | KU8: 459902 | KV8: K-PFK90 | KW8: 459900 | KX8: (N-FK58) | KY8: 456909
A9: ★★★ | B9: 5 | C9: H-FK95 | D9: 437951 | E9: 95.10 | F9: 94.66 | G9: 0.004595 | H9: 0.004628 | I9: 1.42310 | J9: 1.42566 | K9: 1.42846 | L9: 1.43091 | M9: 1.43134 | N9: 1.43170 | O9: 1.43306 | P9: 1.43396 | Q9: 1.43478 | R9: 1.43559 | S9: 1.43582 | T9: 1.43603 | U9: 1.43696 | V9: 1.43700 | W9: 1.43810 | X9: 1.44019 | Y9: 1.44044 | Z9: 1.44264 | AA9: 1.44466 | AB9: 1.44803 | AC9: 2.04831817E+00 | AD9: -4.48612591E-03 | AE9: 6.22248873E-03 | AF9: -7.98581030E-06 | AG9: 1.22118495E-05 | AH9: -7.39464344E-07 | AI9: 0.3069 | AJ9: 0.2394 | AK9: 0.5332 | AL9: 0.2550 | AM9: 0.2377 | AN9: 0.4754 | AO9: 0.0171 | AP9: 0.0475 | AQ9: -0.1544 | AR9: -0.0780 | AS9: -5.5 | AT9: -6.0 | AU9: -6.4 | AV9: -6.7 | AW9: -7.0 | AX9: -7.2 | AY9: -7.3 | AZ9: -7.3 | BA9: -7.3 | BB9: -7.4 | BC9: -7.5 | BD9: -5.3 | BE9: -5.8 | BF9: -6.2 | BG9: -6.5 | BH9: -6.8 | BI9: -7.0 | BJ9: -7.2 | BK9: -7.2 | BL9: -7.2 | BM9: -7.3 | BN9: -7.4 | BO9: -5.2 | BP9: -5.7 | BQ9: -6.0 | BR9: -6.4 | BS9: -6.7 | BT9: -6.9 | BU9: -7.1 | BV9: -7.1 | BW9: -7.1 | BX9: -7.2 | BY9: -7.2 | BZ9: -5.2 | CA9: -5.7 | CB9: -6.0 | CC9: -6.4 | CD9: -6.7 | CE9: -6.9 | CF9: -7.1 | CG9: -7.1 | CH9: -7.1 | CI9: -7.1 | CJ9: -7.2 | CK9: -5.1 | CL9: -5.6 | CM9: -5.9 | CN9: -6.3 | CO9: -6.6 | CP9: -6.8 | CQ9: -7.0 | CR9: -7.0 | CS9: -7.1 | CT9: -7.1 | CU9: -7.1 | CV9: -5.0 | CW9: -5.5 | CX9: -5.8 | CY9: -6.2 | CZ9: -6.4 | DA9: -6.7 | DB9: -6.9 | DC9: -6.9 | DD9: -7.0 | DE9: -7.0 | DF9: -7.0 | DG9: -4.9 | DH9: -5.3 | DI9: -5.7 | DJ9: -6.1 | DK9: -6.4 | DL9: -6.6 | DM9: -6.8 | DN9: -6.8 | DO9: -6.9 | DP9: -6.8 | DQ9: -6.9 | DR9: -4.8 | DS9: -5.1 | DT9: -5.5 | DU9: -5.8 | DV9: -6.2 | DW9: -6.5 | DX9: -6.7 | DY9: -6.7 | DZ9: -6.7 | EA9: -6.7 | EB9: -6.8 | EC9: -4.8 | ED9: -5.1 | EE9: -5.5 | EF9: -5.8 | EG9: -6.1 | EH9: -6.4 | EI9: -6.6 | EJ9: -6.7 | EK9: -6.7 | EL9: -6.7 | EM9: -6.7 | EN9: -4.5 | EO9: -4.9 | EP9: -5.3 | EQ9: -5.6 | ER9: -5.9 | ES9: -6.2 | ET9: -6.4 | EU9: -6.5 | EV9: -6.6 | EW9: -6.6 | EX9: -6.5 | EY9: -7.4 | EZ9: -7.5 | FA9: -7.6 | FB9: -7.7 | FC9: -7.8 | FD9: -7.9 | FE9: -8.0 | FF9: -7.9 | FG9: -7.9 | FH9: -7.8 | FI9: -7.7 | FJ9: -2.28E-05 | FK9: -4.73E-09 | FL9: 3.04E-11 | FM9: 6.79E-07 | FN9: -1.59E-10 | FO9: 1.98E-07 | FP9: 1 | FQ9: 3 | FR9: 2 | FS9: 3 | FT9: 4 | FU9: 3 | FV9: 1 | FZ9: 409 | GA9: 443 | GB9: 377 | GC9: 390 | GD9: 0.97 | GF9: 139 | GG9: 170 | GH9: 129 | GI9: 131 | GJ9: 132 | GK9: 134 | GL9: 134 | GM9: 137 | GN9: 140 | GO9: 140 | GP9: 143 | GQ9: 145 | GR9: 145 | GS9: 147 | GT9: 149 | GU9: 150 | GV9: 152 | GW9: 154 | GX9: 156 | GY9: 159 | GZ9: 160 | HA9: 164 | HB9: 168 | HD9: 45 | HF9: 358 | HG9: 449 | HH9: 71.4 | HI9: 26.8 | HJ9: 0.333 | HK9: 32 | HL9: 0.59 | HM9: 3.56 | HN9: 330/280 | HO9: 326/280 | HP9: -3.2 | HQ9: 0.999 | HR9: 0.999 | HS9: 0.999 | HT9: 0.999 | HU9: 0.999 | HV9: 0.999 | HW9: 0.999 | HX9: 0.999 | HY9: 0.999 | HZ9: 0.999 | IA9: 0.999 | IB9: 0.999 | IC9: 0.999 | ID9: 0.999 | IE9: 0.999 | IF9: 0.999 | IG9: 0.999 | IH9: 0.999 | II9: 0.999 | IJ9: 0.999 | IK9: 0.998 | IL9: 0.998 | IM9: 0.998 | IN9: 0.998 | IO9: 0.998 | IP9: 0.998 | IQ9: 0.997 | IR9: 0.994 | IS9: 0.986 | IT9: 0.965 | IU9: 0.925 | IV9: 0.845 | IW9: 0.716 | IX9: 0.535 | IY9: 0.367 | IZ9: 0.205 | JA9: 0.998 | JB9: 0.998 | JC9: 0.998 | JD9: 0.998 | JE9: 0.998 | JF9: 0.998 | JG9: 0.998 | JH9: 0.998 | JI9: 0.998 | JJ9: 0.998 | JK9: 0.998 | JL9: 0.998 | JM9: 0.998 | JN9: 0.998 | JO9: 0.998 | JP9: 0.998 | JQ9: 0.998 | JR9: 0.998 | JS9: 0.998 | JT9: 0.998 | JU9: 0.997 | JV9: 0.997 | JW9: 0.997 | JX9: 0.997 | JY9: 0.997 | JZ9: 0.997 | KA9: 0.995 | KB9: 0.988 | KC9: 0.973 | KD9: 0.932 | KE9: 0.856 | KF9: 0.714 | KG9: 0.513 | KH9: 0.286 | KI9: 0.135 | KJ9: 0.042 | KK9: PG RP | KL9: 114 | KM9: MA | KN9: H-FK95 | KO9: 437951 | KP9: (S-FPL53) | KQ9: 439950 | KR9: (H-FK95N) | KS9: 438945 | KT9: FCD100 | KU9: 437951 | KV9: (K-CaFK95) | KW9: 434950
A10: ★★ | B10: 6 | C10: H-QK3L | D10: 487704 | E10: 70.44 | F10: 70.24 | G10: 0.006921 | H10: 0.006964 | I10: 1.46249 | J10: 1.46773 | K10: 1.47329 | L10: 1.47783 | M10: 1.47859 | N10: 1.47919 | O10: 1.48141 | P10: 1.48284 | Q10: 1.48411 | R10: 1.48535 | S10: 1.48569 | T10: 1.48601 | U10: 1.48743 | V10: 1.48749 | W10: 1.48914 | X10: 1.49227 | Y10: 1.49266 | Z10: 1.49594 | AA10: 1.49896 | AB10: 1.50405 | AC10: 2.18954799E+00 | AD10: -9.65634602E-03 | AE10: 8.30751905E-03 | AF10: 3.65672497E-04 | AG10: -3.54722930E-05 | AH10: 1.87564584E-06 | AI10: 0.3092 | AJ10: 0.2384 | AK10: 0.5303 | AL10: 0.2585 | AM10: 0.2369 | AN10: 0.4710 | AO10: 0.0009 | AP10: 0.0037 | AQ10: 0.0086 | AR10: -0.0002 | AS10: -1.9 | AT10: -1.9 | AU10: -1.9 | AV10: -1.8 | AW10: -1.8 | AX10: -1.7 | AY10: -1.6 | AZ10: -1.4 | BA10: -1.4 | BB10: -1.2 | BC10: -1.2 | BD10: -1.8 | BE10: -1.8 | BF10: -1.8 | BG10: -1.8 | BH10: -1.7 | BI10: -1.6 | BJ10: -1.5 | BK10: -1.3 | BL10: -1.1 | BM10: -1.0 | BN10: -0.9 | BO10: -1.8 | BP10: -1.7 | BQ10: -1.7 | BR10: -1.7 | BS10: -1.7 | BT10: -1.6 | BU10: -1.4 | BV10: -1.2 | BW10: -1.0 | BX10: -0.9 | BY10: -0.9 | BZ10: -1.8 | CA10: -1.7 | CB10: -1.7 | CC10: -1.7 | CD10: -1.6 | CE10: -1.5 | CF10: -1.4 | CG10: -1.2 | CH10: -1.0 | CI10: -0.9 | CJ10: -0.8 | CK10: -1.8 | CL10: -1.7 | CM10: -1.7 | CN10: -1.6 | CO10: -1.6 | CP10: -1.5 | CQ10: -1.4 | CR10: -1.2 | CS10: -1.0 | CT10: -0.9 | CU10: -0.8 | CV10: -1.7 | CW10: -1.6 | CX10: -1.6 | CY10: -1.6 | CZ10: -1.5 | DA10: -1.5 | DB10: -1.3 | DC10: -1.1 | DD10: -0.9 | DE10: -0.8 | DF10: -0.7 | DG10: -1.6 | DH10: -1.5 | DI10: -1.5 | DJ10: -1.5 | DK10: -1.4 | DL10: -1.3 | DM10: -1.2 | DN10: -1.0 | DO10: -0.8 | DP10: -0.6 | DQ10: -0.5 | DR10: -1.3 | DS10: -1.3 | DT10: -1.3 | DU10: -1.3 | DV10: -1.2 | DW10: -1.0 | DX10: -0.9 | DY10: -0.8 | DZ10: -0.7 | EA10: -0.7 | EB10: -0.5 | EC10: -1.3 | ED10: -1.3 | EE10: -1.3 | EF10: -1.2 | EG10: -1.2 | EH10: -1.0 | EI10: -0.9 | EJ10: -0.8 | EK10: -0.7 | EL10: -0.6 | EM10: -0.5 | EN10: -1.2 | EO10: -1.2 | EP10: -1.2 | EQ10: -1.1 | ER10: -1.0 | ES10: -0.9 | ET10: -0.8 | EU10: -0.7 | EV10: -0.5 | EW10: -0.4 | EX10: -0.3 | EY10: -4.2 | EZ10: -3.7 | FA10: -3.4 | FB10: -3.1 | FC10: -2.9 | FD10: -2.6 | FE10: -2.4 | FF10: -2.1 | FG10: -1.8 | FH10: -1.6 | FI10: -1.5 | FJ10: -8.43E-06 | FK10: 1.76E-08 | FL10: -1.61E-11 | FM10: 4.36E-07 | FN10: -4.66E-11 | FO10: 1.20E-01 | FP10: 1 | FQ10: 3 | FR10: 4 | FS10: 4 | FT10: 1 | FU10: 1 | FV10: 1 | FZ10: 500 | GA10: 580 | GB10: 424 | GC10: 463 | GD10: 1.11 | GF10: 88 | GG10: 98 | GH10: 87 | GI10: 88 | GJ10: 89 | GK10: 90 | GL10: 91 | GM10: 92 | GN10: 92 | GO10: 93 | GP10: 93 | GQ10: 94 | GR10: 94 | GS10: 95 | GT10: 96 | GU10: 96 | GV10: 97 | GW10: 97 | GX10: 98 | GY10: 99 | GZ10: 100 | HA10: 101 | HB10: 102 | HD10: 90 | HF10: 457 | HG10: 109 | HH10: 61.9 | HI10: 25.3 | HJ10: 0.225 | HK10: 50 | HL10: 2.71 | HM10: 2.48 | HN10: 300/265 | HO10: 295/265 | HP10: -10.9 | HQ10: 0.925 | HR10: 0.943 | HS10: 0.986 | HT10: 0.995 | HU10: 0.999 | HV10: 0.999 | HW10: 0.999 | HX10: 0.999 | HY10: 0.999 | HZ10: 0.999 | IA10: 0.999 | IB10: 0.999 | IC10: 0.999 | ID10: 0.999 | IE10: 0.999 | IF10: 0.999 | IG10: 0.999 | IH10: 0.999 | II10: 0.999 | IJ10: 0.999 | IK10: 0.999 | IL10: 0.999 | IM10: 0.999 | IN10: 0.999 | IO10: 0.999 | IP10: 0.999 | IQ10: 0.999 | IR10: 0.999 | IS10: 0.998 | IT10: 0.996 | IU10: 0.989 | IV10: 0.987 | IW10: 0.965 | IX10: 0.920 | IY10: 0.813 | IZ10: 0.620 | JA10: 0.856 | JB10: 0.889 | JC10: 0.972 | JD10: 0.990 | JE10: 0.998 | JF10: 0.998 | JG10: 0.998 | JH10: 0.998 | JI10: 0.998 | JJ10: 0.998 | JK10: 0.998 | JL10: 0.998 | JM10: 0.998 | JN10: 0.998 | JO10: 0.998 | JP10: 0.998 | JQ10: 0.998 | JR10: 0.998 | JS10: 0.998 | JT10: 0.998 | JU10: 0.998 | JV10: 0.998 | JW10: 0.998 | JX10: 0.998 | JY10: 0.998 | JZ10: 0.998 | KA10: 0.998 | KB10: 0.998 | KC10: 0.996 | KD10: 0.992 | KE10: 0.979 | KF10: 0.975 | KG10: 0.932 | KH10: 0.846 | KI10: 0.661 | KJ10: 0.384 | KK10: PG RP | KL10: 20 | KM10: MA | KN10: H-QK3L | KO10: 487704 | KP10: S-FSL5 | KQ10: 487702 | KR10: H-QK3L | KS10: 487704 | KT10: FC5 | KU10: 487704 | KV10: K-FK5 | KW10: 487704 | KX10: N-FK5 | KY10: 487704
A11: ★★ | B11: 7 | C11: H-PK60 | D11: 593670 | E11: 67.00 | F11: 66.74 | G11: 0.008858 | H11: 0.008924 | I11: 1.56575 | J11: 1.57107 | K11: 1.57682 | L11: 1.58173 | M11: 1.58259 | N11: 1.58329 | O11: 1.58591 | P11: 1.58765 | Q11: 1.58923 | R11: 1.59078 | S11: 1.59121 | T11: 1.59162 | U11: 1.59341 | V11: 1.59349 | W11: 1.59561 | X11: 1.59964 | Y11: 1.60014 | Z11: 1.60439 | AA11: 1.60831 | AB11: 1.61494 | AC11: 2.50540910E+00 | AD11: -1.03738928E-02 | AE11: 1.20696135E-02 | AF11: 3.48394725E-04 | AG11: -2.40306361E-05 | AH11: 1.23924095E-06 | AI11: 0.3059 | AJ11: 0.2393 | AK11: 0.5362 | AL11: 0.2555 | AM11: 0.2376 | AN11: 0.4762 | AO11: 0.0017 | AP11: 0.0039 | AQ11: -0.0192 | AR11: -0.0114 | AS11: -1.8 | AT11: -1.9 | AU11: -2.0 | AV11: -2.1 | AW11: -2.1 | AX11: -2.1 | AY11: -2.1 | AZ11: -2.2 | BA11: -2.1 | BB11: -2.1 | BC11: -2.1 | BD11: -1.7 | BE11: -1.8 | BF11: -1.9 | BG11: -1.9 | BH11: -2.0 | BI11: -2.0 | BJ11: -2.0 | BK11: -2.0 | BL11: -2.0 | BM11: -2.0 | BN11: -2.0 | BO11: -1.5 | BP11: -1.6 | BQ11: -1.8 | BR11: -1.8 | BS11: -1.9 | BT11: -1.9 | BU11: -1.9 | BV11: -2.0 | BW11: -1.9 | BX11: -1.9 | BY11: -1.9 | BZ11: -1.5 | CA11: -1.6 | CB11: -1.7 | CC11: -1.8 | CD11: -1.9 | CE11: -1.9 | CF11: -1.9 | CG11: -2.0 | CH11: -1.9 | CI11: -1.9 | CJ11: -1.9 | CK11: -1.5 | CL11: -1.6 | CM11: -1.7 | CN11: -1.8 | CO11: -1.9 | CP11: -1.9 | CQ11: -1.9 | CR11: -2.0 | CS11: -1.9 | CT11: -1.9 | CU11: -1.9 | CV11: -1.4 | CW11: -1.5 | CX11: -1.6 | CY11: -1.7 | CZ11: -1.8 | DA11: -1.8 | DB11: -1.8 | DC11: -1.9 | DD11: -1.8 | DE11: -1.9 | DF11: -1.9 | DG11: -1.3 | DH11: -1.4 | DI11: -1.4 | DJ11: -1.6 | DK11: -1.7 | DL11: -1.6 | DM11: -1.6 | DN11: -1.7 | DO11: -1.8 | DP11: -1.9 | DQ11: -1.9 | DR11: -1.1 | DS11: -1.2 | DT11: -1.3 | DU11: -1.4 | DV11: -1.4 | DW11: -1.4 | DX11: -1.4 | DY11: -1.5 | DZ11: -1.4 | EA11: -1.4 | EB11: -1.4 | EC11: -1.1 | ED11: -1.2 | EE11: -1.3 | EF11: -1.4 | EG11: -1.4 | EH11: -1.4 | EI11: -1.4 | EJ11: -1.5 | EK11: -1.4 | EL11: -1.4 | EM11: -1.4 | EN11: -0.9 | EO11: -1.0 | EP11: -1.1 | EQ11: -1.1 | ER11: -1.2 | ES11: -1.2 | ET11: -1.1 | EU11: -1.2 | EV11: -1.1 | EW11: -1.1 | EX11: -1.2 | EY11: -4.1 | EZ11: -3.8 | FA11: -3.5 | FB11: -3.4 | FC11: -3.3 | FD11: -3.1 | FE11: -3.0 | FF11: -3.0 | FG11: -2.8 | FH11: -2.7 | FI11: -2.6 | FJ11: -7.70E-06 | FK11: 8.43E-09 | FL11: -1.72E-11 | FM11: 2.66E-07 | FN11: 1.07E-10 | FO11: 2.75E-01 | FP11: 1 | FQ11: 1 | FR11: 1 | FS11: 4 | FT11: 1 | FU11: 2 | FV11: 2 | FZ11: 509 | GA11: 538 | GB11: 481 | GC11: 502 | GD11: 0.86 | GF11: 87 | GG11: 113 | GH11: 79 | GI11: 81 | GJ11: 85 | GK11: 87 | GL11: 89 | GM11: 90 | GN11: 91 | GO11: 93 | GP11: 93 | GQ11: 95 | GR11: 96 | GS11: 96 | GT11: 98 | GU11: 100 | GV11: 102 | GW11: 102 | GX11: 103 | GY11: 104 | GZ11: 106 | HA11: 106 | HB11: 108 | HD11: 115 | HF11: 426 | HG11: 299 | HH11: 80.4 | HI11: 31.0 | HJ11: 0.297 | HK11: 57 | HL11: 1.30 | HM11: 3.27 | HN11: 340/265 | HO11: 328/264 | HP11: -1.8 | HQ11: 0.915 | HR11: 0.947 | HS11: 0.977 | HT11: 0.990 | HU11: 0.999 | HV11: 0.999 | HW11: 0.999 | HX11: 0.999 | HY11: 0.999 | HZ11: 0.999 | IA11: 0.999 | IB11: 0.999 | IC11: 0.999 | ID11: 0.999 | IE11: 0.999 | IF11: 0.999 | IG11: 0.999 | IH11: 0.999 | II11: 0.999 | IJ11: 0.999 | IK11: 0.999 | IL11: 0.998 | IM11: 0.996 | IN11: 0.994 | IO11: 0.992 | IP11: 0.990 | IQ11: 0.985 | IR11: 0.978 | IS11: 0.967 | IT11: 0.945 | IU11: 0.908 | IV11: 0.848 | IW11: 0.762 | IX11: 0.657 | IY11: 0.542 | IZ11: 0.422 | JA11: 0.837 | JB11: 0.897 | JC11: 0.955 | JD11: 0.980 | JE11: 0.998 | JF11: 0.998 | JG11: 0.998 | JH11: 0.998 | JI11: 0.998 | JJ11: 0.998 | JK11: 0.998 | JL11: 0.998 | JM11: 0.998 | JN11: 0.998 | JO11: 0.998 | JP11: 0.998 | JQ11: 0.998 | JR11: 0.998 | JS11: 0.998 | JT11: 0.998 | JU11: 0.998 | JV11: 0.995 | JW11: 0.992 | JX11: 0.988 | JY11: 0.984 | JZ11: 0.980 | KA11: 0.972 | KB11: 0.952 | KC11: 0.930 | KD11: 0.889 | KE11: 0.821 | KF11: 0.716 | KG11: 0.579 | KH11: 0.433 | KI11: 0.297 | KJ11: 0.182 | KK11: PG RP | KL11: 125 | KM11: A | KN11: H-PK60 | KO11: 593670 | KP11: (S-FPM2) | KQ11: 595677 | KR11: H-ZPK3 | KS11: 593673 | KT11: PCD51 | KU11: 593670 | KV11: (K-PSK400) | KW11: 595678
A12: ※ | B12: 8 | C12: H-PK60A | D12: 593670 | E12: 67.00 | F12: 66.74 | G12: 0.008858 | H12: 0.008924 | L12: 1.58173 | M12: 1.58257 | N12: 1.58326 | O12: 1.58588 | P12: 1.58763 | Q12: 1.58921 | R12: 1.59078 | S12: 1.59121 | T12: 1.59162 | U12: 1.59341 | V12: 1.59349 | W12: 1.59561 | X12: 1.59964 | Y12: 1.60014 | Z12: 1.60440 | AA12: 1.60833 | AB12: 1.61496 | AC12: 2.50316750E+00 | AD12: -9.41524451E-03 | AE12: 1.37151213E-02 | AF12: -1.71470005E-04 | AG12: 4.91628159E-05 | AH12: -2.48523874E-06 | AI12: 0.3059 | AJ12: 0.2393 | AK12: 0.5374 | AL12: 0.2555 | AM12: 0.2376 | AN12: 0.4774 | AO12: 0.0017 | AP12: 0.0051 | AQ12: -0.0158 | AR12: -0.0080 | AS12: -2.8 | AT12: -2.5 | AU12: -2.4 | AV12: -2.2 | AW12: -2.2 | AX12: -2.0 | AY12: -1.9 | AZ12: -1.8 | BA12: -1.8 | BB12: -1.7 | BC12: -1.6 | BD12: -2.6 | BE12: -2.4 | BF12: -2.4 | BG12: -2.2 | BH12: -2.1 | BI12: -1.9 | BJ12: -1.8 | BK12: -1.7 | BL12: -1.6 | BM12: -1.5 | BN12: -1.5 | BO12: -2.4 | BP12: -2.2 | BQ12: -2.1 | BR12: -2.0 | BS12: -1.9 | BT12: -1.7 | BU12: -1.6 | BV12: -1.5 | BW12: -1.4 | BX12: -1.3 | BY12: -1.3 | BZ12: -2.3 | CA12: -2.2 | CB12: -2.1 | CC12: -2.0 | CD12: -1.9 | CE12: -1.6 | CF12: -1.5 | CG12: -1.5 | CH12: -1.3 | CI12: -1.3 | CJ12: -1.3 | CK12: -2.3 | CL12: -2.2 | CM12: -2.1 | CN12: -2.0 | CO12: -1.9 | CP12: -1.6 | CQ12: -1.5 | CR12: -1.5 | CS12: -1.3 | CT12: -1.3 | CU12: -1.3 | CV12: -2.1 | CW12: -2.0 | CX12: -1.9 | CY12: -1.8 | CZ12: -1.7 | DA12: -1.5 | DB12: -1.4 | DC12: -1.3 | DD12: -1.2 | DE12: -1.2 | DF12: -1.1 | DG12: -1.9 | DH12: -1.8 | DI12: -1.6 | DJ12: -1.5 | DK12: -1.4 | DL12: -1.4 | DM12: -1.3 | DN12: -1.1 | DO12: -1.1 | DP12: -1.1 | DQ12: -1.0 | DR12: -1.7 | DS12: -1.6 | DT12: -1.4 | DU12: -1.3 | DV12: -1.2 | DW12: -1.1 | DX12: -1.0 | DY12: -0.9 | DZ12: -0.8 | EA12: -0.8 | EB12: -0.7 | EC12: -1.6 | ED12: -1.4 | EE12: -1.3 | EF12: -1.2 | EG12: -1.0 | EH12: -0.9 | EI12: -0.8 | EJ12: -0.8 | EK12: -0.7 | EL12: -0.7 | EM12: -0.5 | EN12: -1.2 | EO12: -1.0 | EP12: -0.9 | EQ12: -0.8 | ER12: -0.7 | ES12: -0.6 | ET12: -0.5 | EU12: -0.4 | EV12: -0.3 | EW12: -0.2 | EX12: -0.1 | EY12: -4.4 | EZ12: -4.1 | FA12: -3.7 | FB12: -3.6 | FC12: -3.3 | FD12: -2.8 | FE12: -2.6 | FF12: -2.5 | FG12: -2.2 | FH12: -2.1 | FI12: -2.0 | FJ12: -8.44E-06 | FK12: 1.49E-08 | FL12: -2.04E-11 | FM12: 7.08E-07 | FN12: -1.08E-10 | FO12: 6.42E-13 | FP12: 2 | FQ12: 2 | FR12: 1 | FS12: 4 | FT12: 1 | FU12: 2 | FV12: 1 | FZ12: 511 | GA12: 541 | GB12: 483 | GC12: 505 | GD12: 0.85 | GF12: 92 | GG12: 117 | GH12: 82 | GI12: 86 | GJ12: 88 | GK12: 89 | GL12: 90 | GM12: 91 | GN12: 93 | GO12: 94 | GP12: 96 | GQ12: 97 | GR12: 98 | GS12: 99 | GT12: 100 | GU12: 102 | GV12: 103 | GW12: 104 | GX12: 105 | GY12: 107 | GZ12: 109 | HA12: 112 | HB12: 115 | HF12: 466 | HG12: 250 | HH12: 88.2 | HI12: 34.5 | HJ12: 0.278 | HL12: 1.38 | HM12: 3.16 | HN12: 340/270 | HO12: 328/267 | HP12: -1.9 | HQ12: 0.958 | HR12: 0.978 | HS12: 0.991 | HT12: 0.996 | HU12: 0.999 | HV12: 0.999 | HW12: 0.999 | HX12: 0.999 | HY12: 0.999 | HZ12: 0.999 | IA12: 0.999 | IB12: 0.999 | IC12: 0.999 | ID12: 0.999 | IE12: 0.999 | IF12: 0.999 | IG12: 0.999 | IH12: 0.999 | II12: 0.999 | IJ12: 0.999 | IK12: 0.998 | IL12: 0.997 | IM12: 0.997 | IN12: 0.996 | IO12: 0.995 | IP12: 0.993 | IQ12: 0.989 | IR12: 0.983 | IS12: 0.968 | IT12: 0.944 | IU12: 0.902 | IV12: 0.838 | IW12: 0.750 | IX12: 0.649 | IY12: 0.538 | IZ12: 0.424 | JA12: 0.917 | JB12: 0.956 | JC12: 0.983 | JD12: 0.991 | JE12: 0.997 | JF12: 0.998 | JG12: 0.998 | JH12: 0.998 | JI12: 0.998 | JJ12: 0.998 | JK12: 0.998 | JL12: 0.998 | JM12: 0.998 | JN12: 0.998 | JO12: 0.998 | JP12: 0.998 | JQ12: 0.998 | JR12: 0.998 | JS12: 0.998 | JT12: 0.997 | JU12: 0.996 | JV12: 0.995 | JW12: 0.994 | JX12: 0.993 | JY12: 0.990 | JZ12: 0.986 | KA12: 0.979 | KB12: 0.965 | KC12: 0.938 | KD12: 0.891 | KE12: 0.814 | KF12: 0.703 | KG12: 0.563 | KH12: 0.421 | KI12: 0.289 | KJ12: 0.180 | KK12: PG RP | KL12: 125 | KM12: A | KN12: H-PK60A | KO12: 593670 | KP12: (S-FPM2) | KQ12: 595677 | KR12: H-ZPK3 | KS12: 593673 | KT12: PCD51 | KU12: 593670 | KV12: (K-PSK400) | KW12: 595678
A13: ★★★ | B13: 9 | C13: H-PK62A | D13: 618634 | E13: 63.39 | F13: 63.12 | G13: 0.009749 | H13: 0.009828 | I13: 1.59079 | J13: 1.59567 | K13: 1.60096 | L13: 1.60561 | M13: 1.60646 | N13: 1.60715 | O13: 1.60983 | P13: 1.61167 | Q13: 1.61335 | R13: 1.61503 | S13: 1.61550 | T13: 1.61594 | U13: 1.61791 | V13: 1.61800 | W13: 1.62033 | X13: 1.62478 | Y13: 1.62533 | Z13: 1.63004 | AA13: 1.63439 | AB13: 1.64180 | AC13: 2.57978592E+00 | AD13: -9.52472897E-03 | AE13: 1.26301504E-02 | AF13: 8.06546409E-04 | AG13: -9.53388389E-05 | AH13: 5.37975011E-06 | AI13: 0.3046 | AJ13: 0.2390 | AK13: 0.5395 | AL13: 0.2544 | AM13: 0.2371 | AN13: 0.4792 | AO13: 0.0012 | AP13: 0.0012 | AQ13: -0.0390 | AR13: -0.0191 | AS13: -2.6 | AT13: -2.7 | AU13: -2.8 | AV13: -2.8 | AW13: -2.8 | AX13: -2.8 | AY13: -2.8 | AZ13: -2.9 | BA13: -2.8 | BB13: -2.9 | BC13: -2.8 | BD13: -2.4 | BE13: -2.5 | BF13: -2.6 | BG13: -2.6 | BH13: -2.6 | BI13: -2.6 | BJ13: -2.6 | BK13: -2.6 | BL13: -2.6 | BM13: -2.6 | BN13: -2.6 | BO13: -2.3 | BP13: -2.4 | BQ13: -2.4 | BR13: -2.5 | BS13: -2.5 | BT13: -2.5 | BU13: -2.5 | BV13: -2.5 | BW13: -2.5 | BX13: -2.5 | BY13: -2.5 | BZ13: -2.2 | CA13: -2.3 | CB13: -2.4 | CC13: -2.4 | CD13: -2.4 | CE13: -2.4 | CF13: -2.5 | CG13: -2.5 | CH13: -2.5 | CI13: -2.5 | CJ13: -2.4 | CK13: -2.2 | CL13: -2.3 | CM13: -2.4 | CN13: -2.4 | CO13: -2.4 | CP13: -2.4 | CQ13: -2.5 | CR13: -2.5 | CS13: -2.5 | CT13: -2.4 | CU13: -2.4 | CV13: -2.1 | CW13: -2.2 | CX13: -2.3 | CY13: -2.3 | CZ13: -2.4 | DA13: -2.4 | DB13: -2.4 | DC13: -2.4 | DD13: -2.4 | DE13: -2.4 | DF13: -2.4 | DG13: -2.0 | DH13: -2.1 | DI13: -2.2 | DJ13: -2.2 | DK13: -2.3 | DL13: -2.3 | DM13: -2.3 | DN13: -2.3 | DO13: -2.3 | DP13: -2.4 | DQ13: -2.4 | DR13: -1.7 | DS13: -1.8 | DT13: -1.9 | DU13: -1.9 | DV13: -2.0 | DW13: -2.0 | DX13: -2.1 | DY13: -2.1 | DZ13: -2.1 | EA13: -2.1 | EB13: -2.1 | EC13: -1.7 | ED13: -1.8 | EE13: -1.9 | EF13: -1.9 | EG13: -2.0 | EH13: -2.0 | EI13: -2.0 | EJ13: -2.0 | EK13: -2.0 | EL13: -2.0 | EM13: -2.1 | EN13: -1.4 | EO13: -1.7 | EP13: -1.8 | EQ13: -1.8 | ER13: -1.8 | ES13: -1.6 | ET13: -1.6 | EU13: -1.5 | EV13: -1.6 | EW13: -1.6 | EX13: -1.6 | EY13: -4.8 | EZ13: -4.5 | FA13: -4.3 | FB13: -4.0 | FC13: -3.8 | FD13: -3.6 | FE13: -3.6 | FF13: -3.5 | FG13: -3.4 | FH13: -3.2 | FI13: -3.1 | FJ13: -9.02E-06 | FK13: 9.55E-09 | FL13: -2.00E-11 | FM13: 3.79E-07 | FN13: 3.28E-11 | FO13: 2.20E-01 | FP13: 1 | FQ13: 2 | FR13: 1 | FS13: 4 | FT13: 1 | FU13: 2 | FV13: 1 | FZ13: 616 | GA13: 662 | GB13: 557 | GC13: 598 | GD13: 1.15 | GF13: 94 | GG13: 111 | GH13: 85 | GI13: 87 | GJ13: 89 | GK13: 90 | GL13: 90 | GM13: 91 | GN13: 91 | GO13: 92 | GP13: 93 | GQ13: 93 | GR13: 93 | GS13: 94 | GT13: 94 | GU13: 95 | GV13: 95 | GW13: 96 | GX13: 97 | GY13: 99 | GZ13: 100 | HA13: 104 | HB13: 105 | HD13: 117 | HF13: 391 | HG13: 320 | HH13: 71.1 | HI13: 27.0 | HJ13: 0.317 | HK13: 48 | HL13: 1.17 | HM13: 3.53 | HN13: 360/280 | HO13: 348/276 | HP13: -1.9 | HQ13: 0.930 | HR13: 0.953 | HS13: 0.980 | HT13: 0.990 | HU13: 0.999 | HV13: 0.999 | HW13: 0.999 | HX13: 0.999 | HY13: 0.999 | HZ13: 0.999 | IA13: 0.999 | IB13: 0.999 | IC13: 0.999 | ID13: 0.999 | IE13: 0.999 | IF13: 0.999 | IG13: 0.999 | IH13: 0.999 | II13: 0.999 | IJ13: 0.999 | IK13: 0.999 | IL13: 0.998 | IM13: 0.997 | IN13: 0.995 | IO13: 0.992 | IP13: 0.985 | IQ13: 0.971 | IR13: 0.948 | IS13: 0.911 | IT13: 0.849 | IU13: 0.759 | IV13: 0.641 | IW13: 0.506 | IX13: 0.369 | IY13: 0.241 | JA13: 0.865 | JB13: 0.908 | JC13: 0.960 | JD13: 0.980 | JE13: 0.998 | JF13: 0.998 | JG13: 0.998 | JH13: 0.998 | JI13: 0.998 | JJ13: 0.998 | JK13: 0.998 | JL13: 0.998 | JM13: 0.998 | JN13: 0.998 | JO13: 0.998 | JP13: 0.998 | JQ13: 0.998 | JR13: 0.998 | JS13: 0.998 | JT13: 0.998 | JU13: 0.998 | JV13: 0.996 | JW13: 0.994 | JX13: 0.990 | JY13: 0.984 | JZ13: 0.973 | KA13: 0.950 | KB13: 0.906 | KC13: 0.837 | KD13: 0.730 | KE13: 0.586 | KF13: 0.420 | KG13: 0.264 | KH13: 0.142 | KI13: 0.062 | KK13: PG RP | KL13: 64 | KM13: MA | KN13: H-PK62A | KO13: 618634 | KP13: S-PHM52 | KQ13: 618634 | KR13: H-ZPK1A | KS13: 618634 | KT13: PCD4 | KU13: 618634 | KV13: K-PSKn2 | KW13: 618634 | KX13: N-PSK53A | KY13: 618634
A14: ★★ | B14: 10 | C14: H-PK63 | D14: 603654 | E14: 65.44 | F14: 65.20 | G14: 0.009214 | H14: 0.009282 | I14: 1.57538 | J14: 1.58054 | K14: 1.58614 | L14: 1.59099 | M14: 1.59183 | N14: 1.59252 | O14: 1.59517 | P14: 1.59696 | Q14: 1.59858 | R14: 1.60019 | S14: 1.60064 | T14: 1.60106 | U14: 1.60292 | V14: 1.60300 | W14: 1.60520 | X14: 1.60940 | Y14: 1.60992 | Z14: 1.61435 | AA14: 1.61845 | AB14: 1.62538 | AC14: 2.53403512E+00 | AD14: -1.00840331E-02 | AE14: 1.24087634E-02 | AF14: 4.77201613E-04 | AG14: -4.35207709E-05 | AH14: 2.38050740E-06 | AI14: 0.3050 | AJ14: 0.2388 | AK14: 0.5372 | AL14: 0.2543 | AM14: 0.2370 | AN14: 0.4773 | AO14: 0.0018 | AP14: 0.0023 | AQ14: -0.0248 | AR14: -0.0126 | AS14: -3.8 | AT14: -3.7 | AU14: -3.7 | AV14: -3.7 | AW14: -3.7 | AX14: -3.7 | AY14: -3.6 | AZ14: -3.6 | BA14: -3.6 | BB14: -3.7 | BC14: -3.6 | BD14: -3.6 | BE14: -3.5 | BF14: -3.5 | BG14: -3.5 | BH14: -3.4 | BI14: -3.5 | BJ14: -3.5 | BK14: -3.6 | BL14: -3.6 | BM14: -3.5 | BN14: -3.6 | BO14: -3.5 | BP14: -3.4 | BQ14: -3.5 | BR14: -3.5 | BS14: -3.5 | BT14: -3.5 | BU14: -3.5 | BV14: -3.5 | BW14: -3.4 | BX14: -3.4 | BY14: -3.4 | BZ14: -3.5 | CA14: -3.4 | CB14: -3.5 | CC14: -3.5 | CD14: -3.5 | CE14: -3.5 | CF14: -3.4 | CG14: -3.4 | CH14: -3.4 | CI14: -3.4 | CJ14: -3.4 | CK14: -3.5 | CL14: -3.4 | CM14: -3.5 | CN14: -3.5 | CO14: -3.5 | CP14: -3.5 | CQ14: -3.4 | CR14: -3.4 | CS14: -3.4 | CT14: -3.4 | CU14: -3.4 | CV14: -3.4 | CW14: -3.3 | CX14: -3.3 | CY14: -3.4 | CZ14: -3.4 | DA14: -3.4 | DB14: -3.3 | DC14: -3.3 | DD14: -3.2 | DE14: -3.2 | DF14: -3.3 | DG14: -3.3 | DH14: -3.3 | DI14: -3.3 | DJ14: -3.4 | DK14: -3.4 | DL14: -3.4 | DM14: -3.3 | DN14: -3.1 | DO14: -3.0 | DP14: -3.1 | DQ14: -3.1 | DR14: -3.2 | DS14: -3.1 | DT14: -3.1 | DU14: -3.2 | DV14: -3.2 | DW14: -3.2 | DX14: -3.0 | DY14: -2.9 | DZ14: -2.8 | EA14: -2.8 | EB14: -2.8 | EC14: -3.1 | ED14: -3.1 | EE14: -3.1 | EF14: -3.2 | EG14: -3.2 | EH14: -3.2 | EI14: -3.0 | EJ14: -2.8 | EK14: -2.7 | EL14: -2.7 | EM14: -2.7 | EN14: -2.9 | EO14: -2.8 | EP14: -2.8 | EQ14: -2.9 | ER14: -2.9 | ES14: -2.8 | ET14: -2.8 | EU14: -2.7 | EV14: -2.6 | EW14: -2.6 | EX14: -2.6 | EY14: -6.1 | EZ14: -5.6 | FA14: -5.3 | FB14: -5.1 | FC14: -4.9 | FD14: -4.7 | FE14: -4.5 | FF14: -4.4 | FG14: -4.3 | FH14: -4.2 | FI14: -4.1 | FJ14: -1.10E-05 | FK14: 1.08E-08 | FL14: -2.38E-11 | FM14: 2.86E-07 | FN14: 3.72E-10 | FO14: 2.46E-01 | FP14: 1 | FQ14: 1 | FR14: 1 | FS14: 4 | FT14: 2 | FU14: 2 | FV14: 1 | FZ14: 604 | GA14: 639 | GB14: 561 | GC14: 588 | GD14: 0.48 | GF14: 93 | GG14: 110 | GH14: 73 | GI14: 76 | GJ14: 77 | GK14: 79 | GL14: 81 | GM14: 81 | GN14: 82 | GO14: 82 | GP14: 83 | GQ14: 83 | GR14: 84 | GS14: 84 | GT14: 84 | GU14: 85 | GV14: 86 | GW14: 87 | GX14: 87 | GY14: 89 | GZ14: 90 | HA14: 91 | HB14: 92 | HD14: 118 | HF14: 361 | HG14: 351 | HH14: 64.8 | HI14: 24.7 | HJ14: 0.309 | HK14: 42 | HL14: 1.05 | HM14: 3.64 | HN14: 345/275 | HO14: 333/274 | HP14: -2.6 | HQ14: 0.804 | HR14: 0.854 | HS14: 0.931 | HT14: 0.967 | HU14: 0.990 | HV14: 0.995 | HW14: 0.999 | HX14: 0.999 | HY14: 0.999 | HZ14: 0.999 | IA14: 0.999 | IB14: 0.999 | IC14: 0.999 | ID14: 0.999 | IE14: 0.999 | IF14: 0.999 | IG14: 0.999 | IH14: 0.999 | II14: 0.999 | IJ14: 0.999 | IK14: 0.999 | IL14: 0.999 | IM14: 0.997 | IN14: 0.994 | IO14: 0.990 | IP14: 0.984 | IQ14: 0.973 | IR14: 0.961 | IS14: 0.941 | IT14: 0.907 | IU14: 0.848 | IV14: 0.754 | IW14: 0.620 | IX14: 0.457 | IY14: 0.286 | IZ14: 0.143 | JA14: 0.646 | JB14: 0.730 | JC14: 0.867 | JD14: 0.935 | JE14: 0.980 | JF14: 0.990 | JG14: 0.998 | JH14: 0.998 | JI14: 0.998 | JJ14: 0.998 | JK14: 0.998 | JL14: 0.998 | JM14: 0.998 | JN14: 0.998 | JO14: 0.998 | JP14: 0.998 | JQ14: 0.998 | JR14: 0.998 | JS14: 0.998 | JT14: 0.998 | JU14: 0.998 | JV14: 0.998 | JW14: 0.994 | JX14: 0.988 | JY14: 0.981 | JZ14: 0.974 | KA14: 0.961 | KB14: 0.936 | KC14: 0.899 | KD14: 0.835 | KE14: 0.728 | KF14: 0.575 | KG14: 0.390 | KH14: 0.212 | KI14: 0.084 | KJ14: 0.022 | KK14: PG RP | KL14: 77 | KM14: MA | KN14: H-PK63 | KO14: 603654 | KP14: S-PHM53 | KQ14: 603655 | KR14: H-ZPK2A | KS14: 603655 | KV14: (K-PSK300) | KW14: 600656
A15: ★★ | B15: 11 | C15: H-PK65 | D15: 620639 | E15: 63.88 | F15: 63.58 | G15: 0.009705 | H15: 0.009787 | I15: 1.59263 | J15: 1.59750 | K15: 1.60283 | L15: 1.60756 | M15: 1.60841 | N15: 1.60912 | O15: 1.61182 | P15: 1.61366 | Q15: 1.61534 | R15: 1.61701 | S15: 1.61748 | T15: 1.61792 | U15: 1.61988 | V15: 1.61997 | W15: 1.62228 | X15: 1.62672 | Y15: 1.62727 | Z15: 1.63198 | AA15: 1.63633 | AB15: 1.64372 | AC15: 2.58545747E+00 | AD15: -9.52904974E-03 | AE15: 1.36602628E-02 | AF15: 3.41551059E-04 | AG15: -1.52997403E-05 | AH15: 7.30579296E-07 | AI15: 0.3050 | AJ15: 0.2380 | AK15: 0.5420 | AL15: 0.2544 | AM15: 0.2360 | AN15: 0.4813 | AO15: 0.0026 | AP15: 0.0045 | AQ15: -0.0367 | AR15: -0.0189 | AS15: -3.0 | AT15: -3.1 | AU15: -3.2 | AV15: -3.2 | AW15: -3.3 | AX15: -3.4 | AY15: -3.3 | AZ15: -3.3 | BA15: -3.4 | BB15: -3.4 | BC15: -3.5 | BD15: -3.0 | BE15: -3.1 | BF15: -3.0 | BG15: -3.2 | BH15: -3.2 | BI15: -3.3 | BJ15: -3.2 | BK15: -3.2 | BL15: -3.3 | BM15: -3.3 | BN15: -3.3 | BO15: -2.8 | BP15: -2.9 | BQ15: -3.0 | BR15: -3.0 | BS15: -3.1 | BT15: -3.2 | BU15: -3.1 | BV15: -3.2 | BW15: -3.2 | BX15: -3.2 | BY15: -3.3 | BZ15: -2.8 | CA15: -2.9 | CB15: -3.0 | CC15: -3.0 | CD15: -3.1 | CE15: -3.1 | CF15: -3.1 | CG15: -3.1 | CH15: -3.2 | CI15: -3.2 | CJ15: -3.3 | CK15: -2.7 | CL15: -2.8 | CM15: -2.9 | CN15: -2.9 | CO15: -3.0 | CP15: -3.0 | CQ15: -3.0 | CR15: -3.1 | CS15: -3.1 | CT15: -3.2 | CU15: -3.2 | CV15: -2.7 | CW15: -2.8 | CX15: -2.8 | CY15: -2.9 | CZ15: -2.9 | DA15: -3.0 | DB15: -3.0 | DC15: -3.1 | DD15: -3.1 | DE15: -3.2 | DF15: -3.2 | DG15: -2.5 | DH15: -2.6 | DI15: -2.7 | DJ15: -2.8 | DK15: -2.8 | DL15: -2.8 | DM15: -2.7 | DN15: -2.8 | DO15: -2.8 | DP15: -2.9 | DQ15: -3.0 | DR15: -2.3 | DS15: -2.3 | DT15: -2.4 | DU15: -2.4 | DV15: -2.5 | DW15: -2.5 | DX15: -2.4 | DY15: -2.4 | DZ15: -2.5 | EA15: -2.6 | EB15: -2.7 | EC15: -2.3 | ED15: -2.3 | EE15: -2.4 | EF15: -2.4 | EG15: -2.5 | EH15: -2.4 | EI15: -2.4 | EJ15: -2.4 | EK15: -2.5 | EL15: -2.6 | EM15: -2.7 | EN15: -2.0 | EO15: -2.1 | EP15: -2.1 | EQ15: -2.2 | ER15: -2.2 | ES15: -2.2 | ET15: -2.1 | EU15: -2.2 | EV15: -2.2 | EW15: -2.3 | EX15: -2.4 | EY15: -5.3 | EZ15: -5.0 | FA15: -4.8 | FB15: -4.5 | FC15: -4.4 | FD15: -4.2 | FE15: -4.1 | FF15: -4.1 | FG15: -4.0 | FH15: -4.0 | FI15: -3.9 | FJ15: -1.00E-05 | FK15: 9.01E-09 | FL15: -2.64E-11 | FM15: 3.58E-07 | FN15: 1.03E-10 | FO15: 2.54E-01 | FP15: 1 | FQ15: 3 | FR15: 1 | FS15: 4 | FT15: 1 | FU15: 2 | FV15: 1 | FZ15: 568 | GA15: 594 | GB15: 515 | GC15: 555 | GD15: 0.61 | GF15: 103 | GG15: 118 | GH15: 94 | GI15: 96 | GJ15: 97 | GK15: 98 | GL15: 99 | GM15: 99 | GN15: 100 | GO15: 100 | GP15: 102 | GQ15: 102 | GR15: 103 | GS15: 103 | GT15: 104 | GU15: 104 | GV15: 105 | GW15: 105 | GX15: 106 | GY15: 107 | GZ15: 108 | HA15: 109 | HB15: 110 | HD15: 90 | HF15: 420 | HG15: 315 | HH15: 77.8 | HI15: 29.5 | HJ15: 0.317 | HK15: 38 | HL15: 1.03 | HM15: 3.52 | HN15: 365/295 | HO15: 335/278 | HP15: -1.9 | HQ15: 0.957 | HR15: 0.979 | HS15: 0.995 | HT15: 0.999 | HU15: 0.999 | HV15: 0.999 | HW15: 0.999 | HX15: 0.999 | HY15: 0.999 | HZ15: 0.999 | IA15: 0.999 | IB15: 0.999 | IC15: 0.999 | ID15: 0.999 | IE15: 0.999 | IF15: 0.999 | IG15: 0.999 | IH15: 0.999 | II15: 0.999 | IJ15: 0.997 | IK15: 0.995 | IL15: 0.993 | IM15: 0.991 | IN15: 0.989 | IO15: 0.982 | IP15: 0.966 | IQ15: 0.943 | IR15: 0.897 | IS15: 0.821 | IT15: 0.711 | IU15: 0.577 | IV15: 0.437 | IW15: 0.320 | IX15: 0.235 | JA15: 0.916 | JB15: 0.958 | JC15: 0.990 | JD15: 0.998 | JE15: 0.998 | JF15: 0.998 | JG15: 0.998 | JH15: 0.998 | JI15: 0.998 | JJ15: 0.998 | JK15: 0.998 | JL15: 0.998 | JM15: 0.998 | JN15: 0.998 | JO15: 0.998 | JP15: 0.998 | JQ15: 0.998 | JR15: 0.998 | JS15: 0.998 | JT15: 0.992 | JU15: 0.986 | JV15: 0.980 | JW15: 0.974 | JX15: 0.967 | JY15: 0.952 | JZ15: 0.922 | KA15: 0.871 | KB15: 0.785 | KC15: 0.655 | KD15: 0.489 | KE15: 0.320 | KF15: 0.183 | KG15: 0.097 | KH15: 0.053 | KK15: PG RP | KL15: 82 | KM15: MA | KN15: H-PK65 | KO15: 620639 | KP15: (S-PHM52) | KQ15: 618634 | KR15: (H-ZPK1A) | KS15: 618634 | KT15: PCD40 | KU15: 620639 | KV15: (K-PSKn2) | KW15: 618634 | KX15: (N-PSK53A) | KY15: 618634
B16: 12 | C16: H-PK71 | D16: 569713 | E16: 71.30 | F16: 70.90 | G16: 0.007981 | H16: 0.008053 | L16: 1.55914 | M16: 1.55976 | N16: 1.56028 | O16: 1.56240 | P16: 1.56389 | Q16: 1.56527 | R16: 1.56665 | S16: 1.56703 | T16: 1.56739 | U16: 1.56900 | V16: 1.56907 | W16: 1.57097 | X16: 1.57463 | Y16: 1.57508 | Z16: 1.57898 | AA16: 1.58260 | AB16: 1.58869 | AC16: 2.42613257E+00 | AD16: -4.57004276E-03 | AE16: 1.39177172E-02 | AF16: -6.13250165E-04 | AG16: 1.09104778E-04 | AH16: -5.55700744E-06 | AI16: 0.3032 | AJ16: 0.2381 | AK16: 0.5450 | AL16: 0.2533 | AM16: 0.2359 | AN16: 0.4843 | AO16: 0.0077 | AP16: 0.0199 | AQ16: -0.0875 | AR16: -0.0390 | AS16: -9.4 | AT16: -9.5 | AU16: -9.6 | AV16: -9.8 | AW16: -10.0 | AX16: -10.1 | AY16: -10.3 | AZ16: -10.5 | BA16: -10.5 | BB16: -10.5 | BC16: -10.6 | BD16: -9.2 | BE16: -9.4 | BF16: -9.5 | BG16: -9.7 | BH16: -9.9 | BI16: -10.0 | BJ16: -10.1 | BK16: -10.3 | BL16: -10.3 | BM16: -10.3 | BN16: -10.4 | BO16: -9.1 | BP16: -9.3 | BQ16: -9.4 | BR16: -9.6 | BS16: -9.7 | BT16: -9.9 | BU16: -10.1 | BV16: -10.3 | BW16: -10.3 | BX16: -10.3 | BY16: -10.3 | BZ16: -9.0 | CA16: -9.2 | CB16: -9.3 | CC16: -9.5 | CD16: -9.6 | CE16: -9.9 | CF16: -9.9 | CG16: -10.1 | CH16: -10.2 | CI16: -10.3 | CJ16: -10.3 | CK16: -8.9 | CL16: -9.1 | CM16: -9.2 | CN16: -9.4 | CO16: -9.6 | CP16: -9.8 | CQ16: -9.8 | CR16: -10.0 | CS16: -10.1 | CT16: -10.2 | CU16: -10.3 | CV16: -8.8 | CW16: -9.0 | CX16: -9.1 | CY16: -9.3 | CZ16: -9.5 | DA16: -9.7 | DB16: -9.8 | DC16: -9.9 | DD16: -9.9 | DE16: -10.1 | DF16: -10.4 | DG16: -8.4 | DH16: -8.8 | DI16: -8.9 | DJ16: -9.2 | DK16: -9.4 | DL16: -9.7 | DM16: -9.8 | DN16: -9.8 | DO16: -9.9 | DP16: -10.0 | DQ16: -10.3 | DR16: -8.2 | DS16: -8.5 | DT16: -8.8 | DU16: -8.9 | DV16: -9.3 | DW16: -9.5 | DX16: -9.6 | DY16: -9.8 | DZ16: -10.0 | EA16: -10.1 | EB16: -10.1 | EC16: -8.1 | ED16: -8.3 | EE16: -8.6 | EF16: -8.9 | EG16: -9.2 | EH16: -9.4 | EI16: -9.5 | EJ16: -9.4 | EK16: -9.7 | EL16: -9.8 | EM16: -10.0 | EN16: -7.9 | EO16: -8.3 | EP16: -8.6 | EQ16: -8.9 | ER16: -9.1 | ES16: -9.3 | ET16: -9.4 | EU16: -9.4 | EV16: -9.6 | EW16: -9.7 | EX16: -9.7 | EY16: -11.4 | EZ16: -11.2 | FA16: -11.0 | FB16: -11.0 | FC16: -11.0 | FD16: -11.0 | FE16: -10.9 | FF16: -10.9 | FG16: -11.0 | FH16: -11.0 | FI16: -11.0 | FJ16: -2.55E-05 | FK16: 4.39E-09 | FL16: -1.28E-11 | FM16: 6.70E-07 | FN16: -7.70E-10 | FO16: 3.16E-08 | FP16: 1 | FQ16: 1 | FR16: 1 | FS16: 1 | FT16: 1 | FU16: 2 | FV16: 1 | FZ16: 483 | GA16: 514 | GB16: 442 | GC16: 463 | GD16: 0.46 | GF16: 126 | GG16: 152 | GH16: 118 | GI16: 119 | GJ16: 120 | GK16: 121 | GL16: 124 | GM16: 124 | GN16: 126 | GO16: 128 | GP16: 129 | GQ16: 131 | GR16: 132 | GS16: 132 | GT16: 134 | GU16: 135 | GV16: 137 | GW16: 138 | GX16: 140 | GY16: 141 | GZ16: 144 | HA16: 147 | HB16: 149 | HD16: 65 | HF16: 359 | HG16: 435 | HH16: 65.5 | HI16: 25.0 | HJ16: 0.313 | HL16: 0.23 | HM16: 4.27 | HN16: 330/275 | HO16: 318/267 | HP16: -1.9 | HQ16: 0.999 | HR16: 0.999 | HS16: 0.999 | HT16: 0.999 | HU16: 0.999 | HV16: 0.999 | HW16: 0.999 | HX16: 0.999 | HY16: 0.999 | HZ16: 0.999 | IA16: 0.999 | IB16: 0.999 | IC16: 0.999 | ID16: 0.999 | IE16: 0.999 | IF16: 0.999 | IG16: 0.999 | IH16: 0.999 | II16: 0.999 | IJ16: 0.999 | IK16: 0.999 | IL16: 0.999 | IM16: 0.999 | IN16: 0.999 | IO16: 0.999 | IP16: 0.997 | IQ16: 0.995 | IR16: 0.991 | IS16: 0.982 | IT16: 0.970 | IU16: 0.933 | IV16: 0.879 | IW16: 0.769 | IX16: 0.679 | IY16: 0.565 | IZ16: 0.435 | JA16: 0.998 | JB16: 0.998 | JC16: 0.998 | JD16: 0.998 | JE16: 0.998 | JF16: 0.998 | JG16: 0.998 | JH16: 0.998 | JI16: 0.998 | JJ16: 0.998 | JK16: 0.998 | JL16: 0.998 | JM16: 0.998 | JN16: 0.998 | JO16: 0.998 | JP16: 0.998 | JQ16: 0.998 | JR16: 0.998 | JS16: 0.998 | JT16: 0.998 | JU16: 0.998 | JV16: 0.998 | JW16: 0.998 | JX16: 0.998 | JY16: 0.998 | JZ16: 0.994 | KA16: 0.990 | KB16: 0.983 | KC16: 0.965 | KD16: 0.940 | KE16: 0.871 | KF16: 0.773 | KG16: 0.592 | KH16: 0.461 | KI16: 0.319 | KJ16: 0.189 | KK16: PG RP | KL16: 136 | KM16: B | KN16: H-PK71 | KO16: 569713 | KR16: H-ZPK7 | KS16: 569713 | KT16: (FCD615) | KU16: 571716 | KV16: K-GFK70 | KW16: 569713
B17: 13 | C17: H-K6 | D17: 511605 | E17: 60.46 | F17: 60.21 | G17: 0.008454 | H17: 0.008523 | I17: 1.48663 | J17: 1.49101 | K17: 1.49582 | L17: 1.50010 | M17: 1.50087 | N17: 1.50151 | O17: 1.50394 | P17: 1.50558 | Q17: 1.50707 | R17: 1.50855 | S17: 1.50896 | T17: 1.50934 | U17: 1.51105 | V17: 1.51112 | W17: 1.51314 | X17: 1.51700 | Y17: 1.51748 | Z17: 1.52159 | AA17: 1.52540 | AB17: 1.53188 | AC17: 2.25095310E+00 | AD17: -7.97694290E-03 | AE17: 1.21729170E-02 | AF17: -9.99979160E-05 | AG17: 4.17761640E-05 | AH17: -2.09126230E-06 | AI17: 0.3041 | AJ17: 0.2391 | AK17: 0.5432 | AL17: 0.2535 | AM17: 0.2371 | AN17: 0.4824 | AO17: 0.0000 | AP17: 0.0000 | AQ17: 0.0000 | AR17: 0.0001 | AS17: 0.2 | AT17: 0.2 | AU17: 0.1 | AV17: 0.2 | AW17: 0.2 | AX17: 0.3 | AY17: 0.3 | AZ17: 0.4 | BA17: 0.4 | BB17: 0.5 | BC17: 0.6 | BD17: 0.4 | BE17: 0.4 | BF17: 0.3 | BG17: 0.4 | BH17: 0.4 | BI17: 0.5 | BJ17: 0.5 | BK17: 0.6 | BL17: 0.7 | BM17: 0.7 | BN17: 0.8 | BO17: 0.6 | BP17: 0.6 | BQ17: 0.6 | BR17: 0.7 | BS17: 0.6 | BT17: 0.7 | BU17: 0.7 | BV17: 0.8 | BW17: 0.9 | BX17: 0.9 | BY17: 1.0 | BZ17: 0.6 | CA17: 0.6 | CB17: 0.6 | CC17: 0.7 | CD17: 0.7 | CE17: 0.7 | CF17: 0.7 | CG17: 0.8 | CH17: 0.9 | CI17: 1.0 | CJ17: 1.1 | CK17: 0.6 | CL17: 0.6 | CM17: 0.7 | CN17: 0.8 | CO17: 0.7 | CP17: 0.7 | CQ17: 0.7 | CR17: 0.8 | CS17: 1.0 | CT17: 1.0 | CU17: 1.1 | CV17: 0.8 | CW17: 0.8 | CX17: 0.9 | CY17: 0.9 | CZ17: 0.8 | DA17: 0.9 | DB17: 0.9 | DC17: 1.0 | DD17: 1.0 | DE17: 1.1 | DF17: 1.2 | DG17: 1.0 | DH17: 1.1 | DI17: 1.1 | DJ17: 1.0 | DK17: 1.1 | DL17: 1.2 | DM17: 1.2 | DN17: 1.3 | DO17: 1.4 | DP17: 1.4 | DQ17: 1.5 | DR17: 1.3 | DS17: 1.4 | DT17: 1.4 | DU17: 1.3 | DV17: 1.4 | DW17: 1.4 | DX17: 1.5 | DY17: 1.6 | DZ17: 1.6 | EA17: 1.7 | EB17: 1.7 | EC17: 1.3 | ED17: 1.4 | EE17: 1.4 | EF17: 1.4 | EG17: 1.4 | EH17: 1.5 | EI17: 1.5 | EJ17: 1.6 | EK17: 1.7 | EL17: 1.7 | EM17: 1.7 | EN17: 1.6 | EO17: 1.7 | EP17: 1.6 | EQ17: 1.6 | ER17: 1.7 | ES17: 1.8 | ET17: 1.8 | EU17: 1.9 | EV17: 2.0 | EW17: 2.1 | EX17: 2.2 | EY17: -1.8 | EZ17: -1.4 | FA17: -1.0 | FB17: -0.7 | FC17: -0.6 | FD17: -0.5 | FE17: -0.3 | FF17: -0.1 | FG17: 0.2 | FH17: 0.3 | FI17: 0.4 | FJ17: -3.51E-06 | FK17: 1.40E-08 | FL17: -2.33E-11 | FM17: 7.26E-07 | FN17: 1.47E-10 | FO17: 1.23E-01 | FP17: 3 | FQ17: 1 | FR17: 2 | FS17: 1 | FT17: 1 | FU17: 1 | FZ17: 530 | GA17: 619 | GB17: 473 | GC17: 522 | GF17: 84 | GG17: 100 | GH17: 76 | GI17: 79 | GJ17: 81 | GK17: 82 | GL17: 83 | GM17: 84 | GN17: 84 | GO17: 85 | GP17: 85 | GQ17: 86 | GR17: 87 | GS17: 87 | GT17: 88 | GU17: 88 | GV17: 89 | GW17: 89 | GX17: 90 | GY17: 91 | GZ17: 92 | HA17: 94 | HB17: 94 | HF17: 469 | HG17: 107 | HH17: 67.2 | HI17: 27.6 | HJ17: 0.219 | HL17: 3.05 | HM17: 2.53 | HN17: 330/290 | HO17: 312/283 | HP17: -3.5 | HQ17: 0.861 | HR17: 0.898 | HS17: 0.951 | HT17: 0.978 | HU17: 0.995 | HV17: 0.996 | HW17: 0.999 | HX17: 0.999 | HY17: 0.999 | HZ17: 0.999 | IA17: 0.999 | IB17: 0.999 | IC17: 0.999 | ID17: 0.999 | IE17: 0.999 | IF17: 0.999 | IG17: 0.999 | IH17: 0.999 | II17: 0.998 | IJ17: 0.998 | IK17: 0.998 | IL17: 0.998 | IM17: 0.998 | IN17: 0.998 | IO17: 0.998 | IP17: 0.998 | IQ17: 0.998 | IR17: 0.997 | IS17: 0.994 | IT17: 0.990 | IU17: 0.982 | IV17: 0.951 | IW17: 0.875 | IX17: 0.696 | IY17: 0.404 | JA17: 0.741 | JB17: 0.807 | JC17: 0.904 | JD17: 0.957 | JE17: 0.990 | JF17: 0.992 | JG17: 0.998 | JH17: 0.998 | JI17: 0.998 | JJ17: 0.998 | JK17: 0.998 | JL17: 0.998 | JM17: 0.998 | JN17: 0.998 | JO17: 0.998 | JP17: 0.998 | JQ17: 0.998 | JR17: 0.998 | JS17: 0.997 | JT17: 0.997 | JU17: 0.997 | JV17: 0.997 | JW17: 0.997 | JX17: 0.997 | JY17: 0.997 | JZ17: 0.996 | KA17: 0.996 | KB17: 0.994 | KC17: 0.989 | KD17: 0.981 | KE17: 0.964 | KF17: 0.905 | KG17: 0.766 | KH17: 0.485 | KI17: 0.163 | KK17: PG RP | KL17: 50 | KM17: C | KN17: H-K6 | KO17: 511605 | KR17: H-K6 | KS17: 511605 | KX17: K7 | KY17: 511604
B18: 14 | C18: H-K9L | D18: 517642 | E18: 64.20 | F18: 64.00 | G18: 0.008050 | H18: 0.008105 | I18: 1.48969 | J18: 1.49515 | K18: 1.50098 | L18: 1.50585 | M18: 1.50668 | N18: 1.50735 | O18: 1.50983 | P18: 1.51145 | Q18: 1.51290 | R18: 1.51432 | S18: 1.51472 | T18: 1.51509 | U18: 1.51673 | V18: 1.51680 | W18: 1.51872 | X18: 1.52237 | Y18: 1.52282 | Z18: 1.52670 | AA18: 1.53027 | AB18: 1.53629 | AC18: 2.27223852E+00 | AD18: -1.01682613E-02 | AE18: 1.03945607E-02 | AF18: 2.29862391E-04 | AG18: -4.30423477E-06 | AH18: 5.00107200E-08 | AI18: 0.3081 | AJ18: 0.2385 | AK18: 0.5379 | AL18: 0.2566 | AM18: 0.2369 | AN18: 0.4787 | AO18: -0.0013 | AP18: 0.0009 | AQ18: 0.0146 | AR18: 0.0033 | AS18: 1.6 | AT18: 1.8 | AU18: 2.0 | AV18: 2.2 | AW18: 2.3 | AX18: 2.3 | AY18: 2.4 | AZ18: 2.5 | BA18: 2.5 | BB18: 2.5 | BC18: 2.5 | BD18: 1.7 | BE18: 2.0 | BF18: 2.2 | BG18: 2.3 | BH18: 2.4 | BI18: 2.4 | BJ18: 2.5 | BK18: 2.6 | BL18: 2.6 | BM18: 2.6 | BN18: 2.7 | BO18: 1.9 | BP18: 2.2 | BQ18: 2.3 | BR18: 2.4 | BS18: 2.4 | BT18: 2.5 | BU18: 2.6 | BV18: 2.7 | BW18: 2.8 | BX18: 2.9 | BY18: 3.0 | BZ18: 1.9 | CA18: 2.3 | CB18: 2.3 | CC18: 2.4 | CD18: 2.5 | CE18: 2.6 | CF18: 2.7 | CG18: 2.8 | CH18: 2.9 | CI18: 3.0 | CJ18: 3.1 | CK18: 1.9 | CL18: 2.3 | CM18: 2.5 | CN18: 2.5 | CO18: 2.6 | CP18: 2.7 | CQ18: 2.7 | CR18: 2.9 | CS18: 3.0 | CT18: 3.0 | CU18: 3.1 | CV18: 2.0 | CW18: 2.4 | CX18: 2.5 | CY18: 2.6 | CZ18: 2.6 | DA18: 2.8 | DB18: 2.8 | DC18: 2.9 | DD18: 3.0 | DE18: 3.0 | DF18: 3.1 | DG18: 2.3 | DH18: 2.5 | DI18: 2.6 | DJ18: 2.7 | DK18: 2.8 | DL18: 3.0 | DM18: 3.0 | DN18: 3.0 | DO18: 3.0 | DP18: 3.0 | DQ18: 3.1 | DR18: 2.6 | DS18: 2.9 | DT18: 3.0 | DU18: 3.0 | DV18: 3.1 | DW18: 3.3 | DX18: 3.3 | DY18: 3.3 | DZ18: 3.3 | EA18: 3.3 | EB18: 3.4 | EC18: 2.7 | ED18: 3.0 | EE18: 3.0 | EF18: 3.0 | EG18: 3.1 | EH18: 3.3 | EI18: 3.3 | EJ18: 3.3 | EK18: 3.3 | EL18: 3.4 | EM18: 3.4 | EN18: 2.9 | EO18: 3.2 | EP18: 3.3 | EQ18: 3.3 | ER18: 3.4 | ES18: 3.5 | ET18: 3.6 | EU18: 3.5 | EV18: 3.5 | EW18: 3.6 | EX18: 3.6 | EY18: -0.5 | EZ18: 0.2 | FA18: 0.7 | FB18: 1.0 | FC18: 1.3 | FD18: 1.5 | FE18: 1.7 | FF18: 2.0 | FG18: 2.2 | FH18: 2.3 | FI18: 2.4 | FJ18: 1.32E-06 | FK18: 2.02E-08 | FL18: -4.68E-11 | FM18: 4.63E-07 | FN18: -4.16E-10 | FO18: 2.04E-01 | FP18: 1 | FQ18: 1 | FR18: 2 | FS18: 1 | FT18: 1 | FU18: 1 | FZ18: 582 | GA18: 630 | GB18: 519 | GC18: 548 | GD18: 1.22 | GF18: 73 | GG18: 92 | GH18: 67 | GI18: 69 | GJ18: 70 | GK18: 71 | GL18: 72 | GM18: 73 | GN18: 73 | GO18: 74 | GP18: 75 | GQ18: 75 | GR18: 76 | GS18: 77 | GT18: 78 | GU18: 79 | GV18: 79 | GW18: 80 | GX18: 81 | GY18: 82 | GZ18: 84 | HA18: 85 | HB18: 87 | HD18: 95 | HF18: 581 | HG18: 100 | HH18: 76.9 | HI18: 32.3 | HJ18: 0.189 | HK18: 92 | HL18: 2.53 | HM18: 2.49 | HN18: 325/280 | HO18: 317/280 | HP18: -20.0 | HQ18: 0.907 | HR18: 0.933 | HS18: 0.980 | HT18: 0.992 | HU18: 0.999 | HV18: 0.999 | HW18: 0.999 | HX18: 0.999 | HY18: 0.999 | HZ18: 0.999 | IA18: 0.999 | IB18: 0.999 | IC18: 0.999 | ID18: 0.999 | IE18: 0.999 | IF18: 0.999 | IG18: 0.999 | IH18: 0.999 | II18: 0.999 | IJ18: 0.999 | IK18: 0.999 | IL18: 0.999 | IM18: 0.999 | IN18: 0.999 | IO18: 0.998 | IP18: 0.997 | IQ18: 0.997 | IR18: 0.996 | IS18: 0.990 | IT18: 0.980 | IU18: 0.964 | IV18: 0.927 | IW18: 0.851 | IX18: 0.722 | IY18: 0.543 | IZ18: 0.274 | JA18: 0.823 | JB18: 0.870 | JC18: 0.960 | JD18: 0.985 | JE18: 0.998 | JF18: 0.998 | JG18: 0.998 | JH18: 0.998 | JI18: 0.998 | JJ18: 0.998 | JK18: 0.998 | JL18: 0.998 | JM18: 0.998 | JN18: 0.998 | JO18: 0.998 | JP18: 0.998 | JQ18: 0.998 | JR18: 0.998 | JS18: 0.998 | JT18: 0.998 | JU18: 0.998 | JV18: 0.998 | JW18: 0.998 | JX18: 0.998 | JY18: 0.997 | JZ18: 0.995 | KA18: 0.994 | KB18: 0.993 | KC18: 0.980 | KD18: 0.960 | KE18: 0.929 | KF18: 0.859 | KG18: 0.724 | KH18: 0.521 | KI18: 0.295 | KJ18: 0.075 | KK18: PG RP | KL18: 10 | KM18: MA | KN18: H-K9L | KO18: 517642 | KP18: S-BSL7 | KQ18: 516641 | KR18: H-K9L | KS18: 517642 | KT18: BSC7 | KU18: 517642 | KV18: K-BK7 | KW18: 516641 | KX18: N-BK7 | KY18: 517642
B19: 15 | C19: H-K10 | D19: 518590 | E19: 58.95 | F19: 58.69 | G19: 0.008790 | H19: 0.008865 | I19: 1.49188 | J19: 1.49679 | K19: 1.50212 | L19: 1.50673 | M19: 1.50754 | N19: 1.50821 | O19: 1.51074 | P19: 1.51243 | Q19: 1.51397 | R19: 1.51549 | S19: 1.51592 | T19: 1.51633 | U19: 1.51810 | V19: 1.51818 | W19: 1.52027 | X19: 1.52428 | Y19: 1.52479 | Z19: 1.52908 | AA19: 1.53306 | AB19: 1.53987 | AC19: 2.27263886E+00 | AD19: -9.07293538E-03 | AE19: 1.14409318E-02 | AF19: 2.89379329E-04 | AG19: -1.16567157E-05 | AH19: 7.94218946E-07 | AI19: 0.3060 | AJ19: 0.2378 | AK19: 0.5461 | AL19: 0.2549 | AM19: 0.2358 | AN19: 0.4839 | AO19: -0.0015 | AP19: 0.0004 | AQ19: 0.0024 | AR19: -0.0015 | AS19: 1.2 | AT19: 1.1 | AU19: 1.1 | AV19: 1.1 | AW19: 1.1 | AX19: 1.1 | AY19: 1.2 | AZ19: 1.2 | BA19: 1.3 | BB19: 1.3 | BC19: 1.3 | BD19: 1.3 | BE19: 1.2 | BF19: 1.3 | BG19: 1.3 | BH19: 1.3 | BI19: 1.3 | BJ19: 1.4 | BK19: 1.4 | BL19: 1.5 | BM19: 1.5 | BN19: 1.5 | BO19: 1.4 | BP19: 1.4 | BQ19: 1.4 | BR19: 1.5 | BS19: 1.5 | BT19: 1.6 | BU19: 1.6 | BV19: 1.6 | BW19: 1.6 | BX19: 1.6 | BY19: 1.6 | BZ19: 1.5 | CA19: 1.5 | CB19: 1.5 | CC19: 1.5 | CD19: 1.5 | CE19: 1.6 | CF19: 1.6 | CG19: 1.6 | CH19: 1.6 | CI19: 1.6 | CJ19: 1.7 | CK19: 1.5 | CL19: 1.5 | CM19: 1.5 | CN19: 1.5 | CO19: 1.5 | CP19: 1.6 | CQ19: 1.6 | CR19: 1.7 | CS19: 1.7 | CT19: 1.7 | CU19: 1.7 | CV19: 1.5 | CW19: 1.6 | CX19: 1.6 | CY19: 1.6 | CZ19: 1.6 | DA19: 1.7 | DB19: 1.7 | DC19: 1.8 | DD19: 1.8 | DE19: 1.8 | DF19: 1.9 | DG19: 1.8 | DH19: 1.8 | DI19: 1.8 | DJ19: 1.8 | DK19: 1.8 | DL19: 1.9 | DM19: 1.9 | DN19: 2.0 | DO19: 2.0 | DP19: 2.0 | DQ19: 2.1 | DR19: 2.0 | DS19: 2.0 | DT19: 2.1 | DU19: 2.1 | DV19: 2.1 | DW19: 2.1 | DX19: 2.1 | DY19: 2.2 | DZ19: 2.3 | EA19: 2.3 | EB19: 2.3 | EC19: 2.0 | ED19: 2.1 | EE19: 2.1 | EF19: 2.1 | EG19: 2.2 | EH19: 2.2 | EI19: 2.2 | EJ19: 2.3 | EK19: 2.3 | EL19: 2.4 | EM19: 2.4 | EN19: 2.4 | EO19: 2.4 | EP19: 2.5 | EQ19: 2.5 | ER19: 2.5 | ES19: 2.6 | ET19: 2.6 | EU19: 2.7 | EV19: 2.7 | EW19: 2.8 | EX19: 2.8 | EY19: -0.9 | EZ19: -0.6 | FA19: -0.3 | FB19: 0.0 | FC19: 0.2 | FD19: 0.4 | FE19: 0.6 | FF19: 0.8 | FG19: 0.9 | FH19: 1.0 | FI19: 1.0 | FJ19: -9.83E-07 | FK19: 1.34E-08 | FL19: -2.97E-11 | FM19: 4.25E-07 | FN19: 1.90E-10 | FO19: 2.52E-01 | FP19: 1 | FQ19: 1 | FR19: 1 | FS19: 1 | FT19: 2 | FU19: 1 | FZ19: 518 | GA19: 575 | GB19: 460 | GC19: 495 | GD19: 1.16 | GF19: 88 | GG19: 110 | GH19: 81 | GI19: 84 | GJ19: 86 | GK19: 87 | GL19: 88 | GM19: 89 | GN19: 90 | GO19: 90 | GP19: 91 | GQ19: 91 | GR19: 92 | GS19: 93 | GT19: 94 | GU19: 95 | GV19: 96 | GW19: 97 | GX19: 98 | GY19: 100 | GZ19: 101 | HA19: 103 | HB19: 105 | HD19: 70 | HF19: 454 | HG19: 118 | HH19: 73.1 | HI19: 29.7 | HJ19: 0.230 | HK19: 90 | HL19: 2.55 | HM19: 2.52 | HN19: 345/315 | HO19: 342/315 | HP19: 0.0 | HQ19: 0.862 | HR19: 0.902 | HS19: 0.960 | HT19: 0.984 | HU19: 0.999 | HV19: 0.999 | HW19: 0.999 | HX19: 0.999 | HY19: 0.999 | HZ19: 0.999 | IA19: 0.999 | IB19: 0.999 | IC19: 0.999 | ID19: 0.999 | IE19: 0.999 | IF19: 0.999 | IG19: 0.999 | IH19: 0.999 | II19: 0.999 | IJ19: 0.999 | IK19: 0.999 | IL19: 0.999 | IM19: 0.999 | IN19: 0.999 | IO19: 0.999 | IP19: 0.994 | IQ19: 0.987 | IR19: 0.974 | IS19: 0.945 | IT19: 0.875 | IU19: 0.711 | IV19: 0.392 | IW19: 0.085 | JA19: 0.745 | JB19: 0.814 | JC19: 0.920 | JD19: 0.968 | JE19: 0.998 | JF19: 0.998 | JG19: 0.998 | JH19: 0.998 | JI19: 0.998 | JJ19: 0.998 | JK19: 0.998 | JL19: 0.998 | JM19: 0.998 | JN19: 0.998 | JO19: 0.998 | JP19: 0.998 | JQ19: 0.998 | JR19: 0.998 | JS19: 0.998 | JT19: 0.998 | JU19: 0.998 | JV19: 0.998 | JW19: 0.998 | JX19: 0.998 | JY19: 0.998 | JZ19: 0.988 | KA19: 0.974 | KB19: 0.944 | KC19: 0.889 | KD19: 0.758 | KE19: 0.499 | KF19: 0.149 | KG19: 0.012 | KK19: PG RP | KL19: 40 | KM19: C | KN19: H-K10 | KO19: 518590 | KP19: S-NSL3 | KQ19: 518590 | KR19: H-K10 | KS19: 518590 | KT19: E-C3 | KU19: 518590 | KX19: (N-K5) | KY19: 522595
B20: 16 | C20: H-K12 | D20: 534555 | E20: 55.47 | F20: 55.17 | G20: 0.009619 | H20: 0.009713 | I20: 1.50814 | J20: 1.51249 | K20: 1.51727 | L20: 1.52160 | M20: 1.52239 | N20: 1.52305 | O20: 1.52562 | P20: 1.52740 | Q20: 1.52904 | R20: 1.53068 | S20: 1.53114 | T20: 1.53157 | U20: 1.53350 | V20: 1.53359 | W20: 1.53588 | X20: 1.54030 | Y20: 1.54085 | Z20: 1.54557 | AA20: 1.54996 | AB20: 1.55752 | AC20: 2.31544050E+00 | AD20: -7.99936583E-03 | AE20: 1.23689469E-02 | AF20: 5.07443369E-04 | AG20: -4.38673524E-05 | AH20: 2.71548041E-06 | AI20: 0.3025 | AJ20: 0.2381 | AK20: 0.5479 | AL20: 0.2522 | AM20: 0.2358 | AN20: 0.4859 | AO20: -0.0001 | AP20: -0.0036 | AQ20: -0.0157 | AR20: -0.0075 | AS20: 0.1 | AT20: 0.4 | AU20: 0.6 | AV20: 0.6 | AW20: 0.7 | AX20: 0.7 | AY20: 0.7 | AZ20: 0.8 | BA20: 0.8 | BB20: 0.9 | BC20: 0.9 | BD20: 0.4 | BE20: 0.8 | BF20: 1.0 | BG20: 1.2 | BH20: 1.3 | BI20: 1.5 | BJ20: 1.5 | BK20: 1.6 | BL20: 1.6 | BM20: 1.8 | BN20: 1.9 | BO20: 1.0 | BP20: 1.3 | BQ20: 1.3 | BR20: 1.4 | BS20: 1.6 | BT20: 1.7 | BU20: 1.7 | BV20: 1.8 | BW20: 1.8 | BX20: 2.1 | BY20: 2.2 | BZ20: 1.1 | CA20: 1.4 | CB20: 1.4 | CC20: 1.5 | CD20: 1.6 | CE20: 1.8 | CF20: 1.8 | CG20: 1.9 | CH20: 1.9 | CI20: 2.2 | CJ20: 2.3 | CK20: 1.2 | CL20: 1.5 | CM20: 1.5 | CN20: 1.6 | CO20: 1.7 | CP20: 1.8 | CQ20: 1.9 | CR20: 2.0 | CS20: 2.0 | CT20: 2.2 | CU20: 2.4 | CV20: 1.4 | CW20: 1.7 | CX20: 1.9 | CY20: 2.0 | CZ20: 2.0 | DA20: 2.0 | DB20: 2.1 | DC20: 2.3 | DD20: 2.3 | DE20: 2.4 | DF20: 2.6 | DG20: 1.7 | DH20: 1.8 | DI20: 2.0 | DJ20: 2.2 | DK20: 2.4 | DL20: 2.5 | DM20: 2.6 | DN20: 2.7 | DO20: 2.9 | DP20: 3.0 | DQ20: 3.1 | DR20: 2.0 | DS20: 2.1 | DT20: 2.3 | DU20: 2.5 | DV20: 2.6 | DW20: 2.8 | DX20: 2.9 | DY20: 3.0 | DZ20: 3.2 | EA20: 3.4 | EB20: 3.5 | EC20: 2.1 | ED20: 2.2 | EE20: 2.3 | EF20: 2.5 | EG20: 2.7 | EH20: 2.9 | EI20: 3.0 | EJ20: 3.1 | EK20: 3.2 | EL20: 3.4 | EM20: 3.6 | EN20: 2.3 | EO20: 2.4 | EP20: 2.4 | EQ20: 2.7 | ER20: 3.0 | ES20: 3.2 | ET20: 3.3 | EU20: 3.5 | EV20: 3.7 | EW20: 3.9 | EX20: 4.1 | EY20: -1.3 | EZ20: -0.6 | FA20: -0.3 | FB20: 0.1 | FC20: 0.4 | FD20: 0.6 | FE20: 0.9 | FF20: 1.1 | FG20: 1.2 | FH20: 1.4 | FI20: 1.7 | FJ20: -2.45E-06 | FK20: 1.63E-08 | FL20: -3.64E-11 | FM20: 1.14E-06 | FN20: 1.20E-09 | FO20: 1.33E-08 | FP20: 1 | FQ20: 1 | FR20: 1 | FS20: 1 | FT20: 1 | FU20: 2 | FZ20: 495 | GA20: 549 | GB20: 450 | GC20: 488 | GD20: 1.01 | GF20: 98 | GG20: 113 | GH20: 83 | GI20: 86 | GJ20: 88 | GK20: 89 | GL20: 91 | GM20: 92 | GN20: 93 | GO20: 94 | GP20: 94 | GQ20: 94 | GR20: 95 | GS20: 96 | GT20: 97 | GU20: 99 | GV20: 100 | GW20: 102 | GX20: 104 | GY20: 106 | GZ20: 108 | HA20: 109 | HB20: 112 | HD20: 58 | HF20: 485 | HG20: 98 | HH20: 69.7 | HI20: 27.4 | HJ20: 0.271 | HK20: 79 | HL20: 2.75 | HM20: 2.73 | HN20: 355/320 | HO20: 347/318 | HP20: -0.5 | HQ20: 0.874 | HR20: 0.898 | HS20: 0.955 | HT20: 0.977 | HU20: 0.994 | HV20: 0.999 | HW20: 0.999 | HX20: 0.999 | HY20: 0.999 | HZ20: 0.999 | IA20: 0.999 | IB20: 0.999 | IC20: 0.999 | ID20: 0.999 | IE20: 0.999 | IF20: 0.999 | IG20: 0.999 | IH20: 0.999 | II20: 0.999 | IJ20: 0.999 | IK20: 0.999 | IL20: 0.999 | IM20: 0.998 | IN20: 0.997 | IO20: 0.994 | IP20: 0.990 | IQ20: 0.980 | IR20: 0.956 | IS20: 0.905 | IT20: 0.797 | IU20: 0.574 | IV20: 0.260 | JA20: 0.764 | JB20: 0.806 | JC20: 0.909 | JD20: 0.953 | JE20: 0.988 | JF20: 0.998 | JG20: 0.998 | JH20: 0.998 | JI20: 0.998 | JJ20: 0.998 | JK20: 0.998 | JL20: 0.998 | JM20: 0.998 | JN20: 0.998 | JO20: 0.998 | JP20: 0.998 | JQ20: 0.998 | JR20: 0.998 | JS20: 0.998 | JT20: 0.998 | JU20: 0.998 | JV20: 0.998 | JW20: 0.996 | JX20: 0.994 | JY20: 0.989 | JZ20: 0.980 | KA20: 0.960 | KB20: 0.914 | KC20: 0.820 | KD20: 0.635 | KE20: 0.329 | KF20: 0.067 | KK20: PG RP | KL20: 30 | KM20: D | KN20: H-K12 | KO20: 534555 | KR20: H-K12 | KS20: 534555
B21: 17 | C21: H-K51 | D21: 523586 | E21: 58.63 | F21: 58.39 | G21: 0.008921 | H21: 0.008995 | I21: 1.49748 | J21: 1.50215 | K21: 1.50724 | L21: 1.51167 | M21: 1.51246 | N21: 1.51310 | O21: 1.51559 | P21: 1.51728 | Q21: 1.51883 | R21: 1.52037 | S21: 1.52080 | T21: 1.52120 | U21: 1.52299 | V21: 1.52307 | W21: 1.52520 | X21: 1.52929 | Y21: 1.52980 | Z21: 1.53411 | AA21: 1.53811 | AB21: 1.54495 | AC21: 2.28724008E+00 | AD21: -8.66259828E-03 | AE21: 1.09312658E-02 | AF21: 6.19326901E-04 | AG21: -6.62977052E-05 | AH21: 3.74341463E-06 | AI21: 0.3027 | AJ21: 0.2388 | AK21: 0.5403 | AL21: 0.2524 | AM21: 0.2368 | AN21: 0.4792 | AO21: 0.0006 | AP21: -0.0059 | AQ21: -0.0093 | AR21: -0.0053 | AS21: 0.9 | AT21: 1.0 | AU21: 1.1 | AV21: 1.2 | AW21: 1.3 | AX21: 1.4 | AY21: 1.4 | AZ21: 1.4 | BA21: 1.5 | BB21: 1.5 | BC21: 1.6 | BD21: 1.0 | BE21: 1.0 | BF21: 1.1 | BG21: 1.3 | BH21: 1.4 | BI21: 1.4 | BJ21: 1.5 | BK21: 1.5 | BL21: 1.6 | BM21: 1.7 | BN21: 1.7 | BO21: 1.0 | BP21: 1.1 | BQ21: 1.2 | BR21: 1.3 | BS21: 1.4 | BT21: 1.5 | BU21: 1.6 | BV21: 1.7 | BW21: 1.7 | BX21: 1.7 | BY21: 1.8 | BZ21: 1.0 | CA21: 1.1 | CB21: 1.2 | CC21: 1.3 | CD21: 1.4 | CE21: 1.5 | CF21: 1.6 | CG21: 1.7 | CH21: 1.7 | CI21: 1.8 | CJ21: 1.9 | CK21: 1.1 | CL21: 1.2 | CM21: 1.3 | CN21: 1.4 | CO21: 1.5 | CP21: 1.6 | CQ21: 1.7 | CR21: 1.8 | CS21: 1.8 | CT21: 1.9 | CU21: 2.0 | CV21: 1.4 | CW21: 1.5 | CX21: 1.6 | CY21: 1.7 | CZ21: 1.8 | DA21: 1.9 | DB21: 2.0 | DC21: 2.2 | DD21: 2.3 | DE21: 2.4 | DF21: 2.5 | DG21: 1.7 | DH21: 1.8 | DI21: 2.0 | DJ21: 2.1 | DK21: 2.2 | DL21: 2.3 | DM21: 2.4 | DN21: 2.6 | DO21: 2.7 | DP21: 2.9 | DQ21: 2.9 | DR21: 1.9 | DS21: 2.0 | DT21: 2.2 | DU21: 2.4 | DV21: 2.6 | DW21: 2.7 | DX21: 2.8 | DY21: 2.9 | DZ21: 3.0 | EA21: 3.0 | EB21: 3.0 | EC21: 1.9 | ED21: 2.0 | EE21: 2.2 | EF21: 2.4 | EG21: 2.6 | EH21: 2.7 | EI21: 2.8 | EJ21: 2.9 | EK21: 3.0 | EL21: 3.1 | EM21: 3.1 | EN21: 2.2 | EO21: 2.4 | EP21: 2.6 | EQ21: 2.7 | ER21: 2.8 | ES21: 3.0 | ET21: 3.1 | EU21: 3.2 | EV21: 3.3 | EW21: 3.5 | EX21: 3.5 | EY21: -1.3 | EZ21: -0.9 | FA21: -0.5 | FB21: -0.1 | FC21: 0.2 | FD21: 0.4 | FE21: 0.7 | FF21: 0.9 | FG21: 1.0 | FH21: 1.2 | FI21: 1.3 | FJ21: -1.39E-06 | FK21: 1.68E-08 | FL21: -3.96E-11 | FM21: 6.34E-07 | FN21: 6.47E-10 | FO21: 2.23E-01 | FP21: 2 | FQ21: 1 | FR21: 2 | FS21: 1 | FT21: 1 | FU21: 1 | FZ21: 564 | GA21: 610 | GB21: 497 | GC21: 530 | GD21: 1.18 | GF21: 80 | GG21: 98 | GH21: 79 | GI21: 80 | GJ21: 82 | GK21: 83 | GL21: 83 | GM21: 84 | GN21: 84 | GO21: 85 | GP21: 85 | GQ21: 86 | GR21: 87 | GS21: 87 | GT21: 88 | GU21: 88 | GV21: 90 | GW21: 91 | GX21: 92 | GY21: 92 | GZ21: 94 | HA21: 95 | HB21: 96 | HD21: 46 | HF21: 517 | HG21: 102 | HH21: 73.0 | HI21: 29.9 | HJ21: 0.218 | HK21: 52 | HL21: 2.50 | HM21: 2.52 | HN21: 350/310 | HO21: 337/304 | HP21: -2.2 | HQ21: 0.900 | HR21: 0.915 | HS21: 0.963 | HT21: 0.984 | HU21: 0.998 | HV21: 0.998 | HW21: 0.998 | HX21: 0.998 | HY21: 0.998 | HZ21: 0.998 | IA21: 0.998 | IB21: 0.998 | IC21: 0.998 | ID21: 0.998 | IE21: 0.999 | IF21: 0.999 | IG21: 0.999 | IH21: 0.999 | II21: 0.999 | IJ21: 0.999 | IK21: 0.999 | IL21: 0.999 | IM21: 0.999 | IN21: 0.999 | IO21: 0.999 | IP21: 0.996 | IQ21: 0.996 | IR21: 0.989 | IS21: 0.970 | IT21: 0.926 | IU21: 0.826 | IV21: 0.648 | IW21: 0.375 | IX21: 0.107 | JA21: 0.810 | JB21: 0.837 | JC21: 0.927 | JD21: 0.968 | JE21: 0.996 | JF21: 0.996 | JG21: 0.996 | JH21: 0.996 | JI21: 0.996 | JJ21: 0.996 | JK21: 0.996 | JL21: 0.996 | JM21: 0.996 | JN21: 0.997 | JO21: 0.998 | JP21: 0.998 | JQ21: 0.998 | JR21: 0.998 | JS21: 0.998 | JT21: 0.998 | JU21: 0.998 | JV21: 0.998 | JW21: 0.998 | JX21: 0.998 | JY21: 0.998 | JZ21: 0.992 | KA21: 0.992 | KB21: 0.978 | KC21: 0.941 | KD21: 0.857 | KE21: 0.682 | KF21: 0.420 | KG21: 0.141 | KH21: 0.011 | KK21: PG RP | KL21: 11 | KM21: B | KN21: H-K51 | KO21: 523586 | KP21: (S-NSL3) | KQ21: 518590 | KR21: H-K51 | KS21: 523586 | KT21: (E-C3) | KU21: 518590 | KX21: (N-K5) | KY21: 522595
B22: 18 | C22: H-BaK2 | D22: 540597 | E22: 59.72 | F22: 59.45 | G22: 0.009041 | H22: 0.009119 | I22: 1.51376 | J22: 1.51856 | K22: 1.52378 | L22: 1.52833 | M22: 1.52914 | N22: 1.52981 | O22: 1.53235 | P22: 1.53407 | Q22: 1.53565 | R22: 1.53721 | S22: 1.53765 | T22: 1.53806 | U22: 1.53988 | V22: 1.53996 | W22: 1.54212 | X22: 1.54625 | Y22: 1.54677 | Z22: 1.55117 | AA22: 1.55525 | AB22: 1.56225 | AC22: 2.33787692E+00 | AD22: -8.98050049E-03 | AE22: 1.15593975E-02 | AF22: 4.92789833E-04 | AG22: -4.58314132E-05 | AH22: 2.77373664E-06 | AI22: 0.3042 | AJ22: 0.2389 | AK22: 0.5442 | AL22: 0.2533 | AM22: 0.2369 | AN22: 0.4825 | AO22: -0.0004 | AP22: -0.0002 | AQ22: -0.0110 | AR22: -0.0062 | AS22: 0.4 | AT22: 0.6 | AU22: 0.8 | AV22: 0.9 | AW22: 1.4 | AX22: 1.5 | AY22: 1.6 | AZ22: 1.7 | BA22: 1.9 | BB22: 2.1 | BC22: 2.2 | BD22: 0.6 | BE22: 0.8 | BF22: 0.9 | BG22: 1.1 | BH22: 1.4 | BI22: 1.6 | BJ22: 1.7 | BK22: 1.8 | BL22: 2.0 | BM22: 2.1 | BN22: 2.3 | BO22: 0.7 | BP22: 0.9 | BQ22: 1.0 | BR22: 1.2 | BS22: 1.5 | BT22: 1.7 | BU22: 1.8 | BV22: 1.9 | BW22: 2.1 | BX22: 2.2 | BY22: 2.3 | BZ22: 0.7 | CA22: 0.9 | CB22: 1.1 | CC22: 1.2 | CD22: 1.5 | CE22: 1.7 | CF22: 1.8 | CG22: 2.0 | CH22: 2.2 | CI22: 2.3 | CJ22: 2.4 | CK22: 0.8 | CL22: 1.0 | CM22: 1.2 | CN22: 1.4 | CO22: 1.6 | CP22: 1.8 | CQ22: 2.0 | CR22: 2.1 | CS22: 2.3 | CT22: 2.4 | CU22: 2.5 | CV22: 0.9 | CW22: 1.1 | CX22: 1.3 | CY22: 1.5 | CZ22: 1.7 | DA22: 1.9 | DB22: 2.1 | DC22: 2.3 | DD22: 2.5 | DE22: 2.7 | DF22: 2.8 | DG22: 1.0 | DH22: 1.2 | DI22: 1.5 | DJ22: 1.8 | DK22: 2.0 | DL22: 2.1 | DM22: 2.4 | DN22: 2.5 | DO22: 2.6 | DP22: 2.8 | DQ22: 2.9 | DR22: 1.3 | DS22: 1.4 | DT22: 1.5 | DU22: 1.9 | DV22: 2.2 | DW22: 2.3 | DX22: 2.5 | DY22: 2.6 | DZ22: 2.7 | EA22: 2.8 | EB22: 2.9 | EC22: 1.4 | ED22: 1.5 | EE22: 1.6 | EF22: 2.1 | EG22: 2.3 | EH22: 2.4 | EI22: 2.5 | EJ22: 2.7 | EK22: 2.9 | EL22: 2.9 | EM22: 3.0 | EN22: 2.0 | EO22: 2.1 | EP22: 2.3 | EQ22: 2.6 | ER22: 2.6 | ES22: 2.7 | ET22: 2.9 | EU22: 3.1 | EV22: 3.3 | EW22: 3.5 | EX22: 3.7 | EY22: -1.7 | EZ22: -1.1 | FA22: -0.6 | FB22: -0.1 | FC22: 0.3 | FD22: 0.6 | FE22: 1.0 | FF22: 1.2 | FG22: 1.5 | FH22: 1.6 | FI22: 1.8 | FJ22: -1.01E-06 | FK22: 2.38E-08 | FL22: -4.15E-11 | FM22: 3.35E-07 | FN22: -1.37E-10 | FO22: 3.01E-01 | FP22: 1 | FQ22: 2 | FR22: 1 | FS22: 1 | FT22: 2 | FU22: 1 | FZ22: 560 | GA22: 623 | GB22: 491 | GC22: 534 | GD22: 1.02 | GF22: 78 | GG22: 93 | GH22: 69 | GI22: 71 | GJ22: 73 | GK22: 74 | GL22: 75 | GM22: 76 | GN22: 77 | GO22: 77 | GP22: 78 | GQ22: 79 | GR22: 80 | GS22: 80 | GT22: 81 | GU22: 82 | GV22: 83 | GW22: 83 | GX22: 84 | GY22: 88 | GZ22: 89 | HA22: 90 | HB22: 92 | HD22: 70 | HF22: 532 | HG22: 103 | HH22: 71.1 | HI22: 28.1 | HJ22: 0.266 | HK22: 79 | HL22: 2.51 | HM22: 2.85 | HN22: 330/290 | HO22: 313/281 | HP22: -29.0 | HQ22: 0.917 | HR22: 0.937 | HS22: 0.974 | HT22: 0.987 | HU22: 0.999 | HV22: 0.999 | HW22: 0.999 | HX22: 0.999 | HY22: 0.999 | HZ22: 0.999 | IA22: 0.999 | IB22: 0.999 | IC22: 0.999 | ID22: 0.999 | IE22: 0.999 | IF22: 0.999 | IG22: 0.999 | IH22: 0.999 | II22: 0.999 | IJ22: 0.999 | IK22: 0.999 | IL22: 0.999 | IM22: 0.999 | IN22: 0.999 | IO22: 0.999 | IP22: 0.998 | IQ22: 0.998 | IR22: 0.997 | IS22: 0.994 | IT22: 0.988 | IU22: 0.973 | IV22: 0.940 | IW22: 0.863 | IX22: 0.707 | IY22: 0.478 | IZ22: 0.260 | JA22: 0.842 | JB22: 0.880 | JC22: 0.947 | JD22: 0.976 | JE22: 0.998 | JF22: 0.998 | JG22: 0.998 | JH22: 0.998 | JI22: 0.998 | JJ22: 0.998 | JK22: 0.998 | JL22: 0.998 | JM22: 0.998 | JN22: 0.998 | JO22: 0.998 | JP22: 0.998 | JQ22: 0.998 | JR22: 0.998 | JS22: 0.998 | JT22: 0.998 | JU22: 0.998 | JV22: 0.998 | JW22: 0.998 | JX22: 0.998 | JY22: 0.998 | JZ22: 0.997 | KA22: 0.996 | KB22: 0.993 | KC22: 0.988 | KD22: 0.976 | KE22: 0.947 | KF22: 0.885 | KG22: 0.745 | KH22: 0.500 | KI22: 0.228 | KJ22: 0.068 | KK22: PG RP | KL22: 25 | KM22: B | KN22: H-BaK2 | KO22: 540597 | KP22: S-BAL12 | KQ22: 540595 | KR22: H-BaK2 | KS22: 540597 | KX22: N-BAK2 | KY22: 540597
A23: ★★ | B23: 19 | C23: H-BaK7B | D23: 569560 | E23: 56.04 | F23: 55.78 | G23: 0.010150 | H23: 0.010242 | I23: 1.54079 | J23: 1.54574 | K23: 1.55115 | L23: 1.55598 | M23: 1.55686 | N23: 1.55758 | O23: 1.56036 | P23: 1.56227 | Q23: 1.56401 | R23: 1.56575 | S23: 1.56624 | T23: 1.56670 | U23: 1.56874 | V23: 1.56883 | W23: 1.57125 | X23: 1.57590 | Y23: 1.57648 | Z23: 1.58147 | AA23: 1.58611 | AB23: 1.59408 | AC23: 2.42201339E+00 | AD23: -9.34171338E-03 | AE23: 1.36739157E-02 | AF23: 3.76328562E-04 | AG23: -1.74732935E-05 | AH23: 1.22001270E-06 | AI23: 0.3034 | AJ23: 0.2384 | AK23: 0.5488 | AL23: 0.2529 | AM23: 0.2363 | AN23: 0.4872 | AO23: -0.0011 | AP23: -0.0017 | AQ23: -0.0067 | AR23: -0.0039 | AS23: 3.0 | AT23: 3.1 | AU23: 3.1 | AV23: 3.0 | AW23: 3.0 | AX23: 3.0 | AY23: 3.1 | AZ23: 3.2 | BA23: 3.2 | BB23: 3.2 | BC23: 3.2 | BD23: 3.2 | BE23: 3.3 | BF23: 3.3 | BG23: 3.4 | BH23: 3.3 | BI23: 3.3 | BJ23: 3.4 | BK23: 3.3 | BL23: 3.4 | BM23: 3.4 | BN23: 3.5 | BO23: 3.3 | BP23: 3.4 | BQ23: 3.4 | BR23: 3.4 | BS23: 3.4 | BT23: 3.5 | BU23: 3.5 | BV23: 3.6 | BW23: 3.6 | BX23: 3.6 | BY23: 3.6 | BZ23: 3.4 | CA23: 3.4 | CB23: 3.5 | CC23: 3.5 | CD23: 3.5 | CE23: 3.6 | CF23: 3.6 | CG23: 3.6 | CH23: 3.7 | CI23: 3.7 | CJ23: 3.7 | CK23: 3.4 | CL23: 3.5 | CM23: 3.5 | CN23: 3.5 | CO23: 3.6 | CP23: 3.6 | CQ23: 3.7 | CR23: 3.7 | CS23: 3.7 | CT23: 3.7 | CU23: 3.7 | CV23: 3.5 | CW23: 3.7 | CX23: 3.6 | CY23: 3.6 | CZ23: 3.6 | DA23: 3.6 | DB23: 3.7 | DC23: 3.9 | DD23: 3.8 | DE23: 3.8 | DF23: 3.9 | DG23: 3.8 | DH23: 3.9 | DI23: 3.8 | DJ23: 3.8 | DK23: 3.8 | DL23: 3.8 | DM23: 3.9 | DN23: 4.1 | DO23: 4.0 | DP23: 4.0 | DQ23: 4.1 | DR23: 4.2 | DS23: 4.2 | DT23: 4.2 | DU23: 4.2 | DV23: 4.2 | DW23: 4.3 | DX23: 4.4 | DY23: 4.5 | DZ23: 4.4 | EA23: 4.4 | EB23: 4.4 | EC23: 4.2 | ED23: 4.3 | EE23: 4.2 | EF23: 4.3 | EG23: 4.2 | EH23: 4.3 | EI23: 4.4 | EJ23: 4.5 | EK23: 4.5 | EL23: 4.5 | EM23: 4.6 | EN23: 4.4 | EO23: 4.5 | EP23: 4.5 | EQ23: 4.5 | ER23: 4.6 | ES23: 4.7 | ET23: 4.9 | EU23: 5.0 | EV23: 5.1 | EW23: 5.0 | EX23: 5.2 | EY23: 0.9 | EZ23: 1.4 | FA23: 1.7 | FB23: 1.9 | FC23: 2.2 | FD23: 2.4 | FE23: 2.6 | FF23: 2.8 | FG23: 2.8 | FH23: 2.9 | FI23: 3.0 | FJ23: 3.18E-06 | FK23: 1.21E-08 | FL23: -2.72E-11 | FM23: 4.09E-07 | FN23: 3.53E-10 | FO23: 2.69E-01 | FP23: 1 | FQ23: 1 | FR23: 1 | FS23: 1 | FT23: 1 | FU23: 1 | FZ23: 587 | GA23: 646 | GB23: 530 | GC23: 565 | GD23: 1.08 | GF23: 68 | GG23: 88 | GH23: 62 | GI23: 62 | GJ23: 63 | GK23: 63 | GL23: 65 | GM23: 66 | GN23: 67 | GO23: 67 | GP23: 68 | GQ23: 74 | GR23: 74 | GS23: 76 | GT23: 76 | GU23: 78 | GV23: 79 | GW23: 79 | GX23: 80 | GY23: 82 | GZ23: 83 | HA23: 84 | HB23: 85 | HD23: 87 | HF23: 553 | HG23: 123 | HH23: 80.1 | HI23: 33.1 | HJ23: 0.210 | HK23: 78 | HL23: 2.52 | HM23: 2.85 | HN23: 355/320 | HO23: 347/321 | HP23: -0.5 | HQ23: 0.934 | HR23: 0.953 | HS23: 0.979 | HT23: 0.988 | HU23: 0.997 | HV23: 0.999 | HW23: 0.999 | HX23: 0.999 | HY23: 0.999 | HZ23: 0.999 | IA23: 0.999 | IB23: 0.999 | IC23: 0.999 | ID23: 0.999 | IE23: 0.999 | IF23: 0.999 | IG23: 0.999 | IH23: 0.999 | II23: 0.999 | IJ23: 0.999 | IK23: 0.998 | IL23: 0.997 | IM23: 0.996 | IN23: 0.994 | IO23: 0.992 | IP23: 0.988 | IQ23: 0.982 | IR23: 0.961 | IS23: 0.917 | IT23: 0.808 | IU23: 0.560 | IV23: 0.192 | JA23: 0.872 | JB23: 0.908 | JC23: 0.958 | JD23: 0.976 | JE23: 0.994 | JF23: 0.998 | JG23: 0.998 | JH23: 0.998 | JI23: 0.998 | JJ23: 0.998 | JK23: 0.998 | JL23: 0.998 | JM23: 0.998 | JN23: 0.998 | JO23: 0.998 | JP23: 0.998 | JQ23: 0.998 | JR23: 0.998 | JS23: 0.998 | JT23: 0.998 | JU23: 0.996 | JV23: 0.994 | JW23: 0.992 | JX23: 0.990 | JY23: 0.986 | JZ23: 0.980 | KA23: 0.965 | KB23: 0.928 | KC23: 0.845 | KD23: 0.654 | KE23: 0.315 | KF23: 0.039 | KK23: PG RP | KL23: 10 | KM23: A | KN23: H-BaK7B | KO23: 569560 | KP23: S-BAL14 | KQ23: 569563 | KR23: H-BaK7 | KS23: 569560 | KT23: BAC4 | KU23: 569560 | KX23: N-BAK4 | KY23: 569560
B24: 20 | C24: H-BaK8 | D24: 573575 | E24: 57.49 | F24: 57.20 | G24: 0.009959 | H24: 0.010051 | I24: 1.54549 | J24: 1.55016 | K24: 1.55531 | L24: 1.55993 | M24: 1.56078 | N24: 1.56148 | O24: 1.56419 | P24: 1.56606 | Q24: 1.56777 | R24: 1.56948 | S24: 1.56996 | T24: 1.57041 | U24: 1.57241 | V24: 1.57250 | W24: 1.57487 | X24: 1.57944 | Y24: 1.58001 | Z24: 1.58490 | AA24: 1.58941 | AB24: 1.59715 | AC24: 2.43375651E+00 | AD24: -8.82982376E-03 | AE24: 1.35916939E-02 | AF24: 3.60922117E-04 | AG24: -1.79584197E-05 | AH24: 1.11930116E-06 | AI24: 0.3032 | AJ24: 0.2380 | AK24: 0.5482 | AL24: 0.2527 | AM24: 0.2358 | AN24: 0.4865 | AO24: 0.0004 | AP24: 0.0001 | AQ24: -0.0154 | AR24: -0.0072 | AS24: 2.0 | AT24: 2.1 | AU24: 2.0 | AV24: 2.0 | AW24: 2.1 | AX24: 2.2 | AY24: 2.4 | AZ24: 2.5 | BA24: 2.6 | BB24: 2.8 | BC24: 2.9 | BD24: 2.2 | BE24: 2.2 | BF24: 2.2 | BG24: 2.1 | BH24: 2.3 | BI24: 2.5 | BJ24: 2.6 | BK24: 2.7 | BL24: 2.8 | BM24: 3.0 | BN24: 3.1 | BO24: 2.4 | BP24: 2.5 | BQ24: 2.5 | BR24: 2.5 | BS24: 2.6 | BT24: 2.7 | BU24: 2.8 | BV24: 2.9 | BW24: 3.1 | BX24: 3.2 | BY24: 3.3 | BZ24: 2.4 | CA24: 2.5 | CB24: 2.5 | CC24: 2.5 | CD24: 2.6 | CE24: 2.8 | CF24: 2.9 | CG24: 3.0 | CH24: 3.2 | CI24: 3.3 | CJ24: 3.3 | CK24: 2.4 | CL24: 2.5 | CM24: 2.5 | CN24: 2.5 | CO24: 2.7 | CP24: 2.8 | CQ24: 2.9 | CR24: 3.0 | CS24: 3.2 | CT24: 3.4 | CU24: 3.4 | CV24: 2.5 | CW24: 2.5 | CX24: 2.6 | CY24: 2.6 | CZ24: 2.8 | DA24: 2.9 | DB24: 3.0 | DC24: 3.2 | DD24: 3.3 | DE24: 3.5 | DF24: 3.5 | DG24: 2.8 | DH24: 2.8 | DI24: 2.8 | DJ24: 2.8 | DK24: 2.9 | DL24: 3.1 | DM24: 3.3 | DN24: 3.3 | DO24: 3.5 | DP24: 3.6 | DQ24: 3.6 | DR24: 3.1 | DS24: 3.1 | DT24: 3.1 | DU24: 3.1 | DV24: 3.3 | DW24: 3.4 | DX24: 3.5 | DY24: 3.6 | DZ24: 3.7 | EA24: 3.7 | EB24: 3.7 | EC24: 3.1 | ED24: 3.1 | EE24: 3.1 | EF24: 3.1 | EG24: 3.3 | EH24: 3.4 | EI24: 3.6 | EJ24: 3.7 | EK24: 3.8 | EL24: 3.8 | EM24: 3.8 | EN24: 3.3 | EO24: 3.4 | EP24: 3.5 | EQ24: 3.6 | ER24: 3.6 | ES24: 3.8 | ET24: 3.9 | EU24: 4.0 | EV24: 4.1 | EW24: 4.2 | EX24: 4.2 | EY24: -0.1 | EZ24: 0.4 | FA24: 0.7 | FB24: 0.9 | FC24: 1.3 | FD24: 1.6 | FE24: 1.8 | FF24: 2.1 | FG24: 2.3 | FH24: 2.6 | FI24: 2.7 | FJ24: 9.63E-07 | FK24: 1.65E-08 | FL24: -1.99E-11 | FM24: 5.81E-07 | FN24: -1.28E-10 | FO24: 1.29E-01 | FP24: 1 | FQ24: 3 | FR24: 1 | FS24: 2 | FT24: 1 | FU24: 1 | FZ24: 614 | GA24: 664 | GB24: 549 | GC24: 592 | GD24: 0.94 | GF24: 73 | GG24: 86 | GH24: 66 | GI24: 68 | GJ24: 69 | GK24: 70 | GL24: 71 | GM24: 72 | GN24: 72 | GO24: 73 | GP24: 74 | GQ24: 74 | GR24: 74 | GS24: 75 | GT24: 75 | GU24: 76 | GV24: 77 | GW24: 77 | GX24: 78 | GY24: 79 | GZ24: 80 | HA24: 82 | HB24: 83 | HD24: 85 | HF24: 527 | HG24: 127 | HH24: 72.3 | HI24: 29.1 | HJ24: 0.243 | HK24: 78 | HL24: 2.56 | HM24: 3.17 | HN24: 335/285 | HO24: 324/284 | HP24: -13.3 | HQ24: 0.931 | HR24: 0.952 | HS24: 0.984 | HT24: 0.992 | HU24: 0.999 | HV24: 0.999 | HW24: 0.999 | HX24: 0.999 | HY24: 0.999 | HZ24: 0.999 | IA24: 0.999 | IB24: 0.999 | IC24: 0.999 | ID24: 0.999 | IE24: 0.999 | IF24: 0.999 | IG24: 0.999 | IH24: 0.999 | II24: 0.999 | IJ24: 0.999 | IK24: 0.999 | IL24: 0.999 | IM24: 0.999 | IN24: 0.999 | IO24: 0.999 | IP24: 0.997 | IQ24: 0.995 | IR24: 0.991 | IS24: 0.983 | IT24: 0.964 | IU24: 0.930 | IV24: 0.863 | IW24: 0.751 | IX24: 0.576 | IY24: 0.344 | JA24: 0.866 | JB24: 0.910 | JC24: 0.966 | JD24: 0.985 | JE24: 0.998 | JF24: 0.998 | JG24: 0.998 | JH24: 0.998 | JI24: 0.998 | JJ24: 0.998 | JK24: 0.998 | JL24: 0.998 | JM24: 0.998 | JN24: 0.998 | JO24: 0.998 | JP24: 0.998 | JQ24: 0.998 | JR24: 0.998 | JS24: 0.998 | JT24: 0.998 | JU24: 0.998 | JV24: 0.998 | JW24: 0.998 | JX24: 0.998 | JY24: 0.998 | JZ24: 0.995 | KA24: 0.990 | KB24: 0.983 | KC24: 0.967 | KD24: 0.930 | KE24: 0.866 | KF24: 0.744 | KG24: 0.558 | KH24: 0.329 | KI24: 0.120 | KK24: PG RP | KL24: 25 | KM24: B | KN24: H-BaK8 | KO24: 573575 | KR24: H-BaK8 | KS24: 573575 | KX24: N-BAK1 | KY24: 573576
A25: ★★★ | B25: 21 | C25: H-ZK3A | D25: 589613 | E25: 61.25 | F25: 61.01 | G25: 0.009618 | H25: 0.009694 | I25: 1.55975 | J25: 1.56532 | K25: 1.57133 | L25: 1.57650 | M25: 1.57741 | N25: 1.57815 | O25: 1.58095 | P25: 1.58282 | Q25: 1.58451 | R25: 1.58619 | S25: 1.58666 | T25: 1.58709 | U25: 1.58903 | V25: 1.58913 | W25: 1.59142 | X25: 1.59581 | Y25: 1.59635 | Z25: 1.60102 | AA25: 1.60533 | AB25: 1.61266 | AC25: 2.48859886E+00 | AD25: -1.07631038E-02 | AE25: 1.30844889E-02 | AF25: 3.33048453E-04 | AG25: -1.29820178E-05 | AH25: 6.37252025E-07 | AI25: 0.3057 | AJ25: 0.2381 | AK25: 0.5417 | AL25: 0.2548 | AM25: 0.2362 | AN25: 0.4817 | AO25: 0.0000 | AP25: -0.0002 | AQ25: -0.0010 | AR25: -0.0026 | AS25: 3.0 | AT25: 3.0 | AU25: 3.1 | AV25: 3.1 | AW25: 3.1 | AX25: 3.2 | AY25: 3.3 | AZ25: 3.4 | BA25: 3.5 | BB25: 3.6 | BC25: 3.7 | BD25: 3.1 | BE25: 3.2 | BF25: 3.3 | BG25: 3.3 | BH25: 3.3 | BI25: 3.3 | BJ25: 3.5 | BK25: 3.6 | BL25: 3.6 | BM25: 3.8 | BN25: 3.9 | BO25: 3.3 | BP25: 3.3 | BQ25: 3.4 | BR25: 3.4 | BS25: 3.4 | BT25: 3.5 | BU25: 3.6 | BV25: 3.7 | BW25: 3.8 | BX25: 4.0 | BY25: 4.1 | BZ25: 3.3 | CA25: 3.3 | CB25: 3.4 | CC25: 3.4 | CD25: 3.4 | CE25: 3.5 | CF25: 3.7 | CG25: 3.8 | CH25: 3.9 | CI25: 4.1 | CJ25: 4.2 | CK25: 3.4 | CL25: 3.3 | CM25: 3.4 | CN25: 3.5 | CO25: 3.5 | CP25: 3.6 | CQ25: 3.8 | CR25: 3.9 | CS25: 4.0 | CT25: 4.2 | CU25: 4.3 | CV25: 3.5 | CW25: 3.5 | CX25: 3.5 | CY25: 3.5 | CZ25: 3.6 | DA25: 3.7 | DB25: 3.9 | DC25: 4.1 | DD25: 4.3 | DE25: 4.4 | DF25: 4.6 | DG25: 3.5 | DH25: 3.7 | DI25: 3.7 | DJ25: 3.6 | DK25: 3.7 | DL25: 3.8 | DM25: 4.0 | DN25: 4.2 | DO25: 4.5 | DP25: 4.6 | DQ25: 4.9 | DR25: 3.8 | DS25: 3.8 | DT25: 3.9 | DU25: 3.9 | DV25: 4.0 | DW25: 4.1 | DX25: 4.3 | DY25: 4.4 | DZ25: 4.6 | EA25: 4.8 | EB25: 5.1 | EC25: 3.9 | ED25: 3.9 | EE25: 3.9 | EF25: 3.9 | EG25: 4.0 | EH25: 4.2 | EI25: 4.4 | EJ25: 4.5 | EK25: 4.7 | EL25: 4.9 | EM25: 5.2 | EN25: 4.2 | EO25: 4.2 | EP25: 4.2 | EQ25: 4.3 | ER25: 4.4 | ES25: 4.5 | ET25: 4.7 | EU25: 4.9 | EV25: 5.2 | EW25: 5.4 | EX25: 5.7 | EY25: 0.8 | EZ25: 1.2 | FA25: 1.6 | FB25: 1.9 | FC25: 2.1 | FD25: 2.4 | FE25: 2.7 | FF25: 2.9 | FG25: 3.1 | FH25: 3.4 | FI25: 3.6 | FJ25: 3.00E-06 | FK25: 1.29E-08 | FL25: -9.66E-12 | FM25: 3.80E-07 | FN25: 7.20E-10 | FO25: 2.31E-01 | FP25: 1 | FQ25: 3 | FR25: 2 | FS25: 3 | FT25: 2 | FU25: 1 | FV25: 4a | FZ25: 678 | GA25: 733 | GB25: 609 | GC25: 650 | GD25: 1.05 | GF25: 55 | GG25: 67 | GH25: 48 | GI25: 50 | GJ25: 53 | GK25: 54 | GL25: 56 | GM25: 56 | GN25: 56 | GO25: 57 | GP25: 57 | GQ25: 58 | GR25: 58 | GS25: 59 | GT25: 59 | GU25: 60 | GV25: 61 | GW25: 62 | GX25: 62 | GY25: 63 | GZ25: 63 | HA25: 65 | HB25: 66 | HD25: 118 | HF25: 550 | HG25: 119 | HH25: 81.3 | HI25: 32.7 | HJ25: 0.244 | HK25: 72 | HL25: 2.06 | HM25: 3.31 | HN25: 345/290 | HO25: 338/290 | HP25: -5.9 | HQ25: 0.917 | HR25: 0.973 | HS25: 0.991 | HT25: 0.999 | HU25: 0.999 | HV25: 0.999 | HW25: 0.999 | HX25: 0.999 | HY25: 0.999 | HZ25: 0.999 | IA25: 0.999 | IB25: 0.999 | IC25: 0.999 | ID25: 0.999 | IE25: 0.999 | IF25: 0.999 | IG25: 0.999 | IH25: 0.999 | II25: 0.999 | IJ25: 0.999 | IK25: 0.999 | IL25: 0.998 | IM25: 0.998 | IN25: 0.997 | IO25: 0.992 | IP25: 0.990 | IQ25: 0.989 | IR25: 0.972 | IS25: 0.949 | IT25: 0.906 | IU25: 0.833 | IV25: 0.720 | IW25: 0.564 | IX25: 0.387 | IY25: 0.210 | IZ25: 0.114 | JA25: 0.842 | JB25: 0.947 | JC25: 0.982 | JD25: 0.998 | JE25: 0.998 | JF25: 0.998 | JG25: 0.998 | JH25: 0.998 | JI25: 0.998 | JJ25: 0.998 | JK25: 0.998 | JL25: 0.998 | JM25: 0.998 | JN25: 0.998 | JO25: 0.998 | JP25: 0.998 | JQ25: 0.998 | JR25: 0.998 | JS25: 0.998 | JT25: 0.998 | JU25: 0.998 | JV25: 0.996 | JW25: 0.996 | JX25: 0.994 | JY25: 0.985 | JZ25: 0.980 | KA25: 0.978 | KB25: 0.945 | KC25: 0.900 | KD25: 0.821 | KE25: 0.694 | KF25: 0.518 | KG25: 0.318 | KH25: 0.150 | KI25: 0.044 | KJ25: 0.013 | KK25: PG RP | KL25: 10 | KM25: MA | KN25: H-ZK3A | KO25: 589613 | KP25: S-BAL35 | KQ25: 589612 | KR25: H-ZK3A | KS25: 589613 | KT25: BACD5 | KU25: 589613 | KV25: K-SK5 | KW25: 589612 | KX25: N-SK5 | KY25: 589613
B26: 22 | C26: H-ZK6 | D26: 613586 | E26: 58.58 | F26: 58.30 | G26: 0.010460 | H26: 0.010552 | I26: 1.58370 | J26: 1.58884 | K26: 1.59446 | L26: 1.59947 | M26: 1.60038 | N26: 1.60112 | O26: 1.60399 | P26: 1.60595 | Q26: 1.60774 | R26: 1.60954 | S26: 1.61005 | T26: 1.61052 | U26: 1.61263 | V26: 1.61272 | W26: 1.61521 | X26: 1.62000 | Y26: 1.62060 | Z26: 1.62571 | AA26: 1.63044 | AB26: 1.63849 | AC26: 2.55955140E+00 | AD26: -1.00093149E-02 | AE26: 1.42930361E-02 | AF26: 4.66646324E-04 | AG26: -2.70113303E-05 | AH26: 1.35057919E-06 | AI26: 0.3040 | AJ26: 0.2380 | AK26: 0.5459 | AL26: 0.2530 | AM26: 0.2360 | AN26: 0.4843 | AO26: 0.0001 | AP26: -0.0004 | AQ26: -0.0190 | AR26: -0.0104 | AS26: 1.6 | AT26: 1.6 | AU26: 1.9 | AV26: 1.9 | AW26: 2.0 | AX26: 1.9 | AY26: 2.1 | AZ26: 2.3 | BA26: 2.4 | BB26: 2.5 | BC26: 2.6 | BD26: 1.6 | BE26: 1.7 | BF26: 1.8 | BG26: 1.9 | BH26: 2.0 | BI26: 2.0 | BJ26: 2.3 | BK26: 2.5 | BL26: 2.7 | BM26: 2.8 | BN26: 2.9 | BO26: 1.7 | BP26: 1.8 | BQ26: 1.9 | BR26: 1.9 | BS26: 2.1 | BT26: 2.2 | BU26: 2.5 | BV26: 2.7 | BW26: 2.9 | BX26: 3.1 | BY26: 3.3 | BZ26: 1.7 | CA26: 1.8 | CB26: 1.9 | CC26: 1.9 | CD26: 2.1 | CE26: 2.2 | CF26: 2.5 | CG26: 2.7 | CH26: 3.0 | CI26: 3.2 | CJ26: 3.4 | CK26: 1.8 | CL26: 1.9 | CM26: 2.0 | CN26: 2.0 | CO26: 2.2 | CP26: 2.3 | CQ26: 2.6 | CR26: 2.8 | CS26: 3.1 | CT26: 3.3 | CU26: 3.4 | CV26: 1.9 | CW26: 2.1 | CX26: 2.1 | CY26: 2.2 | CZ26: 2.4 | DA26: 2.5 | DB26: 2.8 | DC26: 3.1 | DD26: 3.4 | DE26: 3.6 | DF26: 3.8 | DG26: 2.3 | DH26: 2.4 | DI26: 2.5 | DJ26: 2.6 | DK26: 2.7 | DL26: 2.8 | DM26: 3.1 | DN26: 3.4 | DO26: 3.7 | DP26: 3.9 | DQ26: 4.0 | DR26: 2.5 | DS26: 2.7 | DT26: 2.8 | DU26: 2.9 | DV26: 3.0 | DW26: 3.3 | DX26: 3.5 | DY26: 3.9 | DZ26: 4.2 | EA26: 4.4 | EB26: 4.5 | EC26: 2.6 | ED26: 2.8 | EE26: 2.9 | EF26: 2.9 | EG26: 3.1 | EH26: 3.4 | EI26: 3.6 | EJ26: 4.0 | EK26: 4.3 | EL26: 4.5 | EM26: 4.6 | EN26: 3.0 | EO26: 3.1 | EP26: 3.2 | EQ26: 3.3 | ER26: 3.6 | ES26: 3.9 | ET26: 4.2 | EU26: 4.6 | EV26: 4.9 | EW26: 5.1 | EX26: 5.3 | EY26: -0.8 | EZ26: -0.3 | FA26: 0.1 | FB26: 0.4 | FC26: 0.8 | FD26: 1.1 | FE26: 1.5 | FF26: 1.8 | FG26: 2.2 | FH26: 2.5 | FI26: 2.7 | FJ26: -6.10E-08 | FK26: 1.58E-08 | FL26: -1.22E-11 | FM26: 4.83E-07 | FN26: 8.41E-10 | FO26: 2.69E-01 | FP26: 1 | FQ26: 3 | FR26: 1 | FS26: 3 | FT26: 2 | FU26: 2 | FV26: 2 | FZ26: 672 | GA26: 713 | GB26: 597 | GC26: 644 | GD26: 0.94 | GF26: 63 | GG26: 81 | GH26: 58 | GI26: 60 | GJ26: 61 | GK26: 62 | GL26: 63 | GM26: 63 | GN26: 64 | GO26: 64 | GP26: 65 | GQ26: 65 | GR26: 65 | GS26: 66 | GT26: 66 | GU26: 67 | GV26: 67 | GW26: 67 | GX26: 68 | GY26: 69 | GZ26: 70 | HA26: 71 | HB26: 71 | HD26: 115 | HF26: 520 | HG26: 140 | HH26: 81.9 | HI26: 31.6 | HJ26: 0.296 | HK26: 65 | HL26: 1.73 | HM26: 3.59 | HN26: 360/300 | HO26: 345/299 | HP26: -7.7 | HQ26: 0.922 | HR26: 0.967 | HS26: 0.993 | HT26: 0.999 | HU26: 0.999 | HV26: 0.999 | HW26: 0.999 | HX26: 0.999 | HY26: 0.999 | HZ26: 0.999 | IA26: 0.999 | IB26: 0.999 | IC26: 0.999 | ID26: 0.999 | IE26: 0.999 | IF26: 0.999 | IG26: 0.999 | IH26: 0.999 | II26: 0.999 | IJ26: 0.999 | IK26: 0.999 | IL26: 0.999 | IM26: 0.999 | IN26: 0.997 | IO26: 0.995 | IP26: 0.989 | IQ26: 0.980 | IR26: 0.958 | IS26: 0.911 | IT26: 0.842 | IU26: 0.730 | IV26: 0.570 | IW26: 0.377 | IX26: 0.197 | JA26: 0.844 | JB26: 0.927 | JC26: 0.986 | JD26: 0.998 | JE26: 0.998 | JF26: 0.998 | JG26: 0.998 | JH26: 0.998 | JI26: 0.998 | JJ26: 0.998 | JK26: 0.998 | JL26: 0.998 | JM26: 0.998 | JN26: 0.998 | JO26: 0.998 | JP26: 0.998 | JQ26: 0.998 | JR26: 0.998 | JS26: 0.998 | JT26: 0.998 | JU26: 0.998 | JV26: 0.998 | JW26: 0.995 | JX26: 0.990 | JY26: 0.982 | JZ26: 0.971 | KA26: 0.952 | KB26: 0.908 | KC26: 0.830 | KD26: 0.709 | KE26: 0.536 | KF26: 0.326 | KG26: 0.145 | KH26: 0.041 | KK26: PG RP | KL26: 22 | KM26: A | KN26: H-ZK6 | KO26: 613586 | KR26: H-ZK6 | KS26: 613586 | KT26: BACD4 | KU26: 613586 | KV26: K-SK4 | KW26: 613586 | KX26: N-SK4 | KY26: 613586
B27: 23 | C27: H-ZK7 | D27: 613606 | E27: 60.58 | F27: 60.34 | G27: 0.010120 | H27: 0.010201 | I27: 1.58169 | J27: 1.58773 | K27: 1.59423 | L27: 1.59978 | M27: 1.60074 | N27: 1.60153 | O27: 1.60449 | P27: 1.60646 | Q27: 1.60824 | R27: 1.61001 | S27: 1.61050 | T27: 1.61096 | U27: 1.61300 | V27: 1.61309 | W27: 1.61551 | X27: 1.62013 | Y27: 1.62070 | Z27: 1.62560 | AA27: 1.63013 | AB27: 1.63783 | AC27: 2.56343719E+00 | AD27: -1.18778982E-02 | AE27: 1.36592937E-02 | AF27: 4.36395177E-04 | AG27: -2.37642691E-05 | AH27: 1.12532867E-06 | AI27: 0.3043 | AJ27: 0.2391 | AK27: 0.5405 | AL27: 0.2539 | AM27: 0.2372 | AN27: 0.4803 | AO27: -0.0002 | AP27: -0.0025 | AQ27: 0.0043 | AR27: -0.0003 | AS27: 1.0 | AT27: 1.0 | AU27: 1.1 | AV27: 1.2 | AW27: 1.3 | AX27: 1.3 | AY27: 1.5 | AZ27: 1.6 | BA27: 1.6 | BB27: 1.6 | BC27: 1.6 | BD27: 1.1 | BE27: 1.1 | BF27: 1.1 | BG27: 1.3 | BH27: 1.4 | BI27: 1.4 | BJ27: 1.5 | BK27: 1.6 | BL27: 1.7 | BM27: 1.8 | BN27: 1.8 | BO27: 1.1 | BP27: 1.1 | BQ27: 1.2 | BR27: 1.3 | BS27: 1.4 | BT27: 1.5 | BU27: 1.6 | BV27: 1.7 | BW27: 1.8 | BX27: 1.9 | BY27: 1.9 | BZ27: 1.1 | CA27: 1.1 | CB27: 1.3 | CC27: 1.4 | CD27: 1.5 | CE27: 1.6 | CF27: 1.7 | CG27: 1.7 | CH27: 1.8 | CI27: 1.9 | CJ27: 1.9 | CK27: 1.2 | CL27: 1.2 | CM27: 1.4 | CN27: 1.5 | CO27: 1.6 | CP27: 1.7 | CQ27: 1.8 | CR27: 1.8 | CS27: 1.9 | CT27: 1.9 | CU27: 2.0 | CV27: 1.3 | CW27: 1.3 | CX27: 1.6 | CY27: 1.6 | CZ27: 1.7 | DA27: 1.9 | DB27: 2.0 | DC27: 2.0 | DD27: 2.1 | DE27: 2.1 | DF27: 2.2 | DG27: 1.4 | DH27: 1.5 | DI27: 1.8 | DJ27: 1.9 | DK27: 1.9 | DL27: 2.0 | DM27: 2.1 | DN27: 2.2 | DO27: 2.4 | DP27: 2.6 | DQ27: 2.7 | DR27: 1.6 | DS27: 1.8 | DT27: 1.9 | DU27: 2.0 | DV27: 2.1 | DW27: 2.3 | DX27: 2.4 | DY27: 2.5 | DZ27: 2.7 | EA27: 2.8 | EB27: 3.0 | EC27: 1.7 | ED27: 1.9 | EE27: 2.0 | EF27: 2.1 | EG27: 2.2 | EH27: 2.4 | EI27: 2.5 | EJ27: 2.6 | EK27: 2.8 | EL27: 2.9 | EM27: 3.1 | EN27: 2.0 | EO27: 2.3 | EP27: 2.4 | EQ27: 2.6 | ER27: 2.8 | ES27: 2.9 | ET27: 3.1 | EU27: 3.3 | EV27: 3.5 | EW27: 3.6 | EX27: 3.7 | EY27: -1.4 | EZ27: -1.0 | FA27: -0.5 | FB27: -0.1 | FC27: 0.2 | FD27: 0.5 | FE27: 0.7 | FF27: 0.8 | FG27: 1.0 | FH27: 1.1 | FI27: 1.3 | FJ27: -9.28E-07 | FK27: 1.47E-08 | FL27: -3.06E-11 | FM27: 2.76E-07 | FN27: 5.01E-10 | FO27: 3.19E-01 | FP27: 1 | FQ27: 3 | FR27: 2 | FS27: 4 | FT27: 2 | FU27: 2 | FV27: 3 | FZ27: 651 | GA27: 685 | GB27: 582 | GC27: 623 | GD27: 1.03 | GF27: 59 | GG27: 73 | GH27: 52 | GI27: 54 | GJ27: 56 | GK27: 57 | GL27: 57 | GM27: 58 | GN27: 59 | GO27: 60 | GP27: 61 | GQ27: 61 | GR27: 62 | GS27: 63 | GT27: 63 | GU27: 64 | GV27: 64 | GW27: 65 | GX27: 65 | GY27: 66 | GZ27: 68 | HA27: 69 | HB27: 71 | HD27: 120 | HF27: 539 | HG27: 149 | HH27: 86.2 | HI27: 33.8 | HJ27: 0.275 | HK27: 74 | HL27: 2.00 | HM27: 3.50 | HN27: 350/290 | HO27: 341/292 | HP27: -2.1 | HQ27: 0.841 | HR27: 0.925 | HS27: 0.981 | HT27: 0.992 | HU27: 0.999 | HV27: 0.999 | HW27: 0.999 | HX27: 0.999 | HY27: 0.999 | HZ27: 0.999 | IA27: 0.999 | IB27: 0.999 | IC27: 0.999 | ID27: 0.999 | IE27: 0.999 | IF27: 0.999 | IG27: 0.999 | IH27: 0.999 | II27: 0.999 | IJ27: 0.999 | IK27: 0.998 | IL27: 0.998 | IM27: 0.997 | IN27: 0.997 | IO27: 0.994 | IP27: 0.989 | IQ27: 0.983 | IR27: 0.967 | IS27: 0.936 | IT27: 0.885 | IU27: 0.806 | IV27: 0.687 | IW27: 0.529 | IX27: 0.348 | IY27: 0.181 | JA27: 0.707 | JB27: 0.857 | JC27: 0.963 | JD27: 0.986 | JE27: 0.998 | JF27: 0.998 | JG27: 0.998 | JH27: 0.998 | JI27: 0.998 | JJ27: 0.998 | JK27: 0.998 | JL27: 0.998 | JM27: 0.998 | JN27: 0.998 | JO27: 0.998 | JP27: 0.998 | JQ27: 0.998 | JR27: 0.998 | JS27: 0.998 | JT27: 0.998 | JU27: 0.996 | JV27: 0.996 | JW27: 0.995 | JX27: 0.994 | JY27: 0.989 | JZ27: 0.979 | KA27: 0.966 | KB27: 0.935 | KC27: 0.877 | KD27: 0.784 | KE27: 0.650 | KF27: 0.472 | KG27: 0.280 | KH27: 0.123 | KI27: 0.037 | KK27: PG RP | KL27: 11 | KM27: A | KN27: H-ZK7 | KO27: 613606 | KR27: H-ZK7A | KS27: 613604
A28: ★★★ | B28: 24 | C28: H-ZK9A | D28: 620603 | E28: 60.34 | F28: 60.10 | G28: 0.010281 | H28: 0.010363 | I28: 1.58878 | J28: 1.59483 | K28: 1.60134 | L28: 1.60692 | M28: 1.60789 | N28: 1.60868 | O28: 1.61168 | P28: 1.61367 | Q28: 1.61548 | R28: 1.61727 | S28: 1.61777 | T28: 1.61824 | U28: 1.62032 | V28: 1.62041 | W28: 1.62286 | X28: 1.62755 | Y28: 1.62813 | Z28: 1.63310 | AA28: 1.63768 | AB28: 1.64549 | AC28: 2.58626893E+00 | AD28: -1.19483745E-02 | AE28: 1.37737392E-02 | AF28: 5.49112685E-04 | AG28: -4.52101305E-05 | AH28: 2.44542790E-06 | AI28: 0.3054 | AJ28: 0.2383 | AK28: 0.5398 | AL28: 0.2548 | AM28: 0.2364 | AN28: 0.4796 | AO28: -0.0007 | AP28: -0.0035 | AQ28: 0.0030 | AR28: -0.0015 | AS28: 1.8 | AT28: 1.9 | AU28: 1.9 | AV28: 2.0 | AW28: 2.0 | AX28: 2.1 | AY28: 2.2 | AZ28: 2.2 | BA28: 2.4 | BB28: 2.5 | BC28: 2.5 | BD28: 2.1 | BE28: 2.2 | BF28: 2.2 | BG28: 2.3 | BH28: 2.3 | BI28: 2.3 | BJ28: 2.3 | BK28: 2.5 | BL28: 2.6 | BM28: 2.6 | BN28: 2.6 | BO28: 2.2 | BP28: 2.2 | BQ28: 2.3 | BR28: 2.4 | BS28: 2.4 | BT28: 2.5 | BU28: 2.5 | BV28: 2.5 | BW28: 2.6 | BX28: 2.7 | BY28: 2.7 | BZ28: 2.2 | CA28: 2.2 | CB28: 2.3 | CC28: 2.4 | CD28: 2.4 | CE28: 2.5 | CF28: 2.5 | CG28: 2.5 | CH28: 2.6 | CI28: 2.7 | CJ28: 2.7 | CK28: 2.2 | CL28: 2.3 | CM28: 2.4 | CN28: 2.4 | CO28: 2.4 | CP28: 2.5 | CQ28: 2.6 | CR28: 2.6 | CS28: 2.7 | CT28: 2.7 | CU28: 2.7 | CV28: 2.4 | CW28: 2.4 | CX28: 2.5 | CY28: 2.5 | CZ28: 2.6 | DA28: 2.6 | DB28: 2.7 | DC28: 2.8 | DD28: 2.8 | DE28: 2.8 | DF28: 2.9 | DG28: 2.5 | DH28: 2.6 | DI28: 2.7 | DJ28: 2.7 | DK28: 2.7 | DL28: 2.8 | DM28: 2.9 | DN28: 3.0 | DO28: 3.0 | DP28: 3.2 | DQ28: 3.3 | DR28: 2.6 | DS28: 2.6 | DT28: 2.7 | DU28: 2.8 | DV28: 2.8 | DW28: 3.0 | DX28: 3.0 | DY28: 3.2 | DZ28: 3.3 | EA28: 3.3 | EB28: 3.5 | EC28: 2.6 | ED28: 2.7 | EE28: 2.8 | EF28: 2.8 | EG28: 2.9 | EH28: 3.1 | EI28: 3.2 | EJ28: 3.4 | EK28: 3.5 | EL28: 3.5 | EM28: 3.7 | EN28: 2.7 | EO28: 2.7 | EP28: 2.8 | EQ28: 2.9 | ER28: 2.9 | ES28: 3.1 | ET28: 3.3 | EU28: 3.6 | EV28: 3.6 | EW28: 3.7 | EX28: 3.9 | EY28: -0.4 | EZ28: 0.1 | FA28: 0.5 | FB28: 0.8 | FC28: 1.0 | FD28: 1.3 | FE28: 1.5 | FF28: 1.6 | FG28: 1.8 | FH28: 1.9 | FI28: 2.0 | FJ28: 7.48E-07 | FK28: 1.25E-08 | FL28: -2.50E-11 | FM28: 4.11E-07 | FN28: 7.77E-10 | FO28: 7.84E-02 | FP28: 1 | FQ28: 2 | FR28: 2 | FS28: 4 | FT28: 3 | FU28: 2 | FV28: 4a | FZ28: 663 | GA28: 695 | GB28: 600 | GC28: 640 | GD28: 1.02 | GF28: 64 | GG28: 75 | GH28: 56 | GI28: 59 | GJ28: 61 | GK28: 62 | GL28: 63 | GM28: 64 | GN28: 64 | GO28: 65 | GP28: 65 | GQ28: 66 | GR28: 66 | GS28: 67 | GT28: 67 | GU28: 68 | GV28: 68 | GW28: 69 | GX28: 70 | GY28: 71 | GZ28: 72 | HA28: 73 | HB28: 74 | HD28: 125 | HF28: 550 | HG28: 105 | HH28: 89.5 | HI28: 34.5 | HJ28: 0.297 | HK28: 87 | HL28: 1.82 | HM28: 3.55 | HN28: 350/290 | HO28: 345/297 | HP28: -2.0 | HQ28: 0.864 | HR28: 0.944 | HS28: 0.995 | HT28: 0.999 | HU28: 0.999 | HV28: 0.999 | HW28: 0.999 | HX28: 0.999 | HY28: 0.999 | HZ28: 0.999 | IA28: 0.999 | IB28: 0.999 | IC28: 0.999 | ID28: 0.999 | IE28: 0.999 | IF28: 0.999 | IG28: 0.999 | IH28: 0.999 | II28: 0.999 | IJ28: 0.998 | IK28: 0.997 | IL28: 0.996 | IM28: 0.996 | IN28: 0.994 | IO28: 0.991 | IP28: 0.986 | IQ28: 0.976 | IR28: 0.955 | IS28: 0.917 | IT28: 0.857 | IU28: 0.757 | IV28: 0.620 | IW28: 0.447 | IX28: 0.272 | JA28: 0.746 | JB28: 0.891 | JC28: 0.990 | JD28: 0.998 | JE28: 0.998 | JF28: 0.998 | JG28: 0.998 | JH28: 0.998 | JI28: 0.998 | JJ28: 0.998 | JK28: 0.998 | JL28: 0.998 | JM28: 0.998 | JN28: 0.998 | JO28: 0.998 | JP28: 0.998 | JQ28: 0.998 | JR28: 0.998 | JS28: 0.998 | JT28: 0.996 | JU28: 0.995 | JV28: 0.993 | JW28: 0.992 | JX28: 0.988 | JY28: 0.982 | JZ28: 0.972 | KA28: 0.952 | KB28: 0.912 | KC28: 0.841 | KD28: 0.734 | KE28: 0.573 | KF28: 0.385 | KG28: 0.200 | KH28: 0.074 | KK28: PG RP | KL28: 11 | KM28: A | KN28: H-ZK9A | KO28: 620603 | KP28: S-BSM16 | KQ28: 620603 | KR28: H-ZK9A | KS28: 620603 | KT28: BACD16 | KU28: 620604 | KV28: K-SK16RH | KW28: 620603 | KX28: N-SK16 | KY28: 620603
B29: 25 | C29: H-ZK10 | D29: 622567 | E29: 56.71 | F29: 56.38 | G29: 0.010970 | H29: 0.011080 | I29: 1.59235 | J29: 1.59753 | K29: 1.60321 | L29: 1.60830 | M29: 1.60923 | N29: 1.61000 | O29: 1.61297 | P29: 1.61501 | Q29: 1.61689 | R29: 1.61877 | S29: 1.61929 | T29: 1.61979 | U29: 1.62199 | V29: 1.62210 | W29: 1.62470 | X29: 1.62974 | Y29: 1.63037 | Z29: 1.63575 | AA29: 1.64074 | AB29: 1.64931 | AC29: 2.58741488E+00 | AD29: -1.01011954E-02 | AE29: 1.49670832E-02 | AF29: 5.68916443E-04 | AG29: -4.40176529E-05 | AH29: 2.64008379E-06 | AI29: 0.3036 | AJ29: 0.2370 | AK29: 0.5479 | AL29: 0.2536 | AM29: 0.2347 | AN29: 0.4856 | AO29: 0.0005 | AP29: -0.0015 | AQ29: -0.0155 | AR29: -0.0078 | AS29: 1.3 | AT29: 1.3 | AU29: 1.3 | AV29: 1.3 | AW29: 1.3 | AX29: 1.5 | AY29: 1.6 | AZ29: 1.6 | BA29: 1.6 | BB29: 1.7 | BC29: 1.7 | BD29: 1.5 | BE29: 1.5 | BF29: 1.5 | BG29: 1.5 | BH29: 1.6 | BI29: 1.7 | BJ29: 1.8 | BK29: 1.9 | BL29: 1.9 | BM29: 1.9 | BN29: 1.9 | BO29: 1.7 | BP29: 1.7 | BQ29: 1.7 | BR29: 1.7 | BS29: 1.8 | BT29: 1.8 | BU29: 1.9 | BV29: 2.0 | BW29: 2.0 | BX29: 2.0 | BY29: 2.1 | BZ29: 1.8 | CA29: 1.8 | CB29: 1.8 | CC29: 1.8 | CD29: 1.9 | CE29: 1.9 | CF29: 2.0 | CG29: 2.1 | CH29: 2.1 | CI29: 2.2 | CJ29: 2.2 | CK29: 1.9 | CL29: 1.9 | CM29: 2.0 | CN29: 2.0 | CO29: 2.0 | CP29: 2.0 | CQ29: 2.1 | CR29: 2.2 | CS29: 2.2 | CT29: 2.3 | CU29: 2.3 | CV29: 2.0 | CW29: 2.1 | CX29: 2.1 | CY29: 2.1 | CZ29: 2.2 | DA29: 2.2 | DB29: 2.3 | DC29: 2.4 | DD29: 2.4 | DE29: 2.4 | DF29: 2.5 | DG29: 2.1 | DH29: 2.2 | DI29: 2.3 | DJ29: 2.3 | DK29: 2.4 | DL29: 2.4 | DM29: 2.6 | DN29: 2.7 | DO29: 2.8 | DP29: 2.8 | DQ29: 2.9 | DR29: 2.5 | DS29: 2.6 | DT29: 2.6 | DU29: 2.6 | DV29: 2.7 | DW29: 2.8 | DX29: 2.8 | DY29: 2.9 | DZ29: 3.0 | EA29: 3.0 | EB29: 3.1 | EC29: 2.6 | ED29: 2.7 | EE29: 2.7 | EF29: 2.7 | EG29: 2.8 | EH29: 2.8 | EI29: 2.9 | EJ29: 3.0 | EK29: 3.1 | EL29: 3.1 | EM29: 3.2 | EN29: 3.0 | EO29: 3.2 | EP29: 3.2 | EQ29: 3.2 | ER29: 3.3 | ES29: 3.4 | ET29: 3.6 | EU29: 3.7 | EV29: 3.8 | EW29: 3.8 | EX29: 4.0 | EY29: -0.7 | EZ29: -0.3 | FA29: 0.1 | FB29: 0.4 | FC29: 0.6 | FD29: 0.8 | FE29: 1.0 | FF29: 1.2 | FG29: 1.3 | FH29: 1.5 | FI29: 1.6 | FJ29: -7.55E-07 | FK29: 1.29E-08 | FL29: -2.51E-11 | FM29: 5.33E-07 | FN29: 3.07E-10 | FO29: 2.48E-01 | FP29: 1 | FQ29: 3 | FR29: 1 | FS29: 4 | FT29: 2 | FU29: 1 | FV29: 4a | FZ29: 664 | GA29: 704 | GB29: 597 | GC29: 635 | GD29: 0.94 | GF29: 64 | GG29: 78 | GH29: 55 | GI29: 57 | GJ29: 58 | GK29: 59 | GL29: 60 | GM29: 61 | GN29: 62 | GO29: 63 | GP29: 64 | GQ29: 65 | GR29: 65 | GS29: 66 | GT29: 67 | GU29: 68 | GV29: 69 | GW29: 69 | GX29: 70 | GY29: 71 | GZ29: 72 | HA29: 73 | HB29: 74 | HD29: 120 | HF29: 528 | HG29: 147 | HH29: 79.5 | HI29: 31.9 | HJ29: 0.248 | HK29: 75 | HL29: 1.80 | HM29: 3.63 | HN29: 360/320 | HO29: 353/322 | HP29: -1.0 | HQ29: 0.912 | HR29: 0.962 | HS29: 0.995 | HT29: 0.999 | HU29: 0.999 | HV29: 0.999 | HW29: 0.999 | HX29: 0.999 | HY29: 0.999 | HZ29: 0.999 | IA29: 0.999 | IB29: 0.999 | IC29: 0.999 | ID29: 0.999 | IE29: 0.999 | IF29: 0.999 | IG29: 0.999 | IH29: 0.999 | II29: 0.999 | IJ29: 0.999 | IK29: 0.999 | IL29: 0.999 | IM29: 0.997 | IN29: 0.995 | IO29: 0.990 | IP29: 0.983 | IQ29: 0.969 | IR29: 0.933 | IS29: 0.867 | IT29: 0.730 | IU29: 0.473 | IV29: 0.154 | JA29: 0.832 | JB29: 0.925 | JC29: 0.990 | JD29: 0.998 | JE29: 0.998 | JF29: 0.998 | JG29: 0.998 | JH29: 0.998 | JI29: 0.998 | JJ29: 0.998 | JK29: 0.998 | JL29: 0.998 | JM29: 0.998 | JN29: 0.998 | JO29: 0.998 | JP29: 0.998 | JQ29: 0.998 | JR29: 0.998 | JS29: 0.998 | JT29: 0.998 | JU29: 0.998 | JV29: 0.998 | JW29: 0.995 | JX29: 0.992 | JY29: 0.984 | JZ29: 0.968 | KA29: 0.941 | KB29: 0.876 | KC29: 0.757 | KD29: 0.537 | KE29: 0.228 | KF29: 0.027 | KK29: PG RP | KL29: 18 | KM29: A | KN29: H-ZK10 | KO29: 622567 | KP29: (S-BSM10) | KQ29: 623570 | KR29: H-ZK10 | KS29: 622567 | KT29: (E-BACD10) | KU29: 623569 | KX29: (N-SK10) | KY29: 623570
A30: ★★★ | B30: 26 | C30: H-ZK10N | D30: 623570 | E30: 56.98 | F30: 56.74 | G30: 0.010931 | H30: 0.011023 | I30: 1.59301 | J30: 1.59824 | K30: 1.60395 | L30: 1.60905 | M30: 1.60998 | N30: 1.61074 | O30: 1.61371 | P30: 1.61574 | Q30: 1.61761 | R30: 1.61948 | S30: 1.62002 | T30: 1.62051 | U30: 1.62270 | V30: 1.62280 | W30: 1.62541 | X30: 1.63042 | Y30: 1.63104 | Z30: 1.63639 | AA30: 1.64136 | AB30: 1.64991 | AC30: 2.59016969E+00 | AD30: -1.02103680E-02 | AE30: 1.46213934E-02 | AF30: 6.92375177E-04 | AG30: -6.66173315E-05 | AH30: 4.03789352E-06 | AI30: 0.3037 | AJ30: 0.2388 | AK30: 0.5462 | AL30: 0.2522 | AM30: 0.2368 | AN30: 0.4853 | AO30: -0.0004 | AP30: -0.0028 | AQ30: -0.0167 | AR30: -0.0093 | AS30: 2.0 | AT30: 2.1 | AU30: 2.1 | AV30: 2.1 | AW30: 2.1 | AX30: 2.1 | AY30: 2.2 | AZ30: 2.3 | BA30: 2.4 | BB30: 2.4 | BC30: 2.5 | BD30: 2.2 | BE30: 2.2 | BF30: 2.3 | BG30: 2.3 | BH30: 2.3 | BI30: 2.4 | BJ30: 2.5 | BK30: 2.6 | BL30: 2.7 | BM30: 2.7 | BN30: 2.8 | BO30: 2.3 | BP30: 2.3 | BQ30: 2.3 | BR30: 2.4 | BS30: 2.5 | BT30: 2.6 | BU30: 2.6 | BV30: 2.7 | BW30: 2.8 | BX30: 2.9 | BY30: 2.9 | BZ30: 2.3 | CA30: 2.3 | CB30: 2.3 | CC30: 2.4 | CD30: 2.5 | CE30: 2.6 | CF30: 2.7 | CG30: 2.8 | CH30: 2.9 | CI30: 2.9 | CJ30: 3.0 | CK30: 2.4 | CL30: 2.4 | CM30: 2.4 | CN30: 2.5 | CO30: 2.6 | CP30: 2.7 | CQ30: 2.8 | CR30: 2.9 | CS30: 3.0 | CT30: 3.0 | CU30: 3.1 | CV30: 2.5 | CW30: 2.5 | CX30: 2.5 | CY30: 2.6 | CZ30: 2.7 | DA30: 2.8 | DB30: 3.0 | DC30: 3.0 | DD30: 3.1 | DE30: 3.1 | DF30: 3.3 | DG30: 2.7 | DH30: 2.7 | DI30: 2.7 | DJ30: 2.8 | DK30: 2.9 | DL30: 2.9 | DM30: 3.0 | DN30: 3.1 | DO30: 3.2 | DP30: 3.2 | DQ30: 3.4 | DR30: 3.0 | DS30: 3.0 | DT30: 3.1 | DU30: 3.2 | DV30: 3.2 | DW30: 3.4 | DX30: 3.4 | DY30: 3.5 | DZ30: 3.6 | EA30: 3.6 | EB30: 3.7 | EC30: 3.1 | ED30: 3.1 | EE30: 3.1 | EF30: 3.2 | EG30: 3.3 | EH30: 3.4 | EI30: 3.4 | EJ30: 3.5 | EK30: 3.6 | EL30: 3.6 | EM30: 3.7 | EN30: 3.2 | EO30: 3.3 | EP30: 3.4 | EQ30: 3.5 | ER30: 3.6 | ES30: 3.7 | ET30: 3.7 | EU30: 3.8 | EV30: 3.8 | EW30: 3.8 | EX30: 4.0 | EY30: -0.2 | EZ30: 0.2 | FA30: 0.5 | FB30: 0.9 | FC30: 1.2 | FD30: 1.5 | FE30: 1.7 | FF30: 1.9 | FG30: 2.1 | FH30: 2.2 | FI30: 2.4 | FJ30: 6.89E-07 | FK30: 1.42E-08 | FL30: -2.56E-11 | FM30: 3.07E-10 | FN30: 1.53E-10 | FO30: 1.41E-01 | FP30: 1 | FQ30: 3 | FR30: 1 | FS30: 4 | FT30: 2 | FU30: 2 | FV30: 2 | FZ30: 661 | GA30: 708 | GB30: 595 | GC30: 638 | GD30: 0.80 | GF30: 66 | GG30: 80 | GH30: 57 | GI30: 59 | GJ30: 61 | GK30: 62 | GL30: 62 | GM30: 63 | GN30: 64 | GO30: 64 | GP30: 65 | GQ30: 66 | GR30: 67 | GS30: 67 | GT30: 68 | GU30: 69 | GV30: 70 | GW30: 71 | GX30: 72 | GY30: 73 | GZ30: 74 | HA30: 76 | HB30: 77 | HD30: 120 | HF30: 521 | HG30: 153 | HH30: 81.9 | HI30: 32.4 | HJ30: 0.265 | HK30: 62 | HL30: 1.88 | HM30: 3.64 | HN30: 360/320 | HO30: 353/320 | HP30: -0.7 | HQ30: 0.914 | HR30: 0.963 | HS30: 0.996 | HT30: 0.999 | HU30: 0.999 | HV30: 0.999 | HW30: 0.999 | HX30: 0.999 | HY30: 0.999 | HZ30: 0.999 | IA30: 0.999 | IB30: 0.999 | IC30: 0.999 | ID30: 0.999 | IE30: 0.999 | IF30: 0.999 | IG30: 0.999 | IH30: 0.999 | II30: 0.999 | IJ30: 0.999 | IK30: 0.997 | IL30: 0.997 | IM30: 0.996 | IN30: 0.994 | IO30: 0.991 | IP30: 0.986 | IQ30: 0.971 | IR30: 0.942 | IS30: 0.860 | IT30: 0.740 | IU30: 0.515 | IV30: 0.221 | JA30: 0.825 | JB30: 0.923 | JC30: 0.984 | JD30: 0.998 | JE30: 0.998 | JF30: 0.998 | JG30: 0.998 | JH30: 0.998 | JI30: 0.998 | JJ30: 0.998 | JK30: 0.998 | JL30: 0.998 | JM30: 0.998 | JN30: 0.998 | JO30: 0.998 | JP30: 0.998 | JQ30: 0.998 | JR30: 0.998 | JS30: 0.998 | JT30: 0.998 | JU30: 0.995 | JV30: 0.995 | JW30: 0.993 | JX30: 0.992 | JY30: 0.981 | JZ30: 0.972 | KA30: 0.943 | KB30: 0.888 | KC30: 0.740 | KD30: 0.547 | KE30: 0.265 | KF30: 0.049 | KK30: PG RP | KL30: 16 | KM30: A | KN30: H-ZK10N | KO30: 623570 | KP30: S-BSM10 | KQ30: 623570 | KR30: H-ZK10L | KS30: 623569 | KT30: E-BACD10 | KU30: 623569 | KX30: N-SK10 | KY30: 623570
A31: ★★★ | B31: 27 | C31: H-ZK11 | D31: 639555 | E31: 55.45 | F31: 55.18 | G31: 0.011516 | H31: 0.011621 | I31: 1.60803 | J31: 1.61325 | K31: 1.61900 | L31: 1.62419 | M31: 1.62514 | N31: 1.62593 | O31: 1.62900 | P31: 1.63114 | Q31: 1.63310 | R31: 1.63505 | S31: 1.63561 | T31: 1.63613 | U31: 1.63844 | V31: 1.63854 | W31: 1.64129 | X31: 1.64657 | Y31: 1.64723 | Z31: 1.65291 | AA31: 1.65819 | AB31: 1.66725 | AC31: 2.63821944E+00 | AD31: -1.02473310E-02 | AE31: 1.58983043E-02 | AF31: 5.77973503E-04 | AG31: -3.90220391E-05 | AH31: 2.35832993E-06 | AI31: 0.3031 | AJ31: 0.2388 | AK31: 0.5505 | AL31: 0.2521 | AM31: 0.2366 | AN31: 0.4888 | AO31: -0.0011 | AP31: -0.0010 | AQ31: -0.0169 | AR31: -0.0081 | AS31: 1.3 | AT31: 1.3 | AU31: 1.3 | AV31: 1.3 | AW31: 1.3 | AX31: 1.5 | AY31: 1.5 | AZ31: 1.5 | BA31: 1.6 | BB31: 1.8 | BC31: 1.8 | BD31: 1.5 | BE31: 1.5 | BF31: 1.5 | BG31: 1.5 | BH31: 1.5 | BI31: 1.7 | BJ31: 1.8 | BK31: 1.9 | BL31: 1.9 | BM31: 1.9 | BN31: 1.9 | BO31: 1.7 | BP31: 1.7 | BQ31: 1.7 | BR31: 1.7 | BS31: 1.8 | BT31: 1.7 | BU31: 1.8 | BV31: 1.9 | BW31: 1.9 | BX31: 1.9 | BY31: 2.0 | BZ31: 1.8 | CA31: 1.8 | CB31: 1.8 | CC31: 1.8 | CD31: 1.9 | CE31: 1.9 | CF31: 1.9 | CG31: 1.9 | CH31: 1.9 | CI31: 2.0 | CJ31: 2.0 | CK31: 1.9 | CL31: 1.9 | CM31: 2.0 | CN31: 2.0 | CO31: 2.0 | CP31: 2.0 | CQ31: 2.0 | CR31: 2.0 | CS31: 2.0 | CT31: 2.1 | CU31: 2.1 | CV31: 1.9 | CW31: 2.0 | CX31: 2.0 | CY31: 2.0 | CZ31: 2.0 | DA31: 2.1 | DB31: 2.2 | DC31: 2.2 | DD31: 2.2 | DE31: 2.3 | DF31: 2.3 | DG31: 2.1 | DH31: 2.2 | DI31: 2.3 | DJ31: 2.4 | DK31: 2.4 | DL31: 2.4 | DM31: 2.4 | DN31: 2.5 | DO31: 2.7 | DP31: 2.7 | DQ31: 2.7 | DR31: 2.3 | DS31: 2.5 | DT31: 2.6 | DU31: 2.7 | DV31: 2.7 | DW31: 2.7 | DX31: 2.7 | DY31: 2.8 | DZ31: 2.9 | EA31: 2.9 | EB31: 3.0 | EC31: 2.5 | ED31: 2.7 | EE31: 2.7 | EF31: 2.8 | EG31: 2.8 | EH31: 2.8 | EI31: 2.8 | EJ31: 2.9 | EK31: 3.0 | EL31: 3.0 | EM31: 3.1 | EN31: 2.9 | EO31: 2.9 | EP31: 2.9 | EQ31: 3.0 | ER31: 3.1 | ES31: 3.1 | ET31: 3.1 | EU31: 3.3 | EV31: 3.4 | EW31: 3.4 | EX31: 3.4 | EY31: -0.7 | EZ31: -0.3 | FA31: 0.1 | FB31: 0.4 | FC31: 0.6 | FD31: 0.7 | FE31: 0.9 | FF31: 1.0 | FG31: 1.1 | FH31: 1.3 | FI31: 1.4 | FJ31: -8.12E-07 | FK31: 1.25E-08 | FL31: -2.55E-11 | FM31: 5.57E-07 | FN31: 2.06E-10 | FO31: 1.96E-01 | FP31: 1 | FQ31: 2 | FR31: 1 | FS31: 3 | FT31: 2 | FU31: 2 | FV31: 4a | FZ31: 649 | GA31: 685 | GB31: 591 | GC31: 624 | GD31: 1.03 | GF31: 71 | GG31: 85 | GH31: 63 | GI31: 67 | GJ31: 68 | GK31: 70 | GL31: 72 | GM31: 73 | GN31: 73 | GO31: 73 | GP31: 74 | GQ31: 74 | GR31: 75 | GS31: 75 | GT31: 76 | GU31: 77 | GV31: 78 | GW31: 78 | GX31: 79 | GY31: 80 | GZ31: 81 | HA31: 82 | HB31: 83 | HD31: 112 | HF31: 510 | HG31: 160 | HH31: 86.2 | HI31: 33.0 | HJ31: 0.307 | HK31: 53 | HL31: 1.69 | HM31: 3.67 | HN31: 365/325 | HO31: 358/326 | HP31: -0.4 | HQ31: 0.902 | HR31: 0.964 | HS31: 0.994 | HT31: 0.999 | HU31: 0.999 | HV31: 0.999 | HW31: 0.999 | HX31: 0.999 | HY31: 0.999 | HZ31: 0.999 | IA31: 0.999 | IB31: 0.999 | IC31: 0.999 | ID31: 0.999 | IE31: 0.999 | IF31: 0.999 | IG31: 0.999 | IH31: 0.999 | II31: 0.999 | IJ31: 0.998 | IK31: 0.995 | IL31: 0.995 | IM31: 0.993 | IN31: 0.988 | IO31: 0.981 | IP31: 0.968 | IQ31: 0.945 | IR31: 0.898 | IS31: 0.801 | IT31: 0.616 | IU31: 0.326 | IV31: 0.067 | JA31: 0.815 | JB31: 0.930 | JC31: 0.989 | JD31: 0.998 | JE31: 0.998 | JF31: 0.998 | JG31: 0.998 | JH31: 0.998 | JI31: 0.998 | JJ31: 0.998 | JK31: 0.998 | JL31: 0.998 | JM31: 0.998 | JN31: 0.998 | JO31: 0.998 | JP31: 0.998 | JQ31: 0.998 | JR31: 0.998 | JS31: 0.998 | JT31: 0.996 | JU31: 0.993 | JV31: 0.990 | JW31: 0.986 | JX31: 0.976 | JY31: 0.962 | JZ31: 0.937 | KA31: 0.893 | KB31: 0.806 | KC31: 0.642 | KD31: 0.379 | KE31: 0.106 | KF31: 0.004 | KK31: PG RP | KL31: 10 | KM31: MA | KN31: H-ZK11 | KO31: 639555 | KP31: S-BSM18 | KQ31: 639554 | KR31: H-ZK11 | KS31: 639555 | KT31: BACD18 | KU31: 639555 | KV31: K-SK18RH | KW31: 639555
A32: ★★ | B32: 28 | C32: H-ZK14 | D32: 603606 | E32: 60.60 | F32: 60.35 | G32: 0.009952 | H32: 0.010033 | I32: 1.57307 | J32: 1.57874 | K32: 1.58486 | L32: 1.59014 | M32: 1.59106 | N32: 1.59182 | O32: 1.59469 | P32: 1.59661 | Q32: 1.59835 | R32: 1.60007 | S32: 1.60056 | T32: 1.60101 | U32: 1.60302 | V32: 1.60311 | W32: 1.60548 | X32: 1.61003 | Y32: 1.61059 | Z32: 1.61541 | AA32: 1.61987 | AB32: 1.62743 | AC32: 2.53182995E+00 | AD32: -1.10534989E-02 | AE32: 1.34222293E-02 | AF32: 4.21021754E-04 | AG32: -2.24912138E-05 | AH32: 1.01669782E-06 | AI32: 0.3055 | AJ32: 0.2381 | AK32: 0.5406 | AL32: 0.2542 | AM32: 0.2362 | AN32: 0.4804 | AO32: 0.0004 | AP32: -0.0023 | AQ32: -0.0048 | AR32: -0.0052 | AS32: 2.6 | AT32: 2.7 | AU32: 2.7 | AV32: 2.8 | AW32: 2.8 | AX32: 3.0 | AY32: 3.1 | AZ32: 3.2 | BA32: 3.3 | BB32: 3.5 | BC32: 3.5 | BD32: 2.7 | BE32: 2.7 | BF32: 2.8 | BG32: 2.9 | BH32: 2.9 | BI32: 3.0 | BJ32: 3.2 | BK32: 3.3 | BL32: 3.4 | BM32: 3.5 | BN32: 3.6 | BO32: 2.9 | BP32: 2.9 | BQ32: 2.9 | BR32: 3.1 | BS32: 3.1 | BT32: 3.2 | BU32: 3.2 | BV32: 3.3 | BW32: 3.4 | BX32: 3.5 | BY32: 3.7 | BZ32: 2.9 | CA32: 2.9 | CB32: 3.0 | CC32: 3.1 | CD32: 3.2 | CE32: 3.2 | CF32: 3.3 | CG32: 3.4 | CH32: 3.5 | CI32: 3.6 | CJ32: 3.7 | CK32: 2.9 | CL32: 3.0 | CM32: 3.0 | CN32: 3.2 | CO32: 3.2 | CP32: 3.2 | CQ32: 3.4 | CR32: 3.5 | CS32: 3.5 | CT32: 3.6 | CU32: 3.8 | CV32: 3.0 | CW32: 3.1 | CX32: 3.1 | CY32: 3.3 | CZ32: 3.3 | DA32: 3.4 | DB32: 3.6 | DC32: 3.7 | DD32: 3.7 | DE32: 3.9 | DF32: 4.1 | DG32: 3.3 | DH32: 3.4 | DI32: 3.4 | DJ32: 3.5 | DK32: 3.5 | DL32: 3.7 | DM32: 3.8 | DN32: 4.1 | DO32: 4.4 | DP32: 4.5 | DQ32: 4.5 | DR32: 3.3 | DS32: 3.5 | DT32: 3.7 | DU32: 3.7 | DV32: 3.7 | DW32: 3.8 | DX32: 3.9 | DY32: 4.1 | DZ32: 4.3 | EA32: 4.4 | EB32: 4.6 | EC32: 3.3 | ED32: 3.5 | EE32: 3.7 | EF32: 3.7 | EG32: 3.7 | EH32: 3.9 | EI32: 4.0 | EJ32: 4.2 | EK32: 4.4 | EL32: 4.5 | EM32: 4.7 | EN32: 3.8 | EO32: 3.8 | EP32: 3.8 | EQ32: 3.9 | ER32: 4.0 | ES32: 4.3 | ET32: 4.4 | EU32: 4.6 | EV32: 4.9 | EW32: 5.0 | EX32: 5.2 | EY32: 0.3 | EZ32: 0.8 | FA32: 1.2 | FB32: 1.6 | FC32: 1.8 | FD32: 2.0 | FE32: 2.3 | FF32: 2.5 | FG32: 2.6 | FH32: 2.8 | FI32: 3.1 | FJ32: 2.35E-06 | FK32: 1.42E-08 | FL32: -1.91E-11 | FM32: 3.40E-07 | FN32: 4.95E-10 | FO32: 2.58E-01 | FP32: 3 | FQ32: 3 | FR32: 2 | FS32: 4 | FT32: 2 | FU32: 2 | FZ32: 666 | GA32: 704 | GB32: 583 | GC32: 625 | GD32: 0.93 | GF32: 57 | GG32: 73 | GH32: 50 | GI32: 52 | GJ32: 54 | GK32: 55 | GL32: 56 | GM32: 57 | GN32: 58 | GO32: 59 | GP32: 59 | GQ32: 60 | GR32: 61 | GS32: 61 | GT32: 62 | GU32: 62 | GV32: 63 | GW32: 63 | GX32: 64 | GY32: 65 | GZ32: 66 | HA32: 67 | HB32: 68 | HD32: 125 | HF32: 567 | HG32: 131 | HH32: 85.1 | HI32: 33.3 | HJ32: 0.278 | HK32: 85 | HL32: 1.84 | HM32: 3.42 | HN32: 345/290 | HO32: 334/290 | HP32: -5.0 | HQ32: 0.879 | HR32: 0.939 | HS32: 0.983 | HT32: 0.993 | HU32: 0.999 | HV32: 0.999 | HW32: 0.999 | HX32: 0.999 | HY32: 0.999 | HZ32: 0.999 | IA32: 0.999 | IB32: 0.999 | IC32: 0.999 | ID32: 0.999 | IE32: 0.999 | IF32: 0.999 | IG32: 0.999 | IH32: 0.999 | II32: 0.999 | IJ32: 0.999 | IK32: 0.997 | IL32: 0.997 | IM32: 0.997 | IN32: 0.996 | IO32: 0.994 | IP32: 0.992 | IQ32: 0.985 | IR32: 0.976 | IS32: 0.954 | IT32: 0.919 | IU32: 0.862 | IV32: 0.762 | IW32: 0.615 | IX32: 0.419 | IY32: 0.210 | JA32: 0.774 | JB32: 0.880 | JC32: 0.967 | JD32: 0.984 | JE32: 0.996 | JF32: 0.997 | JG32: 0.998 | JH32: 0.998 | JI32: 0.998 | JJ32: 0.998 | JK32: 0.998 | JL32: 0.998 | JM32: 0.998 | JN32: 0.998 | JO32: 0.998 | JP32: 0.998 | JQ32: 0.998 | JR32: 0.998 | JS32: 0.998 | JT32: 0.998 | JU32: 0.995 | JV32: 0.995 | JW32: 0.995 | JX32: 0.995 | JY32: 0.990 | JZ32: 0.985 | KA32: 0.976 | KB32: 0.957 | KC32: 0.916 | KD32: 0.852 | KE32: 0.747 | KF32: 0.588 | KG32: 0.385 | KH32: 0.180 | KI32: 0.050 | KK32: PG RP | KL32: 18 | KM32: A | KN32: H-ZK14 | KO32: 603606 | KP32: S-BSM14 | KQ32: 603607 | KR32: H-ZK14 | KS32: 603606 | KT32: BACD14 | KU32: 603607 | KV32: K-SK14 | KW32: 603607 | KX32: N-SK14 | KY32: 603606
B33: 29 | C33: H-ZK20 | D33: 617539 | E33: 53.91 | F33: 53.62 | G33: 0.011448 | H33: 0.011561 | I33: 1.58879 | J33: 1.59335 | K33: 1.59844 | L33: 1.60320 | M33: 1.60410 | N33: 1.60485 | O33: 1.60781 | P33: 1.60989 | Q33: 1.61181 | R33: 1.61375 | S33: 1.61430 | T33: 1.61481 | U33: 1.61710 | V33: 1.61720 | W33: 1.61993 | X33: 1.62520 | Y33: 1.62586 | Z33: 1.63150 | AA33: 1.63676 | AB33: 1.64578 | AC33: 2.56855897E+00 | AD33: -8.74295850E-03 | AE33: 1.59604033E-02 | AF33: 4.91034285E-04 | AG33: -2.77331960E-05 | AH33: 1.72056496E-06 | AI33: 0.3014 | AJ33: 0.2385 | AK33: 0.5503 | AL33: 0.2508 | AM33: 0.2361 | AN33: 0.4878 | AO33: -0.0001 | AP33: -0.0037 | AQ33: -0.0239 | AR33: -0.0109 | AS33: 1.9 | AT33: 2.1 | AU33: 2.1 | AV33: 2.3 | AW33: 2.4 | AX33: 2.5 | AY33: 2.6 | AZ33: 2.7 | BA33: 2.9 | BB33: 3.0 | BC33: 3.0 | BD33: 2.2 | BE33: 2.3 | BF33: 2.3 | BG33: 2.4 | BH33: 2.6 | BI33: 2.7 | BJ33: 2.9 | BK33: 3.1 | BL33: 3.2 | BM33: 3.3 | BN33: 3.4 | BO33: 2.4 | BP33: 2.4 | BQ33: 2.5 | BR33: 2.5 | BS33: 2.7 | BT33: 2.9 | BU33: 3.1 | BV33: 3.3 | BW33: 3.4 | BX33: 3.5 | BY33: 3.6 | BZ33: 2.5 | CA33: 2.5 | CB33: 2.6 | CC33: 2.6 | CD33: 2.8 | CE33: 2.9 | CF33: 3.1 | CG33: 3.3 | CH33: 3.5 | CI33: 3.6 | CJ33: 3.6 | CK33: 2.6 | CL33: 2.6 | CM33: 2.7 | CN33: 2.7 | CO33: 2.8 | CP33: 3.0 | CQ33: 3.2 | CR33: 3.4 | CS33: 3.5 | CT33: 3.6 | CU33: 3.7 | CV33: 2.9 | CW33: 3.0 | CX33: 3.0 | CY33: 3.1 | CZ33: 3.2 | DA33: 3.4 | DB33: 3.7 | DC33: 4.0 | DD33: 4.2 | DE33: 4.3 | DF33: 4.4 | DG33: 3.3 | DH33: 3.5 | DI33: 3.6 | DJ33: 3.6 | DK33: 3.8 | DL33: 4.0 | DM33: 4.2 | DN33: 4.5 | DO33: 4.7 | DP33: 4.8 | DQ33: 5.0 | DR33: 3.7 | DS33: 3.8 | DT33: 3.9 | DU33: 4.0 | DV33: 4.2 | DW33: 4.5 | DX33: 4.6 | DY33: 4.8 | DZ33: 5.0 | EA33: 5.1 | EB33: 5.3 | EC33: 3.8 | ED33: 3.9 | EE33: 4.0 | EF33: 4.1 | EG33: 4.3 | EH33: 4.6 | EI33: 4.8 | EJ33: 4.9 | EK33: 5.1 | EL33: 5.2 | EM33: 5.3 | EN33: 4.5 | EO33: 4.6 | EP33: 4.7 | EQ33: 4.9 | ER33: 4.9 | ES33: 5.1 | ET33: 5.3 | EU33: 5.5 | EV33: 5.6 | EW33: 5.7 | EX33: 5.8 | EY33: 0.0 | EZ33: 0.4 | FA33: 0.8 | FB33: 1.1 | FC33: 1.4 | FD33: 1.8 | FE33: 2.1 | FF33: 2.4 | FG33: 2.6 | FH33: 2.8 | FI33: 3.0 | FJ33: 4.73E-07 | FK33: 1.71E-08 | FL33: -2.20E-11 | FM33: 8.83E-07 | FN33: 2.84E-10 | FO33: 2.17E-01 | FP33: 1 | FQ33: 3 | FR33: 1 | FS33: 3 | FT33: 2 | FU33: 2 | FV33: 3 | FZ33: 555 | GA33: 592 | GB33: 501 | GC33: 535 | GD33: 0.85 | GF33: 87 | GG33: 99 | GH33: 77 | GI33: 79 | GJ33: 81 | GK33: 82 | GL33: 82 | GM33: 83 | GN33: 84 | GO33: 85 | GP33: 85 | GQ33: 86 | GR33: 86 | GS33: 87 | GT33: 88 | GU33: 89 | GV33: 91 | GW33: 92 | GX33: 93 | GY33: 93 | GZ33: 95 | HA33: 97 | HB33: 98 | HD33: 90 | HF33: 525 | HG33: 158 | HH33: 76.6 | HI33: 30.9 | HJ33: 0.241 | HK33: 57 | HL33: 2.06 | HM33: 3.60 | HN33: 350/295 | HO33: 337/290 | HP33: -11.8 | HQ33: 0.911 | HR33: 0.957 | HS33: 0.987 | HT33: 0.995 | HU33: 0.999 | HV33: 0.999 | HW33: 0.999 | HX33: 0.999 | HY33: 0.999 | HZ33: 0.999 | IA33: 0.999 | IB33: 0.999 | IC33: 0.999 | ID33: 0.999 | IE33: 0.999 | IF33: 0.999 | IG33: 0.999 | IH33: 0.999 | II33: 0.999 | IJ33: 0.999 | IK33: 0.999 | IL33: 0.999 | IM33: 0.998 | IN33: 0.997 | IO33: 0.996 | IP33: 0.994 | IQ33: 0.988 | IR33: 0.977 | IS33: 0.954 | IT33: 0.907 | IU33: 0.830 | IV33: 0.711 | IW33: 0.551 | IX33: 0.371 | IY33: 0.209 | IZ33: 0.093 | JA33: 0.830 | JB33: 0.916 | JC33: 0.974 | JD33: 0.990 | JE33: 0.998 | JF33: 0.998 | JG33: 0.998 | JH33: 0.998 | JI33: 0.998 | JJ33: 0.998 | JK33: 0.998 | JL33: 0.998 | JM33: 0.998 | JN33: 0.998 | JO33: 0.998 | JP33: 0.998 | JQ33: 0.998 | JR33: 0.998 | JS33: 0.998 | JT33: 0.998 | JU33: 0.998 | JV33: 0.998 | JW33: 0.996 | JX33: 0.994 | JY33: 0.992 | JZ33: 0.989 | KA33: 0.976 | KB33: 0.952 | KC33: 0.905 | KD33: 0.821 | KE33: 0.689 | KF33: 0.508 | KG33: 0.307 | KH33: 0.141 | KI33: 0.046 | KJ33: 0.011 | KK33: PG RP | KL33: 16 | KM33: B | KN33: H-ZK20 | KO33: 617539 | KR33: H-ZK20 | KS33: 617539 | KV33: K-SSK1 | KW33: 617540
A34: ★★ | B34: 30 | C34: H-ZK21 | D34: 623581 | E34: 58.12 | F34: 57.87 | G34: 0.010719 | H34: 0.010809 | I34: 1.59235 | J34: 1.59795 | K34: 1.60402 | L34: 1.60931 | M34: 1.61026 | N34: 1.61103 | O34: 1.61401 | P34: 1.61603 | Q34: 1.61787 | R34: 1.61973 | S34: 1.62025 | T34: 1.62074 | U34: 1.62290 | V34: 1.62299 | W34: 1.62555 | X34: 1.63045 | Y34: 1.63106 | Z34: 1.63629 | AA34: 1.64113 | AB34: 1.64946 | AC34: 2.59254654E+00 | AD34: -1.10129354E-02 | AE34: 1.38896553E-02 | AF34: 8.21371542E-04 | AG34: -8.84083953E-05 | AH34: 5.19951049E-06 | AI34: 0.3041 | AJ34: 0.2388 | AK34: 0.5448 | AL34: 0.2535 | AM34: 0.2368 | AN34: 0.4839 | AO34: -0.0010 | AP34: -0.0022 | AQ34: -0.0101 | AR34: -0.0063 | AS34: 1.9 | AT34: 1.9 | AU34: 1.9 | AV34: 1.9 | AW34: 2.0 | AX34: 2.1 | AY34: 2.1 | AZ34: 2.3 | BA34: 2.4 | BB34: 2.4 | BC34: 2.5 | BD34: 2.1 | BE34: 2.1 | BF34: 2.1 | BG34: 2.1 | BH34: 2.2 | BI34: 2.3 | BJ34: 2.3 | BK34: 2.5 | BL34: 2.6 | BM34: 2.7 | BN34: 2.8 | BO34: 2.2 | BP34: 2.2 | BQ34: 2.2 | BR34: 2.3 | BS34: 2.3 | BT34: 2.4 | BU34: 2.5 | BV34: 2.7 | BW34: 2.8 | BX34: 2.9 | BY34: 3.0 | BZ34: 2.2 | CA34: 2.2 | CB34: 2.2 | CC34: 2.3 | CD34: 2.3 | CE34: 2.4 | CF34: 2.5 | CG34: 2.7 | CH34: 2.8 | CI34: 2.9 | CJ34: 3.1 | CK34: 2.3 | CL34: 2.3 | CM34: 2.3 | CN34: 2.4 | CO34: 2.4 | CP34: 2.5 | CQ34: 2.6 | CR34: 2.7 | CS34: 2.8 | CT34: 2.9 | CU34: 3.1 | CV34: 2.4 | CW34: 2.4 | CX34: 2.4 | CY34: 2.4 | CZ34: 2.5 | DA34: 2.6 | DB34: 2.7 | DC34: 2.9 | DD34: 3.1 | DE34: 3.2 | DF34: 3.4 | DG34: 2.5 | DH34: 2.5 | DI34: 2.5 | DJ34: 2.6 | DK34: 2.7 | DL34: 2.7 | DM34: 2.9 | DN34: 3.1 | DO34: 3.3 | DP34: 3.5 | DQ34: 3.6 | DR34: 2.8 | DS34: 2.8 | DT34: 2.8 | DU34: 2.9 | DV34: 3.0 | DW34: 3.1 | DX34: 3.2 | DY34: 3.4 | DZ34: 3.5 | EA34: 3.6 | EB34: 3.7 | EC34: 2.8 | ED34: 2.8 | EE34: 2.8 | EF34: 2.9 | EG34: 3.0 | EH34: 3.1 | EI34: 3.2 | EJ34: 3.4 | EK34: 3.5 | EL34: 3.7 | EM34: 3.8 | EN34: 3.1 | EO34: 3.2 | EP34: 3.1 | EQ34: 3.2 | ER34: 3.3 | ES34: 3.5 | ET34: 3.7 | EU34: 3.9 | EV34: 4.0 | EW34: 4.2 | EX34: 4.3 | EY34: -0.3 | EZ34: 0.1 | FA34: 0.4 | FB34: 0.8 | FC34: 1.0 | FD34: 1.3 | FE34: 1.5 | FF34: 1.7 | FG34: 1.9 | FH34: 2.1 | FI34: 2.4 | FJ34: 5.19E-07 | FK34: 1.33E-08 | FL34: -1.46E-11 | FM34: 4.16E-07 | FN34: 4.90E-10 | FO34: 2.14E-01 | FP34: 3 | FQ34: 3 | FR34: 2 | FS34: 4 | FT34: 2 | FU34: 2 | FV34: 2 | FZ34: 664 | GA34: 706 | GB34: 605 | GC34: 651 | GD34: 0.76 | GF34: 67 | GG34: 79 | GH34: 61 | GI34: 63 | GJ34: 65 | GK34: 66 | GL34: 66 | GM34: 67 | GN34: 67 | GO34: 68 | GP34: 68 | GQ34: 69 | GR34: 69 | GS34: 70 | GT34: 70 | GU34: 70 | GV34: 71 | GW34: 71 | GX34: 72 | GY34: 73 | GZ34: 74 | HA34: 75 | HB34: 76 | HD34: 130 | HF34: 551 | HG34: 138 | HH34: 85.3 | HI34: 33.3 | HJ34: 0.279 | HK34: 87 | HL34: 1.81 | HM34: 3.61 | HN34: 360/320 | HO34: 355/323 | HP34: -0.8 | HQ34: 0.882 | HR34: 0.948 | HS34: 0.980 | HT34: 0.988 | HU34: 0.999 | HV34: 0.999 | HW34: 0.999 | HX34: 0.999 | HY34: 0.999 | HZ34: 0.999 | IA34: 0.999 | IB34: 0.999 | IC34: 0.999 | ID34: 0.999 | IE34: 0.999 | IF34: 0.999 | IG34: 0.999 | IH34: 0.999 | II34: 0.999 | IJ34: 0.997 | IK34: 0.996 | IL34: 0.996 | IM34: 0.996 | IN34: 0.992 | IO34: 0.988 | IP34: 0.982 | IQ34: 0.962 | IR34: 0.924 | IS34: 0.850 | IT34: 0.698 | IU34: 0.421 | IV34: 0.071 | JA34: 0.778 | JB34: 0.899 | JC34: 0.960 | JD34: 0.976 | JE34: 0.998 | JF34: 0.998 | JG34: 0.998 | JH34: 0.998 | JI34: 0.998 | JJ34: 0.998 | JK34: 0.998 | JL34: 0.998 | JM34: 0.998 | JN34: 0.998 | JO34: 0.998 | JP34: 0.998 | JQ34: 0.998 | JR34: 0.998 | JS34: 0.998 | JT34: 0.995 | JU34: 0.994 | JV34: 0.992 | JW34: 0.992 | JX34: 0.985 | JY34: 0.976 | JZ34: 0.965 | KA34: 0.926 | KB34: 0.854 | KC34: 0.723 | KD34: 0.487 | KE34: 0.177 | KF34: 0.005 | KK34: PG RP | KL34: 20 | KM34: A | KN34: H-ZK21 | KO34: 623581 | KP34: S-BSM15 | KQ34: 623582 | KR34: H-ZK21 | KS34: 623581 | KT34: BACD15 | KU34: 623581 | KV34: K-SK15 | KW34: 623581 | KX34: N-SK15 | KY34: 623580
B35: 31 | C35: H-ZK50 | D35: 607567 | E35: 56.65 | F35: 56.38 | G35: 0.010721 | H35: 0.010819 | I35: 1.57933 | J35: 1.58405 | K35: 1.58926 | L35: 1.59403 | M35: 1.59491 | N35: 1.59564 | O35: 1.59850 | P35: 1.60048 | Q35: 1.60230 | R35: 1.60414 | S35: 1.60465 | T35: 1.60513 | U35: 1.60729 | V35: 1.60738 | W35: 1.60994 | X35: 1.61486 | Y35: 1.61547 | Z35: 1.62073 | AA35: 1.62562 | AB35: 1.63393 | AC35: 2.54047355E+00 | AD35: -9.05535161E-03 | AE35: 1.49621725E-02 | AF35: 3.92388778E-04 | AG35: -1.51543800E-05 | AH35: 7.76341926E-07 | AI35: 0.3022 | AJ35: 0.2388 | AK35: 0.5475 | AL35: 0.2523 | AM35: 0.2366 | AN35: 0.4862 | AO35: 0.0000 | AP35: -0.0020 | AQ35: -0.0218 | AR35: -0.0103 | AS35: 0.9 | AT35: 0.9 | AU35: 0.9 | AV35: 0.8 | AW35: 0.8 | AX35: 0.9 | AY35: 0.9 | AZ35: 1.0 | BA35: 1.1 | BB35: 1.3 | BC35: 1.3 | BD35: 1.1 | BE35: 1.1 | BF35: 1.0 | BG35: 1.0 | BH35: 1.1 | BI35: 1.1 | BJ35: 1.2 | BK35: 1.3 | BL35: 1.4 | BM35: 1.4 | BN35: 1.5 | BO35: 1.2 | BP35: 1.2 | BQ35: 1.2 | BR35: 1.1 | BS35: 1.2 | BT35: 1.3 | BU35: 1.4 | BV35: 1.5 | BW35: 1.6 | BX35: 1.7 | BY35: 1.8 | BZ35: 1.2 | CA35: 1.2 | CB35: 1.2 | CC35: 1.2 | CD35: 1.3 | CE35: 1.3 | CF35: 1.4 | CG35: 1.5 | CH35: 1.6 | CI35: 1.7 | CJ35: 1.8 | CK35: 1.3 | CL35: 1.3 | CM35: 1.2 | CN35: 1.2 | CO35: 1.3 | CP35: 1.3 | CQ35: 1.5 | CR35: 1.5 | CS35: 1.6 | CT35: 1.7 | CU35: 1.9 | CV35: 1.3 | CW35: 1.3 | CX35: 1.3 | CY35: 1.2 | CZ35: 1.3 | DA35: 1.3 | DB35: 1.5 | DC35: 1.5 | DD35: 1.6 | DE35: 1.8 | DF35: 1.9 | DG35: 1.5 | DH35: 1.6 | DI35: 1.6 | DJ35: 1.6 | DK35: 1.7 | DL35: 1.7 | DM35: 1.9 | DN35: 2.0 | DO35: 2.1 | DP35: 2.3 | DQ35: 2.3 | DR35: 1.8 | DS35: 1.8 | DT35: 1.8 | DU35: 1.8 | DV35: 1.9 | DW35: 1.9 | DX35: 2.0 | DY35: 2.1 | DZ35: 2.3 | EA35: 2.4 | EB35: 2.6 | EC35: 1.8 | ED35: 1.9 | EE35: 1.9 | EF35: 1.9 | EG35: 1.9 | EH35: 1.9 | EI35: 2.1 | EJ35: 2.1 | EK35: 2.4 | EL35: 2.5 | EM35: 2.7 | EN35: 2.2 | EO35: 2.3 | EP35: 2.3 | EQ35: 2.3 | ER35: 2.3 | ES35: 2.4 | ET35: 2.5 | EU35: 2.7 | EV35: 2.8 | EW35: 3.0 | EX35: 3.1 | EY35: -1.3 | EZ35: -0.9 | FA35: -0.7 | FB35: -0.4 | FC35: -0.1 | FD35: 0.1 | FE35: 0.4 | FF35: 0.5 | FG35: 0.7 | FH35: 0.9 | FI35: 1.2 | FJ35: -1.74E-06 | FK35: 1.22E-08 | FL35: -1.24E-11 | FM35: 4.12E-07 | FN35: 3.48E-10 | FO35: 2.52E-01 | FP35: 1 | FQ35: 3 | FR35: 1 | FS35: 3 | FT35: 2 | FU35: 2 | FV35: 4c | FZ35: 594 | GA35: 637 | GB35: 532 | GC35: 570 | GD35: 0.87 | GF35: 80 | GG35: 95 | GH35: 72 | GI35: 75 | GJ35: 77 | GK35: 78 | GL35: 79 | GM35: 80 | GN35: 80 | GO35: 81 | GP35: 82 | GQ35: 82 | GR35: 83 | GS35: 84 | GT35: 85 | GU35: 86 | GV35: 89 | GW35: 90 | GX35: 91 | GY35: 92 | GZ35: 94 | HA35: 96 | HB35: 97 | HD35: 100 | HF35: 489 | HG35: 210 | HH35: 83.7 | HI35: 31.5 | HJ35: 0.328 | HK35: 84 | HL35: 1.77 | HM35: 3.47 | HN35: 345/290 | HO35: 339/292 | HP35: -10.0 | HQ35: 0.917 | HR35: 0.952 | HS35: 0.983 | HT35: 0.993 | HU35: 0.999 | HV35: 0.999 | HW35: 0.999 | HX35: 0.999 | HY35: 0.999 | HZ35: 0.999 | IA35: 0.999 | IB35: 0.999 | IC35: 0.999 | ID35: 0.999 | IE35: 0.999 | IF35: 0.999 | IG35: 0.999 | IH35: 0.999 | II35: 0.999 | IJ35: 0.999 | IK35: 0.999 | IL35: 0.999 | IM35: 0.997 | IN35: 0.995 | IO35: 0.992 | IP35: 0.990 | IQ35: 0.983 | IR35: 0.971 | IS35: 0.948 | IT35: 0.903 | IU35: 0.824 | IV35: 0.698 | IW35: 0.515 | IX35: 0.312 | IY35: 0.145 | JA35: 0.841 | JB35: 0.904 | JC35: 0.966 | JD35: 0.986 | JE35: 0.998 | JF35: 0.998 | JG35: 0.998 | JH35: 0.998 | JI35: 0.998 | JJ35: 0.998 | JK35: 0.998 | JL35: 0.998 | JM35: 0.998 | JN35: 0.998 | JO35: 0.998 | JP35: 0.998 | JQ35: 0.998 | JR35: 0.998 | JS35: 0.998 | JT35: 0.998 | JU35: 0.998 | JV35: 0.998 | JW35: 0.995 | JX35: 0.991 | JY35: 0.986 | JZ35: 0.981 | KA35: 0.968 | KB35: 0.944 | KC35: 0.898 | KD35: 0.813 | KE35: 0.673 | KF35: 0.482 | KG35: 0.262 | KH35: 0.095 | KI35: 0.021 | KK35: PG RP | KL35: 25 | KM35: A | KN35: H-ZK50 | KO35: 607567 | KP35: S-BSM2 | KQ35: 607568 | KR35: H-ZK50 | KS35: 607567 | KT35: BACD2 | KU35: 607567 | KX35: N-SK2 | KY35: 607567
B36: 32 | C36: H-LaK1 | D36: 660574 | E36: 57.35 | F36: 57.13 | G36: 0.011500 | H36: 0.011592 | I36: 1.62649 | J36: 1.63247 | K36: 1.63901 | L36: 1.64475 | M36: 1.64577 | N36: 1.64660 | O36: 1.64983 | P36: 1.65202 | Q36: 1.65403 | R36: 1.65600 | S36: 1.65655 | T36: 1.65707 | U36: 1.65939 | V36: 1.65950 | W36: 1.66224 | X36: 1.66750 | Y36: 1.66814 | Z36: 1.67376 | AA36: 1.67897 | AB36: 1.68783 | AC36: 2.70733270E+00 | AD36: -1.20058561E-02 | AE36: 1.64047722E-02 | AF36: 4.17032662E-04 | AG36: -1.43172608E-05 | AH36: 7.78703513E-07 | AI36: 0.3043 | AJ36: 0.2383 | AK36: 0.5443 | AL36: 0.2545 | AM36: 0.2364 | AN36: 0.4848 | AO36: -0.0012 | AP36: -0.0040 | AQ36: -0.0006 | AR36: -0.0015 | AS36: 1.6 | AT36: 1.7 | AU36: 1.6 | AV36: 1.6 | AW36: 1.6 | AX36: 1.6 | AY36: 1.8 | AZ36: 1.9 | BA36: 1.9 | BB36: 2.0 | BC36: 2.1 | BD36: 1.9 | BE36: 1.9 | BF36: 1.9 | BG36: 1.9 | BH36: 1.9 | BI36: 2.0 | BJ36: 2.1 | BK36: 2.1 | BL36: 2.2 | BM36: 2.3 | BN36: 2.4 | BO36: 2.1 | BP36: 2.0 | BQ36: 2.1 | BR36: 2.1 | BS36: 2.1 | BT36: 2.2 | BU36: 2.2 | BV36: 2.2 | BW36: 2.3 | BX36: 2.4 | BY36: 2.5 | BZ36: 2.1 | CA36: 2.0 | CB36: 2.1 | CC36: 2.2 | CD36: 2.1 | CE36: 2.2 | CF36: 2.2 | CG36: 2.2 | CH36: 2.3 | CI36: 2.4 | CJ36: 2.5 | CK36: 2.1 | CL36: 2.0 | CM36: 2.1 | CN36: 2.2 | CO36: 2.1 | CP36: 2.2 | CQ36: 2.2 | CR36: 2.2 | CS36: 2.3 | CT36: 2.4 | CU36: 2.5 | CV36: 2.2 | CW36: 2.1 | CX36: 2.2 | CY36: 2.2 | CZ36: 2.1 | DA36: 2.3 | DB36: 2.4 | DC36: 2.4 | DD36: 2.5 | DE36: 2.6 | DF36: 2.7 | DG36: 2.3 | DH36: 2.3 | DI36: 2.3 | DJ36: 2.3 | DK36: 2.4 | DL36: 2.4 | DM36: 2.5 | DN36: 2.5 | DO36: 2.6 | DP36: 2.7 | DQ36: 2.8 | DR36: 2.5 | DS36: 2.6 | DT36: 2.6 | DU36: 2.6 | DV36: 2.7 | DW36: 2.7 | DX36: 2.7 | DY36: 2.8 | DZ36: 2.9 | EA36: 3.0 | EB36: 3.1 | EC36: 2.6 | ED36: 2.7 | EE36: 2.7 | EF36: 2.7 | EG36: 2.8 | EH36: 2.8 | EI36: 2.9 | EJ36: 2.9 | EK36: 3.0 | EL36: 3.1 | EM36: 3.2 | EN36: 3.0 | EO36: 3.0 | EP36: 3.0 | EQ36: 3.1 | ER36: 3.1 | ES36: 3.2 | ET36: 3.3 | EU36: 3.4 | EV36: 3.5 | EW36: 3.6 | EX36: 3.7 | EY36: -0.6 | EZ36: -0.2 | FA36: 0.2 | FB36: 0.5 | FC36: 0.7 | FD36: 0.9 | FE36: 1.1 | FF36: 1.2 | FG36: 1.4 | FH36: 1.6 | FI36: 1.8 | FJ36: 1.09E-07 | FK36: 1.22E-08 | FL36: -1.85E-11 | FM36: 2.95E-07 | FN36: 1.37E-10 | FO36: 2.81E-01 | FP36: 1 | FQ36: 1 | FR36: 3 | FS36: 4 | FT36: 1 | FU36: 3 | FV36: 3 | FZ36: 651 | GA36: 685 | GB36: 588 | GC36: 617 | GD36: 0.82 | GF36: 65 | GG36: 81 | GH36: 59 | GI36: 61 | GJ36: 63 | GK36: 64 | GL36: 64 | GM36: 65 | GN36: 65 | GO36: 66 | GP36: 67 | GQ36: 67 | GR36: 67 | GS36: 68 | GT36: 68 | GU36: 69 | GV36: 70 | GW36: 71 | GX36: 72 | GY36: 73 | GZ36: 74 | HA36: 75 | HB36: 76 | HD36: 135 | HF36: 581 | HG36: 112 | HH36: 90.9 | HI36: 35.7 | HJ36: 0.273 | HK36: 85 | HL36: 1.50 | HM36: 3.64 | HN36: 350/270 | HO36: 334/272 | HP36: -2.8 | HQ36: 0.873 | HR36: 0.954 | HS36: 0.993 | HT36: 0.999 | HU36: 0.999 | HV36: 0.999 | HW36: 0.999 | HX36: 0.999 | HY36: 0.999 | HZ36: 0.999 | IA36: 0.999 | IB36: 0.999 | IC36: 0.999 | ID36: 0.999 | IE36: 0.999 | IF36: 0.999 | IG36: 0.999 | IH36: 0.999 | II36: 0.999 | IJ36: 0.999 | IK36: 0.999 | IL36: 0.999 | IM36: 0.997 | IN36: 0.995 | IO36: 0.993 | IP36: 0.990 | IQ36: 0.981 | IR36: 0.968 | IS36: 0.950 | IT36: 0.918 | IU36: 0.868 | IV36: 0.796 | IW36: 0.697 | IX36: 0.581 | IY36: 0.460 | IZ36: 0.343 | JA36: 0.762 | JB36: 0.910 | JC36: 0.986 | JD36: 0.998 | JE36: 0.998 | JF36: 0.998 | JG36: 0.998 | JH36: 0.998 | JI36: 0.998 | JJ36: 0.998 | JK36: 0.998 | JL36: 0.998 | JM36: 0.998 | JN36: 0.998 | JO36: 0.998 | JP36: 0.998 | JQ36: 0.998 | JR36: 0.998 | JS36: 0.998 | JT36: 0.998 | JU36: 0.998 | JV36: 0.998 | JW36: 0.995 | JX36: 0.992 | JY36: 0.987 | JZ36: 0.981 | KA36: 0.970 | KB36: 0.947 | KC36: 0.910 | KD36: 0.852 | KE36: 0.762 | KF36: 0.641 | KG36: 0.495 | KH36: 0.346 | KI36: 0.217 | KJ36: 0.122 | KK36: PG RP | KL36: 43 | KM36: B | KN36: H-LaK1 | KO36: 660574 | KR36: H-LaK1 | KS36: 660574 | KV36: (K-LaK11) | KW36: 658573
B37: 33 | C37: H-LaK2 | D37: 691547 | E37: 54.70 | F37: 54.48 | G37: 0.012633 | H37: 0.012739 | I37: 1.65330 | J37: 1.66043 | K37: 1.66812 | L37: 1.67471 | M37: 1.67587 | N37: 1.67681 | O37: 1.68039 | P37: 1.68280 | Q37: 1.68499 | R37: 1.68715 | S37: 1.68776 | T37: 1.68833 | U37: 1.69088 | V37: 1.69100 | W37: 1.69401 | X37: 1.69978 | Y37: 1.70050 | Z37: 1.70665 | AA37: 1.71235 | AB37: 1.72209 | AC37: 2.80955685E+00 | AD37: -1.46673580E-02 | AE37: 1.68842607E-02 | AF37: 9.16821494E-04 | AG37: -7.97191507E-05 | AH37: 4.19772399E-06 | AI37: 0.3048 | AJ37: 0.2383 | AK37: 0.5438 | AL37: 0.2543 | AM37: 0.2363 | AN37: 0.4828 | AO37: -0.0033 | AP37: -0.0089 | AQ37: 0.0133 | AR37: 0.0034 | AS37: 3.0 | AT37: 3.1 | AU37: 3.2 | AV37: 3.2 | AW37: 3.2 | AX37: 3.5 | AY37: 3.5 | AZ37: 3.7 | BA37: 3.8 | BB37: 3.9 | BC37: 4.0 | BD37: 3.1 | BE37: 3.4 | BF37: 3.5 | BG37: 3.6 | BH37: 3.8 | BI37: 3.9 | BJ37: 3.9 | BK37: 3.8 | BL37: 4.0 | BM37: 4.2 | BN37: 4.2 | BO37: 3.3 | BP37: 3.5 | BQ37: 3.5 | BR37: 3.7 | BS37: 3.8 | BT37: 3.9 | BU37: 3.9 | BV37: 3.9 | BW37: 4.1 | BX37: 4.3 | BY37: 4.3 | BZ37: 3.4 | CA37: 3.6 | CB37: 3.6 | CC37: 3.7 | CD37: 3.8 | CE37: 3.9 | CF37: 3.9 | CG37: 3.9 | CH37: 4.1 | CI37: 4.3 | CJ37: 4.4 | CK37: 3.5 | CL37: 3.6 | CM37: 3.7 | CN37: 3.9 | CO37: 3.9 | CP37: 4.0 | CQ37: 4.1 | CR37: 4.1 | CS37: 4.4 | CT37: 4.4 | CU37: 4.6 | CV37: 3.6 | CW37: 3.8 | CX37: 3.8 | CY37: 4.0 | CZ37: 4.1 | DA37: 4.1 | DB37: 4.2 | DC37: 4.4 | DD37: 4.4 | DE37: 4.4 | DF37: 4.6 | DG37: 3.7 | DH37: 3.9 | DI37: 3.9 | DJ37: 4.1 | DK37: 4.1 | DL37: 4.3 | DM37: 4.4 | DN37: 4.5 | DO37: 4.5 | DP37: 4.6 | DQ37: 4.7 | DR37: 3.9 | DS37: 4.1 | DT37: 4.2 | DU37: 4.3 | DV37: 4.6 | DW37: 4.6 | DX37: 4.6 | DY37: 4.8 | DZ37: 4.8 | EA37: 4.8 | EB37: 4.9 | EC37: 4.0 | ED37: 4.1 | EE37: 4.2 | EF37: 4.3 | EG37: 4.6 | EH37: 4.6 | EI37: 4.6 | EJ37: 4.8 | EK37: 4.8 | EL37: 4.8 | EM37: 5.0 | EN37: 4.2 | EO37: 4.4 | EP37: 4.6 | EQ37: 4.8 | ER37: 4.9 | ES37: 4.9 | ET37: 5.1 | EU37: 5.2 | EV37: 5.2 | EW37: 5.3 | EX37: 5.3 | EY37: 0.8 | EZ37: 1.3 | FA37: 1.7 | FB37: 2.2 | FC37: 2.4 | FD37: 2.7 | FE37: 3.0 | FF37: 3.1 | FG37: 3.5 | FH37: 3.6 | FI37: 3.8 | FJ37: 2.98E-06 | FK37: 1.59E-08 | FL37: -3.12E-11 | FM37: 4.05E-07 | FN37: -4.14E-11 | FO37: 1.83E-01 | FP37: 1 | FQ37: 3 | FR37: 1 | FS37: 3 | FT37: 1 | FU37: 3 | FV37: 1 | FZ37: 630 | GA37: 661 | GB37: 585 | GC37: 602 | GD37: 0.94 | GF37: 57 | GG37: 73 | GH37: 52 | GI37: 54 | GJ37: 56 | GK37: 57 | GL37: 57 | GM37: 58 | GN37: 58 | GO37: 59 | GP37: 59 | GQ37: 59 | GR37: 60 | GS37: 60 | GT37: 61 | GU37: 61 | GV37: 62 | GW37: 62 | GX37: 63 | GY37: 64 | GZ37: 64 | HA37: 65 | HB37: 66 | HD37: 150 | HF37: 528 | HG37: 94 | HH37: 107.4 | HI37: 41.7 | HJ37: 0.287 | HK37: 92 | HL37: 1.96 | HM37: 3.63 | HN37: 360/290 | HO37: 335/287 | HP37: -0.8 | HQ37: 0.766 | HR37: 0.919 | HS37: 0.973 | HT37: 0.989 | HU37: 0.999 | HV37: 0.999 | HW37: 0.999 | HX37: 0.999 | HY37: 0.999 | HZ37: 0.999 | IA37: 0.999 | IB37: 0.999 | IC37: 0.999 | ID37: 0.999 | IE37: 0.999 | IF37: 0.999 | IG37: 0.999 | IH37: 0.999 | II37: 0.999 | IJ37: 0.999 | IK37: 0.999 | IL37: 0.999 | IM37: 0.999 | IN37: 0.994 | IO37: 0.987 | IP37: 0.980 | IQ37: 0.969 | IR37: 0.948 | IS37: 0.916 | IT37: 0.867 | IU37: 0.801 | IV37: 0.712 | IW37: 0.599 | IX37: 0.449 | IY37: 0.245 | JA37: 0.579 | JB37: 0.846 | JC37: 0.955 | JD37: 0.986 | JE37: 0.998 | JF37: 0.998 | JG37: 0.998 | JH37: 0.998 | JI37: 0.998 | JJ37: 0.998 | JK37: 0.998 | JL37: 0.998 | JM37: 0.998 | JN37: 0.998 | JO37: 0.998 | JP37: 0.998 | JQ37: 0.998 | JR37: 0.998 | JS37: 0.998 | JT37: 0.998 | JU37: 0.998 | JV37: 0.995 | JW37: 0.991 | JX37: 0.985 | JY37: 0.979 | JZ37: 0.965 | KA37: 0.943 | KB37: 0.906 | KC37: 0.838 | KD37: 0.757 | KE37: 0.645 | KF37: 0.509 | KG37: 0.360 | KH37: 0.202 | KI37: 0.063 | KK37: PG RP | KL37: 42 | KM37: B | KN37: H-LaK2 | KO37: 691547 | KP37: S-LAL9 | KQ37: 691548 | KR37: H-LaK59A | KS37: 691548 | KT37: LAC9 | KU37: 691547 | KV37: K-LaK9 | KW37: 691548 | KX37: N-LAK9 | KY37: 691547
A38: ★★★ | B38: 34 | C38: H-LaK2H | D38: 692545 | E38: 54.54 | F38: 54.29 | G38: 0.012690 | H38: 0.012804 | I38: 1.65358 | J38: 1.66092 | K38: 1.66884 | L38: 1.67561 | M38: 1.67679 | N38: 1.67775 | O38: 1.68140 | P38: 1.68384 | Q38: 1.68606 | R38: 1.68827 | S38: 1.68888 | T38: 1.68945 | U38: 1.69201 | V38: 1.69211 | W38: 1.69514 | X38: 1.70096 | Y38: 1.70168 | Z38: 1.70783 | AA38: 1.71355 | AB38: 1.72334 | AC38: 2.81281207E+00 | AD38: -1.51090486E-02 | AE38: 1.73324917E-02 | AF38: 8.29325128E-04 | AG38: -7.29570094E-05 | AH38: 4.13913961E-06 | AI38: 0.3026 | AJ38: 0.2388 | AK38: 0.5414 | AL38: 0.2523 | AM38: 0.2366 | AN38: 0.4803 | AO38: -0.0015 | AP38: -0.0116 | AQ38: 0.0246 | AR38: 0.0101 | AS38: 3.9 | AT38: 3.9 | AU38: 3.9 | AV38: 4.0 | AW38: 3.9 | AX38: 4.1 | AY38: 4.2 | AZ38: 4.3 | BA38: 4.4 | BB38: 4.4 | BC38: 4.5 | BD38: 4.1 | BE38: 4.1 | BF38: 4.1 | BG38: 4.2 | BH38: 4.2 | BI38: 4.3 | BJ38: 4.4 | BK38: 4.5 | BL38: 4.6 | BM38: 4.6 | BN38: 4.7 | BO38: 4.2 | BP38: 4.2 | BQ38: 4.2 | BR38: 4.4 | BS38: 4.4 | BT38: 4.5 | BU38: 4.6 | BV38: 4.7 | BW38: 4.8 | BX38: 4.8 | BY38: 5.0 | BZ38: 4.2 | CA38: 4.3 | CB38: 4.3 | CC38: 4.4 | CD38: 4.5 | CE38: 4.6 | CF38: 4.7 | CG38: 4.8 | CH38: 4.9 | CI38: 5.0 | CJ38: 5.1 | CK38: 4.3 | CL38: 4.4 | CM38: 4.4 | CN38: 4.4 | CO38: 4.5 | CP38: 4.6 | CQ38: 4.7 | CR38: 4.8 | CS38: 4.9 | CT38: 5.0 | CU38: 5.2 | CV38: 4.4 | CW38: 4.5 | CX38: 4.5 | CY38: 4.5 | CZ38: 4.5 | DA38: 4.7 | DB38: 4.9 | DC38: 5.2 | DD38: 5.3 | DE38: 5.4 | DF38: 5.5 | DG38: 4.7 | DH38: 4.7 | DI38: 4.8 | DJ38: 4.8 | DK38: 4.9 | DL38: 4.9 | DM38: 5.0 | DN38: 5.3 | DO38: 5.4 | DP38: 5.5 | DQ38: 5.7 | DR38: 5.1 | DS38: 5.1 | DT38: 5.1 | DU38: 5.1 | DV38: 5.2 | DW38: 5.3 | DX38: 5.5 | DY38: 5.6 | DZ38: 5.7 | EA38: 5.8 | EB38: 6.0 | EC38: 5.1 | ED38: 5.1 | EE38: 5.1 | EF38: 5.2 | EG38: 5.2 | EH38: 5.3 | EI38: 5.5 | EJ38: 5.7 | EK38: 5.8 | EL38: 5.9 | EM38: 6.1 | EN38: 5.5 | EO38: 5.6 | EP38: 5.6 | EQ38: 5.6 | ER38: 5.7 | ES38: 5.8 | ET38: 6.1 | EU38: 6.4 | EV38: 6.6 | EW38: 6.7 | EX38: 6.9 | EY38: 1.6 | EZ38: 2.1 | FA38: 2.4 | FB38: 2.7 | FC38: 3.0 | FD38: 3.3 | FE38: 3.6 | FF38: 3.8 | FG38: 4.0 | FH38: 4.2 | FI38: 4.4 | FJ38: 4.09E-06 | FK38: 1.29E-08 | FL38: -1.66E-11 | FM38: 3.70E-07 | FN38: 3.58E-10 | FO38: 2.77E-01 | FP38: 1 | FQ38: 3 | FR38: 1 | FS38: 3 | FT38: 1 | FU38: 3 | FV38: 1 | FZ38: 636 | GA38: 662 | GB38: 599 | GC38: 635 | GD38: 0.92 | GF38: 59 | GG38: 74 | GH38: 52 | GI38: 54 | GJ38: 55 | GK38: 56 | GL38: 56 | GM38: 57 | GN38: 58 | GO38: 60 | GP38: 61 | GQ38: 61 | GR38: 62 | GS38: 62 | GT38: 63 | GU38: 63 | GV38: 64 | GW38: 64 | GX38: 64 | GY38: 65 | GZ38: 66 | HA38: 67 | HB38: 68 | HD38: 140 | HF38: 665 | HG38: 77 | HH38: 111.3 | HI38: 42.0 | HJ38: 0.325 | HK38: 67 | HL38: 2.00 | HM38: 3.53 | HN38: 360/270 | HO38: 333/265 | HP38: -3.1 | HQ38: 0.754 | HR38: 0.915 | HS38: 0.980 | HT38: 0.990 | HU38: 0.999 | HV38: 0.999 | HW38: 0.999 | HX38: 0.999 | HY38: 0.999 | HZ38: 0.999 | IA38: 0.999 | IB38: 0.999 | IC38: 0.999 | ID38: 0.999 | IE38: 0.999 | IF38: 0.999 | IG38: 0.999 | IH38: 0.999 | II38: 0.999 | IJ38: 0.999 | IK38: 0.999 | IL38: 0.997 | IM38: 0.995 | IN38: 0.993 | IO38: 0.991 | IP38: 0.987 | IQ38: 0.980 | IR38: 0.964 | IS38: 0.943 | IT38: 0.910 | IU38: 0.862 | IV38: 0.800 | IW38: 0.724 | IX38: 0.638 | IY38: 0.542 | IZ38: 0.433 | JA38: 0.568 | JB38: 0.837 | JC38: 0.960 | JD38: 0.980 | JE38: 0.998 | JF38: 0.998 | JG38: 0.998 | JH38: 0.998 | JI38: 0.998 | JJ38: 0.998 | JK38: 0.998 | JL38: 0.998 | JM38: 0.998 | JN38: 0.998 | JO38: 0.998 | JP38: 0.998 | JQ38: 0.998 | JR38: 0.998 | JS38: 0.998 | JT38: 0.998 | JU38: 0.998 | JV38: 0.995 | JW38: 0.991 | JX38: 0.986 | JY38: 0.981 | JZ38: 0.973 | KA38: 0.959 | KB38: 0.928 | KC38: 0.889 | KD38: 0.828 | KE38: 0.744 | KF38: 0.639 | KG38: 0.523 | KH38: 0.406 | KI38: 0.295 | KJ38: 0.189 | KK38: PG RP | KL38: 32 | KM38: MA | KN38: H-LaK2H | KO38: 692545 | KP38: (S-LAL9) | KQ38: 691548 | KR38: H-LaK2A | KS38: 692545 | KT38: (LAC9) | KU38: 691547 | KX38: (N-LAK9) | KY38: 691547
A39: ★★ | B39: 35 | C39: H-LaK3 | D39: 747510 | E39: 50.95 | F39: 50.72 | G39: 0.014660 | H39: 0.014794 | I39: 1.70600 | J39: 1.71332 | K39: 1.72133 | L39: 1.72838 | M39: 1.72965 | N39: 1.73069 | O39: 1.73471 | P39: 1.73747 | Q39: 1.73998 | R39: 1.74250 | S39: 1.74320 | T39: 1.74386 | U39: 1.74680 | V39: 1.74693 | W39: 1.75042 | X39: 1.75716 | Y39: 1.75799 | Z39: 1.76523 | AA39: 1.77195 | AB39: 1.78350 | AC39: 2.98964410E+00 | AD39: -1.53853950E-02 | AE39: 2.14098946E-02 | AF39: 7.35181833E-04 | AG39: -3.80789614E-05 | AH39: 2.29046629E-06 | AI39: 0.3022 | AJ39: 0.2381 | AK39: 0.5505 | AL39: 0.2521 | AM39: 0.2359 | AN39: 0.4894 | AO39: -0.0023 | AP39: -0.0085 | AQ39: 0.0186 | AR39: 0.0087 | AS39: 1.8 | AT39: 2.2 | AU39: 2.9 | AV39: 3.1 | AW39: 3.7 | AX39: 4.0 | AY39: 4.5 | AZ39: 4.7 | BA39: 5.0 | BB39: 5.1 | BC39: 5.3 | BD39: 2.1 | BE39: 2.4 | BF39: 3.1 | BG39: 3.5 | BH39: 4.0 | BI39: 4.2 | BJ39: 4.7 | BK39: 4.8 | BL39: 5.1 | BM39: 5.3 | BN39: 5.5 | BO39: 2.3 | BP39: 2.7 | BQ39: 3.2 | BR39: 3.7 | BS39: 4.3 | BT39: 4.5 | BU39: 4.8 | BV39: 5.1 | BW39: 5.2 | BX39: 5.5 | BY39: 5.6 | BZ39: 2.3 | CA39: 2.7 | CB39: 3.2 | CC39: 3.7 | CD39: 4.3 | CE39: 4.5 | CF39: 4.8 | CG39: 5.2 | CH39: 5.3 | CI39: 5.6 | CJ39: 5.8 | CK39: 2.4 | CL39: 2.8 | CM39: 3.3 | CN39: 3.8 | CO39: 4.4 | CP39: 4.6 | CQ39: 4.9 | CR39: 5.3 | CS39: 5.4 | CT39: 5.7 | CU39: 6.0 | CV39: 2.6 | CW39: 3.0 | CX39: 3.4 | CY39: 4.0 | CZ39: 4.5 | DA39: 4.8 | DB39: 5.1 | DC39: 5.5 | DD39: 5.6 | DE39: 5.9 | DF39: 6.3 | DG39: 3.1 | DH39: 3.4 | DI39: 4.0 | DJ39: 4.7 | DK39: 4.7 | DL39: 5.3 | DM39: 5.3 | DN39: 5.8 | DO39: 6.0 | DP39: 6.3 | DQ39: 6.6 | DR39: 3.4 | DS39: 3.8 | DT39: 4.4 | DU39: 4.9 | DV39: 5.1 | DW39: 5.5 | DX39: 5.8 | DY39: 6.3 | DZ39: 6.5 | EA39: 6.7 | EB39: 6.8 | EC39: 3.4 | ED39: 3.9 | EE39: 4.5 | EF39: 5.0 | EG39: 5.1 | EH39: 5.5 | EI39: 5.9 | EJ39: 6.4 | EK39: 6.5 | EL39: 6.7 | EM39: 6.9 | EN39: 3.8 | EO39: 4.3 | EP39: 4.7 | EQ39: 5.4 | ER39: 5.8 | ES39: 6.1 | ET39: 6.4 | EU39: 6.7 | EV39: 7.0 | EW39: 7.2 | EX39: 7.5 | EY39: -0.4 | EZ39: 0.4 | FA39: 1.3 | FB39: 2.1 | FC39: 2.9 | FD39: 3.3 | FE39: 3.7 | FF39: 4.2 | FG39: 4.5 | FH39: 4.8 | FI39: 5.2 | FJ39: 2.62E-06 | FK39: 2.82E-08 | FL39: -5.41E-11 | FM39: 5.36E-07 | FN39: -4.51E-11 | FO39: 2.24E-01 | FP39: 1 | FQ39: 1 | FR39: 1 | FS39: 3 | FT39: 1 | FU39: 2 | FV39: 1 | FZ39: 674 | GA39: 695 | GB39: 603 | GC39: 641 | GD39: 0.80 | GF39: 53 | GG39: 66 | GH39: 49 | GI39: 51 | GJ39: 53 | GK39: 54 | GL39: 54 | GM39: 54 | GN39: 55 | GO39: 56 | GP39: 56 | GQ39: 56 | GR39: 57 | GS39: 57 | GT39: 57 | GU39: 58 | GV39: 58 | GW39: 59 | GX39: 59 | GY39: 60 | GZ39: 61 | HA39: 62 | HB39: 63 | HD39: 165 | HF39: 769 | HG39: 50 | HH39: 120.3 | HI39: 45.3 | HJ39: 0.328 | HK39: 96 | HL39: 1.56 | HM39: 4.10 | HN39: 370/300 | HO39: 332/264 | HP39: -0.4 | HQ39: 0.779 | HR39: 0.931 | HS39: 0.986 | HT39: 0.997 | HU39: 0.999 | HV39: 0.999 | HW39: 0.999 | HX39: 0.999 | HY39: 0.999 | HZ39: 0.999 | IA39: 0.999 | IB39: 0.999 | IC39: 0.999 | ID39: 0.999 | IE39: 0.999 | IF39: 0.999 | IG39: 0.999 | IH39: 0.999 | II39: 0.999 | IJ39: 0.999 | IK39: 0.999 | IL39: 0.997 | IM39: 0.994 | IN39: 0.990 | IO39: 0.987 | IP39: 0.980 | IQ39: 0.968 | IR39: 0.946 | IS39: 0.907 | IT39: 0.850 | IU39: 0.767 | IV39: 0.640 | IW39: 0.420 | IX39: 0.155 | JA39: 0.612 | JB39: 0.868 | JC39: 0.963 | JD39: 0.994 | JE39: 0.998 | JF39: 0.998 | JG39: 0.998 | JH39: 0.998 | JI39: 0.998 | JJ39: 0.998 | JK39: 0.998 | JL39: 0.998 | JM39: 0.998 | JN39: 0.998 | JO39: 0.998 | JP39: 0.998 | JQ39: 0.998 | JR39: 0.998 | JS39: 0.998 | JT39: 0.998 | JU39: 0.997 | JV39: 0.994 | JW39: 0.990 | JX39: 0.981 | JY39: 0.974 | JZ39: 0.959 | KA39: 0.935 | KB39: 0.891 | KC39: 0.817 | KD39: 0.724 | KE39: 0.589 | KF39: 0.410 | KG39: 0.180 | KH39: 0.034 | KK39: PG RP | KL39: 75 | KM39: B | KN39: H-LaK3 | KO39: 747510 | KP39: (S-LAM60) | KQ39: 743493 | KR39: H-LaK3 | KS39: 747510 | KX39: (N-LAK28) | KY39: 744508
A40: ★★★ | B40: 36 | C40: H-LaK4L | D40: 640602 | E40: 60.20 | F40: 60.00 | G40: 0.010631 | H40: 0.010709 | I40: 1.60415 | J40: 1.61142 | K40: 1.61918 | L40: 1.62562 | M40: 1.62670 | N40: 1.62759 | O40: 1.63083 | P40: 1.63296 | Q40: 1.63486 | R40: 1.63674 | S40: 1.63726 | T40: 1.63775 | U40: 1.63990 | V40: 1.64000 | W40: 1.64254 | X40: 1.64737 | Y40: 1.64797 | Z40: 1.65305 | AA40: 1.65776 | AB40: 1.66574 | AC40: 2.65004076E+00 | AD40: -1.46730544E-02 | AE40: 1.38448882E-02 | AF40: 7.00625352E-04 | AG40: -6.62250000E-05 | AH40: 3.53607313E-06 | AI40: 0.3067 | AJ40: 0.2389 | AK40: 0.5343 | AL40: 0.2559 | AM40: 0.2372 | AN40: 0.4744 | AO40: -0.0026 | AP40: -0.0093 | AQ40: 0.0289 | AR40: 0.0110 | AS40: 2.7 | AT40: 2.8 | AU40: 2.9 | AV40: 2.9 | AW40: 2.9 | AX40: 2.9 | AY40: 2.9 | AZ40: 2.9 | BA40: 2.9 | BB40: 2.9 | BC40: 3.0 | BD40: 2.9 | BE40: 2.9 | BF40: 2.9 | BG40: 2.9 | BH40: 2.9 | BI40: 2.9 | BJ40: 3.0 | BK40: 3.0 | BL40: 3.1 | BM40: 3.1 | BN40: 3.1 | BO40: 2.9 | BP40: 2.9 | BQ40: 2.9 | BR40: 3.0 | BS40: 3.0 | BT40: 3.1 | BU40: 3.1 | BV40: 3.2 | BW40: 3.3 | BX40: 3.4 | BY40: 3.4 | BZ40: 2.9 | CA40: 2.9 | CB40: 3.0 | CC40: 3.0 | CD40: 3.1 | CE40: 3.2 | CF40: 3.2 | CG40: 3.2 | CH40: 3.3 | CI40: 3.4 | CJ40: 3.4 | CK40: 2.9 | CL40: 3.0 | CM40: 3.1 | CN40: 3.2 | CO40: 3.2 | CP40: 3.2 | CQ40: 3.2 | CR40: 3.2 | CS40: 3.3 | CT40: 3.4 | CU40: 3.4 | CV40: 3.1 | CW40: 3.1 | CX40: 3.2 | CY40: 3.2 | CZ40: 3.2 | DA40: 3.3 | DB40: 3.3 | DC40: 3.4 | DD40: 3.5 | DE40: 3.5 | DF40: 3.5 | DG40: 3.2 | DH40: 3.2 | DI40: 3.4 | DJ40: 3.4 | DK40: 3.5 | DL40: 3.5 | DM40: 3.5 | DN40: 3.6 | DO40: 3.7 | DP40: 3.8 | DQ40: 3.8 | DR40: 3.3 | DS40: 3.3 | DT40: 3.5 | DU40: 3.6 | DV40: 3.7 | DW40: 3.7 | DX40: 3.8 | DY40: 3.9 | DZ40: 4.0 | EA40: 4.1 | EB40: 4.1 | EC40: 3.4 | ED40: 3.4 | EE40: 3.5 | EF40: 3.6 | EG40: 3.7 | EH40: 3.8 | EI40: 3.8 | EJ40: 3.9 | EK40: 4.0 | EL40: 4.1 | EM40: 4.1 | EN40: 3.7 | EO40: 3.9 | EP40: 3.9 | EQ40: 3.9 | ER40: 3.9 | ES40: 4.0 | ET40: 4.1 | EU40: 4.2 | EV40: 4.3 | EW40: 4.3 | EX40: 4.3 | EY40: 0.3 | EZ40: 0.8 | FA40: 1.2 | FB40: 1.6 | FC40: 1.8 | FD40: 1.9 | FE40: 2.1 | FF40: 2.2 | FG40: 2.4 | FH40: 2.6 | FI40: 2.7 | FJ40: 2.19E-06 | FK40: 1.20E-08 | FL40: -2.68E-11 | FM40: 3.21E-07 | FN40: 4.86E-10 | FO40: 2.20E-01 | FP40: 3 | FQ40: 2 | FR40: 4 | FS40: 4 | FT40: 5 | FU40: 4 | FV40: 3 | FZ40: 667 | GA40: 700 | GB40: 603 | GC40: 637 | GD40: 1.03 | GF40: 62 | GG40: 80 | GH40: 57 | GI40: 59 | GJ40: 60 | GK40: 60 | GL40: 61 | GM40: 62 | GN40: 62 | GO40: 63 | GP40: 63 | GQ40: 65 | GR40: 65 | GS40: 66 | GT40: 66 | GU40: 67 | GV40: 67 | GW40: 68 | GX40: 69 | GY40: 70 | GZ40: 71 | HA40: 72 | HB40: 73 | HD40: 115 | HF40: 640 | HG40: 78 | HH40: 113.3 | HI40: 44.0 | HJ40: 0.289 | HK40: 86 | HL40: 1.84 | HM40: 2.98 | HN40: 355/270 | HO40: 334/266 | HP40: -3.3 | HQ40: 0.777 | HR40: 0.926 | HS40: 0.985 | HT40: 0.999 | HU40: 0.999 | HV40: 0.999 | HW40: 0.999 | HX40: 0.999 | HY40: 0.999 | HZ40: 0.999 | IA40: 0.999 | IB40: 0.999 | IC40: 0.999 | ID40: 0.999 | IE40: 0.999 | IF40: 0.999 | IG40: 0.999 | IH40: 0.999 | II40: 0.999 | IJ40: 0.998 | IK40: 0.997 | IL40: 0.995 | IM40: 0.993 | IN40: 0.991 | IO40: 0.989 | IP40: 0.986 | IQ40: 0.979 | IR40: 0.965 | IS40: 0.941 | IT40: 0.906 | IU40: 0.858 | IV40: 0.791 | IW40: 0.706 | IX40: 0.612 | IY40: 0.514 | IZ40: 0.419 | JA40: 0.604 | JB40: 0.857 | JC40: 0.970 | JD40: 0.998 | JE40: 0.998 | JF40: 0.998 | JG40: 0.998 | JH40: 0.998 | JI40: 0.998 | JJ40: 0.998 | JK40: 0.998 | JL40: 0.998 | JM40: 0.998 | JN40: 0.998 | JO40: 0.998 | JP40: 0.998 | JQ40: 0.998 | JR40: 0.998 | JS40: 0.998 | JT40: 0.996 | JU40: 0.993 | JV40: 0.990 | JW40: 0.987 | JX40: 0.984 | JY40: 0.977 | JZ40: 0.971 | KA40: 0.956 | KB40: 0.931 | KC40: 0.883 | KD40: 0.823 | KE40: 0.736 | KF40: 0.628 | KG40: 0.505 | KH40: 0.380 | KI40: 0.271 | KJ40: 0.183 | KK40: PG RP | KL40: 41 | KM40: MA | KN40: H-LaK4L | KO40: 640602 | KP40: S-BSM81 | KQ40: 640601 | KR40: H-LaK4L | KS40: 640602 | KT40: LACL60 | KU40: 640602 | KV40: (K-LaKn2) | KW40: 641601 | KX40: N-LAK21 | KY40: 640601
A41: ★★ | B41: 37 | C41: H-LaK5A | D41: 678555 | E41: 55.52 | F41: 55.26 | G41: 0.012211 | H41: 0.012319 | I41: 1.64174 | J41: 1.64851 | K41: 1.65581 | L41: 1.66213 | M41: 1.66325 | N41: 1.66416 | O41: 1.66763 | P41: 1.66996 | Q41: 1.67209 | R41: 1.67420 | S41: 1.67479 | T41: 1.67533 | U41: 1.67779 | V41: 1.67790 | W41: 1.68081 | X41: 1.68641 | Y41: 1.68710 | Z41: 1.69304 | AA41: 1.69854 | AB41: 1.70795 | AC41: 2.76662000E+00 | AD41: -1.37659970E-02 | AE41: 1.68042016E-02 | AF41: 7.09094213E-04 | AG41: -5.52664143E-05 | AH41: 3.02453719E-06 | AI41: 0.3030 | AJ41: 0.2383 | AK41: 0.5430 | AL41: 0.2525 | AM41: 0.2362 | AN41: 0.4822 | AO41: -0.0010 | AP41: -0.0084 | AQ41: 0.0131 | AR41: 0.0044 | AS41: 1.9 | AT41: 1.8 | AU41: 1.8 | AV41: 1.8 | AW41: 1.8 | AX41: 1.8 | AY41: 2.0 | AZ41: 2.0 | BA41: 2.2 | BB41: 2.3 | BC41: 2.4 | BD41: 2.1 | BE41: 2.0 | BF41: 2.0 | BG41: 2.1 | BH41: 2.0 | BI41: 2.1 | BJ41: 2.1 | BK41: 2.2 | BL41: 2.3 | BM41: 2.4 | BN41: 2.5 | BO41: 2.2 | BP41: 2.2 | BQ41: 2.2 | BR41: 2.2 | BS41: 2.2 | BT41: 2.3 | BU41: 2.3 | BV41: 2.4 | BW41: 2.5 | BX41: 2.6 | BY41: 2.7 | BZ41: 2.2 | CA41: 2.2 | CB41: 2.2 | CC41: 2.2 | CD41: 2.2 | CE41: 2.3 | CF41: 2.4 | CG41: 2.5 | CH41: 2.7 | CI41: 2.7 | CJ41: 2.7 | CK41: 2.2 | CL41: 2.2 | CM41: 2.2 | CN41: 2.2 | CO41: 2.3 | CP41: 2.4 | CQ41: 2.4 | CR41: 2.5 | CS41: 2.7 | CT41: 2.7 | CU41: 2.8 | CV41: 2.3 | CW41: 2.4 | CX41: 2.4 | CY41: 2.4 | CZ41: 2.4 | DA41: 2.5 | DB41: 2.5 | DC41: 2.5 | DD41: 2.7 | DE41: 2.8 | DF41: 2.9 | DG41: 2.5 | DH41: 2.5 | DI41: 2.6 | DJ41: 2.6 | DK41: 2.6 | DL41: 2.6 | DM41: 2.9 | DN41: 3.0 | DO41: 3.2 | DP41: 3.3 | DQ41: 3.5 | DR41: 2.7 | DS41: 2.7 | DT41: 2.8 | DU41: 2.8 | DV41: 2.9 | DW41: 3.0 | DX41: 3.2 | DY41: 3.3 | DZ41: 3.4 | EA41: 3.5 | EB41: 3.7 | EC41: 2.7 | ED41: 2.8 | EE41: 2.8 | EF41: 2.9 | EG41: 2.9 | EH41: 3.0 | EI41: 3.2 | EJ41: 3.4 | EK41: 3.5 | EL41: 3.7 | EM41: 3.8 | EN41: 3.1 | EO41: 3.2 | EP41: 3.2 | EQ41: 3.2 | ER41: 3.4 | ES41: 3.4 | ET41: 3.6 | EU41: 3.6 | EV41: 3.8 | EW41: 3.9 | EX41: 4.0 | EY41: -0.5 | EZ41: -0.1 | FA41: 0.3 | FB41: 0.5 | FC41: 0.8 | FD41: 1.1 | FE41: 1.3 | FF41: 1.5 | FG41: 1.8 | FH41: 1.9 | FI41: 2.1 | FJ41: 1.13E-07 | FK41: 1.17E-08 | FL41: -1.44E-11 | FM41: 4.21E-07 | FN41: 4.77E-10 | FO41: 2.11E-01 | FP41: 3 | FQ41: 3 | FR41: 3 | FS41: 3 | FT41: 2 | FU41: 3 | FV41: 1 | FZ41: 658 | GA41: 684 | GB41: 595 | GC41: 630 | GD41: 0.76 | GF41: 70 | GG41: 81 | GH41: 62 | GI41: 65 | GJ41: 67 | GK41: 68 | GL41: 69 | GM41: 70 | GN41: 71 | GO41: 71 | GP41: 72 | GQ41: 73 | GR41: 73 | GS41: 74 | GT41: 75 | GU41: 75 | GV41: 76 | GW41: 78 | GX41: 79 | GY41: 80 | GZ41: 81 | HA41: 82 | HB41: 83 | HD41: 120 | HF41: 595 | HG41: 117 | HH41: 94.6 | HI41: 37.3 | HJ41: 0.270 | HK41: 90 | HL41: 1.74 | HM41: 3.53 | HN41: 360/275 | HO41: 339/274 | HP41: -1.3 | HQ41: 0.791 | HR41: 0.925 | HS41: 0.976 | HT41: 0.990 | HU41: 0.996 | HV41: 0.996 | HW41: 0.999 | HX41: 0.999 | HY41: 0.999 | HZ41: 0.999 | IA41: 0.999 | IB41: 0.999 | IC41: 0.999 | ID41: 0.999 | IE41: 0.999 | IF41: 0.998 | IG41: 0.998 | IH41: 0.998 | II41: 0.998 | IJ41: 0.998 | IK41: 0.996 | IL41: 0.996 | IM41: 0.995 | IN41: 0.993 | IO41: 0.991 | IP41: 0.987 | IQ41: 0.980 | IR41: 0.966 | IS41: 0.943 | IT41: 0.909 | IU41: 0.853 | IV41: 0.777 | IW41: 0.686 | IX41: 0.580 | IY41: 0.467 | IZ41: 0.355 | JA41: 0.625 | JB41: 0.855 | JC41: 0.953 | JD41: 0.979 | JE41: 0.991 | JF41: 0.991 | JG41: 0.998 | JH41: 0.998 | JI41: 0.998 | JJ41: 0.998 | JK41: 0.998 | JL41: 0.998 | JM41: 0.998 | JN41: 0.998 | JO41: 0.998 | JP41: 0.997 | JQ41: 0.997 | JR41: 0.997 | JS41: 0.997 | JT41: 0.996 | JU41: 0.993 | JV41: 0.992 | JW41: 0.990 | JX41: 0.987 | JY41: 0.983 | JZ41: 0.974 | KA41: 0.960 | KB41: 0.933 | KC41: 0.889 | KD41: 0.826 | KE41: 0.727 | KF41: 0.603 | KG41: 0.471 | KH41: 0.336 | KI41: 0.218 | KJ41: 0.126 | KK41: PG RP | KL41: 45 | KM41: A | KN41: H-LaK5A | KO41: 678555 | KP41: S-LAL12Q | KQ41: 678553 | KR41: H-LaK5A | KS41: 678555 | KT41: LAC12 | KU41: 678555 | KV41: K-LaK12 | KW41: 678555 | KX41: N-LAK12 | KY41: 678552
B42: 38 | C42: H-LaK6 | D42: 694533 | E42: 53.31 | F42: 53.11 | G42: 0.013008 | H42: 0.013115 | I42: 1.65451 | J42: 1.66191 | K42: 1.66989 | L42: 1.67672 | M42: 1.67791 | N42: 1.67889 | O42: 1.68258 | P42: 1.68506 | Q42: 1.68731 | R42: 1.68955 | S42: 1.69018 | T42: 1.69076 | U42: 1.69337 | V42: 1.69350 | W42: 1.69660 | X42: 1.70256 | Y42: 1.70330 | Z42: 1.70965 | AA42: 1.71556 | AB42: 1.72565 | AC42: 2.81648072E+00 | AD42: -1.52313167E-02 | AE42: 1.76168363E-02 | AF42: 8.07769313E-04 | AG42: -5.32742539E-05 | AH42: 2.58509025E-06 | AI42: 0.3037 | AJ42: 0.2383 | AK42: 0.5450 | AL42: 0.2531 | AM42: 0.2364 | AN42: 0.4842 | AO42: -0.0026 | AP42: -0.0100 | AQ42: 0.0211 | AR42: 0.0075 | AS42: 5.0 | AT42: 4.8 | AU42: 4.7 | AV42: 4.7 | AW42: 4.6 | AX42: 4.9 | AY42: 5.0 | AZ42: 5.0 | BA42: 5.1 | BB42: 5.1 | BC42: 5.0 | BD42: 5.1 | BE42: 5.1 | BF42: 5.0 | BG42: 5.0 | BH42: 5.0 | BI42: 5.1 | BJ42: 5.2 | BK42: 5.3 | BL42: 5.4 | BM42: 5.5 | BN42: 5.4 | BO42: 5.2 | BP42: 5.3 | BQ42: 5.3 | BR42: 5.2 | BS42: 5.2 | BT42: 5.3 | BU42: 5.4 | BV42: 5.6 | BW42: 5.8 | BX42: 5.9 | BY42: 6.0 | BZ42: 5.3 | CA42: 5.3 | CB42: 5.3 | CC42: 5.2 | CD42: 5.2 | CE42: 5.3 | CF42: 5.5 | CG42: 5.7 | CH42: 5.9 | CI42: 6.0 | CJ42: 6.0 | CK42: 5.3 | CL42: 5.4 | CM42: 5.3 | CN42: 5.3 | CO42: 5.3 | CP42: 5.4 | CQ42: 5.6 | CR42: 5.8 | CS42: 6.0 | CT42: 6.1 | CU42: 6.1 | CV42: 5.4 | CW42: 5.5 | CX42: 5.4 | CY42: 5.3 | CZ42: 5.4 | DA42: 5.6 | DB42: 5.8 | DC42: 6.0 | DD42: 6.1 | DE42: 6.3 | DF42: 6.3 | DG42: 5.8 | DH42: 5.7 | DI42: 5.6 | DJ42: 5.6 | DK42: 5.7 | DL42: 5.8 | DM42: 6.0 | DN42: 6.1 | DO42: 6.4 | DP42: 6.6 | DQ42: 6.7 | DR42: 6.1 | DS42: 5.9 | DT42: 5.9 | DU42: 5.9 | DV42: 6.0 | DW42: 6.2 | DX42: 6.4 | DY42: 6.5 | DZ42: 6.8 | EA42: 7.0 | EB42: 7.2 | EC42: 6.1 | ED42: 6.0 | EE42: 6.0 | EF42: 6.0 | EG42: 6.1 | EH42: 6.3 | EI42: 6.5 | EJ42: 6.6 | EK42: 6.9 | EL42: 7.1 | EM42: 7.3 | EN42: 6.5 | EO42: 6.4 | EP42: 6.4 | EQ42: 6.4 | ER42: 6.5 | ES42: 6.7 | ET42: 6.9 | EU42: 7.0 | EV42: 7.3 | EW42: 7.5 | EX42: 7.6 | EY42: 2.6 | EZ42: 3.1 | FA42: 3.3 | FB42: 3.6 | FC42: 3.8 | FD42: 4.1 | FE42: 4.5 | FF42: 4.8 | FG42: 5.1 | FH42: 5.3 | FI42: 5.3 | FJ42: 5.25E-06 | FK42: 1.04E-08 | FL42: -7.12E-12 | FM42: 6.31E-07 | FN42: 9.91E-10 | FO42: 6.71E-02 | FP42: 2 | FQ42: 3 | FR42: 1 | FS42: 3 | FT42: 1 | FU42: 2 | FV42: 1 | FZ42: 646 | GA42: 674 | GB42: 580 | GC42: 625 | GD42: 0.94 | GF42: 51 | GG42: 67 | GH42: 46 | GI42: 47 | GJ42: 49 | GK42: 50 | GL42: 51 | GM42: 52 | GN42: 52 | GO42: 53 | GP42: 54 | GQ42: 54 | GR42: 55 | GS42: 55 | GT42: 56 | GU42: 56 | GV42: 57 | GW42: 58 | GX42: 58 | GY42: 59 | GZ42: 60 | HA42: 61 | HB42: 62 | HD42: 145 | HF42: 665 | HG42: 84 | HH42: 109.8 | HI42: 42.0 | HJ42: 0.309 | HK42: 87 | HL42: 1.96 | HM42: 3.57 | HN42: 360/300 | HO42: 338/297 | HP42: -1.8 | HQ42: 0.752 | HR42: 0.915 | HS42: 0.983 | HT42: 0.998 | HU42: 0.999 | HV42: 0.999 | HW42: 0.999 | HX42: 0.999 | HY42: 0.999 | HZ42: 0.999 | IA42: 0.999 | IB42: 0.999 | IC42: 0.999 | ID42: 0.999 | IE42: 0.999 | IF42: 0.999 | IG42: 0.999 | IH42: 0.999 | II42: 0.999 | IJ42: 0.999 | IK42: 0.999 | IL42: 0.999 | IM42: 0.994 | IN42: 0.990 | IO42: 0.987 | IP42: 0.981 | IQ42: 0.971 | IR42: 0.955 | IS42: 0.924 | IT42: 0.879 | IU42: 0.810 | IV42: 0.707 | IW42: 0.551 | IX42: 0.301 | JA42: 0.566 | JB42: 0.837 | JC42: 0.966 | JD42: 0.996 | JE42: 0.998 | JF42: 0.998 | JG42: 0.998 | JH42: 0.998 | JI42: 0.998 | JJ42: 0.998 | JK42: 0.998 | JL42: 0.998 | JM42: 0.998 | JN42: 0.998 | JO42: 0.998 | JP42: 0.998 | JQ42: 0.998 | JR42: 0.998 | JS42: 0.998 | JT42: 0.998 | JU42: 0.998 | JV42: 0.998 | JW42: 0.989 | JX42: 0.985 | JY42: 0.977 | JZ42: 0.966 | KA42: 0.946 | KB42: 0.910 | KC42: 0.856 | KD42: 0.771 | KE42: 0.654 | KF42: 0.499 | KG42: 0.300 | KH42: 0.089 | KK42: PG RP | KL42: 60 | KM42: B | KN42: H-LaK6 | KO42: 694533 | KP42: L-LAL13 | KQ42: 694532 | KR42: H-LaK6A | KS42: 694534 | KT42: LAC13 | KU42: 694533
A43: ★★★ | B43: 39 | C43: H-LaK7 | D43: 713539 | E43: 53.94 | F43: 53.72 | G43: 0.013219 | H43: 0.013332 | I43: 1.67450 | J43: 1.68160 | K43: 1.68930 | L43: 1.69601 | M43: 1.69720 | N43: 1.69818 | O43: 1.70190 | P43: 1.70441 | Q43: 1.70670 | R43: 1.70898 | S43: 1.70962 | T43: 1.71021 | U43: 1.71287 | V43: 1.71300 | W43: 1.71615 | X43: 1.72220 | Y43: 1.72295 | Z43: 1.72943 | AA43: 1.73545 | AB43: 1.74574 | AC43: 2.87989018E+00 | AD43: -1.46958687E-02 | AE43: 1.89956868E-02 | AF43: 6.06495285E-04 | AG43: -2.91346717E-05 | AH43: 1.65584289E-06 | AI43: 0.3041 | AJ43: 0.2383 | AK43: 0.5469 | AL43: 0.2535 | AM43: 0.2363 | AN43: 0.4860 | AO43: -0.0028 | AP43: -0.0071 | AQ43: 0.0155 | AR43: 0.0057 | AS43: 3.6 | AT43: 3.6 | AU43: 3.7 | AV43: 3.7 | AW43: 3.7 | AX43: 3.7 | AY43: 3.8 | AZ43: 3.9 | BA43: 4.1 | BB43: 4.2 | BC43: 4.3 | BD43: 3.8 | BE43: 3.8 | BF43: 3.9 | BG43: 3.9 | BH43: 3.9 | BI43: 3.9 | BJ43: 4.0 | BK43: 4.1 | BL43: 4.3 | BM43: 4.4 | BN43: 4.5 | BO43: 4.0 | BP43: 4.0 | BQ43: 4.1 | BR43: 4.1 | BS43: 4.1 | BT43: 4.2 | BU43: 4.3 | BV43: 4.5 | BW43: 4.7 | BX43: 4.8 | BY43: 5.0 | BZ43: 4.1 | CA43: 4.0 | CB43: 4.1 | CC43: 4.1 | CD43: 4.1 | CE43: 4.2 | CF43: 4.3 | CG43: 4.5 | CH43: 4.7 | CI43: 4.8 | CJ43: 5.0 | CK43: 4.1 | CL43: 4.1 | CM43: 4.1 | CN43: 4.1 | CO43: 4.2 | CP43: 4.2 | CQ43: 4.4 | CR43: 4.5 | CS43: 4.8 | CT43: 4.9 | CU43: 5.1 | CV43: 4.2 | CW43: 4.3 | CX43: 4.3 | CY43: 4.4 | CZ43: 4.4 | DA43: 4.5 | DB43: 4.7 | DC43: 4.8 | DD43: 5.1 | DE43: 5.3 | DF43: 5.4 | DG43: 4.3 | DH43: 4.3 | DI43: 4.5 | DJ43: 4.5 | DK43: 4.6 | DL43: 4.7 | DM43: 4.9 | DN43: 5.0 | DO43: 5.3 | DP43: 5.4 | DQ43: 5.6 | DR43: 4.7 | DS43: 4.8 | DT43: 4.8 | DU43: 5.0 | DV43: 5.0 | DW43: 5.1 | DX43: 5.3 | DY43: 5.4 | DZ43: 5.4 | EA43: 5.6 | EB43: 5.7 | EC43: 4.7 | ED43: 4.9 | EE43: 4.9 | EF43: 5.1 | EG43: 5.1 | EH43: 5.2 | EI43: 5.3 | EJ43: 5.4 | EK43: 5.4 | EL43: 5.6 | EM43: 5.7 | EN43: 5.1 | EO43: 5.2 | EP43: 5.3 | EQ43: 5.4 | ER43: 5.5 | ES43: 5.6 | ET43: 5.7 | EU43: 5.8 | EV43: 6.0 | EW43: 6.2 | EX43: 6.5 | EY43: 1.3 | EZ43: 1.8 | FA43: 2.1 | FB43: 2.4 | FC43: 2.7 | FD43: 2.9 | FE43: 3.2 | FF43: 3.5 | FG43: 3.9 | FH43: 4.1 | FI43: 4.3 | FJ43: 3.18E-06 | FK43: 1.31E-08 | FL43: -1.47E-11 | FM43: 5.57E-07 | FN43: 3.42E-10 | FO43: 1.46E-01 | FP43: 1 | FQ43: 2 | FR43: 1 | FS43: 3 | FT43: 1 | FU43: 2 | FV43: 1 | FZ43: 640 | GA43: 665 | GB43: 573 | GC43: 619 | GD43: 0.77 | GF43: 61 | GG43: 77 | GH43: 53 | GI43: 54 | GJ43: 56 | GK43: 57 | GL43: 57 | GM43: 58 | GN43: 61 | GO43: 62 | GP43: 62 | GQ43: 63 | GR43: 64 | GS43: 64 | GT43: 65 | GU43: 65 | GV43: 66 | GW43: 67 | GX43: 67 | GY43: 68 | GZ43: 69 | HA43: 70 | HB43: 71 | HD43: 142 | HF43: 626 | HG43: 76 | HH43: 111.1 | HI43: 43.2 | HJ43: 0.285 | HK43: 64 | HL43: 1.67 | HM43: 3.78 | HN43: 360/270 | HO43: 337/268 | HP43: -1.7 | HQ43: 0.774 | HR43: 0.924 | HS43: 0.986 | HT43: 0.999 | HU43: 0.999 | HV43: 0.999 | HW43: 0.999 | HX43: 0.999 | HY43: 0.999 | HZ43: 0.999 | IA43: 0.999 | IB43: 0.999 | IC43: 0.999 | ID43: 0.999 | IE43: 0.999 | IF43: 0.999 | IG43: 0.999 | IH43: 0.999 | II43: 0.999 | IJ43: 0.999 | IK43: 0.998 | IL43: 0.997 | IM43: 0.995 | IN43: 0.993 | IO43: 0.990 | IP43: 0.987 | IQ43: 0.975 | IR43: 0.950 | IS43: 0.914 | IT43: 0.860 | IU43: 0.785 | IV43: 0.687 | IW43: 0.577 | IX43: 0.464 | IY43: 0.355 | IZ43: 0.248 | JA43: 0.600 | JB43: 0.854 | JC43: 0.972 | JD43: 0.998 | JE43: 0.998 | JF43: 0.998 | JG43: 0.998 | JH43: 0.998 | JI43: 0.998 | JJ43: 0.998 | JK43: 0.998 | JL43: 0.998 | JM43: 0.998 | JN43: 0.998 | JO43: 0.998 | JP43: 0.998 | JQ43: 0.998 | JR43: 0.998 | JS43: 0.998 | JT43: 0.998 | JU43: 0.996 | JV43: 0.993 | JW43: 0.990 | JX43: 0.984 | JY43: 0.977 | JZ43: 0.964 | KA43: 0.939 | KB43: 0.899 | KC43: 0.833 | KD43: 0.738 | KE43: 0.614 | KF43: 0.473 | KG43: 0.334 | KH43: 0.217 | KI43: 0.128 | KJ43: 0.063 | KK43: PG RP | KL43: 32 | KM43: MA | KN43: H-LaK7 | KO43: 713539 | KP43: S-LAL8 | KQ43: 713539 | KR43: H-LaK7A | KS43: 713538 | KT43: LAC8 | KU43: 713539 | KV43: K-LaK8 | KW43: 713539 | KX43: N-LAK8 | KY43: 713538
B44: 40 | C44: H-LaK8A | D44: 720503 | E44: 50.34 | F44: 50.10 | G44: 0.014302 | H44: 0.014439 | I44: 1.68225 | J44: 1.68879 | K44: 1.69593 | L44: 1.70232 | M44: 1.70349 | N44: 1.70446 | O44: 1.70823 | P44: 1.71084 | Q44: 1.71325 | R44: 1.71568 | S44: 1.71636 | T44: 1.71700 | U44: 1.71987 | V44: 1.72000 | W44: 1.72341 | X44: 1.72998 | Y44: 1.73080 | Z44: 1.73785 | AA44: 1.74443 | AB44: 1.75588 | AC44: 2.89933470E+00 | AD44: -1.34878716E-02 | AE44: 1.90766692E-02 | AF44: 1.36400166E-03 | AG44: -1.50217455E-04 | AH44: 9.16048470E-06 | AI44: 0.3021 | AJ44: 0.2384 | AK44: 0.5503 | AL44: 0.2521 | AM44: 0.2362 | AN44: 0.4883 | AO44: -0.0030 | AP44: -0.0097 | AQ44: 0.0005 | AR44: -0.0003 | AS44: 2.0 | AT44: 1.9 | AU44: 1.9 | AV44: 2.0 | AW44: 2.0 | AX44: 2.1 | AY44: 2.2 | AZ44: 2.2 | BA44: 2.3 | BB44: 2.5 | BC44: 2.6 | BD44: 2.2 | BE44: 2.2 | BF44: 2.2 | BG44: 2.2 | BH44: 2.3 | BI44: 2.4 | BJ44: 2.5 | BK44: 2.5 | BL44: 2.7 | BM44: 2.8 | BN44: 2.9 | BO44: 2.4 | BP44: 2.4 | BQ44: 2.4 | BR44: 2.5 | BS44: 2.5 | BT44: 2.5 | BU44: 2.6 | BV44: 2.7 | BW44: 2.9 | BX44: 3.0 | BY44: 3.2 | BZ44: 2.5 | CA44: 2.4 | CB44: 2.4 | CC44: 2.5 | CD44: 2.5 | CE44: 2.5 | CF44: 2.7 | CG44: 2.7 | CH44: 2.9 | CI44: 3.1 | CJ44: 3.3 | CK44: 2.5 | CL44: 2.5 | CM44: 2.5 | CN44: 2.6 | CO44: 2.6 | CP44: 2.6 | CQ44: 2.7 | CR44: 2.8 | CS44: 3.0 | CT44: 3.1 | CU44: 3.3 | CV44: 2.6 | CW44: 2.6 | CX44: 2.6 | CY44: 2.7 | CZ44: 2.7 | DA44: 2.8 | DB44: 2.9 | DC44: 3.0 | DD44: 3.2 | DE44: 3.4 | DF44: 3.6 | DG44: 2.9 | DH44: 2.9 | DI44: 3.0 | DJ44: 3.0 | DK44: 3.0 | DL44: 3.1 | DM44: 3.3 | DN44: 3.4 | DO44: 3.6 | DP44: 3.8 | DQ44: 4.0 | DR44: 3.3 | DS44: 3.3 | DT44: 3.3 | DU44: 3.3 | DV44: 3.4 | DW44: 3.5 | DX44: 3.7 | DY44: 3.8 | DZ44: 3.9 | EA44: 4.0 | EB44: 4.2 | EC44: 3.3 | ED44: 3.4 | EE44: 3.4 | EF44: 3.4 | EG44: 3.4 | EH44: 3.5 | EI44: 3.7 | EJ44: 3.8 | EK44: 4.0 | EL44: 4.1 | EM44: 4.3 | EN44: 3.6 | EO44: 3.7 | EP44: 3.8 | EQ44: 3.8 | ER44: 3.9 | ES44: 4.0 | ET44: 4.2 | EU44: 4.3 | EV44: 4.6 | EW44: 4.7 | EX44: 5.0 | EY44: -0.3 | EZ44: 0.2 | FA44: 0.5 | FB44: 0.9 | FC44: 1.1 | FD44: 1.3 | FE44: 1.5 | FF44: 1.8 | FG44: 2.1 | FH44: 2.3 | FI44: 2.5 | FJ44: 1.67E-07 | FK44: 1.21E-08 | FL44: -1.18E-11 | FM44: 5.40E-07 | FN44: 3.41E-10 | FO44: 2.06E-01 | FP44: 1 | FQ44: 3 | FR44: 1 | FS44: 3 | FT44: 1 | FU44: 2 | FV44: 1 | FZ44: 650 | GA44: 679 | GB44: 588 | GC44: 616 | GD44: 0.96 | GF44: 71 | GG44: 88 | GH44: 63 | GI44: 66 | GJ44: 68 | GK44: 68 | GL44: 69 | GM44: 70 | GN44: 71 | GO44: 71 | GP44: 72 | GQ44: 72 | GR44: 73 | GS44: 73 | GT44: 74 | GU44: 74 | GV44: 75 | GW44: 75 | GX44: 76 | GY44: 77 | GZ44: 79 | HA44: 80 | HB44: 81 | HD44: 125 | HF44: 606 | HG44: 108 | HH44: 107.5 | HI44: 40.9 | HJ44: 0.313 | HK44: 76 | HL44: 1.73 | HM44: 3.87 | HN44: 370/305 | HO44: 345/305 | HP44: -0.5 | HQ44: 0.828 | HR44: 0.946 | HS44: 0.991 | HT44: 0.999 | HU44: 0.999 | HV44: 0.999 | HW44: 0.999 | HX44: 0.999 | HY44: 0.999 | HZ44: 0.999 | IA44: 0.999 | IB44: 0.999 | IC44: 0.999 | ID44: 0.999 | IE44: 0.999 | IF44: 0.999 | IG44: 0.999 | IH44: 0.999 | II44: 0.999 | IJ44: 0.999 | IK44: 0.998 | IL44: 0.997 | IM44: 0.995 | IN44: 0.992 | IO44: 0.987 | IP44: 0.979 | IQ44: 0.965 | IR44: 0.945 | IS44: 0.900 | IT44: 0.812 | IU44: 0.717 | IV44: 0.581 | IW44: 0.326 | IX44: 0.088 | JA44: 0.686 | JB44: 0.895 | JC44: 0.982 | JD44: 0.998 | JE44: 0.998 | JF44: 0.998 | JG44: 0.998 | JH44: 0.998 | JI44: 0.998 | JJ44: 0.998 | JK44: 0.998 | JL44: 0.998 | JM44: 0.998 | JN44: 0.998 | JO44: 0.998 | JP44: 0.998 | JQ44: 0.998 | JR44: 0.998 | JS44: 0.998 | JT44: 0.998 | JU44: 0.996 | JV44: 0.994 | JW44: 0.990 | JX44: 0.983 | JY44: 0.974 | JZ44: 0.959 | KA44: 0.931 | KB44: 0.880 | KC44: 0.804 | KD44: 0.689 | KE44: 0.530 | KF44: 0.330 | KG44: 0.110 | KH44: 0.008 | KK44: PG RP | KL44: 52 | KM44: A | KN44: H-LaK8A | KO44: 720503 | KP44: S-LAL10 | KQ44: 720502 | KR44: H-LaK8A | KS44: 720503 | KT44: LAC10 | KU44: 720504 | KV44: K-LaK10 | KW44: 720503 | KX44: N-LAK10 | KY44: 720506
A45: ★★ | B45: 41 | C45: H-LaK8B | D45: 720503 | E45: 50.34 | F45: 50.10 | G45: 0.014302 | H45: 0.014439 | L45: 1.70247 | M45: 1.70360 | N45: 1.70455 | O45: 1.70826 | P45: 1.71086 | Q45: 1.71327 | R45: 1.71569 | S45: 1.71638 | T45: 1.71701 | U45: 1.71987 | V45: 1.72000 | W45: 1.72341 | X45: 1.73000 | Y45: 1.73082 | Z45: 1.73789 | AA45: 1.74450 | AB45: 1.75588 | AC45: 2.89634931E+00 | AD45: -1.17449806E-02 | AE45: 2.12156990E-02 | AF45: 6.32018297E-04 | AG45: -3.39053843E-05 | AH45: 2.46626102E-06 | AI45: 0.3014 | AJ45: 0.2384 | AK45: 0.5517 | AL45: 0.2507 | AM45: 0.2362 | AN45: 0.4896 | AO45: -0.0016 | AP45: -0.0083 | AQ45: -0.0051 | AR45: -0.0017 | AS45: 1.0 | AT45: 1.1 | AU45: 1.2 | AV45: 1.2 | AW45: 1.2 | AX45: 1.3 | AY45: 1.4 | AZ45: 1.5 | BA45: 1.6 | BB45: 1.7 | BC45: 1.7 | BD45: 1.2 | BE45: 1.3 | BF45: 1.3 | BG45: 1.4 | BH45: 1.4 | BI45: 1.4 | BJ45: 1.5 | BK45: 1.7 | BL45: 1.7 | BM45: 1.9 | BN45: 2.0 | BO45: 1.5 | BP45: 1.6 | BQ45: 1.6 | BR45: 1.6 | BS45: 1.6 | BT45: 1.7 | BU45: 1.7 | BV45: 1.9 | BW45: 2.0 | BX45: 2.2 | BY45: 2.3 | BZ45: 1.7 | CA45: 1.8 | CB45: 1.8 | CC45: 1.8 | CD45: 1.8 | CE45: 2.0 | CF45: 2.0 | CG45: 2.1 | CH45: 2.2 | CI45: 2.4 | CJ45: 2.5 | CK45: 1.8 | CL45: 2.0 | CM45: 2.0 | CN45: 2.0 | CO45: 2.0 | CP45: 2.2 | CQ45: 2.2 | CR45: 2.3 | CS45: 2.4 | CT45: 2.6 | CU45: 2.7 | CV45: 2.0 | CW45: 2.2 | CX45: 2.3 | CY45: 2.3 | CZ45: 2.3 | DA45: 2.4 | DB45: 2.5 | DC45: 2.7 | DD45: 2.8 | DE45: 2.9 | DF45: 3.0 | DG45: 2.4 | DH45: 2.4 | DI45: 2.5 | DJ45: 2.6 | DK45: 2.7 | DL45: 2.7 | DM45: 2.8 | DN45: 2.9 | DO45: 3.1 | DP45: 3.3 | DQ45: 3.3 | DR45: 2.7 | DS45: 2.8 | DT45: 2.8 | DU45: 2.8 | DV45: 2.9 | DW45: 2.9 | DX45: 3.0 | DY45: 3.2 | DZ45: 3.3 | EA45: 3.5 | EB45: 3.5 | EC45: 2.7 | ED45: 2.9 | EE45: 2.9 | EF45: 2.9 | EG45: 3.0 | EH45: 3.0 | EI45: 3.1 | EJ45: 3.3 | EK45: 3.4 | EL45: 3.6 | EM45: 3.7 | EN45: 3.1 | EO45: 3.3 | EP45: 3.3 | EQ45: 3.4 | ER45: 3.4 | ES45: 3.4 | ET45: 3.5 | EU45: 3.7 | EV45: 3.8 | EW45: 3.9 | EX45: 4.0 | EY45: -1.0 | EZ45: -0.3 | FA45: 0.0 | FB45: 0.3 | FC45: 0.5 | FD45: 0.9 | FE45: 1.0 | FF45: 1.3 | FG45: 1.5 | FH45: 1.8 | FI45: 1.9 | FJ45: -1.62E-06 | FK45: 1.34E-08 | FL45: -1.84E-11 | FM45: 8.88E-07 | FN45: 4.63E-11 | FO45: 6.23E-09 | FP45: 1 | FQ45: 3 | FR45: 1 | FS45: 3 | FT45: 1 | FU45: 2 | FV45: 1 | FZ45: 651 | GA45: 680 | GB45: 589 | GC45: 617 | GD45: 0.83 | GF45: 74 | GG45: 88 | GH45: 66 | GI45: 68 | GJ45: 69 | GK45: 70 | GL45: 71 | GM45: 72 | GN45: 73 | GO45: 74 | GP45: 75 | GQ45: 75 | GR45: 76 | GS45: 77 | GT45: 78 | GU45: 79 | GV45: 79 | GW45: 80 | GX45: 81 | GY45: 83 | GZ45: 84 | HA45: 85 | HB45: 87 | HD45: 113 | HF45: 606 | HG45: 156 | HH45: 103.9 | HI45: 39.9 | HJ45: 0.301 | HK45: 90 | HL45: 1.67 | HM45: 3.91 | HN45: 365/300 | HO45: 341/295 | HP45: -1.3 | HQ45: 0.876 | HR45: 0.965 | HS45: 0.986 | HT45: 0.995 | HU45: 0.998 | HV45: 0.999 | HW45: 0.999 | HX45: 0.999 | HY45: 0.999 | HZ45: 0.999 | IA45: 0.999 | IB45: 0.999 | IC45: 0.999 | ID45: 0.999 | IE45: 0.999 | IF45: 0.999 | IG45: 0.999 | IH45: 0.999 | II45: 0.999 | IJ45: 0.998 | IK45: 0.997 | IL45: 0.996 | IM45: 0.994 | IN45: 0.992 | IO45: 0.989 | IP45: 0.984 | IQ45: 0.975 | IR45: 0.958 | IS45: 0.931 | IT45: 0.890 | IU45: 0.821 | IV45: 0.724 | IW45: 0.570 | IX45: 0.336 | JA45: 0.768 | JB45: 0.932 | JC45: 0.973 | JD45: 0.990 | JE45: 0.997 | JF45: 0.998 | JG45: 0.998 | JH45: 0.998 | JI45: 0.998 | JJ45: 0.998 | JK45: 0.998 | JL45: 0.998 | JM45: 0.998 | JN45: 0.998 | JO45: 0.998 | JP45: 0.998 | JQ45: 0.998 | JR45: 0.998 | JS45: 0.997 | JT45: 0.996 | JU45: 0.994 | JV45: 0.992 | JW45: 0.989 | JX45: 0.984 | JY45: 0.978 | JZ45: 0.968 | KA45: 0.950 | KB45: 0.919 | KC45: 0.868 | KD45: 0.792 | KE45: 0.674 | KF45: 0.524 | KG45: 0.325 | KH45: 0.113 | KK45: PG RP | KL45: 52 | KM45: MA | KN45: H-LaK8B | KO45: 720503 | KP45: S-LAL10 | KQ45: 720502 | KR45: H-LaK8B | KS45: 720503 | KT45: LAC10 | KU45: 720504 | KV45: K-LaK10 | KW45: 720503 | KX45: N-LAK10 | KY45: 720506
A46: ★★ | B46: 42 | C46: H-LaK9 | D46: 699511 | E46: 51.11 | F46: 50.82 | G46: 0.013682 | H46: 0.013825 | I46: 1.66716 | J46: 1.67189 | K46: 1.67730 | L46: 1.68265 | M46: 1.68370 | N46: 1.68458 | O46: 1.68810 | P46: 1.69058 | Q46: 1.69288 | R46: 1.69520 | S46: 1.69585 | T46: 1.69646 | U46: 1.69918 | V46: 1.69930 | W46: 1.70256 | X46: 1.70888 | Y46: 1.70967 | Z46: 1.71650 | AA46: 1.72288 | AB46: 1.73368 | AC46: 2.82518848E+00 | AD46: -9.25237822E-03 | AE46: 2.31572298E-02 | AF46: -5.65059188E-04 | AG46: 1.62553405E-04 | AH46: -9.14469356E-06 | AI46: 0.2997 | AJ46: 0.2383 | AK46: 0.5569 | AL46: 0.2495 | AM46: 0.2358 | AN46: 0.4940 | AO46: -0.0001 | AP46: -0.0018 | AQ46: -0.0116 | AR46: -0.0041 | AS46: -2.7 | AT46: -2.7 | AU46: -2.6 | AV46: -2.5 | AW46: -2.5 | AX46: -2.5 | AY46: -2.4 | AZ46: -2.3 | BA46: -2.3 | BB46: -2.1 | BC46: -2.1 | BD46: -2.5 | BE46: -2.5 | BF46: -2.4 | BG46: -2.3 | BH46: -2.2 | BI46: -2.2 | BJ46: -2.1 | BK46: -1.8 | BL46: -1.8 | BM46: -1.7 | BN46: -1.6 | BO46: -2.3 | BP46: -2.2 | BQ46: -2.0 | BR46: -1.8 | BS46: -1.7 | BT46: -1.7 | BU46: -1.5 | BV46: -1.4 | BW46: -1.2 | BX46: -1.2 | BY46: -1.1 | BZ46: -2.3 | CA46: -2.1 | CB46: -2.0 | CC46: -1.8 | CD46: -1.7 | CE46: -1.6 | CF46: -1.5 | CG46: -1.4 | CH46: -1.2 | CI46: -1.2 | CJ46: -1.1 | CK46: -2.2 | CL46: -2.0 | CM46: -1.9 | CN46: -1.8 | CO46: -1.6 | CP46: -1.6 | CQ46: -1.4 | CR46: -1.4 | CS46: -1.2 | CT46: -1.2 | CU46: -1.0 | CV46: -2.0 | CW46: -1.8 | CX46: -1.7 | CY46: -1.5 | CZ46: -1.5 | DA46: -1.4 | DB46: -1.2 | DC46: -1.0 | DD46: -1.0 | DE46: -0.8 | DF46: -0.7 | DG46: -1.7 | DH46: -1.7 | DI46: -1.5 | DJ46: -1.4 | DK46: -1.4 | DL46: -1.3 | DM46: -1.1 | DN46: -1.0 | DO46: -0.9 | DP46: -0.8 | DQ46: -0.5 | DR46: -1.6 | DS46: -1.5 | DT46: -1.4 | DU46: -1.3 | DV46: -1.3 | DW46: -1.1 | DX46: -0.9 | DY46: -0.8 | DZ46: -0.6 | EA46: -0.7 | EB46: -0.3 | EC46: -1.6 | ED46: -1.5 | EE46: -1.3 | EF46: -1.2 | EG46: -1.1 | EH46: -1.0 | EI46: -0.8 | EJ46: -0.7 | EK46: -0.6 | EL46: -0.5 | EM46: -0.2 | EN46: -1.4 | EO46: -1.4 | EP46: -1.2 | EQ46: -1.0 | ER46: -0.9 | ES46: -0.8 | ET46: -0.6 | EU46: -0.4 | EV46: -0.4 | EW46: -0.1 | EX46: 0.1 | EY46: -4.9 | EZ46: -4.3 | FA46: -3.9 | FB46: -3.5 | FC46: -3.1 | FD46: -2.9 | FE46: -2.6 | FF46: -2.4 | FG46: -2.1 | FH46: -2.0 | FI46: -1.8 | FJ46: -7.86E-06 | FK46: 1.43E-08 | FL46: -2.55E-11 | FM46: 6.68E-07 | FN46: 5.75E-10 | FO46: 2.86E-16 | FP46: 1 | FQ46: 3 | FR46: 2 | FS46: 3 | FT46: 1 | FU46: 3 | FV46: 1 | FZ46: 654 | GA46: 695 | GB46: 618 | GC46: 645 | GD46: 0.66 | GF46: 85 | GG46: 95 | GH46: 79 | GI46: 80 | GJ46: 81 | GK46: 82 | GL46: 83 | GM46: 85 | GN46: 85 | GO46: 87 | GP46: 88 | GQ46: 88 | GR46: 90 | GS46: 91 | GT46: 91 | GU46: 91 | GV46: 93 | GW46: 94 | GX46: 94 | GY46: 96 | GZ46: 96 | HA46: 96 | HB46: 98 | HD46: 96 | HF46: 511 | HG46: 253 | HH46: 84.5 | HI46: 32.3 | HJ46: 0.309 | HK46: 81 | HL46: 1.37 | HM46: 4.26 | HN46: 370/310 | HO46: 355/304 | HP46: -0.4 | HQ46: 0.916 | HR46: 0.969 | HS46: 0.987 | HT46: 0.994 | HU46: 0.998 | HV46: 0.999 | HW46: 0.999 | HX46: 0.999 | HY46: 0.999 | HZ46: 0.999 | IA46: 0.999 | IB46: 0.999 | IC46: 0.999 | ID46: 0.999 | IE46: 0.999 | IF46: 0.999 | IG46: 0.999 | IH46: 0.999 | II46: 0.996 | IJ46: 0.994 | IK46: 0.991 | IL46: 0.989 | IM46: 0.987 | IN46: 0.982 | IO46: 0.976 | IP46: 0.966 | IQ46: 0.948 | IR46: 0.918 | IS46: 0.868 | IT46: 0.792 | IU46: 0.685 | IV46: 0.540 | IW46: 0.366 | IX46: 0.200 | JA46: 0.838 | JB46: 0.939 | JC46: 0.974 | JD46: 0.988 | JE46: 0.995 | JF46: 0.998 | JG46: 0.998 | JH46: 0.998 | JI46: 0.998 | JJ46: 0.998 | JK46: 0.998 | JL46: 0.998 | JM46: 0.998 | JN46: 0.998 | JO46: 0.998 | JP46: 0.998 | JQ46: 0.998 | JR46: 0.998 | JS46: 0.992 | JT46: 0.988 | JU46: 0.983 | JV46: 0.978 | JW46: 0.974 | JX46: 0.964 | JY46: 0.953 | JZ46: 0.934 | KA46: 0.899 | KB46: 0.842 | KC46: 0.754 | KD46: 0.627 | KE46: 0.469 | KF46: 0.292 | KG46: 0.134 | KH46: 0.040 | KK46: PG RP | KL46: 65 | KM46: B | KN46: H-LaK9 | KO46: 699511 | KP46: S-LAL20 | KQ46: 699511
B47: 43 | C47: H-LaK10 | D47: 651559 | E47: 55.89 | F47: 55.62 | G47: 0.011650 | H47: 0.011757 | I47: 1.61921 | J47: 1.62487 | K47: 1.63105 | L47: 1.63650 | M47: 1.63749 | N47: 1.63830 | O47: 1.64144 | P47: 1.64361 | Q47: 1.64560 | R47: 1.64760 | S47: 1.64816 | T47: 1.64869 | U47: 1.65103 | V47: 1.65113 | W47: 1.65391 | X47: 1.65925 | Y47: 1.65992 | Z47: 1.66558 | AA47: 1.67083 | AB47: 1.67985 | AC47: 2.68014719E+00 | AD47: -1.13022222E-02 | AE47: 1.49971961E-02 | AF47: 1.08435000E-03 | AG47: -1.25822106E-04 | AH47: 7.18648482E-06 | AI47: 0.3030 | AJ47: 0.2386 | AK47: 0.5433 | AL47: 0.2526 | AM47: 0.2365 | AN47: 0.4814 | AO47: -0.0010 | AP47: -0.0074 | AQ47: -0.0127 | AR47: -0.0058 | AS47: 2.5 | AT47: 2.5 | AU47: 2.5 | AV47: 2.5 | AW47: 2.5 | AX47: 2.6 | AY47: 2.6 | AZ47: 2.7 | BA47: 2.8 | BB47: 2.9 | BC47: 3.0 | BD47: 2.8 | BE47: 2.7 | BF47: 2.8 | BG47: 2.8 | BH47: 2.8 | BI47: 2.8 | BJ47: 2.9 | BK47: 3.0 | BL47: 3.1 | BM47: 3.2 | BN47: 3.3 | BO47: 2.9 | BP47: 2.8 | BQ47: 2.9 | BR47: 3.0 | BS47: 3.0 | BT47: 3.0 | BU47: 3.1 | BV47: 3.2 | BW47: 3.2 | BX47: 3.3 | BY47: 3.4 | BZ47: 3.0 | CA47: 2.9 | CB47: 2.9 | CC47: 3.0 | CD47: 3.0 | CE47: 3.0 | CF47: 3.1 | CG47: 3.2 | CH47: 3.2 | CI47: 3.3 | CJ47: 3.4 | CK47: 3.0 | CL47: 2.9 | CM47: 2.9 | CN47: 3.0 | CO47: 3.0 | CP47: 3.0 | CQ47: 3.1 | CR47: 3.3 | CS47: 3.3 | CT47: 3.4 | CU47: 3.5 | CV47: 3.1 | CW47: 3.1 | CX47: 3.1 | CY47: 3.1 | CZ47: 3.1 | DA47: 3.1 | DB47: 3.2 | DC47: 3.4 | DD47: 3.5 | DE47: 3.6 | DF47: 3.7 | DG47: 3.3 | DH47: 3.3 | DI47: 3.3 | DJ47: 3.3 | DK47: 3.3 | DL47: 3.4 | DM47: 3.6 | DN47: 3.7 | DO47: 3.8 | DP47: 3.9 | DQ47: 4.0 | DR47: 3.5 | DS47: 3.5 | DT47: 3.5 | DU47: 3.5 | DV47: 3.5 | DW47: 3.6 | DX47: 3.8 | DY47: 3.9 | DZ47: 4.1 | EA47: 4.2 | EB47: 4.3 | EC47: 3.6 | ED47: 3.6 | EE47: 3.6 | EF47: 3.6 | EG47: 3.6 | EH47: 3.7 | EI47: 3.9 | EJ47: 4.0 | EK47: 4.2 | EL47: 4.3 | EM47: 4.4 | EN47: 4.0 | EO47: 4.0 | EP47: 4.0 | EQ47: 4.1 | ER47: 4.1 | ES47: 4.2 | ET47: 4.4 | EU47: 4.6 | EV47: 4.8 | EW47: 4.9 | EX47: 5.0 | EY47: 0.3 | EZ47: 0.7 | FA47: 1.0 | FB47: 1.4 | FC47: 1.6 | FD47: 1.7 | FE47: 2.0 | FF47: 2.3 | FG47: 2.4 | FH47: 2.6 | FI47: 2.8 | FJ47: 1.69E-06 | FK47: 1.16E-08 | FL47: -1.39E-11 | FM47: 3.41E-07 | FN47: 4.23E-10 | FO47: 2.78E-01 | FP47: 1 | FQ47: 2 | FR47: 1 | FS47: 4 | FT47: 1 | FU47: 2 | FV47: 2 | FZ47: 656 | GA47: 687 | GB47: 589 | GC47: 629 | GD47: 0.80 | GF47: 67 | GG47: 82 | GH47: 59 | GI47: 61 | GJ47: 62 | GK47: 63 | GL47: 63 | GM47: 64 | GN47: 65 | GO47: 65 | GP47: 66 | GQ47: 67 | GR47: 68 | GS47: 68 | GT47: 69 | GU47: 69 | GV47: 70 | GW47: 71 | GX47: 72 | GY47: 73 | GZ47: 74 | HA47: 75 | HB47: 76 | HD47: 127 | HF47: 552 | HG47: 170 | HH47: 90.3 | HI47: 34.4 | HJ47: 0.311 | HK47: 54 | HL47: 1.90 | HM47: 3.72 | HN47: 350/275 | HO47: 329/275 | HP47: -4.0 | HQ47: 0.891 | HR47: 0.966 | HS47: 0.990 | HT47: 0.995 | HU47: 0.999 | HV47: 0.999 | HW47: 0.999 | HX47: 0.999 | HY47: 0.999 | HZ47: 0.999 | IA47: 0.999 | IB47: 0.999 | IC47: 0.999 | ID47: 0.999 | IE47: 0.999 | IF47: 0.999 | IG47: 0.999 | IH47: 0.999 | II47: 0.999 | IJ47: 0.999 | IK47: 0.999 | IL47: 0.998 | IM47: 0.996 | IN47: 0.994 | IO47: 0.991 | IP47: 0.988 | IQ47: 0.982 | IR47: 0.971 | IS47: 0.952 | IT47: 0.920 | IU47: 0.867 | IV47: 0.790 | IW47: 0.684 | IX47: 0.551 | IY47: 0.401 | IZ47: 0.249 | JA47: 0.794 | JB47: 0.933 | JC47: 0.980 | JD47: 0.990 | JE47: 0.998 | JF47: 0.998 | JG47: 0.998 | JH47: 0.998 | JI47: 0.998 | JJ47: 0.998 | JK47: 0.998 | JL47: 0.998 | JM47: 0.998 | JN47: 0.998 | JO47: 0.998 | JP47: 0.998 | JQ47: 0.998 | JR47: 0.998 | JS47: 0.998 | JT47: 0.998 | JU47: 0.998 | JV47: 0.995 | JW47: 0.992 | JX47: 0.989 | JY47: 0.985 | JZ47: 0.979 | KA47: 0.968 | KB47: 0.945 | KC47: 0.910 | KD47: 0.849 | KE47: 0.756 | KF47: 0.628 | KG47: 0.469 | KH47: 0.305 | KI47: 0.163 | KJ47: 0.064 | KK47: PG RP | KL47: 45 | KM47: A | KN47: H-LaK10 | KO47: 651559 | KP47: S-LAL54Q | KQ47: 651562 | KR47: H-LaK10 | KS47: 651559 | KX47: N-LAK22 | KY47: 651559
A48: ★★ | B48: 44 | C48: H-LaK11 | D48: 651562 | E48: 56.24 | F48: 56.02 | G48: 0.011576 | H48: 0.011670 | M48: 1.63688 | N48: 1.63776 | O48: 1.64113 | P48: 1.64340 | Q48: 1.64543 | R48: 1.64747 | S48: 1.64803 | T48: 1.64856 | U48: 1.65089 | V48: 1.65100 | W48: 1.65376 | X48: 1.65905 | Y48: 1.65970 | Z48: 1.66534 | AA48: 1.67056 | AB48: 1.67944 | AC48: 2.67752226E+00 | AD48: -1.24341775E-02 | AE48: 1.81020008E-02 | AF48: -1.38622158E-04 | AG48: 6.22866969E-05 | AH48: -3.07013984E-06 | AI48: 0.3049 | AJ48: 0.2384 | AK48: 0.5434 | AL48: 0.2545 | AM48: 0.2365 | AN48: 0.4833 | AO48: -0.0022 | AP48: -0.0068 | AQ48: 0.0262 | AR48: 0.0123 | AS48: 4.3 | AT48: 4.3 | AU48: 4.3 | AV48: 4.3 | AW48: 4.4 | AX48: 4.4 | AY48: 4.5 | AZ48: 4.5 | BA48: 4.5 | BB48: 4.6 | BC48: 4.6 | BD48: 4.5 | BE48: 4.5 | BF48: 4.5 | BG48: 4.6 | BH48: 4.6 | BI48: 4.8 | BJ48: 4.9 | BK48: 5 | BL48: 5 | BM48: 5.1 | BN48: 5.2 | BO48: 4.6 | BP48: 4.7 | BQ48: 4.7 | BR48: 4.8 | BS48: 4.9 | BT48: 4.9 | BU48: 5.1 | BV48: 5.1 | BW48: 5.2 | BX48: 5.3 | BY48: 5.4 | BZ48: 4.7 | CA48: 4.8 | CB48: 4.9 | CC48: 4.9 | CD48: 5 | CE48: 5 | CF48: 5.2 | CG48: 5.3 | CH48: 5.4 | CI48: 5.5 | CJ48: 5.5 | CK48: 4.9 | CL48: 4.9 | CM48: 4.9 | CN48: 5.1 | CO48: 5.2 | CP48: 5.2 | CQ48: 5.3 | CR48: 5.5 | CS48: 5.6 | CT48: 5.7 | CU48: 5.7 | CV48: 5.1 | CW48: 5.3 | CX48: 5.4 | CY48: 5.5 | CZ48: 5.5 | DA48: 5.6 | DB48: 5.8 | DC48: 5.9 | DD48: 6 | DE48: 6.1 | DF48: 6.1 | DG48: 5.5 | DH48: 5.5 | DI48: 5.6 | DJ48: 5.6 | DK48: 5.6 | DL48: 5.8 | DM48: 5.9 | DN48: 5.9 | DO48: 6.1 | DP48: 6.2 | DQ48: 6.2 | DR48: 5.7 | DS48: 5.7 | DT48: 5.8 | DU48: 5.9 | DV48: 6 | DW48: 6 | DX48: 6.1 | DY48: 6.2 | DZ48: 6.3 | EA48: 6.4 | EB48: 6.5 | EC48: 5.8 | ED48: 5.8 | EE48: 5.8 | EF48: 5.9 | EG48: 6 | EH48: 6.2 | EI48: 6.2 | EJ48: 6.3 | EK48: 6.4 | EL48: 6.4 | EM48: 6.6 | EN48: 6.2 | EO48: 6.2 | EP48: 6.3 | EQ48: 6.4 | ER48: 6.5 | ES48: 6.7 | ET48: 6.9 | EU48: 7 | EV48: 7.2 | EW48: 7.3 | EX48: 7.4 | EY48: 2.2 | EZ48: 2.7 | FA48: 3.0 | FB48: 3.5 | FC48: 3.8 | FD48: 3.9 | FE48: 4.2 | FF48: 4.5 | FG48: 4.7 | FH48: 4.9 | FI48: 5.0 | FJ48: 4.70E-06 | FK48: 1.30E-08 | FL48: -2.38E-11 | FM48: 8.51E-07 | FN48: 6.66E-10 | FO48: 4.15E-14 | FP48: 1 | FQ48: 1 | FR48: 1 | FS48: 3 | FT48: 1 | FU48: 2 | FZ48: 689 | GA48: 723 | GB48: 646 | GC48: 679 | GD48: 1.00 | GF48: 40 | GG48: 56 | GH48: 32 | GI48: 34 | GJ48: 36 | GK48: 36 | GL48: 36 | GM48: 37 | GN48: 39 | GO48: 40 | GP48: 41 | GQ48: 41 | GR48: 42 | GS48: 42 | GT48: 42 | GU48: 43 | GV48: 45 | GW48: 46 | GX48: 48 | GY48: 49 | GZ48: 51 | HA48: 52 | HB48: 54 | HD48: 153 | HF48: 680 | HG48: 75 | HH48: 104.6 | HI48: 40.4 | HJ48: 0.296 | HK48: 121 | HL48: 2.27 | HM48: 3.34 | HN48: 360/280 | HO48: 342/277 | HP48: -1.3 | HQ48: 0.789 | HR48: 0.933 | HS48: 0.980 | HT48: 0.993 | HU48: 0.997 | HV48: 0.995 | HW48: 0.999 | HX48: 0.999 | HY48: 0.999 | HZ48: 0.999 | IA48: 0.999 | IB48: 0.999 | IC48: 0.999 | ID48: 0.999 | IE48: 0.999 | IF48: 0.999 | IG48: 0.999 | IH48: 0.999 | II48: 0.999 | IJ48: 0.999 | IK48: 0.998 | IL48: 0.998 | IM48: 0.997 | IN48: 0.993 | IO48: 0.989 | IP48: 0.983 | IQ48: 0.973 | IR48: 0.956 | IS48: 0.926 | IT48: 0.883 | IU48: 0.817 | IV48: 0.732 | IW48: 0.627 | IX48: 0.508 | IY48: 0.383 | IZ48: 0.265 | JA48: 0.623 | JB48: 0.871 | JC48: 0.961 | JD48: 0.985 | JE48: 0.994 | JF48: 0.991 | JG48: 0.998 | JH48: 0.998 | JI48: 0.998 | JJ48: 0.998 | JK48: 0.998 | JL48: 0.998 | JM48: 0.998 | JN48: 0.998 | JO48: 0.998 | JP48: 0.998 | JQ48: 0.998 | JR48: 0.998 | JS48: 0.998 | JT48: 0.998 | JU48: 0.997 | JV48: 0.996 | JW48: 0.993 | JX48: 0.987 | JY48: 0.978 | JZ48: 0.967 | KA48: 0.947 | KB48: 0.913 | KC48: 0.858 | KD48: 0.781 | KE48: 0.667 | KF48: 0.536 | KG48: 0.393 | KH48: 0.258 | KI48: 0.146 | KJ48: 0.070 | KK48: PG RP | KL48: 50 | KM48: C | KN48: H-LaK11 | KO48: 651562 | KP48: S-LAL54Q | KQ48: 651562 | KR48: H-LaK10 | KS48: 651559 | KX48: N-LAK22 | KY48: 651559
B49: 45 | C49: H-LaK12 | D49: 697562 | E49: 56.19 | F49: 55.98 | G49: 0.012400 | H49: 0.012500 | I49: 1.65825 | J49: 1.66578 | K49: 1.67381 | L49: 1.68059 | M49: 1.68176 | N49: 1.68271 | O49: 1.68629 | P49: 1.68869 | Q49: 1.69087 | R49: 1.69301 | S49: 1.69361 | T49: 1.69418 | U49: 1.69668 | V49: 1.69680 | W49: 1.69975 | X49: 1.70541 | Y49: 1.70611 | Z49: 1.71210 | AA49: 1.71764 | AB49: 1.72713 | AC49: 2.83112539E+00 | AD49: -1.55847682E-02 | AE49: 1.58070931E-02 | AF49: 1.24470183E-03 | AG49: -1.41192909E-04 | AH49: 7.83660883E-06 | AI49: 0.3056 | AJ49: 0.2379 | AK49: 0.5395 | AL49: 0.2552 | AM49: 0.2360 | AN49: 0.4792 | AO49: -0.0027 | AP49: -0.0108 | AQ49: 0.0182 | AR49: 0.0067 | AS49: 1.5 | AT49: 1.6 | AU49: 1.7 | AV49: 1.8 | AW49: 2.0 | AX49: 2.1 | AY49: 2.1 | AZ49: 2.1 | BA49: 2.1 | BB49: 2.2 | BC49: 2.4 | BD49: 1.5 | BE49: 1.6 | BF49: 1.8 | BG49: 2.0 | BH49: 2.2 | BI49: 2.3 | BJ49: 2.3 | BK49: 2.4 | BL49: 2.6 | BM49: 2.7 | BN49: 2.8 | BO49: 1.6 | BP49: 1.7 | BQ49: 2.0 | BR49: 2.2 | BS49: 2.4 | BT49: 2.5 | BU49: 2.5 | BV49: 2.6 | BW49: 2.8 | BX49: 2.8 | BY49: 3.0 | BZ49: 1.6 | CA49: 1.7 | CB49: 2.0 | CC49: 2.2 | CD49: 2.4 | CE49: 2.5 | CF49: 2.4 | CG49: 2.6 | CH49: 2.8 | CI49: 2.8 | CJ49: 3.0 | CK49: 1.7 | CL49: 1.8 | CM49: 2.1 | CN49: 2.3 | CO49: 2.5 | CP49: 2.6 | CQ49: 2.5 | CR49: 2.7 | CS49: 2.9 | CT49: 2.9 | CU49: 3.1 | CV49: 1.8 | CW49: 1.9 | CX49: 2.2 | CY49: 2.4 | CZ49: 2.6 | DA49: 2.8 | DB49: 2.8 | DC49: 2.9 | DD49: 3.1 | DE49: 3.1 | DF49: 3.2 | DG49: 2.0 | DH49: 2.1 | DI49: 2.3 | DJ49: 2.6 | DK49: 2.8 | DL49: 2.9 | DM49: 3.0 | DN49: 3.1 | DO49: 3.3 | DP49: 3.3 | DQ49: 3.5 | DR49: 2.2 | DS49: 2.4 | DT49: 2.6 | DU49: 2.7 | DV49: 3.0 | DW49: 3.1 | DX49: 3.2 | DY49: 3.4 | DZ49: 3.5 | EA49: 3.5 | EB49: 3.7 | EC49: 2.2 | ED49: 2.4 | EE49: 2.7 | EF49: 2.8 | EG49: 3.1 | EH49: 3.2 | EI49: 3.3 | EJ49: 3.5 | EK49: 3.6 | EL49: 3.6 | EM49: 3.8 | EN49: 2.3 | EO49: 2.6 | EP49: 3.3 | EQ49: 3.4 | ER49: 3.5 | ES49: 3.6 | ET49: 3.8 | EU49: 3.9 | EV49: 4.0 | EW49: 4.3 | EX49: 4.4 | EY49: -1.0 | EZ49: -0.5 | FA49: 0.1 | FB49: 0.6 | FC49: 1.0 | FD49: 1.3 | FE49: 1.4 | FF49: 1.7 | FG49: 2.0 | FH49: 2.1 | FI49: 2.3 | FJ49: 1.91E-07 | FK49: 1.65E-08 | FL49: -3.83E-11 | FM49: 3.84E-07 | FN49: 4.87E-10 | FO49: 2.27E-01 | FP49: 1 | FQ49: 2 | FR49: 1 | FS49: 4 | FT49: 1 | FU49: 2 | FV49: 1 | FZ49: 673 | GA49: 696 | GB49: 611 | GC49: 638 | GD49: 1.07 | GF49: 56 | GG49: 72 | GH49: 53 | GI49: 55 | GJ49: 57 | GK49: 58 | GL49: 58 | GM49: 59 | GN49: 59 | GO49: 60 | GP49: 60 | GQ49: 60 | GR49: 61 | GS49: 61 | GT49: 61 | GU49: 62 | GV49: 62 | GW49: 63 | GX49: 64 | GY49: 65 | GZ49: 66 | HA49: 67 | HB49: 67 | HD49: 140 | HF49: 616 | HG49: 79 | HH49: 112.9 | HI49: 43.2 | HJ49: 0.307 | HK49: 73 | HL49: 1.59 | HM49: 3.71 | HN49: 360/270 | HO49: 334/268 | HP49: -2.0 | HQ49: 0.795 | HR49: 0.953 | HS49: 0.988 | HT49: 0.999 | HU49: 0.999 | HV49: 0.999 | HW49: 0.999 | HX49: 0.999 | HY49: 0.999 | HZ49: 0.999 | IA49: 0.999 | IB49: 0.999 | IC49: 0.999 | ID49: 0.999 | IE49: 0.999 | IF49: 0.999 | IG49: 0.999 | IH49: 0.999 | II49: 0.999 | IJ49: 0.999 | IK49: 0.999 | IL49: 0.999 | IM49: 0.999 | IN49: 0.999 | IO49: 0.997 | IP49: 0.992 | IQ49: 0.983 | IR49: 0.968 | IS49: 0.942 | IT49: 0.907 | IU49: 0.856 | IV49: 0.785 | IW49: 0.688 | IX49: 0.564 | IY49: 0.401 | JA49: 0.614 | JB49: 0.898 | JC49: 0.969 | JD49: 0.998 | JE49: 0.998 | JF49: 0.998 | JG49: 0.998 | JH49: 0.998 | JI49: 0.998 | JJ49: 0.998 | JK49: 0.998 | JL49: 0.998 | JM49: 0.998 | JN49: 0.998 | JO49: 0.998 | JP49: 0.998 | JQ49: 0.998 | JR49: 0.998 | JS49: 0.998 | JT49: 0.998 | JU49: 0.998 | JV49: 0.994 | JW49: 0.989 | JX49: 0.984 | JY49: 0.978 | JZ49: 0.967 | KA49: 0.948 | KB49: 0.918 | KC49: 0.858 | KD49: 0.792 | KE49: 0.699 | KF49: 0.581 | KG49: 0.442 | KH49: 0.289 | KI49: 0.144 | KK49: PG RP | KL49: 40 | KM49: A | KN49: H-LaK12 | KO49: 697562 | KP49: (S-LAL14) | KQ49: 697555 | KR49: H-LaK12 | KS49: 697562 | KV49: (K-LaK14) | KW49: 697556 | KX49: (N-LAK14) | KY49: 697554
A50: ★★★ | B50: 46 | C50: H-LaK50A | D50: 652584 | E50: 58.40 | F50: 58.15 | G50: 0.011157 | H50: 0.011251 | I50: 1.61677 | J50: 1.62349 | K50: 1.63071 | L50: 1.63688 | M50: 1.63795 | N50: 1.63882 | O50: 1.64210 | P50: 1.64428 | Q50: 1.64625 | R50: 1.64820 | S50: 1.64874 | T50: 1.64924 | U50: 1.65150 | V50: 1.65160 | W50: 1.65426 | X50: 1.65935 | Y50: 1.65999 | Z50: 1.66541 | AA50: 1.67043 | AB50: 1.67894 | AC50: 2.68404972E+00 | AD50: -1.34999767E-02 | AE50: 1.56364220E-02 | AF50: 3.91605064E-04 | AG50: -8.87810681E-06 | AH50: 2.90663584E-07 | AI50: 0.3047 | AJ50: 0.2384 | AK50: 0.5432 | AL50: 0.2542 | AM50: 0.2364 | AN50: 0.4817 | AO50: -0.0017 | AP50: -0.0034 | AQ50: 0.0176 | AR50: 0.0062 | AS50: 2.7 | AT50: 2.7 | AU50: 2.8 | AV50: 2.8 | AW50: 2.9 | AX50: 3.0 | AY50: 3.0 | AZ50: 3.0 | BA50: 3.2 | BB50: 3.2 | BC50: 3.2 | BD50: 2.9 | BE50: 2.9 | BF50: 3.0 | BG50: 3.0 | BH50: 3.1 | BI50: 3.2 | BJ50: 3.3 | BK50: 3.3 | BL50: 3.4 | BM50: 3.4 | BN50: 3.5 | BO50: 3.1 | BP50: 3.2 | BQ50: 3.3 | BR50: 3.3 | BS50: 3.3 | BT50: 3.3 | BU50: 3.4 | BV50: 3.5 | BW50: 3.6 | BX50: 3.6 | BY50: 3.7 | BZ50: 3.2 | CA50: 3.3 | CB50: 3.3 | CC50: 3.3 | CD50: 3.3 | CE50: 3.4 | CF50: 3.5 | CG50: 3.6 | CH50: 3.6 | CI50: 3.7 | CJ50: 3.7 | CK50: 3.2 | CL50: 3.3 | CM50: 3.3 | CN50: 3.3 | CO50: 3.3 | CP50: 3.4 | CQ50: 3.5 | CR50: 3.6 | CS50: 3.6 | CT50: 3.7 | CU50: 3.8 | CV50: 3.3 | CW50: 3.3 | CX50: 3.3 | CY50: 3.3 | CZ50: 3.4 | DA50: 3.5 | DB50: 3.7 | DC50: 3.8 | DD50: 3.9 | DE50: 4.0 | DF50: 4.1 | DG50: 3.4 | DH50: 3.5 | DI50: 3.6 | DJ50: 3.6 | DK50: 3.6 | DL50: 3.8 | DM50: 3.8 | DN50: 3.9 | DO50: 4.0 | DP50: 4.1 | DQ50: 4.2 | DR50: 3.6 | DS50: 3.7 | DT50: 3.7 | DU50: 3.8 | DV50: 3.9 | DW50: 4.0 | DX50: 4.1 | DY50: 4.2 | DZ50: 4.3 | EA50: 4.4 | EB50: 4.5 | EC50: 3.6 | ED50: 3.7 | EE50: 3.8 | EF50: 3.9 | EG50: 4.0 | EH50: 4.1 | EI50: 4.2 | EJ50: 4.3 | EK50: 4.4 | EL50: 4.5 | EM50: 4.6 | EN50: 4.0 | EO50: 4.1 | EP50: 4.2 | EQ50: 4.2 | ER50: 4.3 | ES50: 4.4 | ET50: 4.5 | EU50: 4.6 | EV50: 4.8 | EW50: 5.0 | EX50: 5.2 | EY50: 0.5 | EZ50: 1.1 | FA50: 1.4 | FB50: 1.7 | FC50: 1.9 | FD50: 2.1 | FE50: 2.4 | FF50: 2.6 | FG50: 2.7 | FH50: 2.9 | FI50: 3.1 | FJ50: 2.25E-06 | FK50: 1.25E-08 | FL50: -2.25E-11 | FM50: 4.23E-07 | FN50: 5.63E-10 | FO50: 1.91E-01 | FP50: 1 | FQ50: 3 | FR50: 3 | FS50: 4 | FT50: 1 | FU50: 3 | FV50: 2 | FZ50: 622 | GA50: 659 | GB50: 570 | GC50: 615 | GD50: 0.95 | GF50: 60 | GG50: 77 | GH50: 57 | GI50: 59 | GJ50: 60 | GK50: 61 | GL50: 62 | GM50: 63 | GN50: 64 | GO50: 64 | GP50: 65 | GQ50: 65 | GR50: 66 | GS50: 66 | GT50: 67 | GU50: 68 | GV50: 68 | GW50: 69 | GX50: 70 | GY50: 71 | GZ50: 73 | HA50: 74 | HB50: 75 | HD50: 137 | HF50: 594 | HG50: 105 | HH50: 102.9 | HI50: 39.5 | HJ50: 0.302 | HK50: 76 | HL50: 1.85 | HM50: 3.48 | HN50: 350/270 | HO50: 332/270 | HP50: -2.6 | HQ50: 0.840 | HR50: 0.954 | HS50: 0.991 | HT50: 0.999 | HU50: 0.999 | HV50: 0.999 | HW50: 0.999 | HX50: 0.999 | HY50: 0.999 | HZ50: 0.999 | IA50: 0.999 | IB50: 0.999 | IC50: 0.999 | ID50: 0.999 | IE50: 0.999 | IF50: 0.999 | IG50: 0.999 | IH50: 0.999 | II50: 0.999 | IJ50: 0.997 | IK50: 0.995 | IL50: 0.993 | IM50: 0.991 | IN50: 0.989 | IO50: 0.986 | IP50: 0.982 | IQ50: 0.974 | IR50: 0.969 | IS50: 0.948 | IT50: 0.920 | IU50: 0.881 | IV50: 0.816 | IW50: 0.725 | IX50: 0.607 | IY50: 0.482 | IZ50: 0.357 | JA50: 0.706 | JB50: 0.910 | JC50: 0.982 | JD50: 0.998 | JE50: 0.998 | JF50: 0.998 | JG50: 0.998 | JH50: 0.998 | JI50: 0.998 | JJ50: 0.998 | JK50: 0.998 | JL50: 0.998 | JM50: 0.998 | JN50: 0.998 | JO50: 0.998 | JP50: 0.998 | JQ50: 0.998 | JR50: 0.998 | JS50: 0.998 | JT50: 0.996 | JU50: 0.994 | JV50: 0.992 | JW50: 0.990 | JX50: 0.988 | JY50: 0.985 | JZ50: 0.979 | KA50: 0.968 | KB50: 0.949 | KC50: 0.916 | KD50: 0.863 | KE50: 0.783 | KF50: 0.672 | KG50: 0.531 | KH50: 0.377 | KI50: 0.241 | KJ50: 0.136 | KK50: PG RP | KL50: 40 | KM50: MA | KN50: H-LaK50A | KO50: 652584 | KP50: S-LAL7Q | KQ50: 652585 | KR50: H-LaK50A | KS50: 652584 | KT50: LAC7 | KU50: 652584 | KV50: K-LaK7 | KW50: 652583 | KX50: N-LAK7 | KY50: 652585
B51: 47 | C51: H-LaK51 | D51: 697555 | E51: 55.46 | F51: 55.25 | G51: 0.012564 | H51: 0.012667 | I51: 1.65840 | J51: 1.66575 | K51: 1.67368 | L51: 1.68042 | M51: 1.68159 | N51: 1.68254 | O51: 1.68616 | P51: 1.68859 | Q51: 1.69079 | R51: 1.69297 | S51: 1.69358 | T51: 1.69415 | U51: 1.69669 | V51: 1.69680 | W51: 1.69980 | X51: 1.70553 | Y51: 1.70625 | Z51: 1.71234 | AA51: 1.71800 | AB51: 1.72765 | AC51: 2.82930828E+00 | AD51: -1.51991877E-02 | AE51: 1.69710302E-02 | AF51: 9.14047795E-04 | AG51: -8.69746514E-05 | AH51: 4.85293775E-06 | AI51: 0.3048 | AJ51: 0.2388 | AK51: 0.5420 | AL51: 0.2542 | AM51: 0.2368 | AN51: 0.4808 | AO51: -0.0035 | AP51: -0.0095 | AQ51: 0.0213 | AR51: 0.0085 | AS51: 3.9 | AT51: 3.9 | AU51: 3.9 | AV51: 3.9 | AW51: 3.9 | AX51: 4.1 | AY51: 4.1 | AZ51: 4.2 | BA51: 4.2 | BB51: 4.2 | BC51: 4.3 | BD51: 4.1 | BE51: 4.2 | BF51: 4.2 | BG51: 4.2 | BH51: 4.2 | BI51: 4.4 | BJ51: 4.4 | BK51: 4.4 | BL51: 4.5 | BM51: 4.5 | BN51: 4.4 | BO51: 4.2 | BP51: 4.3 | BQ51: 4.3 | BR51: 4.3 | BS51: 4.4 | BT51: 4.5 | BU51: 4.6 | BV51: 4.7 | BW51: 4.7 | BX51: 4.8 | BY51: 4.8 | BZ51: 4.3 | CA51: 4.3 | CB51: 4.3 | CC51: 4.3 | CD51: 4.4 | CE51: 4.6 | CF51: 4.7 | CG51: 4.8 | CH51: 4.8 | CI51: 4.8 | CJ51: 4.9 | CK51: 4.4 | CL51: 4.4 | CM51: 4.4 | CN51: 4.4 | CO51: 4.5 | CP51: 4.7 | CQ51: 4.6 | CR51: 4.8 | CS51: 4.8 | CT51: 4.8 | CU51: 4.9 | CV51: 4.5 | CW51: 4.5 | CX51: 4.5 | CY51: 4.5 | CZ51: 4.5 | DA51: 4.7 | DB51: 4.9 | DC51: 5.0 | DD51: 5.0 | DE51: 5.1 | DF51: 5.1 | DG51: 4.7 | DH51: 4.7 | DI51: 4.7 | DJ51: 4.7 | DK51: 4.7 | DL51: 4.9 | DM51: 5.0 | DN51: 5.0 | DO51: 5.1 | DP51: 5.1 | DQ51: 5.1 | DR51: 5.0 | DS51: 5.1 | DT51: 5.1 | DU51: 5.1 | DV51: 5.2 | DW51: 5.4 | DX51: 5.5 | DY51: 5.5 | DZ51: 5.5 | EA51: 5.5 | EB51: 5.6 | EC51: 5.0 | ED51: 5.1 | EE51: 5.2 | EF51: 5.2 | EG51: 5.3 | EH51: 5.4 | EI51: 5.5 | EJ51: 5.5 | EK51: 5.6 | EL51: 5.6 | EM51: 5.6 | EN51: 5.4 | EO51: 5.4 | EP51: 5.4 | EQ51: 5.4 | ER51: 5.5 | ES51: 5.8 | ET51: 5.9 | EU51: 6.0 | EV51: 6.0 | EW51: 6.1 | EX51: 6.1 | EY51: 1.7 | EZ51: 2.1 | FA51: 2.4 | FB51: 2.7 | FC51: 3.0 | FD51: 3.4 | FE51: 3.5 | FF51: 3.8 | FG51: 3.9 | FH51: 4.0 | FI51: 4.1 | FJ51: 4.02E-06 | FK51: 1.29E-08 | FL51: -2.62E-11 | FM51: 4.49E-07 | FN51: 2.06E-10 | FO51: 2.05E-01 | FP51: 1 | FQ51: 3 | FR51: 1 | FS51: 3 | FT51: 1 | FU51: 2 | FV51: 1 | FZ51: 650 | GA51: 676 | GB51: 591 | GC51: 625 | GD51: 0.62 | GF51: 55 | GG51: 71 | GH51: 52 | GI51: 53 | GJ51: 54 | GK51: 55 | GL51: 56 | GM51: 56 | GN51: 57 | GO51: 57 | GP51: 58 | GQ51: 58 | GR51: 58 | GS51: 59 | GT51: 59 | GU51: 59 | GV51: 60 | GW51: 61 | GX51: 61 | GY51: 62 | GZ51: 63 | HA51: 64 | HB51: 65 | HD51: 145 | HF51: 680 | HG51: 85 | HH51: 110.2 | HI51: 43.9 | HJ51: 0.255 | HK51: 64 | HL51: 1.70 | HM51: 3.69 | HN51: 360/280 | HO51: 342/277 | HP51: -3.7 | HQ51: 0.757 | HR51: 0.923 | HS51: 0.986 | HT51: 0.999 | HU51: 0.999 | HV51: 0.999 | HW51: 0.999 | HX51: 0.999 | HY51: 0.999 | HZ51: 0.999 | IA51: 0.999 | IB51: 0.999 | IC51: 0.999 | ID51: 0.999 | IE51: 0.999 | IF51: 0.999 | IG51: 0.999 | IH51: 0.999 | II51: 0.999 | IJ51: 0.999 | IK51: 0.999 | IL51: 0.999 | IM51: 0.997 | IN51: 0.992 | IO51: 0.990 | IP51: 0.985 | IQ51: 0.975 | IR51: 0.957 | IS51: 0.928 | IT51: 0.885 | IU51: 0.827 | IV51: 0.748 | IW51: 0.643 | IX51: 0.553 | IY51: 0.451 | IZ51: 0.328 | JA51: 0.575 | JB51: 0.846 | JC51: 0.960 | JD51: 0.993 | JE51: 0.998 | JF51: 0.998 | JG51: 0.998 | JH51: 0.998 | JI51: 0.998 | JJ51: 0.998 | JK51: 0.998 | JL51: 0.998 | JM51: 0.998 | JN51: 0.998 | JO51: 0.998 | JP51: 0.998 | JQ51: 0.998 | JR51: 0.998 | JS51: 0.998 | JT51: 0.998 | JU51: 0.998 | JV51: 0.998 | JW51: 0.993 | JX51: 0.987 | JY51: 0.980 | JZ51: 0.971 | KA51: 0.951 | KB51: 0.918 | KC51: 0.862 | KD51: 0.787 | KE51: 0.683 | KF51: 0.561 | KG51: 0.417 | KH51: 0.308 | KI51: 0.206 | KJ51: 0.110 | KK51: PG RP | KL51: 35 | KM51: A | KN51: H-LaK51 | KO51: 697555 | KP51: S-LAL14 | KQ51: 697555 | KR51: H-LaK51A | KS51: 697555 | KT51: LAC14 | KU51: 697555 | KV51: K-LaK14 | KW51: 697556 | KX51: N-LAK14 | KY51: 697554
A52: ★★★ | B52: 48 | C52: H-LaK51A | D52: 697555 | E52: 55.46 | F52: 55.25 | G52: 0.012564 | H52: 0.012667 | M52: 1.68155 | N52: 1.68252 | O52: 1.68615 | P52: 1.68860 | Q52: 1.69080 | R52: 1.69297 | S52: 1.69358 | T52: 1.69417 | U52: 1.69670 | V52: 1.69680 | W52: 1.69980 | X52: 1.70553 | Y52: 1.70625 | Z52: 1.71234 | AA52: 1.71799 | AB52: 1.72764 | AC52: 2.82835724E+00 | AD52: -1.49967196E-02 | AE52: 1.78960905E-02 | AF52: 5.80447845E-04 | AG52: -3.68202672E-05 | AH52: 2.18285424E-06 | AI52: 0.3048 | AJ52: 0.2388 | AK52: 0.5420 | AL52: 0.2542 | AM52: 0.2368 | AN52: 0.4808 | AO52: -0.0035 | AP52: -0.0095 | AQ52: 0.0229 | AR52: 0.0093 | AS52: 1.6 | AT52: 1.6 | AU52: 1.6 | AV52: 1.7 | AW52: 1.7 | AX52: 1.8 | AY52: 1.8 | AZ52: 2.0 | BA52: 2.1 | BB52: 2.1 | BC52: 2.2 | BD52: 2.0 | BE52: 2.0 | BF52: 2.2 | BG52: 2.3 | BH52: 2.3 | BI52: 2.4 | BJ52: 2.4 | BK52: 2.6 | BL52: 2.7 | BM52: 2.8 | BN52: 2.9 | BO52: 2.1 | BP52: 2.2 | BQ52: 2.3 | BR52: 2.4 | BS52: 2.5 | BT52: 2.7 | BU52: 2.8 | BV52: 3.0 | BW52: 3.2 | BX52: 3.2 | BY52: 3.3 | BZ52: 2.2 | CA52: 2.3 | CB52: 2.3 | CC52: 2.5 | CD52: 2.6 | CE52: 2.7 | CF52: 2.8 | CG52: 3.1 | CH52: 3.2 | CI52: 3.2 | CJ52: 3.4 | CK52: 2.4 | CL52: 2.4 | CM52: 2.4 | CN52: 2.5 | CO52: 2.7 | CP52: 2.8 | CQ52: 2.9 | CR52: 3.2 | CS52: 3.2 | CT52: 3.2 | CU52: 3.4 | CV52: 2.6 | CW52: 2.7 | CX52: 2.8 | CY52: 2.9 | CZ52: 3.1 | DA52: 3.1 | DB52: 3.3 | DC52: 3.4 | DD52: 3.4 | DE52: 3.5 | DF52: 3.6 | DG52: 3.0 | DH52: 3.0 | DI52: 3.2 | DJ52: 3.2 | DK52: 3.3 | DL52: 3.4 | DM52: 3.6 | DN52: 3.8 | DO52: 4.0 | DP52: 4.0 | DQ52: 4.2 | DR52: 3.1 | DS52: 3.1 | DT52: 3.3 | DU52: 3.3 | DV52: 3.4 | DW52: 3.5 | DX52: 3.7 | DY52: 3.9 | DZ52: 4.1 | EA52: 4.2 | EB52: 4.4 | EC52: 3.2 | ED52: 3.2 | EE52: 3.3 | EF52: 3.3 | EG52: 3.4 | EH52: 3.5 | EI52: 3.8 | EJ52: 3.9 | EK52: 4.1 | EL52: 4.3 | EM52: 4.4 | EN52: 3.5 | EO52: 3.6 | EP52: 3.8 | EQ52: 4.0 | ER52: 4.2 | ES52: 4.3 | ET52: 4.6 | EU52: 4.8 | EV52: 4.9 | EW52: 5.1 | EX52: 5.2 | EY52: -0.3 | EZ52: 0.1 | FA52: 0.4 | FB52: 0.8 | FC52: 1.2 | FD52: 1.5 | FE52: 1.8 | FF52: 2.2 | FG52: 2.3 | FH52: 2.4 | FI52: 2.6 | FJ52: -2.78E-07 | FK52: 1.33E-08 | FL52: -2.35E-11 | FM52: 8.64E-07 | FN52: 8.98E-10 | FO52: 4.82E-15 | FP52: 1 | FQ52: 3 | FR52: 1 | FS52: 3 | FT52: 1 | FU52: 2 | FV52: 1 | FZ52: 648 | GA52: 675 | GB52: 589 | GC52: 624 | GD52: 0.92 | GF52: 55 | GG52: 72 | GH52: 48 | GI52: 50 | GJ52: 50 | GK52: 52 | GL52: 53 | GM52: 55 | GN52: 56 | GO52: 56 | GP52: 56 | GQ52: 59 | GR52: 59 | GS52: 60 | GT52: 60 | GU52: 63 | GV52: 64 | GW52: 64 | GX52: 65 | GY52: 65 | GZ52: 67 | HA52: 69 | HB52: 71 | HD52: 138 | HF52: 608 | HG52: 119 | HH52: 111.4 | HI52: 43.3 | HJ52: 0.288 | HK52: 107 | HL52: 1.75 | HM52: 3.65 | HN52: 360/270 | HO52: 335/273 | HP52: -3.5 | HQ52: 0.742 | HR52: 0.904 | HS52: 0.980 | HT52: 0.997 | HU52: 0.999 | HV52: 0.999 | HW52: 0.999 | HX52: 0.999 | HY52: 0.999 | HZ52: 0.999 | IA52: 0.999 | IB52: 0.999 | IC52: 0.999 | ID52: 0.999 | IE52: 0.999 | IF52: 0.999 | IG52: 0.999 | IH52: 0.999 | II52: 0.999 | IJ52: 0.998 | IK52: 0.997 | IL52: 0.996 | IM52: 0.995 | IN52: 0.993 | IO52: 0.990 | IP52: 0.986 | IQ52: 0.979 | IR52: 0.966 | IS52: 0.946 | IT52: 0.915 | IU52: 0.872 | IV52: 0.812 | IW52: 0.735 | IX52: 0.643 | IY52: 0.537 | IZ52: 0.405 | JA52: 0.550 | JB52: 0.817 | JC52: 0.960 | JD52: 0.994 | JE52: 0.998 | JF52: 0.998 | JG52: 0.998 | JH52: 0.998 | JI52: 0.998 | JJ52: 0.998 | JK52: 0.998 | JL52: 0.998 | JM52: 0.998 | JN52: 0.998 | JO52: 0.998 | JP52: 0.998 | JQ52: 0.998 | JR52: 0.998 | JS52: 0.998 | JT52: 0.997 | JU52: 0.995 | JV52: 0.993 | JW52: 0.990 | JX52: 0.986 | JY52: 0.981 | JZ52: 0.973 | KA52: 0.959 | KB52: 0.933 | KC52: 0.895 | KD52: 0.838 | KE52: 0.760 | KF52: 0.659 | KG52: 0.540 | KH52: 0.413 | KI52: 0.288 | KJ52: 0.164 | KK52: PG RP | KL52: 27 | KM52: MA | KN52: H-LaK51A | KO52: 697555 | KP52: S-LAL14 | KQ52: 697555 | KR52: H-LaK51A | KS52: 697555 | KT52: LAC14 | KU52: 697555 | KV52: K-LaK14 | KW52: 697556 | KX52: N-LAK14 | KY52: 697554
A53: ★★★ | B53: 49 | C53: H-LaK52 | D53: 729547 | E53: 54.67 | F53: 54.44 | G53: 0.013337 | H53: 0.013451 | I53: 1.68934 | J53: 1.69681 | K53: 1.70490 | L53: 1.71188 | M53: 1.71310 | N53: 1.71409 | O53: 1.71790 | P53: 1.72047 | Q53: 1.72279 | R53: 1.72510 | S53: 1.72575 | T53: 1.72635 | U53: 1.72904 | V53: 1.72916 | W53: 1.73234 | X53: 1.73844 | Y53: 1.73920 | Z53: 1.74571 | AA53: 1.75176 | AB53: 1.76205 | AC53: 2.93497096E+00 | AD53: -1.56596537E-02 | AE53: 1.92100308E-02 | AF53: 6.55992008E-04 | AG53: -3.57893356E-05 | AH53: 1.86989357E-06 | AI53: 0.3044 | AJ53: 0.2384 | AK53: 0.5451 | AL53: 0.2535 | AM53: 0.2364 | AN53: 0.4840 | AO53: -0.0026 | AP53: -0.0077 | AQ53: 0.0205 | AR53: 0.0082 | AS53: 2.6 | AT53: 2.7 | AU53: 2.7 | AV53: 2.8 | AW53: 2.8 | AX53: 2.8 | AY53: 2.9 | AZ53: 2.9 | BA53: 2.9 | BB53: 2.9 | BC53: 3.0 | BD53: 3.1 | BE53: 3.1 | BF53: 3.1 | BG53: 3.2 | BH53: 3.2 | BI53: 3.2 | BJ53: 3.2 | BK53: 3.3 | BL53: 3.3 | BM53: 3.4 | BN53: 3.5 | BO53: 3.2 | BP53: 3.2 | BQ53: 3.2 | BR53: 3.2 | BS53: 3.3 | BT53: 3.3 | BU53: 3.4 | BV53: 3.6 | BW53: 3.7 | BX53: 3.7 | BY53: 3.8 | BZ53: 3.2 | CA53: 3.2 | CB53: 3.2 | CC53: 3.2 | CD53: 3.3 | CE53: 3.3 | CF53: 3.4 | CG53: 3.6 | CH53: 3.7 | CI53: 3.7 | CJ53: 3.8 | CK53: 3.2 | CL53: 3.2 | CM53: 3.2 | CN53: 3.3 | CO53: 3.3 | CP53: 3.4 | CQ53: 3.5 | CR53: 3.7 | CS53: 3.8 | CT53: 3.8 | CU53: 3.9 | CV53: 3.3 | CW53: 3.2 | CX53: 3.3 | CY53: 3.5 | CZ53: 3.5 | DA53: 3.5 | DB53: 3.6 | DC53: 3.7 | DD53: 3.8 | DE53: 4.0 | DF53: 4.2 | DG53: 3.5 | DH53: 3.5 | DI53: 3.6 | DJ53: 3.5 | DK53: 3.6 | DL53: 3.6 | DM53: 3.8 | DN53: 3.9 | DO53: 4.0 | DP53: 4.2 | DQ53: 4.3 | DR53: 3.7 | DS53: 3.7 | DT53: 3.8 | DU53: 4.0 | DV53: 4.0 | DW53: 4.1 | DX53: 4.2 | DY53: 4.3 | DZ53: 4.4 | EA53: 4.5 | EB53: 4.7 | EC53: 3.7 | ED53: 3.8 | EE53: 3.9 | EF53: 4.0 | EG53: 4.1 | EH53: 4.1 | EI53: 4.2 | EJ53: 4.3 | EK53: 4.4 | EL53: 4.6 | EM53: 4.8 | EN53: 4.2 | EO53: 4.3 | EP53: 4.3 | EQ53: 4.4 | ER53: 4.5 | ES53: 4.5 | ET53: 4.7 | EU53: 4.9 | EV53: 5.2 | EW53: 5.4 | EX53: 5.5 | EY53: 0.4 | EZ53: 0.9 | FA53: 1.2 | FB53: 1.6 | FC53: 1.8 | FD53: 2.1 | FE53: 2.3 | FF53: 2.7 | FG53: 2.9 | FH53: 3.0 | FI53: 3.1 | FJ53: 1.80E-06 | FK53: 1.11E-08 | FL53: -1.88E-11 | FM53: 4.02E-07 | FN53: 6.22E-10 | FO53: 2.23E-01 | FP53: 1 | FQ53: 3 | FR53: 1 | FS53: 3 | FT53: 1 | FU53: 2 | FV53: 1 | FZ53: 688 | GA53: 705 | GB53: 620 | GC53: 645 | GD53: 1.01 | GF53: 61 | GG53: 74 | GH53: 54 | GI53: 56 | GJ53: 57 | GK53: 58 | GL53: 58 | GM53: 59 | GN53: 59 | GO53: 59 | GP53: 60 | GQ53: 61 | GR53: 61 | GS53: 62 | GT53: 62 | GU53: 63 | GV53: 64 | GW53: 65 | GX53: 66 | GY53: 67 | GZ53: 68 | HA53: 69 | HB53: 70 | HD53: 125 | HF53: 720 | HG53: 63 | HH53: 117.8 | HI53: 45.3 | HJ53: 0.301 | HK53: 91 | HL53: 1.35 | HM53: 3.98 | HN53: 360/280 | HO53: 335/275 | HP53: -2.6 | HQ53: 0.769 | HR53: 0.926 | HS53: 0.978 | HT53: 0.994 | HU53: 0.999 | HV53: 0.999 | HW53: 0.999 | HX53: 0.999 | HY53: 0.999 | HZ53: 0.999 | IA53: 0.999 | IB53: 0.999 | IC53: 0.999 | ID53: 0.999 | IE53: 0.999 | IF53: 0.999 | IG53: 0.999 | IH53: 0.999 | II53: 0.999 | IJ53: 0.999 | IK53: 0.999 | IL53: 0.997 | IM53: 0.996 | IN53: 0.994 | IO53: 0.991 | IP53: 0.986 | IQ53: 0.978 | IR53: 0.969 | IS53: 0.948 | IT53: 0.918 | IU53: 0.873 | IV53: 0.818 | IW53: 0.732 | IX53: 0.670 | IY53: 0.583 | IZ53: 0.428 | JA53: 0.591 | JB53: 0.857 | JC53: 0.956 | JD53: 0.988 | JE53: 0.998 | JF53: 0.998 | JG53: 0.998 | JH53: 0.998 | JI53: 0.998 | JJ53: 0.998 | JK53: 0.998 | JL53: 0.998 | JM53: 0.998 | JN53: 0.998 | JO53: 0.998 | JP53: 0.998 | JQ53: 0.998 | JR53: 0.998 | JS53: 0.998 | JT53: 0.998 | JU53: 0.998 | JV53: 0.995 | JW53: 0.992 | JX53: 0.988 | JY53: 0.982 | JZ53: 0.973 | KA53: 0.957 | KB53: 0.938 | KC53: 0.898 | KD53: 0.842 | KE53: 0.763 | KF53: 0.669 | KG53: 0.536 | KH53: 0.449 | KI53: 0.340 | KJ53: 0.183 | KK53: PG RP | KL53: 41 | KM53: MA | KN53: H-LaK52 | KO53: 729547 | KP53: S-LAL18 | KQ53: 729547 | KR53: H-LaK52 | KS53: 729547 | KT53: TAC8 | KU53: 729547 | KV53: K-LaK18 | KW53: 729547 | KX53: N-LAK34 | KY53: 729545
B54: 50 | C54: H-LaK53A | D54: 755523 | E54: 52.32 | F54: 52.09 | G54: 0.014430 | H54: 0.014561 | I54: 1.71389 | J54: 1.72137 | K54: 1.72950 | L54: 1.73661 | M54: 1.73789 | N54: 1.73893 | O54: 1.74293 | P54: 1.74566 | Q54: 1.74815 | R54: 1.75063 | S54: 1.75132 | T54: 1.75197 | U54: 1.75487 | V54: 1.75500 | W54: 1.75844 | X54: 1.76506 | Y54: 1.76588 | Z54: 1.77295 | AA54: 1.77953 | AB54: 1.79081 | AC54: 3.01906956E+00 | AD54: -1.58184620E-02 | AE54: 2.09047144E-02 | AF54: 8.46561491E-04 | AG54: -6.18209745E-05 | AH54: 3.65072914E-06 | AI54: 0.3028 | AJ54: 0.2384 | AK54: 0.5468 | AL54: 0.2527 | AM54: 0.2362 | AN54: 0.4855 | AO54: -0.0026 | AP54: -0.0099 | AQ54: 0.0172 | AR54: 0.0076 | AS54: 3.3 | AT54: 3.4 | AU54: 3.4 | AV54: 3.4 | AW54: 3.5 | AX54: 3.5 | AY54: 3.5 | AZ54: 3.6 | BA54: 3.7 | BB54: 3.7 | BC54: 3.9 | BD54: 3.5 | BE54: 3.5 | BF54: 3.6 | BG54: 3.6 | BH54: 3.7 | BI54: 3.8 | BJ54: 3.9 | BK54: 3.9 | BL54: 4.1 | BM54: 4.2 | BN54: 4.3 | BO54: 3.7 | BP54: 3.7 | BQ54: 3.8 | BR54: 3.9 | BS54: 3.9 | BT54: 4.0 | BU54: 4.1 | BV54: 4.2 | BW54: 4.3 | BX54: 4.3 | BY54: 4.3 | BZ54: 3.7 | CA54: 3.7 | CB54: 3.8 | CC54: 3.9 | CD54: 3.9 | CE54: 4.0 | CF54: 4.1 | CG54: 4.2 | CH54: 4.3 | CI54: 4.3 | CJ54: 4.4 | CK54: 3.7 | CL54: 3.8 | CM54: 3.8 | CN54: 3.9 | CO54: 3.9 | CP54: 4.0 | CQ54: 4.1 | CR54: 4.2 | CS54: 4.3 | CT54: 4.4 | CU54: 4.6 | CV54: 4.0 | CW54: 4.0 | CX54: 4.1 | CY54: 4.2 | CZ54: 4.2 | DA54: 4.2 | DB54: 4.3 | DC54: 4.4 | DD54: 4.5 | DE54: 4.6 | DF54: 4.6 | DG54: 4.2 | DH54: 4.2 | DI54: 4.3 | DJ54: 4.3 | DK54: 4.4 | DL54: 4.5 | DM54: 4.5 | DN54: 4.5 | DO54: 4.6 | DP54: 4.7 | DQ54: 4.9 | DR54: 4.6 | DS54: 4.6 | DT54: 4.7 | DU54: 4.7 | DV54: 4.8 | DW54: 5.0 | DX54: 5.0 | DY54: 5.1 | DZ54: 5.2 | EA54: 5.4 | EB54: 5.5 | EC54: 4.7 | ED54: 4.7 | EE54: 4.8 | EF54: 4.8 | EG54: 4.9 | EH54: 5.0 | EI54: 5.0 | EJ54: 5.1 | EK54: 5.2 | EL54: 5.4 | EM54: 5.5 | EN54: 4.9 | EO54: 5.0 | EP54: 5.0 | EQ54: 5.1 | ER54: 5.1 | ES54: 5.3 | ET54: 5.5 | EU54: 5.6 | EV54: 5.7 | EW54: 5.8 | EX54: 5.9 | EY54: 0.9 | EZ54: 1.4 | FA54: 1.8 | FB54: 2.2 | FC54: 2.4 | FD54: 2.7 | FE54: 2.9 | FF54: 3.1 | FG54: 3.3 | FH54: 3.5 | FI54: 3.8 | FJ54: 2.70E-06 | FK54: 1.23E-08 | FL54: -2.14E-11 | FM54: 4.31E-07 | FN54: 2.47E-10 | FO54: 2.29E-01 | FP54: 1 | FQ54: 2 | FR54: 1 | FS54: 3 | FT54: 1 | FU54: 1 | FZ54: 695 | GA54: 712 | GB54: 631 | GC54: 652 | GD54: 1.06 | GF54: 57 | GG54: 72 | GH54: 53 | GI54: 54 | GJ54: 55 | GK54: 56 | GL54: 57 | GM54: 58 | GN54: 59 | GO54: 59 | GP54: 59 | GQ54: 60 | GR54: 60 | GS54: 60 | GT54: 61 | GU54: 61 | GV54: 62 | GW54: 63 | GX54: 63 | GY54: 64 | GZ54: 65 | HA54: 66 | HB54: 67 | HD54: 130 | HF54: 718 | HG54: 58 | HH54: 121.8 | HI54: 46.4 | HJ54: 0.313 | HK54: 102 | HL54: 1.36 | HM54: 4.24 | HN54: 370/280 | HO54: 340/276 | HP54: -3.2 | HQ54: 0.778 | HR54: 0.934 | HS54: 0.990 | HT54: 0.999 | HU54: 0.999 | HV54: 0.999 | HW54: 0.999 | HX54: 0.999 | HY54: 0.999 | HZ54: 0.999 | IA54: 0.999 | IB54: 0.999 | IC54: 0.999 | ID54: 0.999 | IE54: 0.999 | IF54: 0.999 | IG54: 0.999 | IH54: 0.999 | II54: 0.999 | IJ54: 0.999 | IK54: 0.999 | IL54: 0.997 | IM54: 0.995 | IN54: 0.992 | IO54: 0.989 | IP54: 0.984 | IQ54: 0.975 | IR54: 0.957 | IS54: 0.934 | IT54: 0.897 | IU54: 0.846 | IV54: 0.779 | IW54: 0.672 | IX54: 0.606 | IY54: 0.515 | IZ54: 0.354 | JA54: 0.605 | JB54: 0.872 | JC54: 0.980 | JD54: 0.998 | JE54: 0.998 | JF54: 0.998 | JG54: 0.998 | JH54: 0.998 | JI54: 0.998 | JJ54: 0.998 | JK54: 0.998 | JL54: 0.998 | JM54: 0.998 | JN54: 0.998 | JO54: 0.998 | JP54: 0.998 | JQ54: 0.998 | JR54: 0.998 | JS54: 0.998 | JT54: 0.998 | JU54: 0.998 | JV54: 0.994 | JW54: 0.989 | JX54: 0.984 | JY54: 0.978 | JZ54: 0.968 | KA54: 0.950 | KB54: 0.918 | KC54: 0.873 | KD54: 0.805 | KE54: 0.715 | KF54: 0.607 | KG54: 0.450 | KH54: 0.367 | KI54: 0.266 | KJ54: 0.129 | KK54: PG RP | KL54: 63 | KM54: B | KN54: H-LaK53A | KO54: 755523 | KP54: S-LAH97 | KQ54: 755523 | KR54: H-LaK53A | KS54: 755523 | KT54: TAC6 | KU54: 755523 | KV54: K-LaSKn1 | KW54: 755524 | KX54: N-LAK33B | KY54: 755523
A55: ★★★ | B55: 51 | C55: H-LaK53B | D55: 755523 | E55: 52.32 | F55: 52.09 | G55: 0.014430 | H55: 0.014561 | L55: 1.73669 | M55: 1.73793 | N55: 1.73896 | O55: 1.74293 | P55: 1.74567 | Q55: 1.74815 | R55: 1.75063 | S55: 1.75132 | T55: 1.75199 | U55: 1.75487 | V55: 1.75500 | W55: 1.75844 | X55: 1.76506 | Y55: 1.76588 | Z55: 1.77296 | AA55: 1.77955 | AB55: 1.79083 | AC55: 3.01608135E+00 | AD55: -1.42847622E-02 | AE55: 2.30284242E-02 | AF55: 1.69148291E-04 | AG55: 3.56310545E-05 | AH55: -1.43259924E-06 | AI55: 0.3028 | AJ55: 0.2384 | AK55: 0.5475 | AL55: 0.2527 | AM55: 0.2362 | AN55: 0.4862 | AO55: -0.0026 | AP55: -0.0092 | AQ55: 0.0151 | AR55: 0.0076 | AS55: 2.1 | AT55: 2.1 | AU55: 2.2 | AV55: 2.2 | AW55: 2.2 | AX55: 2.3 | AY55: 2.5 | AZ55: 2.6 | BA55: 2.7 | BB55: 2.8 | BC55: 2.8 | BD55: 2.4 | BE55: 2.5 | BF55: 2.7 | BG55: 2.9 | BH55: 3.0 | BI55: 3.2 | BJ55: 3.2 | BK55: 3.3 | BL55: 3.5 | BM55: 3.7 | BN55: 3.7 | BO55: 2.7 | BP55: 2.8 | BQ55: 2.9 | BR55: 3.0 | BS55: 3.1 | BT55: 3.3 | BU55: 3.4 | BV55: 3.6 | BW55: 3.7 | BX55: 3.8 | BY55: 3.8 | BZ55: 2.8 | CA55: 2.9 | CB55: 3.0 | CC55: 3.0 | CD55: 3.2 | CE55: 3.4 | CF55: 3.5 | CG55: 3.6 | CH55: 3.8 | CI55: 3.9 | CJ55: 3.9 | CK55: 3.0 | CL55: 3.0 | CM55: 3.1 | CN55: 3.2 | CO55: 3.3 | CP55: 3.5 | CQ55: 3.7 | CR55: 3.7 | CS55: 4.0 | CT55: 4.0 | CU55: 4.1 | CV55: 3.1 | CW55: 3.1 | CX55: 3.2 | CY55: 3.4 | CZ55: 3.5 | DA55: 3.6 | DB55: 3.9 | DC55: 4.1 | DD55: 4.3 | DE55: 4.3 | DF55: 4.4 | DG55: 3.2 | DH55: 3.3 | DI55: 3.5 | DJ55: 3.6 | DK55: 3.8 | DL55: 3.8 | DM55: 4.0 | DN55: 4.2 | DO55: 4.3 | DP55: 4.5 | DQ55: 4.6 | DR55: 3.4 | DS55: 3.6 | DT55: 3.7 | DU55: 3.8 | DV55: 4.0 | DW55: 4.1 | DX55: 4.2 | DY55: 4.3 | DZ55: 4.4 | EA55: 4.7 | EB55: 4.8 | EC55: 3.6 | ED55: 3.7 | EE55: 3.7 | EF55: 3.9 | EG55: 4.1 | EH55: 4.3 | EI55: 4.4 | EJ55: 4.6 | EK55: 4.7 | EL55: 4.8 | EM55: 4.9 | EN55: 3.9 | EO55: 4.0 | EP55: 4.2 | EQ55: 4.3 | ER55: 4.4 | ES55: 4.5 | ET55: 4.6 | EU55: 4.7 | EV55: 4.9 | EW55: 5.1 | EX55: 5.3 | EY55: 0.2 | EZ55: 0.6 | FA55: 1.1 | FB55: 1.5 | FC55: 1.8 | FD55: 2.2 | FE55: 2.5 | FF55: 2.6 | FG55: 3.0 | FH55: 3.1 | FI55: 3.3 | FJ55: 9.52E-07 | FK55: 1.46E-08 | FL55: -2.48E-11 | FM55: 6.68E-07 | FN55: 3.49E-10 | FO55: 2.49E-09 | FP55: 1 | FQ55: 1 | FR55: 1 | FS55: 3 | FT55: 1 | FU55: 2 | FV55: 1 | FZ55: 683 | GA55: 712 | GB55: 622 | GC55: 643 | GD55: 0.90 | GF55: 57 | GG55: 73 | GH55: 51 | GI55: 53 | GJ55: 54 | GK55: 55 | GL55: 55 | GM55: 57 | GN55: 57 | GO55: 58 | GP55: 59 | GQ55: 59 | GR55: 60 | GS55: 60 | GT55: 60 | GU55: 60 | GV55: 60 | GW55: 62 | GX55: 62 | GY55: 64 | GZ55: 65 | HA55: 65 | HB55: 67 | HD55: 141 | HF55: 635 | HG55: 65 | HH55: 122.2 | HI55: 46.9 | HJ55: 0.303 | HK55: 91 | HL55: 1.30 | HM55: 4.18 | HN55: 360/270 | HO55: 333/272 | HP55: -3.0 | HQ55: 0.799 | HR55: 0.928 | HS55: 0.975 | HT55: 0.990 | HU55: 0.996 | HV55: 0.996 | HW55: 0.999 | HX55: 0.999 | HY55: 0.999 | HZ55: 0.999 | IA55: 0.999 | IB55: 0.999 | IC55: 0.999 | ID55: 0.999 | IE55: 0.999 | IF55: 0.999 | IG55: 0.999 | IH55: 0.999 | II55: 0.998 | IJ55: 0.997 | IK55: 0.996 | IL55: 0.994 | IM55: 0.993 | IN55: 0.991 | IO55: 0.988 | IP55: 0.985 | IQ55: 0.977 | IR55: 0.967 | IS55: 0.949 | IT55: 0.920 | IU55: 0.882 | IV55: 0.831 | IW55: 0.764 | IX55: 0.690 | IY55: 0.594 | IZ55: 0.447 | JA55: 0.638 | JB55: 0.862 | JC55: 0.950 | JD55: 0.981 | JE55: 0.993 | JF55: 0.992 | JG55: 0.998 | JH55: 0.998 | JI55: 0.998 | JJ55: 0.998 | JK55: 0.998 | JL55: 0.998 | JM55: 0.998 | JN55: 0.998 | JO55: 0.998 | JP55: 0.998 | JQ55: 0.998 | JR55: 0.998 | JS55: 0.996 | JT55: 0.994 | JU55: 0.992 | JV55: 0.989 | JW55: 0.986 | JX55: 0.982 | JY55: 0.977 | JZ55: 0.970 | KA55: 0.955 | KB55: 0.935 | KC55: 0.901 | KD55: 0.847 | KE55: 0.778 | KF55: 0.690 | KG55: 0.584 | KH55: 0.476 | KI55: 0.353 | KJ55: 0.200 | KK55: PG RP | KL55: 45 | KM55: MA | KN55: H-LaK53B | KO55: 755523 | KP55: S-LAH97 | KQ55: 755523 | KR55: H-LaK53B | KS55: 755523 | KT55: TAC6L | KU55: 755523 | KV55: K-LaSKn1 | KW55: 755524 | KX55: N-LAK33B | KY55: 755523
B56: 52 | C56: H-LaK54 | D56: 734511 | E56: 51.05 | F56: 50.82 | G56: 0.014377 | H56: 0.014511 | I56: 1.69388 | J56: 1.70113 | K56: 1.70899 | L56: 1.71588 | M56: 1.71711 | N56: 1.71813 | O56: 1.72204 | P56: 1.72471 | Q56: 1.72718 | R56: 1.72965 | S56: 1.73034 | T56: 1.73099 | U56: 1.73387 | V56: 1.73400 | W56: 1.73742 | X56: 1.74403 | Y56: 1.74485 | Z56: 1.75189 | AA56: 1.75842 | AB56: 1.76975 | AC56: 2.94765208E+00 | AD56: -1.51684002E-02 | AE56: 1.92673146E-02 | AF56: 1.38888212E-03 | AG56: -1.55407755E-04 | AH56: 9.21281201E-06 | AI56: 0.3026 | AJ56: 0.2379 | AK56: 0.5467 | AL56: 0.2522 | AM56: 0.2357 | AN56: 0.4851 | AO56: -0.0023 | AP56: -0.0121 | AQ56: 0.0138 | AR56: 0.0064 | AS56: 6.0 | AT56: 6.1 | AU56: 6.1 | AV56: 6.1 | AW56: 6.2 | AX56: 6.2 | AY56: 6.5 | AZ56: 6.5 | BA56: 6.7 | BB56: 6.9 | BC56: 7.0 | BD56: 6.4 | BE56: 6.4 | BF56: 6.5 | BG56: 6.5 | BH56: 6.6 | BI56: 6.7 | BJ56: 6.9 | BK56: 7.0 | BL56: 7.2 | BM56: 7.3 | BN56: 7.4 | BO56: 6.6 | BP56: 6.6 | BQ56: 6.7 | BR56: 6.7 | BS56: 6.8 | BT56: 6.9 | BU56: 7.0 | BV56: 7.2 | BW56: 7.4 | BX56: 7.5 | BY56: 7.7 | BZ56: 6.6 | CA56: 6.6 | CB56: 6.7 | CC56: 6.7 | CD56: 6.8 | CE56: 7.0 | CF56: 7.1 | CG56: 7.3 | CH56: 7.5 | CI56: 7.6 | CJ56: 7.7 | CK56: 6.7 | CL56: 6.7 | CM56: 6.8 | CN56: 6.8 | CO56: 6.9 | CP56: 7.0 | CQ56: 7.1 | CR56: 7.3 | CS56: 7.5 | CT56: 7.6 | CU56: 7.8 | CV56: 6.9 | CW56: 6.9 | CX56: 7.0 | CY56: 7.0 | CZ56: 7.2 | DA56: 7.2 | DB56: 7.4 | DC56: 7.6 | DD56: 7.6 | DE56: 8.1 | DF56: 8.1 | DG56: 7.0 | DH56: 7.0 | DI56: 7.1 | DJ56: 7.2 | DK56: 7.2 | DL56: 7.5 | DM56: 7.5 | DN56: 7.6 | DO56: 7.6 | DP56: 8.1 | DQ56: 8.1 | DR56: 7.5 | DS56: 7.5 | DT56: 7.6 | DU56: 7.7 | DV56: 7.8 | DW56: 8.0 | DX56: 8.1 | DY56: 8.3 | DZ56: 8.5 | EA56: 8.6 | EB56: 8.8 | EC56: 7.6 | ED56: 7.6 | EE56: 7.7 | EF56: 7.7 | EG56: 7.8 | EH56: 8.0 | EI56: 8.1 | EJ56: 8.4 | EK56: 8.6 | EL56: 8.7 | EM56: 8.9 | EN56: 7.8 | EO56: 8.0 | EP56: 8.2 | EQ56: 8.2 | ER56: 8.2 | ES56: 8.6 | ET56: 8.6 | EU56: 8.9 | EV56: 9.2 | EW56: 9.4 | EX56: 9.7 | EY56: 3.9 | EZ56: 4.4 | FA56: 4.8 | FB56: 5.1 | FC56: 5.4 | FD56: 5.7 | FE56: 5.9 | FF56: 6.3 | FG56: 6.6 | FH56: 6.8 | FI56: 7.0 | FJ56: 7.73E-06 | FK56: 1.34E-08 | FL56: -1.40E-11 | FM56: 4.76E-07 | FN56: 3.95E-10 | FO56: 2.32E-01 | FP56: 1 | FQ56: 2 | FR56: 1 | FS56: 3 | FT56: 1 | FU56: 2 | FV56: 1 | FZ56: 636 | GA56: 665 | GB56: 575 | GC56: 618 | GD56: 0.96 | GF56: 51 | GG56: 67 | GH56: 44 | GI56: 47 | GJ56: 48 | GK56: 49 | GL56: 50 | GM56: 51 | GN56: 51 | GO56: 52 | GP56: 52 | GQ56: 53 | GR56: 53 | GS56: 54 | GT56: 54 | GU56: 55 | GV56: 55 | GW56: 56 | GX56: 57 | GY56: 58 | GZ56: 59 | HA56: 60 | HB56: 61 | HD56: 155 | HF56: 698 | HG56: 80 | HH56: 112.3 | HI56: 43.5 | HJ56: 0.291 | HK56: 85 | HL56: 1.81 | HM56: 4.07 | HN56: 360/290 | HO56: 343/291 | HP56: -0.7 | HQ56: 0.786 | HR56: 0.922 | HS56: 0.987 | HT56: 0.999 | HU56: 0.999 | HV56: 0.999 | HW56: 0.999 | HX56: 0.999 | HY56: 0.999 | HZ56: 0.999 | IA56: 0.999 | IB56: 0.999 | IC56: 0.999 | ID56: 0.999 | IE56: 0.999 | IF56: 0.999 | IG56: 0.999 | IH56: 0.999 | II56: 0.999 | IJ56: 0.999 | IK56: 0.998 | IL56: 0.997 | IM56: 0.995 | IN56: 0.992 | IO56: 0.989 | IP56: 0.983 | IQ56: 0.973 | IR56: 0.954 | IS56: 0.926 | IT56: 0.885 | IU56: 0.823 | IV56: 0.735 | IW56: 0.595 | IX56: 0.385 | JA56: 0.618 | JB56: 0.850 | JC56: 0.974 | JD56: 0.998 | JE56: 0.998 | JF56: 0.998 | JG56: 0.998 | JH56: 0.998 | JI56: 0.998 | JJ56: 0.998 | JK56: 0.998 | JL56: 0.998 | JM56: 0.998 | JN56: 0.998 | JO56: 0.998 | JP56: 0.998 | JQ56: 0.998 | JR56: 0.998 | JS56: 0.998 | JT56: 0.998 | JU56: 0.996 | JV56: 0.994 | JW56: 0.989 | JX56: 0.984 | JY56: 0.977 | JZ56: 0.966 | KA56: 0.947 | KB56: 0.912 | KC56: 0.859 | KD56: 0.782 | KE56: 0.677 | KF56: 0.540 | KG56: 0.352 | KH56: 0.148 | KK56: PG RP | KL56: 60 | KM56: B | KN56: H-LaK54 | KO56: 734511 | KP56: S-LAL59 | KQ56: 734515 | KR56: H-LaK54 | KS56: 734515 | KT56: TAC4 | KU56: 734511
B57: 53 | C57: H-LaK61 | D57: 741527 | E57: 52.70 | F57: 52.41 | G57: 0.014060 | H57: 0.014203 | I57: 1.70124 | J57: 1.70844 | K57: 1.71627 | L57: 1.72315 | M57: 1.72438 | N57: 1.72540 | O57: 1.72928 | P57: 1.73191 | Q57: 1.73432 | R57: 1.73673 | S57: 1.73741 | T57: 1.73805 | U57: 1.74087 | V57: 1.74100 | W57: 1.74435 | X57: 1.75079 | Y57: 1.75161 | Z57: 1.75850 | AA57: 1.76491 | AB57: 1.77586 | AC57: 2.97212067E+00 | AD57: -1.51048406E-02 | AE57: 2.02885560E-02 | AF57: 7.34194347E-04 | AG57: -3.75051084E-05 | AH57: 1.82377017E-06 | AI57: 0.3037 | AJ57: 0.2383 | AK57: 0.5484 | AL57: 0.2528 | AM57: 0.2359 | AN57: 0.4851 | AO57: -0.0031 | AP57: -0.0077 | AQ57: 0.0103 | AR57: 0.0030 | AS57: 4.6 | AT57: 4.6 | AU57: 4.4 | AV57: 4.4 | AW57: 4.5 | AX57: 4.5 | AY57: 4.7 | AZ57: 4.8 | BA57: 4.8 | BB57: 5.0 | BC57: 5.0 | BD57: 4.7 | BE57: 4.7 | BF57: 4.7 | BG57: 4.7 | BH57: 4.7 | BI57: 4.8 | BJ57: 5.0 | BK57: 5.1 | BL57: 5.2 | BM57: 5.3 | BN57: 5.4 | BO57: 4.9 | BP57: 4.8 | BQ57: 5.0 | BR57: 5.0 | BS57: 5.0 | BT57: 5.1 | BU57: 5.3 | BV57: 5.5 | BW57: 5.5 | BX57: 5.7 | BY57: 5.8 | BZ57: 4.9 | CA57: 4.9 | CB57: 5.0 | CC57: 5.0 | CD57: 5.0 | CE57: 5.1 | CF57: 5.3 | CG57: 5.5 | CH57: 5.6 | CI57: 5.7 | CJ57: 5.8 | CK57: 4.9 | CL57: 5.0 | CM57: 5.0 | CN57: 5.0 | CO57: 5.0 | CP57: 5.2 | CQ57: 5.4 | CR57: 5.5 | CS57: 5.6 | CT57: 5.8 | CU57: 5.9 | CV57: 5.1 | CW57: 5.2 | CX57: 5.2 | CY57: 5.2 | CZ57: 5.2 | DA57: 5.3 | DB57: 5.5 | DC57: 5.7 | DD57: 5.7 | DE57: 5.9 | DF57: 6.0 | DG57: 5.3 | DH57: 5.2 | DI57: 5.2 | DJ57: 5.2 | DK57: 5.2 | DL57: 5.3 | DM57: 5.5 | DN57: 5.9 | DO57: 6.0 | DP57: 6.2 | DQ57: 6.3 | DR57: 5.6 | DS57: 5.7 | DT57: 5.7 | DU57: 5.8 | DV57: 6.0 | DW57: 6.2 | DX57: 6.3 | DY57: 6.4 | DZ57: 6.5 | EA57: 6.6 | EB57: 6.7 | EC57: 5.7 | ED57: 5.8 | EE57: 5.7 | EF57: 5.8 | EG57: 6.0 | EH57: 6.3 | EI57: 6.3 | EJ57: 6.5 | EK57: 6.6 | EL57: 6.7 | EM57: 6.8 | EN57: 6.2 | EO57: 6.2 | EP57: 6.3 | EQ57: 6.3 | ER57: 6.4 | ES57: 6.5 | ET57: 6.8 | EU57: 7.0 | EV57: 7.1 | EW57: 7.3 | EX57: 7.4 | EY57: 2.1 | EZ57: 2.6 | FA57: 3.0 | FB57: 3.3 | FC57: 3.5 | FD57: 3.9 | FE57: 4.2 | FF57: 4.4 | FG57: 4.7 | FH57: 4.9 | FI57: 5.1 | FJ57: 4.66E-06 | FK57: 1.23E-08 | FL57: -1.52E-11 | FM57: 4.36E-07 | FN57: 4.14E-10 | FO57: 2.38E-01 | FP57: 1 | FQ57: 2 | FR57: 1 | FS57: 3 | FT57: 1 | FU57: 2 | FV57: 2 | FZ57: 668 | GA57: 693 | GB57: 601 | GC57: 635 | GD57: 0.96 | GF57: 56 | GG57: 71 | GH57: 49 | GI57: 51 | GJ57: 52 | GK57: 53 | GL57: 54 | GM57: 55 | GN57: 56 | GO57: 57 | GP57: 57 | GQ57: 58 | GR57: 58 | GS57: 59 | GT57: 59 | GU57: 60 | GV57: 61 | GW57: 61 | GX57: 62 | GY57: 63 | GZ57: 64 | HA57: 65 | HB57: 66 | HD57: 145 | HF57: 706 | HG57: 67 | HH57: 119.9 | HI57: 45.2 | HJ57: 0.327 | HK57: 81 | HL57: 1.49 | HM57: 4.10 | HN57: 360/275 | HO57: 336/265 | HP57: -4.1 | HQ57: 0.783 | HR57: 0.930 | HS57: 0.986 | HT57: 0.999 | HU57: 0.999 | HV57: 0.999 | HW57: 0.999 | HX57: 0.999 | HY57: 0.999 | HZ57: 0.999 | IA57: 0.999 | IB57: 0.999 | IC57: 0.999 | ID57: 0.999 | IE57: 0.999 | IF57: 0.999 | IG57: 0.999 | IH57: 0.999 | II57: 0.999 | IJ57: 0.999 | IK57: 0.999 | IL57: 0.999 | IM57: 0.999 | IN57: 0.997 | IO57: 0.995 | IP57: 0.990 | IQ57: 0.983 | IR57: 0.969 | IS57: 0.948 | IT57: 0.914 | IU57: 0.866 | IV57: 0.804 | IW57: 0.728 | IX57: 0.644 | IY57: 0.551 | IZ57: 0.444 | JA57: 0.613 | JB57: 0.865 | JC57: 0.972 | JD57: 0.998 | JE57: 0.998 | JF57: 0.998 | JG57: 0.998 | JH57: 0.998 | JI57: 0.998 | JJ57: 0.998 | JK57: 0.998 | JL57: 0.998 | JM57: 0.998 | JN57: 0.998 | JO57: 0.998 | JP57: 0.998 | JQ57: 0.998 | JR57: 0.998 | JS57: 0.998 | JT57: 0.998 | JU57: 0.998 | JV57: 0.998 | JW57: 0.998 | JX57: 0.993 | JY57: 0.988 | JZ57: 0.979 | KA57: 0.964 | KB57: 0.935 | KC57: 0.893 | KD57: 0.831 | KE57: 0.746 | KF57: 0.641 | KG57: 0.526 | KH57: 0.411 | KI57: 0.300 | KJ57: 0.193 | KK57: PG RP | KL57: 75 | KM57: B | KN57: H-LaK61 | KO57: 741527 | KP57: S-LAL61 | KQ57: 741527 | KR57: H-LaK61 | KS57: 741526 | KT57: TAC2 | KU57: 741526 | KV57: K-LaKn14 | KW57: 741527
B58: 54 | C58: H-LaK68 | D58: 678507 | E58: 50.72 | F58: 50.44 | G58: 0.013365 | H58: 0.013502 | I58: 1.64478 | J58: 1.65017 | K58: 1.65615 | L58: 1.66167 | M58: 1.66271 | N58: 1.66357 | O58: 1.66699 | P58: 1.66940 | Q58: 1.67162 | R58: 1.67388 | S58: 1.67452 | T58: 1.67511 | U58: 1.67778 | V58: 1.67790 | W58: 1.68108 | X58: 1.68724 | Y58: 1.68802 | Z58: 1.69467 | AA58: 1.70090 | AB58: 1.71174 | AC58: 2.75995716E+00 | AD58: -1.07353820E-02 | AE58: 1.82532687E-02 | AF58: 9.37020441E-04 | AG58: -8.40203685E-05 | AH58: 5.44074316E-06 | AI58: 0.3008 | AJ58: 0.2379 | AK58: 0.5559 | AL58: 0.2503 | AM58: 0.2355 | AN58: 0.4925 | AO58: -0.0013 | AP58: -0.0034 | AQ58: -0.0145 | AR58: -0.0066 | AS58: 1.6 | AT58: 1.5 | AU58: 1.5 | AV58: 1.6 | AW58: 1.6 | AX58: 1.7 | AY58: 1.7 | AZ58: 1.8 | BA58: 1.9 | BB58: 2.0 | BC58: 2.0 | BD58: 1.8 | BE58: 1.8 | BF58: 1.8 | BG58: 1.9 | BH58: 1.8 | BI58: 1.9 | BJ58: 2.0 | BK58: 2.1 | BL58: 2.2 | BM58: 2.2 | BN58: 2.2 | BO58: 2.0 | BP58: 2.0 | BQ58: 1.9 | BR58: 2.0 | BS58: 2.0 | BT58: 2.0 | BU58: 2.1 | BV58: 2.2 | BW58: 2.3 | BX58: 2.3 | BY58: 2.4 | BZ58: 2.0 | CA58: 2.0 | CB58: 2.0 | CC58: 2.0 | CD58: 2.0 | CE58: 2.0 | CF58: 2.1 | CG58: 2.2 | CH58: 2.3 | CI58: 2.4 | CJ58: 2.5 | CK58: 2.1 | CL58: 2.1 | CM58: 2.0 | CN58: 2.1 | CO58: 2.1 | CP58: 2.2 | CQ58: 2.3 | CR58: 2.3 | CS58: 2.4 | CT58: 2.5 | CU58: 2.6 | CV58: 2.2 | CW58: 2.2 | CX58: 2.2 | CY58: 2.2 | CZ58: 2.3 | DA58: 2.3 | DB58: 2.5 | DC58: 2.6 | DD58: 2.7 | DE58: 2.8 | DF58: 2.9 | DG58: 2.4 | DH58: 2.4 | DI58: 2.5 | DJ58: 2.5 | DK58: 2.6 | DL58: 2.7 | DM58: 2.8 | DN58: 2.9 | DO58: 3.0 | DP58: 3.2 | DQ58: 3.4 | DR58: 2.7 | DS58: 2.8 | DT58: 2.8 | DU58: 2.8 | DV58: 2.9 | DW58: 3.0 | DX58: 3.1 | DY58: 3.2 | DZ58: 3.3 | EA58: 3.4 | EB58: 3.6 | EC58: 2.7 | ED58: 2.8 | EE58: 2.9 | EF58: 2.9 | EG58: 2.9 | EH58: 3.1 | EI58: 3.2 | EJ58: 3.3 | EK58: 3.4 | EL58: 3.5 | EM58: 3.7 | EN58: 3.4 | EO58: 3.4 | EP58: 3.4 | EQ58: 3.5 | ER58: 3.5 | ES58: 3.6 | ET58: 3.8 | EU58: 3.9 | EV58: 4.0 | EW58: 4.1 | EX58: 4.2 | EY58: -0.6 | EZ58: -0.2 | FA58: 0.1 | FB58: 0.4 | FC58: 0.6 | FD58: 0.9 | FE58: 1.2 | FF58: 1.3 | FG58: 1.5 | FH58: 1.7 | FI58: 1.9 | FJ58: -3.65E-07 | FK58: 1.21E-08 | FL58: -1.66E-11 | FM58: 4.42E-07 | FN58: 2.98E-10 | FO58: 2.70E-01 | FP58: 1 | FQ58: 3 | FR58: 1 | FS58: 3 | FT58: 2 | FU58: 2 | FV58: 3 | FZ58: 657 | GA58: 698 | GB58: 594 | GC58: 628 | GD58: 0.80 | GF58: 74 | GG58: 89 | GH58: 67 | GI58: 69 | GJ58: 71 | GK58: 72 | GL58: 72 | GM58: 73 | GN58: 74 | GO58: 74 | GP58: 75 | GQ58: 75 | GR58: 75 | GS58: 75 | GT58: 76 | GU58: 77 | GV58: 78 | GW58: 78 | GX58: 79 | GY58: 80 | GZ58: 82 | HA58: 82 | HB58: 83 | HD58: 130 | HF58: 528 | HG58: 175 | HH58: 90.6 | HI58: 35.2 | HJ58: 0.287 | HK58: 74 | HL58: 1.67 | HM58: 3.86 | HN58: 375/335 | HO58: 361/333 | HP58: -0.8 | HQ58: 0.910 | HR58: 0.968 | HS58: 0.994 | HT58: 0.999 | HU58: 0.999 | HV58: 0.999 | HW58: 0.999 | HX58: 0.999 | HY58: 0.999 | HZ58: 0.999 | IA58: 0.999 | IB58: 0.999 | IC58: 0.999 | ID58: 0.999 | IE58: 0.999 | IF58: 0.999 | IG58: 0.998 | IH58: 0.997 | II58: 0.996 | IJ58: 0.995 | IK58: 0.993 | IL58: 0.991 | IM58: 0.989 | IN58: 0.986 | IO58: 0.977 | IP58: 0.967 | IQ58: 0.944 | IR58: 0.886 | IS58: 0.756 | IT58: 0.474 | IU58: 0.115 | JA58: 0.828 | JB58: 0.937 | JC58: 0.989 | JD58: 0.998 | JE58: 0.998 | JF58: 0.998 | JG58: 0.998 | JH58: 0.998 | JI58: 0.998 | JJ58: 0.998 | JK58: 0.998 | JL58: 0.998 | JM58: 0.998 | JN58: 0.998 | JO58: 0.998 | JP58: 0.998 | JQ58: 0.996 | JR58: 0.993 | JS58: 0.990 | JT58: 0.987 | JU58: 0.984 | JV58: 0.981 | JW58: 0.976 | JX58: 0.966 | JY58: 0.954 | JZ58: 0.931 | KA58: 0.884 | KB58: 0.781 | KC58: 0.566 | KD58: 0.220 | KE58: 0.016 | KK58: PG RP | KL58: 75 | KM58: B | KN58: H-LaK68 | KO58: 678507
A59: ★★★ | B59: 55 | C59: H-LaK77 | D59: 775503 | E59: 50.32 | F59: 50.10 | G59: 0.015410 | H59: 0.015550 | K59: 1.74890 | L59: 1.75598 | M59: 1.75728 | N59: 1.75836 | O59: 1.76253 | P59: 1.76541 | Q59: 1.76805 | R59: 1.77069 | S59: 1.77144 | T59: 1.77213 | U59: 1.77522 | V59: 1.77536 | W59: 1.77902 | X59: 1.78610 | Y59: 1.78699 | Z59: 1.79459 | AA59: 1.80168 | AB59: 1.81387 | AC59: 3.08315587E+00 | AD59: -1.49460142E-02 | AE59: 2.43300964E-02 | AF59: 3.65640749E-04 | AG59: 1.42131183E-05 | AH59: -8.23160850E-08 | AI59: 0.3030 | AJ59: 0.2375 | AK59: 0.5509 | AL59: 0.2521 | AM59: 0.2354 | AN59: 0.4887 | AO59: -0.0030 | AP59: -0.0091 | AQ59: 0.0162 | AR59: 0.0084 | AS59: 2.9 | AT59: 3.0 | AU59: 2.9 | AV59: 2.9 | AW59: 2.9 | AX59: 2.9 | AY59: 3.1 | AZ59: 3.1 | BA59: 3.1 | BB59: 3.2 | BC59: 3.2 | BD59: 3.2 | BE59: 3.2 | BF59: 3.2 | BG59: 3.2 | BH59: 3.3 | BI59: 3.4 | BJ59: 3.6 | BK59: 3.7 | BL59: 3.7 | BM59: 3.7 | BN59: 3.8 | BO59: 3.2 | BP59: 3.4 | BQ59: 3.5 | BR59: 3.6 | BS59: 3.6 | BT59: 3.8 | BU59: 3.8 | BV59: 3.9 | BW59: 3.9 | BX59: 3.9 | BY59: 4.0 | BZ59: 3.3 | CA59: 3.5 | CB59: 3.6 | CC59: 3.7 | CD59: 3.7 | CE59: 3.8 | CF59: 3.8 | CG59: 3.9 | CH59: 3.9 | CI59: 4.0 | CJ59: 4.0 | CK59: 3.4 | CL59: 3.6 | CM59: 3.7 | CN59: 3.8 | CO59: 3.8 | CP59: 3.9 | CQ59: 3.9 | CR59: 4.0 | CS59: 4.0 | CT59: 4.0 | CU59: 4.1 | CV59: 3.6 | CW59: 3.7 | CX59: 3.9 | CY59: 3.9 | CZ59: 3.9 | DA59: 4.0 | DB59: 4.0 | DC59: 4.1 | DD59: 4.1 | DE59: 4.2 | DF59: 4.2 | DG59: 3.8 | DH59: 3.7 | DI59: 3.9 | DJ59: 4.0 | DK59: 4.2 | DL59: 4.2 | DM59: 4.2 | DN59: 4.3 | DO59: 4.4 | DP59: 4.5 | DQ59: 4.7 | DR59: 4.0 | DS59: 4.0 | DT59: 4.1 | DU59: 4.1 | DV59: 4.2 | DW59: 4.3 | DX59: 4.4 | DY59: 4.5 | DZ59: 4.6 | EA59: 4.6 | EB59: 4.8 | EC59: 4.1 | ED59: 4.1 | EE59: 4.2 | EF59: 4.2 | EG59: 4.2 | EH59: 4.3 | EI59: 4.4 | EJ59: 4.5 | EK59: 4.6 | EL59: 4.7 | EM59: 4.9 | EN59: 4.4 | EO59: 4.6 | EP59: 4.6 | EQ59: 4.8 | ER59: 4.9 | ES59: 5.0 | ET59: 5.1 | EU59: 5.3 | EV59: 5.4 | EW59: 5.5 | EX59: 5.6 | EY59: 0.5 | EZ59: 1.2 | FA59: 1.7 | FB59: 2.0 | FC59: 2.3 | FD59: 2.5 | FE59: 2.7 | FF59: 2.9 | FG59: 3.0 | FH59: 3.1 | FI59: 3.3 | FJ59: 1.90E-06 | FK59: 1.15E-08 | FL59: -2.57E-11 | FM59: 5.50E-07 | FN59: 5.84E-10 | FO59: 6.74E-02 | FP59: 1 | FQ59: 1 | FR59: 1 | FS59: 3 | FT59: 1 | FU59: 2 | FV59: 1 | FZ59: 699 | GA59: 714 | GB59: 625 | GC59: 670 | GD59: 1.02 | GF59: 62 | GG59: 76 | GH59: 52 | GI59: 54 | GJ59: 56 | GK59: 57 | GL59: 58 | GM59: 58 | GN59: 59 | GO59: 59 | GP59: 60 | GQ59: 60 | GR59: 61 | GS59: 61 | GT59: 62 | GU59: 63 | GV59: 64 | GW59: 65 | GX59: 66 | GY59: 67 | GZ59: 68 | HA59: 69 | HB59: 70 | HD59: 135 | HF59: 728 | HG59: 115 | HH59: 108.0 | HI59: 41.6 | HJ59: 0.297 | HK59: 85 | HL59: 1.20 | HM59: 4.35 | HN59: 365/280 | HO59: 333/276 | HP59: -2.9 | HQ59: 0.815 | HR59: 0.948 | HS59: 0.984 | HT59: 0.999 | HU59: 0.999 | HV59: 0.999 | HW59: 0.999 | HX59: 0.999 | HY59: 0.999 | HZ59: 0.999 | IA59: 0.999 | IB59: 0.999 | IC59: 0.999 | ID59: 0.999 | IE59: 0.999 | IF59: 0.999 | IG59: 0.999 | IH59: 0.999 | II59: 0.999 | IJ59: 0.997 | IK59: 0.996 | IL59: 0.996 | IM59: 0.996 | IN59: 0.991 | IO59: 0.986 | IP59: 0.979 | IQ59: 0.971 | IR59: 0.950 | IS59: 0.913 | IT59: 0.870 | IU59: 0.813 | IV59: 0.736 | IW59: 0.633 | IX59: 0.550 | IY59: 0.450 | IZ59: 0.305 | JA59: 0.664 | JB59: 0.899 | JC59: 0.968 | JD59: 0.998 | JE59: 0.998 | JF59: 0.998 | JG59: 0.998 | JH59: 0.998 | JI59: 0.998 | JJ59: 0.998 | JK59: 0.998 | JL59: 0.998 | JM59: 0.998 | JN59: 0.998 | JO59: 0.998 | JP59: 0.998 | JQ59: 0.998 | JR59: 0.998 | JS59: 0.998 | JT59: 0.994 | JU59: 0.992 | JV59: 0.992 | JW59: 0.992 | JX59: 0.982 | JY59: 0.972 | JZ59: 0.958 | KA59: 0.943 | KB59: 0.903 | KC59: 0.834 | KD59: 0.757 | KE59: 0.661 | KF59: 0.542 | KG59: 0.401 | KH59: 0.303 | KI59: 0.203 | KJ59: 0.093 | KK59: PG RP | KL59: 77 | KM59: MA | KN59: H-LaK77 | KO59: 775503 | KP59: (S-LAH66) | KQ59: 773496 | KT59: (TAF1) | KU59: 773496 | KV59: (K-LaFK50) | KW59: 772500 | KX59: (N-LAF34) | KY59: 773496
B60: 56 | C60: H-KF6 | D60: 517522 | E60: 52.15 | F60: 51.85 | G60: 0.009922 | H60: 0.010024 | I60: 1.49023 | J60: 1.49507 | K60: 1.50035 | L60: 1.50503 | M60: 1.50588 | N60: 1.50657 | O60: 1.50925 | P60: 1.51108 | Q60: 1.51276 | R60: 1.51444 | S60: 1.51491 | T60: 1.51535 | U60: 1.51733 | V60: 1.51742 | W60: 1.51977 | X60: 1.52436 | Y60: 1.52493 | Z60: 1.52994 | AA60: 1.53468 | AB60: 1.54305 | AC60: 2.26634630E+00 | AD60: -8.85481035E-03 | AE60: 1.25163602E-02 | AF60: 3.69483817E-04 | AG60: -8.19964870E-06 | AH60: 1.43231024E-06 | AI60: 0.3003 | AJ60: 0.2368 | AK60: 0.5624 | AL60: 0.2504 | AM60: 0.2344 | AN60: 0.4998 | AO60: 0.0012 | AP60: 0.0054 | AQ60: 0.0004 | AR60: -0.0025 | AS60: -1.2 | AT60: -1.1 | AU60: -1.1 | AV60: -1.0 | AW60: -0.9 | AX60: -0.8 | AY60: -0.6 | AZ60: -0.5 | BA60: -0.4 | BB60: -0.2 | BC60: -0.1 | BD60: -1.0 | BE60: -1.0 | BF60: -1.0 | BG60: -0.9 | BH60: -0.8 | BI60: -0.7 | BJ60: -0.5 | BK60: -0.4 | BL60: -0.3 | BM60: -0.1 | BN60: 0.0 | BO60: -0.9 | BP60: -0.9 | BQ60: -0.9 | BR60: -0.8 | BS60: -0.7 | BT60: -0.5 | BU60: -0.4 | BV60: -0.3 | BW60: -0.2 | BX60: -0.1 | BY60: 0.1 | BZ60: -0.8 | CA60: -0.8 | CB60: -0.8 | CC60: -0.7 | CD60: -0.5 | CE60: -0.4 | CF60: -0.2 | CG60: -0.2 | CH60: -0.1 | CI60: 0.0 | CJ60: 0.2 | CK60: -0.8 | CL60: -0.7 | CM60: -0.7 | CN60: -0.7 | CO60: -0.5 | CP60: -0.4 | CQ60: -0.2 | CR60: -0.2 | CS60: -0.1 | CT60: 0.0 | CU60: 0.2 | CV60: -0.8 | CW60: -0.6 | CX60: -0.6 | CY60: -0.5 | CZ60: -0.4 | DA60: -0.2 | DB60: -0.2 | DC60: -0.1 | DD60: -0.1 | DE60: 0.0 | DF60: 0.2 | DG60: -0.6 | DH60: -0.5 | DI60: -0.4 | DJ60: -0.2 | DK60: -0.2 | DL60: 0.0 | DM60: 0.1 | DN60: 0.3 | DO60: 0.5 | DP60: 0.5 | DQ60: 0.7 | DR60: -0.3 | DS60: -0.2 | DT60: -0.1 | DU60: 0.0 | DV60: 0.1 | DW60: 0.2 | DX60: 0.3 | DY60: 0.5 | DZ60: 0.7 | EA60: 0.8 | EB60: 0.9 | EC60: -0.2 | ED60: -0.1 | EE60: -0.1 | EF60: 0.0 | EG60: 0.1 | EH60: 0.3 | EI60: 0.4 | EJ60: 0.6 | EK60: 0.7 | EL60: 0.8 | EM60: 0.9 | EN60: 0.2 | EO60: 0.3 | EP60: 0.3 | EQ60: 0.4 | ER60: 0.6 | ES60: 0.7 | ET60: 0.9 | EU60: 1.1 | EV60: 1.2 | EW60: 1.3 | EX60: 1.4 | EY60: -3.2 | EZ60: -2.8 | FA60: -2.5 | FB60: -2.2 | FC60: -1.8 | FD60: -1.6 | FE60: -1.2 | FF60: -1.1 | FG60: -0.9 | FH60: -0.7 | FI60: -0.5 | FJ60: -5.94E-06 | FK60: 1.78E-08 | FL60: -2.50E-11 | FM60: 4.20E-07 | FN60: 1.79E-10 | FO60: 2.83E-01 | FP60: 1 | FQ60: 1 | FR60: 1 | FS60: 2 | FT60: 2 | FU60: 1 | FV60: 1 | FZ60: 461 | GA60: 536 | GB60: 407 | GC60: 430 | GD60: 1.04 | GF60: 91 | GG60: 102 | GH60: 82 | GI60: 86 | GJ60: 88 | GK60: 89 | GL60: 90 | GM60: 91 | GN60: 92 | GO60: 92 | GP60: 93 | GQ60: 93 | GR60: 94 | GS60: 94 | GT60: 95 | GU60: 96 | GV60: 96 | GW60: 97 | GX60: 98 | GY60: 99 | GZ60: 100 | HA60: 101 | HB60: 102 | HD60: 130 | HF60: 432 | HG60: 107 | HH60: 56.3 | HI60: 22.8 | HJ60: 0.233 | HK60: 48 | HL60: 3.12 | HM60: 2.52 | HN60: 360/340 | HO60: 356/336 | HP60: -4.1 | HQ60: 0.929 | HR60: 0.956 | HS60: 0.994 | HT60: 0.997 | HU60: 0.999 | HV60: 0.999 | HW60: 0.999 | HX60: 0.999 | HY60: 0.999 | HZ60: 0.999 | IA60: 0.999 | IB60: 0.999 | IC60: 0.999 | ID60: 0.999 | IE60: 0.999 | IF60: 0.999 | IG60: 0.999 | IH60: 0.999 | II60: 0.999 | IJ60: 0.999 | IK60: 0.999 | IL60: 0.998 | IM60: 0.997 | IN60: 0.995 | IO60: 0.993 | IP60: 0.987 | IQ60: 0.976 | IR60: 0.936 | IS60: 0.783 | IT60: 0.390 | JA60: 0.861 | JB60: 0.910 | JC60: 0.987 | JD60: 0.994 | JE60: 0.998 | JF60: 0.998 | JG60: 0.998 | JH60: 0.998 | JI60: 0.998 | JJ60: 0.998 | JK60: 0.998 | JL60: 0.998 | JM60: 0.998 | JN60: 0.998 | JO60: 0.998 | JP60: 0.998 | JQ60: 0.998 | JR60: 0.998 | JS60: 0.998 | JT60: 0.998 | JU60: 0.998 | JV60: 0.996 | JW60: 0.993 | JX60: 0.991 | JY60: 0.989 | JZ60: 0.979 | KA60: 0.957 | KB60: 0.879 | KC60: 0.618 | KD60: 0.154 | KK60: PG RP | KL60: 36 | KM60: B | KN60: H-KF6 | KO60: 517522 | KP60: S-NSL36 | KQ60: 517524 | KR60: H-KF6 | KS60: 517522 | KT60: E-CF6 | KU60: 517522
A61: ★★ | B61: 57 | C61: H-QF14 | D61: 596392 | E61: 39.22 | F61: 38.95 | G61: 0.015183 | H61: 0.015383 | I61: 1.56078 | J61: 1.56608 | K61: 1.57206 | L61: 1.57777 | M61: 1.57886 | N61: 1.57979 | O61: 1.58348 | P61: 1.58609 | Q61: 1.58854 | R61: 1.59103 | S61: 1.59173 | T61: 1.59239 | U61: 1.59538 | V61: 1.59551 | W61: 1.59911 | X61: 1.60621 | Y61: 1.60712 | Z61: 1.61509 | AA61: 1.62284 | AB61: 1.63695 | AC61: 2.48576653E+00 | AD61: -9.89034420E-03 | AE61: 2.02035248E-02 | AF61: 4.92709000E-04 | AG61: 1.83898751E-05 | AH61: 2.51608701E-06 | AI61: 0.2951 | AJ61: 0.2371 | AK61: 0.5849 | AL61: 0.2457 | AM61: 0.2340 | AN61: 0.5181 | AO61: -0.0009 | AP61: 0.0064 | AQ61: 0.0101 | AR61: 0.0027 | AS61: 2.2 | AT61: 2.2 | AU61: 2.3 | AV61: 2.3 | AW61: 2.3 | AX61: 2.3 | AY61: 2.3 | AZ61: 2.4 | BA61: 2.4 | BB61: 2.5 | BC61: 2.5 | BD61: 2.5 | BE61: 2.5 | BF61: 2.5 | BG61: 2.6 | BH61: 2.6 | BI61: 2.6 | BJ61: 2.7 | BK61: 2.7 | BL61: 2.8 | BM61: 2.8 | BN61: 2.8 | BO61: 2.7 | BP61: 2.8 | BQ61: 2.8 | BR61: 2.8 | BS61: 2.8 | BT61: 2.9 | BU61: 2.9 | BV61: 2.9 | BW61: 2.9 | BX61: 2.9 | BY61: 2.9 | BZ61: 2.7 | CA61: 2.8 | CB61: 2.8 | CC61: 2.8 | CD61: 2.8 | CE61: 2.9 | CF61: 2.9 | CG61: 3.0 | CH61: 3.0 | CI61: 3.0 | CJ61: 3.0 | CK61: 2.8 | CL61: 2.8 | CM61: 2.8 | CN61: 2.8 | CO61: 2.9 | CP61: 3.0 | CQ61: 3.0 | CR61: 3.0 | CS61: 3.1 | CT61: 3.1 | CU61: 3.1 | CV61: 2.9 | CW61: 3.0 | CX61: 3.0 | CY61: 3.1 | CZ61: 3.1 | DA61: 3.2 | DB61: 3.3 | DC61: 3.3 | DD61: 3.3 | DE61: 3.4 | DF61: 3.5 | DG61: 3.1 | DH61: 3.2 | DI61: 3.2 | DJ61: 3.4 | DK61: 3.4 | DL61: 3.5 | DM61: 3.6 | DN61: 3.7 | DO61: 3.8 | DP61: 3.9 | DQ61: 4.1 | DR61: 3.7 | DS61: 3.7 | DT61: 3.8 | DU61: 3.9 | DV61: 4.1 | DW61: 4.2 | DX61: 4.3 | DY61: 4.3 | DZ61: 4.3 | EA61: 4.4 | EB61: 4.6 | EC61: 3.8 | ED61: 3.8 | EE61: 3.9 | EF61: 4.0 | EG61: 4.1 | EH61: 4.2 | EI61: 4.3 | EJ61: 4.4 | EK61: 4.4 | EL61: 4.5 | EM61: 4.7 | EN61: 4.4 | EO61: 4.5 | EP61: 4.6 | EQ61: 4.8 | ER61: 4.9 | ES61: 5.1 | ET61: 5.2 | EU61: 5.3 | EV61: 5.4 | EW61: 5.5 | EX61: 5.7 | EY61: 0.2 | EZ61: 0.6 | FA61: 1.0 | FB61: 1.2 | FC61: 1.5 | FD61: 1.8 | FE61: 1.9 | FF61: 2.0 | FG61: 2.2 | FH61: 2.3 | FI61: 2.4 | FJ61: 1.19E-06 | FK61: 1.20E-08 | FL61: -2.83E-11 | FM61: 5.30E-07 | FN61: 5.94E-10 | FO61: 3.05E-01 | FP61: 1 | FQ61: 1 | FR61: 1 | FS61: 1 | FT61: 1 | FU61: 1 | FV61: 1 | FZ61: 540 | GA61: 594 | GB61: 483 | GC61: 515 | GD61: 1.13 | GF61: 80 | GG61: 98 | GH61: 73 | GI61: 75 | GJ61: 76 | GK61: 76 | GL61: 77 | GM61: 78 | GN61: 79 | GO61: 79 | GP61: 80 | GQ61: 81 | GR61: 81 | GS61: 82 | GT61: 83 | GU61: 84 | GV61: 85 | GW61: 86 | GX61: 87 | GY61: 88 | GZ61: 89 | HA61: 90 | HB61: 91 | HD61: 195 | HF61: 534 | HG61: 168 | HH61: 75.3 | HI61: 30.9 | HJ61: 0.221 | HK61: 73 | HL61: 3.08 | HM61: 2.71 | HN61: 370/350 | HO61: 369/350 | HP61: -0.5 | HQ61: 0.958 | HR61: 0.964 | HS61: 0.990 | HT61: 0.994 | HU61: 0.999 | HV61: 0.999 | HW61: 0.999 | HX61: 0.999 | HY61: 0.999 | HZ61: 0.999 | IA61: 0.999 | IB61: 0.999 | IC61: 0.999 | ID61: 0.999 | IE61: 0.999 | IF61: 0.999 | IG61: 0.999 | IH61: 0.999 | II61: 0.999 | IJ61: 0.999 | IK61: 0.997 | IL61: 0.995 | IM61: 0.993 | IN61: 0.990 | IO61: 0.981 | IP61: 0.956 | IQ61: 0.882 | IR61: 0.641 | IS61: 0.185 | JA61: 0.916 | JB61: 0.927 | JC61: 0.977 | JD61: 0.987 | JE61: 0.998 | JF61: 0.998 | JG61: 0.998 | JH61: 0.998 | JI61: 0.998 | JJ61: 0.998 | JK61: 0.998 | JL61: 0.998 | JM61: 0.998 | JN61: 0.998 | JO61: 0.998 | JP61: 0.998 | JQ61: 0.998 | JR61: 0.998 | JS61: 0.998 | JT61: 0.998 | JU61: 0.994 | JV61: 0.990 | JW61: 0.986 | JX61: 0.980 | JY61: 0.961 | JZ61: 0.914 | KA61: 0.776 | KB61: 0.413 | KC61: 0.038 | KK61: PG RP | KL61: 45 | KM61: MA | KN61: H-QF14 | KO61: 596392 | KR61: H-QF14 | KS61: 596392 | KT61: E-F8 | KU61: 596392
A62: ★★ | B62: 58 | C62: H-QF50 | D62: 581409 | E62: 40.89 | F62: 40.61 | G62: 0.014220 | H62: 0.014400 | I62: 1.54848 | J62: 1.55364 | K62: 1.55940 | L62: 1.56481 | M62: 1.56584 | N62: 1.56671 | O62: 1.57015 | P62: 1.57260 | Q62: 1.57490 | R62: 1.57723 | S62: 1.57789 | T62: 1.57852 | U62: 1.58131 | V62: 1.58144 | W62: 1.58481 | X62: 1.59145 | Y62: 1.59229 | Z62: 1.59961 | AA62: 1.60669 | AB62: 1.61951 | AC62: 2.44672171E+00 | AD62: -9.64692814E-03 | AE62: 1.72763622E-02 | AF62: 1.09967502E-03 | AG62: -9.37435013E-05 | AH62: 8.00160916E-06 | AI62: 0.2961 | AJ62: 0.2370 | AK62: 0.5738 | AL62: 0.2465 | AM62: 0.2340 | AN62: 0.5083 | AO62: -0.0007 | AP62: -0.0018 | AQ62: 0.0016 | AR62: -0.0006 | AS62: 1.4 | AT62: 1.6 | AU62: 1.5 | AV62: 1.6 | AW62: 1.9 | AX62: 2.0 | AY62: 2.3 | AZ62: 2.3 | BA62: 2.3 | BB62: 2.5 | BC62: 2.7 | BD62: 1.8 | BE62: 1.9 | BF62: 2.0 | BG62: 2.3 | BH62: 2.6 | BI62: 2.6 | BJ62: 2.7 | BK62: 2.8 | BL62: 2.9 | BM62: 3.1 | BN62: 3.2 | BO62: 2.0 | BP62: 2.2 | BQ62: 2.3 | BR62: 2.5 | BS62: 2.7 | BT62: 2.8 | BU62: 3.0 | BV62: 3.1 | BW62: 3.1 | BX62: 3.3 | BY62: 3.5 | BZ62: 2.1 | CA62: 2.3 | CB62: 2.4 | CC62: 2.6 | CD62: 2.7 | CE62: 2.8 | CF62: 3.0 | CG62: 3.1 | CH62: 3.2 | CI62: 3.3 | CJ62: 3.5 | CK62: 2.1 | CL62: 2.3 | CM62: 2.5 | CN62: 2.6 | CO62: 2.7 | CP62: 2.8 | CQ62: 3.0 | CR62: 3.2 | CS62: 3.3 | CT62: 3.4 | CU62: 3.6 | CV62: 2.5 | CW62: 2.5 | CX62: 2.6 | CY62: 2.8 | CZ62: 3.0 | DA62: 3.2 | DB62: 3.3 | DC62: 3.5 | DD62: 3.6 | DE62: 3.7 | DF62: 3.9 | DG62: 2.6 | DH62: 2.7 | DI62: 2.8 | DJ62: 3.1 | DK62: 3.3 | DL62: 3.5 | DM62: 3.8 | DN62: 3.9 | DO62: 4.1 | DP62: 4.2 | DQ62: 4.3 | DR62: 2.9 | DS62: 3.1 | DT62: 3.4 | DU62: 3.5 | DV62: 3.7 | DW62: 3.9 | DX62: 4.2 | DY62: 4.3 | DZ62: 4.4 | EA62: 4.5 | EB62: 4.7 | EC62: 3.0 | ED62: 3.1 | EE62: 3.5 | EF62: 3.6 | EG62: 3.7 | EH62: 3.9 | EI62: 4.2 | EJ62: 4.4 | EK62: 4.5 | EL62: 4.6 | EM62: 4.8 | EN62: 3.6 | EO62: 3.8 | EP62: 4.2 | EQ62: 4.4 | ER62: 4.6 | ES62: 4.8 | ET62: 5.0 | EU62: 5.3 | EV62: 5.4 | EW62: 5.6 | EX62: 5.8 | EY62: 2.1 | EZ62: 2.3 | FA62: 2.5 | FB62: 2.6 | FC62: 2.7 | FD62: 2.8 | FE62: 3.0 | FF62: 3.2 | FG62: 3.3 | FH62: 3.4 | FI62: 3.6 | FJ62: 3.81E-07 | FK62: 1.80E-08 | FL62: -3.28E-11 | FM62: 7.19E-07 | FN62: 6.44E-10 | FO62: 2.45E-01 | FP62: 1 | FQ62: 1 | FR62: 1 | FS62: 1 | FT62: 1 | FU62: 1 | FV62: 1 | FZ62: 590 | GA62: 649 | GB62: 515 | GC62: 559 | GD62: 0.98 | GF62: 82 | GG62: 98 | GH62: 73 | GI62: 76 | GJ62: 78 | GK62: 79 | GL62: 80 | GM62: 80 | GN62: 81 | GO62: 82 | GP62: 82 | GQ62: 83 | GR62: 84 | GS62: 84 | GT62: 85 | GU62: 85 | GV62: 86 | GW62: 87 | GX62: 88 | GY62: 90 | GZ62: 91 | HA62: 92 | HB62: 93 | HD62: 200 | HF62: 499 | HG62: 128 | HH62: 70.3 | HI62: 27.7 | HJ62: 0.269 | HK62: 62 | HL62: 3.07 | HM62: 2.64 | HN62: 380/350 | HO62: 370/350 | HP62: -0.6 | HQ62: 0.933 | HR62: 0.946 | HS62: 0.980 | HT62: 0.990 | HU62: 0.999 | HV62: 0.999 | HW62: 0.999 | HX62: 0.999 | HY62: 0.999 | HZ62: 0.999 | IA62: 0.999 | IB62: 0.999 | IC62: 0.999 | ID62: 0.999 | IE62: 0.999 | IF62: 0.999 | IG62: 0.999 | IH62: 0.999 | II62: 0.999 | IJ62: 0.998 | IK62: 0.997 | IL62: 0.996 | IM62: 0.994 | IN62: 0.992 | IO62: 0.986 | IP62: 0.966 | IQ62: 0.903 | IR62: 0.701 | IS62: 0.268 | JA62: 0.810 | JB62: 0.859 | JC62: 0.960 | JD62: 0.980 | JE62: 0.998 | JF62: 0.998 | JG62: 0.998 | JH62: 0.998 | JI62: 0.998 | JJ62: 0.998 | JK62: 0.998 | JL62: 0.998 | JM62: 0.998 | JN62: 0.998 | JO62: 0.998 | JP62: 0.998 | JQ62: 0.998 | JR62: 0.998 | JS62: 0.998 | JT62: 0.996 | JU62: 0.994 | JV62: 0.992 | JW62: 0.989 | JX62: 0.981 | JY62: 0.966 | JZ62: 0.926 | KA62: 0.808 | KB62: 0.488 | KC62: 0.075 | KK62: PG RP | KL62: 39 | KM62: A | KN62: H-QF50 | KO62: 581409 | KP62: S-TIL25 | KQ62: 581407 | KR62: H-QF50A | KS62: 581408 | KT62: E-FL5 | KU62: 581409 | KX62: LF5 | KY62: 581409
